Workbook

Sheet Instructions
B3: Instructions & Assumptions
B5: The attached model is meant to provide an illustrative view of the LP cash flow dynamics associated with a proposed venture capital fund. The model is designed to be customizable so that GPs and prospective LPs may model expected returns across a variety of investment strategies and portfolio construction approaches. The model is also dynamic, enabling users to analyze projected gross and net performance across a variey of market scenarios. We encourage users of this model to be particularly thoughtful about (i) expected dilution (driven by average round sizes and entry valuation assumptions), (ii) expected loss ratios given stage of entry, and (iii) sensitivity of returns. See below for more instructions and explanations of key assumptions. Please feel free to reach out to the model author at dclayton@svb.com with questions or suggestions. -SVB Capital Team
B13: INSTRUCTIONS
B14: 1. Ensure iterative calculations are turned on
B15: 2. All blue numbers (e.g., market assumptions, cash flow assumptions, etc.) are inputs; feel free to change them as you please!
B16: 3. All green numbers are formulas that include links to other tabs
B17: 4. The model has two primary modes; (i) uniform inputs, and (ii) custom inputs
B18: Uniform Input Mode
B19: Standard mode for this model that assumes all initial checks occur at the same round, are of the same amount, and occur at the same valuation
B20: For uniform input mode, toggle cell E5 to 'Uniform Inputs'
B21: Custom Input Mode
B22: Overrides the following assumptions: (i) Expected # of Deals and Expected # of Deals Receiving Follow-On, (ii) Financing Round Characteristics, and (iii) Market Assumptions
B23: Replaces the above assumptions with custom inputs the user may enter in grouped collumns (e.g. column Z through AB)
B24: This mode may be useful for modeling different check sizes for deals of the same stage, and/or investment strategies that involve initial checks at different stages
B25: For custom input mode, toggle cell E5 to 'Custom Inputs'
B26: Copy to Custom Macro
B27: For user convenience, we have included a macro that copies (and hardcodes) all uniform assumptions to the custom input columns (see 'Copy to Custom' button)
B28: This may be helpful for users who want to use Uniform Inputs as a starting place, but then make custom changes from there
B29: 5. Uniform Input Mode can either use Pro-Rata assumptions or Fixed assumptions for follow-on
B30: Pro-rata assumes follow-on investments exercise pro-rata rights to maintain ownership, toggle cell E22 to 'Pro-Rata' for this assumption
B31: Fixed overrides pro-rata with a specified dollar amount for each follow-on round that may be more or less than pro-rata, toggle cell E22 to 'Other Fixed Amount' for this assumption
B32: The model will use cells E23 - E26 for follow-on check sizes when in the 'Other Fixed Amount' setting
B33: 6. Investment Pace
B34: Investment pace is determined by (i) Initial Checks per Month (cell E17), which spaces out initial investments accordingly, and (ii) Timing Between Rounds (cell E28), which determines the timing of follow-on rounds
B35: 7. Recycling
B36: The model will not allow you to invest more capital than is available (fund size less management fees plus any recycling) unless in custom input mode
B37: Instead, the model splits total remaining capital across investments evenly
B38: Cell E11 increases the capital available for investment by assuming a specified percent of capital is recycled
B39: 8. Performance is driven by Exit Inputs found in Column K and Column M
B40: Ownership at exit depends on how many rounds of funding each company receives (Column M) and Market Assumptions
B42: ASSUMPTIONS
B43: 1. The model is pre-filled with market assumptions (average round sizes and valuations) sourced via Pitchbook as of September 30, 2021--please feel free to change these assumptions
B45: LIMITATIONS
B46: 1. The model currently assumes all follow-on investments are made in the earliest investments in the portfolio. This likely overstates pace of deployment and understates IRR
B47: The best solution for this is to use Custom Input mode

Sheet Model
B3: Inputs | G3: Fund-Level Metrics | K3: Exit Inputs | O3: Schedule of Investments | AA3: =E22 -> Seed | AF3: ="Custom "&AA3&" Round Inputs" -> Custom Seed Round Inputs | AJ3: =IFERROR(INDEX($B$44:$B$52,MATCH(AA3,$B$44:$B$52,0)+1),"") -> Series A | AO3: ="Custom "&AJ3&" Round Inputs" -> Custom Series A Round Inputs | AS3: =IFERROR(INDEX($B$44:$B$52,MATCH(AJ3,$B$44:$B$52,0)+1),"") -> Series B | AX3: ="Custom "&AS3&" Round Inputs" -> Custom Series B Round Inputs | BB3: =IFERROR(INDEX($B$44:$B$52,MATCH(AS3,$B$44:$B$52,0)+1),"") -> Series C | BG3: ="Custom "&BB3&" Round Inputs" -> Custom Series C Round Inputs | BK3: =IFERROR(INDEX($B$44:$B$52,MATCH(BB3,$B$44:$B$52,0)+1),"") -> Series D | BP3: ="Custom "&BK3&" Round Inputs" -> Custom Series D Round Inputs | BT3: =IFERROR(INDEX($B$44:$B$52,MATCH(BK3,$B$44:$B$52,0)+1),"") -> Series E | BY3: ="Custom "&BT3&" Round Inputs" -> Custom Series E Round Inputs | CC3: =IFERROR(INDEX($B$44:$B$52,MATCH(BT3,$B$44:$B$52,0)+1),"") -> Series F | CH3: ="Custom "&CC3&" Round Inputs" -> Custom Series F Round Inputs | CL3: =IFERROR(INDEX($B$44:$B$52,MATCH(CC3,$B$44:$B$52,0)+1),"") -> Series G | CQ3: ="Custom "&CL3&" Round Inputs" -> Custom Series G Round Inputs | CU3: =IFERROR(INDEX($B$44:$B$52,MATCH(CL3,$B$44:$B$52,0)+1),"") ->  | CZ3: ="Custom "&CU3&" Round Inputs" -> Custom Round Inputs
B4: Model Setup | G4: Capital Deployment | K4: Company Name | L4: Exit Valuation | M4: Exit Round (After) | O4: Company Name | P4: Entry Round | Q4: Ownership at Entry | R4: Ownership at Exit | S4: Entry Date | T4: Exit Date | U4: Total Invested Capital | V4: Total Proceeds | W4: Gross MOIC | Z4: Company Name | AA4: Invested Capital | AB4: Date | AC4: Round Size | AD4: Post-$ Valuation | AE4: Ownership | AF4: Invested Capital | AG4: Date | AH4: Round Size | AI4: Post-$ Valuation | AJ4: Invested Capital | AK4: Date | AL4: Round Size | AM4: Post-$ Valuation | AN4: Ownership | AO4: Invested Capital | AP4: Date | AQ4: Round Size | AR4: Post-$ Valuation | AS4: Invested Capital | AT4: Date | AU4: Round Size | AV4: Post-$ Valuation | AW4: Ownership | AX4: Invested Capital | AY4: Date | AZ4: Round Size | BA4: Post-$ Valuation | BB4: Invested Capital | BC4: Date | BD4: Round Size | BE4: Post-$ Valuation | BF4: Ownership | BG4: Invested Capital | BH4: Date | BI4: Round Size | BJ4: Post-$ Valuation | BK4: Invested Capital | BL4: Date | BM4: Round Size | BN4: Post-$ Valuation | BO4: Ownership | BP4: Invested Capital | BQ4: Date | BR4: Round Size | BS4: Post-$ Valuation | BT4: Invested Capital | BU4: Date | BV4: Round Size | BW4: Post-$ Valuation | BX4: Ownership | BY4: Invested Capital | BZ4: Date | CA4: Round Size | CB4: Post-$ Valuation | CC4: Invested Capital | CD4: Date | CE4: Round Size | CF4: Post-$ Valuation | CG4: Ownership | CH4: Invested Capital | CI4: Date | CJ4: Round Size | CK4: Post-$ Valuation | CL4: Invested Capital | CM4: Date | CN4: Round Size | CO4: Post-$ Valuation | CP4: Ownership | CQ4: Invested Capital | CR4: Date | CS4: Round Size | CT4: Post-$ Valuation | CU4: Invested Capital | CV4: Date | CW4: Round Size | CX4: Post-$ Valuation | CY4: Ownership | CZ4: Invested Capital | DA4: Date | DB4: Round Size | DC4: Post-$ Valuation
B5: Mode Selection | E5: Uniform Inputs | G5: Total Commitments | I5: =E10 -> 100000000 | K5: TOTAL | O5: TOTAL | U5: =SUM(U6:U105) -> 84125000 | V5: =SUM(V6:V105) -> 534584409.8 | W5: =V5/U5 -> 6.354643802 | Z5: TOTAL | AA5: =SUM(AA6:AA105) -> 50000000 | AF5: =SUM(AF6:AF105) -> 50000000 | AJ5: =SUM(AJ6:AJ105) -> 26181818.18 | AO5: =SUM(AO6:AO105) -> 26181818.18 | AS5: =SUM(AS6:AS105) -> 7943181.818 | AX5: =SUM(AX6:AX105) -> 7943181.818 | BB5: =SUM(BB6:BB105) -> 0 | BG5: =SUM(BG6:BG105) -> 0 | BK5: =SUM(BK6:BK105) -> 0 | BP5: =SUM(BP6:BP105) -> 0 | BT5: =SUM(BT6:BT105) -> 0 | BY5: =SUM(BY6:BY105) -> 0 | CC5: =SUM(CC6:CC105) -> 0 | CH5: =SUM(CH6:CH105) -> 0 | CL5: =SUM(CL6:CL105) -> 0 | CQ5: =SUM(CQ6:CQ105) -> 0 | CU5: =SUM(CU6:CU105) -> 0 | CZ5: =SUM(CZ6:CZ105) -> 0
G6: Maximum Capital to Invest (Incl. Recycling) | I6: =I5*(1+E11)+'Cash Flows'!BX6 -> 94125000 | K6: =Z6 -> 1 | L6: 3000000000 | M6: Series G | O6: =Z6 -> 1 | P6: =IF(AA6="",IF(AJ6="",IF(AS6="",IF(BB6="",IF(BK6="","",$BK$3),$BB$3),$AS$3),$AJ$3),$AA$3) -> Seed | Q6: =IF($E$5="Uniform Inputs",AE6,IF(P6=$AA$3,AE6,IF(P6=$AJ$3,AN6,IF(P6=$AS$3,AW6,IF(P6=$BB$3,BF6,IF(P6=$BK$3,BO6,"")))))) -> 0.1818181818 | R6: =IFERROR(OFFSET($Z$6,MATCH($K6,$Z$6:$Z$105,0)-1,MATCH($M6,$AA$3:$CY$3,0)+4),"") -> 0.08141959341 | S6: =IF($E$5="Uniform Inputs",AB6,IF(P6=$AA$3,AB6,IF(P6=$AJ$3,AK6,IF(P6=$AS$3,AT6,IF(P6=$BB$3,BC6,IF(P6=$BK$3,BL6,"")))))) -> 2022-01-30 | T6: =IFERROR(IF($E$5="Uniform Inputs",OFFSET($Z$6,MATCH($K6,$Z$6:$Z$105,0)-1,MATCH($M6,$AA$3:$CY$3,0)+1)+(365*$E$28),OFFSET($Z$6,MATCH($K6,$Z$6:$Z$105,0)-1,MATCH($M6,$AA$3:$CY$3,0)+6)+(365*$E$28)),"") -> 2034-01-27 | U6: =IF(SUM(AA6,AJ6,AS6,BB6,BK6,BT6,CC6,CL6)>0,SUM(AA6,AJ6,AS6,BB6,BK6,BT6,CC6,CL6),"") -> 5770454.545 | V6: =IFERROR(R6*L6,"") -> 244258780.2 | W6: =IFERROR(V6/U6,"") -> 42.32920965 | Y6: 1 | Z6: =IF(Y6>$E$12,"",Y6) -> 1 | AA6: =IF($E$5="Uniform Inputs",IF($Z6>$E$12,"",MIN($E$21,($I$5+'Cash Flows'!$BX$6+INDEX('Cash Flows'!$C$17:$BW$17,1,MATCH(EOMONTH(AB6,MOD(-MONTH(AB6),3)-3),'Cash Flows'!$C$4:$BW$4,0)))/$E$12)),IF(AF6>0,AF6,"")) -> 2000000 | AB6: =IF($E$5="Uniform Inputs",IF($Z6>$E$12,"",E9+(30/$E$17)),IF(AG6="","",AG6)) -> 2022-01-30 | AC6: =IFERROR(IF($Z6>$E$12,"",IF($E$5="Uniform Inputs",INDEX($D$44:$E$52,MATCH($AA$3,$B$44:$B$52,0),MATCH(AC$4,$D$43:$E$43,0)),IF(AH6=0,"",AH6))),"") -> 3000000 | AD6: =IFERROR(IF($Z6>$E$12,"",IF($E$5="Uniform Inputs",INDEX($D$44:$E$52,MATCH($AA$3,$B$44:$B$52,0),MATCH(AD$4,$D$43:$E$43,0)),IF(AI6=0,"",AI6))),"") -> 11000000 | AE6: =IFERROR(AA6/AD6,"") -> 0.1818181818 | AF6: 2000000 | AG6: 2022-01-30 | AH6: 3000000 | AI6: 11000000 | AJ6: =IF($E$5="Uniform Inputs",IF($Z6>$E$13,"",IF($E$23="Pro-Rata",MIN(AL6*AE6,(($I$5+'Cash Flows'!$BX$6+INDEX('Cash Flows'!$C$17:$BW$17,1,MATCH(EOMONTH(AK6,MOD(-MONTH(AK6),3)-3),'Cash Flows'!$C$4:$BW$4,0)))-$AA$5)/$E$13),MIN($E$24,(($I$5+'Cash Flows'!$BX$6+INDEX('Cash Flows'!$C$17:$BW$17,1,MATCH(EOMONTH(AK6,MOD(-MONTH(AK6),3)-3),'Cash Flows'!$C$4:$BW$4,0)))-$AA$5)/$E$13))),IF(AO6=0,"",AO6)) -> 2181818.182 | AK6: =IF($E$5="Uniform Inputs",IF($Z6>$E$12,"",AB6+(365*$E$28)),IF(AP6=0,"",AP6)) -> 2023-07-31T12:00:00 | AL6: =IFERROR(IF($Z6>$E$12,"",IF($E$5="Uniform Inputs",INDEX($D$44:$E$52,MATCH($AJ$3,$B$44:$B$52,0),MATCH(AL$4,$D$43:$E$43,0)),IF(AQ6=0,"",AQ6))),"") -> 12000000 | AM6: =IFERROR(IF($Z6>$E$12,"",IF($E$5="Uniform Inputs",INDEX($D$44:$E$52,MATCH($AJ$3,$B$44:$B$52,0),MATCH(AM$4,$D$43:$E$43,0)),IF(AR6=0,"",AR6))),"") -> 48000000 | AN6: =IFERROR(IF($E$5="Uniform Inputs",(AE6*(AM6-AL6)+IF(AJ6="",0,AJ6))/AM6,IF(AE6="",AJ6/AM6,(AE6*(AM6-AL6)+IF(AJ6="",0,AJ6))/AM6)),"") -> 0.1818181818 | AO6: 2181818.182 | AP6: 2023-07-31T12:00:00 | AQ6: 12000000 | AR6: 48000000 | AS6: =IF($E$5="Uniform Inputs",IF($Z6>$E$14,"",IF($E$23="Pro-Rata",MIN(AU6*AN6,(($I$5+'Cash Flows'!$BX$6+INDEX('Cash Flows'!$C$17:$BW$17,1,MATCH(EOMONTH(AT6,MOD(-MONTH(AT6),3)-3),'Cash Flows'!$C$4:$BW$4,0)))-SUM($AJ$5,$AA$5))/$E$14),MIN($E$25,(($I$5+'Cash Flows'!$BX$6+INDEX('Cash Flows'!$C$17:$BW$17,1,MATCH(EOMONTH(AT6,MOD(-MONTH(AT6),3)-3),'Cash Flows'!$C$4:$BW$4,0)))-SUM($AJ$5,$AA$5))/$E$14))),IF(AX6=0,"",AX6)) -> 1588636.364 | AT6: =IF($E$5="Uniform Inputs",IF($Z6>$E$12,"",AK6+(365*$E$28)),IF(AY6=0,"",AY6)) -> 2025-01-29 | AU6: =IFERROR(IF($Z6>$E$12,"",IF($E$5="Uniform Inputs",INDEX($D$44:$E$52,MATCH($AS$3,$B$44:$B$52,0),MATCH(AU$4,$D$43:$E$43,0)),IF(AZ6=0,"",AZ6))),"") -> 31000000 | AV6: =IFERROR(IF($Z6>$E$12,"",IF($E$5="Uniform Inputs",INDEX($D$44:$E$52,MATCH($AS$3,$B$44:$B$52,0),MATCH(AV$4,$D$43:$E$43,0)),IF(BA6=0,"",BA6))),"") -> 142000000 | AW6: =IFERROR(IF($E$5="Uniform Inputs",(AN6*(AV6-AU6)+IF(AS6="",0,AS6))/AV6,IF(AN6="",AS6/AV6,(AN6*(AV6-AU6)+IF(AS6="",0,AS6))/AV6)),"") -> 0.1533130602 | AX6: 1588636.364 | AY6: 2025-01-29 | AZ6: 31000000 | BA6: 142000000 | BB6: =IF($E$5="Uniform Inputs",IF($Z6>$E$15,"",IF($E$23="Pro-Rata",MIN(BD6*AW6,(($I$5+'Cash Flows'!$BX$6+INDEX('Cash Flows'!$C$17:$BW$17,1,MATCH(EOMONTH(BC6,MOD(-MONTH(BC6),3)-3),'Cash Flows'!$C$4:$BW$4,0)))-SUM($AS$5,$AJ$5,$AA$5))/$E$15),MIN($E$26,(($I$5+'Cash Flows'!$BX$6+INDEX('Cash Flows'!$C$17:$BW$17,1,MATCH(EOMONTH(BC6,MOD(-MONTH(BC6),3)-3),'Cash Flows'!$C$4:$BW$4,0)))-SUM($AS$5,$AJ$5,$AA$5))/$E$15))),IF(BG6=0,"",BG6)) ->  | BC6: =IF($E$5="Uniform Inputs",IF($Z6>$E$12,"",AT6+(365*$E$28)),IF(BH6=0,"",BH6)) -> 2026-07-30T12:00:00 | BD6: =IFERROR(IF($Z6>$E$12,"",IF($E$5="Uniform Inputs",INDEX($D$44:$E$52,MATCH($BB$3,$B$44:$B$52,0),MATCH(BD$4,$D$43:$E$43,0)),IF(BI6=0,"",BI6))),"") -> 70000000 | BE6: =IFERROR(IF($Z6>$E$12,"",IF($E$5="Uniform Inputs",INDEX($D$44:$E$52,MATCH($BB$3,$B$44:$B$52,0),MATCH(BE$4,$D$43:$E$43,0)),IF(BJ6=0,"",BJ6))),"") -> 375000000 | BF6: =IFERROR(IF($E$5="Uniform Inputs",(AW6*(BE6-BD6)+IF(BB6="",0,BB6))/BE6,IF(AW6="",BB6/BE6,(AW6*(BE6-BD6)+IF(BB6="",0,BB6))/BE6)),"") -> 0.1246946223 | BH6: 2026-07-30T12:00:00 | BI6: 70000000 | BJ6: 375000000 | BK6: =IF($E$5="Uniform Inputs",IF($Z6>$E$16,"",IF($E$23="Pro-Rata",MIN(BM6*BF6,(($I$5+'Cash Flows'!$BX$6+INDEX('Cash Flows'!$C$17:$BW$17,1,MATCH(EOMONTH(BL6,MOD(-MONTH(BL6),3)-3),'Cash Flows'!$C$4:$BW$4,0)))-SUM($BB$5,$AS$5,$AJ$5,$AA$5))/$E$16),MIN($E$27,(($I$5+'Cash Flows'!$BX$6+INDEX('Cash Flows'!$C$17:$BW$17,1,MATCH(EOMONTH(BL6,MOD(-MONTH(BL6),3)-3),'Cash Flows'!$C$4:$BW$4,0)))-SUM($BB$5,$AS$5,$AJ$5,$AA$5))/$E$16))),IF(BP6=0,"",BP6)) ->  | BL6: =IF($E$5="Uniform Inputs",IF($Z6>$E$12,"",BC6+(365*$E$28)),IF(BQ6=0,"",BQ6)) -> 2028-01-29 | BM6: =IFERROR(IF($Z6>$E$12,"",IF($E$5="Uniform Inputs",INDEX($D$44:$E$52,MATCH($BK$3,$B$44:$B$52,0),MATCH(BM$4,$D$43:$E$43,0)),IF(BR6=0,"",BR6))),"") -> 110000000 | BN6: =IFERROR(IF($Z6>$E$12,"",IF($E$5="Uniform Inputs",INDEX($D$44:$E$52,MATCH($BK$3,$B$44:$B$52,0),MATCH(BN$4,$D$43:$E$43,0)),IF(BS6=0,"",BS6))),"") -> 1000000000 | BO6: =IFERROR(IF($E$5="Uniform Inputs",(BF6*(BN6-BM6)+IF(BK6="",0,BK6))/BN6,IF(BF6="",BK6/BN6,(BF6*(BN6-BM6)+IF(BK6="",0,BK6))/BN6)),"") -> 0.1109782138 | BQ6: 2028-01-29 | BR6: 110000000 | BS6: 1000000000 | BT6: =IF($E$5="Uniform Inputs","",IF(BY6>0,IF(BY6=0,"",BY6),"")) ->  | BU6: =IF($E$5="Uniform Inputs",IF($Z6>$E$12,"",BL6+(365*$E$28)),IF(BZ6=0,"",BZ6)) -> 2029-07-29T12:00:00 | BV6: =IFERROR(IF($Z6>$E$12,"",IF($E$5="Uniform Inputs",INDEX($D$44:$E$52,MATCH($BT$3,$B$44:$B$52,0),MATCH(BV$4,$D$43:$E$43,0)),IF(CA6=0,"",CA6))),"") -> 150000000 | BW6: =IFERROR(IF($Z6>$E$12,"",IF($E$5="Uniform Inputs",INDEX($D$44:$E$52,MATCH($BT$3,$B$44:$B$52,0),MATCH(BW$4,$D$43:$E$43,0)),IF(CB6=0,"",CB6))),"") -> 1300000000 | BX6: =IFERROR(IF($E$5="Uniform Inputs",(BO6*(BW6-BV6)+IF(BT6="",0,BT6))/BW6,IF(BO6="",BT6/BW6,(BO6*(BW6-BV6)+IF(BT6="",0,BT6))/BW6)),"") -> 0.09817303531 | BZ6: 2029-07-29T12:00:00 | CA6: 150000000 | CB6: 1300000000 | CC6: =IF($E$5="Uniform Inputs","",IF(CH6>0,IF(CH6=0,"",CH6),"")) ->  | CD6: =IF($E$5="Uniform Inputs",IF($Z6>$E$12,"",BU6+(365*$E$28)),IF(CI6=0,"",CI6)) -> 2031-01-28 | CE6: =IFERROR(IF($Z6>$E$12,"",IF($E$5="Uniform Inputs",INDEX($D$44:$E$52,MATCH($CC$3,$B$44:$B$52,0),MATCH(CE$4,$D$43:$E$43,0)),IF(CJ6=0,"",CJ6))),"") -> 200000000 | CF6: =IFERROR(IF($Z6>$E$12,"",IF($E$5="Uniform Inputs",INDEX($D$44:$E$52,MATCH($CC$3,$B$44:$B$52,0),MATCH(CF$4,$D$43:$E$43,0)),IF(CK6=0,"",CK6))),"") -> 2300000000 | CG6: =IFERROR(IF($E$5="Uniform Inputs",(BX6*(CF6-CE6)+IF(CC6="",0,CC6))/CF6,IF(BX6="",CC6/CF6,(BX6*(CF6-CE6)+IF(CC6="",0,CC6))/CF6)),"") -> 0.08963624963 | CI6: 2031-01-28 | CJ6: 200000000 | CK6: 2300000000 | CL6: =IF($E$5="Uniform Inputs","",IF(CQ6>0,IF(CQ6=0,"",CQ6),"")) ->  | CM6: =IF($E$5="Uniform Inputs",IF($Z6>$E$12,"",CD6+(365*$E$28)),IF(CR6=0,"",CR6)) -> 2032-07-28T12:00:00 | CN6: =IFERROR(IF($Z6>$E$12,"",IF($E$5="Uniform Inputs",INDEX($D$44:$E$52,MATCH($CL$3,$B$44:$B$52,0),MATCH(CN$4,$D$43:$E$43,0)),IF(CS6=0,"",CS6))),"") -> 275000000 | CO6: =IFERROR(IF($Z6>$E$12,"",IF($E$5="Uniform Inputs",INDEX($D$44:$E$52,MATCH($CL$3,$B$44:$B$52,0),MATCH(CO$4,$D$43:$E$43,0)),IF(CT6=0,"",CT6))),"") -> 3000000000 | CP6: =IFERROR(IF($E$5="Uniform Inputs",(CG6*(CO6-CN6)+IF(CL6="",0,CL6))/CO6,IF(CG6="",CL6/CO6,(CG6*(CO6-CN6)+IF(CL6="",0,CL6))/CO6)),"") -> 0.08141959341 | CR6: 2032-07-28T12:00:00 | CS6: 275000000 | CT6: 3000000000 | CU6: =IF($E$5="Uniform Inputs","",IF(CZ6>0,IF(CZ6=0,"",CZ6),"")) ->  | CV6: =IF($E$5="Uniform Inputs",IF($Z6>$E$12,"",CM6+(365*$E$28)),IF(DA6=0,"",DA6)) -> 2034-01-27 | CW6: =IFERROR(IF($Z6>$E$12,"",IF($E$5="Uniform Inputs",INDEX($D$44:$E$52,MATCH($CU$3,$B$44:$B$52,0),MATCH(CW$4,$D$43:$E$43,0)),IF(DB6=0,"",DB6))),"") ->  | CX6: =IFERROR(IF($Z6>$E$12,"",IF($E$5="Uniform Inputs",INDEX($D$44:$E$52,MATCH($CU$3,$B$44:$B$52,0),MATCH(CX$4,$D$43:$E$43,0)),IF(DC6=0,"",DC6))),"") ->  | CY6: =IFERROR(IF($E$5="Uniform Inputs",(CP6*(CX6-CW6)+IF(CU6="",0,CU6))/CX6,IF(CP6="",CU6/CX6,(CP6*(CX6-CW6)+IF(CU6="",0,CU6))/CX6)),"") ->  | DA6: 2034-01-27
G7: Total Invested Capital | I7: =U5 -> 84125000 | K7: =Z7 -> 2 | L7: 1000000000 | M7: Series F | O7: =Z7 -> 2 | P7: Seed | Q7: 0.1818181818 | R7: 0.08963624963 | S7: =IF($E$5="Uniform Inputs",AB7,IF(P7=$AA$3,AB7,IF(P7=$AJ$3,AK7,IF(P7=$AS$3,AT7,IF(P7=$BB$3,BC7,IF(P7=$BK$3,BL7,"")))))) -> 2022-03-01 | T7: 2032-08-27T12:00:00 | U7: =IF(SUM(AA7,AJ7,AS7,BB7,BK7,BT7,CC7,CL7)>0,SUM(AA7,AJ7,AS7,BB7,BK7,BT7,CC7,CL7),"") -> 5770454.545 | V7: 89636249.63 | W7: =IFERROR(V7/U7,"") -> 15.53365492 | Y7: 2 | Z7: =IF(Y7>$E$12,"",Y7) -> 2 | AA7: =IF($E$5="Uniform Inputs",IF($Z7>$E$12,"",MIN($E$21,($I$5+'Cash Flows'!$BX$6+INDEX('Cash Flows'!$C$17:$BW$17,1,MATCH(EOMONTH(AB7,MOD(-MONTH(AB7),3)-3),'Cash Flows'!$C$4:$BW$4,0)))/$E$12)),IF(AF7>0,AF7,"")) -> 2000000 | AB7: =IF($E$5="Uniform Inputs",IF($Z7>$E$12,"",AB6+(30/$E$17)),IF(AG7="","",AG7)) -> 2022-03-01 | AC7: 3000000 | AD7: 11000000 | AE7: =IFERROR(AA7/AD7,"") -> 0.1818181818 | AF7: 2000000 | AG7: 2022-03-01 | AH7: 3000000 | AI7: 11000000 | AJ7: =IF($E$5="Uniform Inputs",IF($Z7>$E$13,"",IF($E$23="Pro-Rata",MIN(AL7*AE7,(($I$5+'Cash Flows'!$BX$6+INDEX('Cash Flows'!$C$17:$BW$17,1,MATCH(EOMONTH(AK7,MOD(-MONTH(AK7),3)-3),'Cash Flows'!$C$4:$BW$4,0)))-$AA$5)/$E$13),MIN($E$24,(($I$5+'Cash Flows'!$BX$6+INDEX('Cash Flows'!$C$17:$BW$17,1,MATCH(EOMONTH(AK7,MOD(-MONTH(AK7),3)-3),'Cash Flows'!$C$4:$BW$4,0)))-$AA$5)/$E$13))),IF(AO7=0,"",AO7)) -> 2181818.182 | AK7: 2023-08-30T12:00:00 | AL7: 12000000 | AM7: 48000000 | AN7: 0.1818181818 | AO7: 2181818.182 | AP7: 2023-08-30T12:00:00 | AQ7: 12000000 | AR7: 48000000 | AS7: =IF($E$5="Uniform Inputs",IF($Z7>$E$14,"",IF($E$23="Pro-Rata",MIN(AU7*AN7,(($I$5+'Cash Flows'!$BX$6+INDEX('Cash Flows'!$C$17:$BW$17,1,MATCH(EOMONTH(AT7,MOD(-MONTH(AT7),3)-3),'Cash Flows'!$C$4:$BW$4,0)))-SUM($AJ$5,$AA$5))/$E$14),MIN($E$25,(($I$5+'Cash Flows'!$BX$6+INDEX('Cash Flows'!$C$17:$BW$17,1,MATCH(EOMONTH(AT7,MOD(-MONTH(AT7),3)-3),'Cash Flows'!$C$4:$BW$4,0)))-SUM($AJ$5,$AA$5))/$E$14))),IF(AX7=0,"",AX7)) -> 1588636.364 | AT7: 2025-02-28 | AU7: 31000000 | AV7: 142000000 | AW7: 0.1533130602 | AX7: 1588636.364 | AY7: 2025-02-28 | AZ7: 31000000 | BA7: 142000000 | BB7: =IF($E$5="Uniform Inputs",IF($Z7>$E$15,"",IF($E$23="Pro-Rata",MIN(BD7*AW7,(($I$5+'Cash Flows'!$BX$6+INDEX('Cash Flows'!$C$17:$BW$17,1,MATCH(EOMONTH(BC7,MOD(-MONTH(BC7),3)-3),'Cash Flows'!$C$4:$BW$4,0)))-SUM($AS$5,$AJ$5,$AA$5))/$E$15),MIN($E$26,(($I$5+'Cash Flows'!$BX$6+INDEX('Cash Flows'!$C$17:$BW$17,1,MATCH(EOMONTH(BC7,MOD(-MONTH(BC7),3)-3),'Cash Flows'!$C$4:$BW$4,0)))-SUM($AS$5,$AJ$5,$AA$5))/$E$15))),IF(BG7=0,"",BG7)) ->  | BC7: 2026-08-29T12:00:00 | BD7: 70000000 | BE7: 375000000 | BF7: 0.1246946223 | BH7: 2026-08-29T12:00:00 | BI7: 70000000 | BJ7: 375000000 | BK7: =IF($E$5="Uniform Inputs",IF($Z7>$E$16,"",IF($E$23="Pro-Rata",MIN(BM7*BF7,(($I$5+'Cash Flows'!$BX$6+INDEX('Cash Flows'!$C$17:$BW$17,1,MATCH(EOMONTH(BL7,MOD(-MONTH(BL7),3)-3),'Cash Flows'!$C$4:$BW$4,0)))-SUM($BB$5,$AS$5,$AJ$5,$AA$5))/$E$16),MIN($E$27,(($I$5+'Cash Flows'!$BX$6+INDEX('Cash Flows'!$C$17:$BW$17,1,MATCH(EOMONTH(BL7,MOD(-MONTH(BL7),3)-3),'Cash Flows'!$C$4:$BW$4,0)))-SUM($BB$5,$AS$5,$AJ$5,$AA$5))/$E$16))),IF(BP7=0,"",BP7)) ->  | BL7: 2028-02-28 | BM7: 110000000 | BN7: 1000000000 | BO7: 0.1109782138 | BQ7: 2028-02-28 | BR7: 110000000 | BS7: 1000000000 | BT7: =IF($E$5="Uniform Inputs","",IF(BY7>0,IF(BY7=0,"",BY7),"")) ->  | BU7: 2029-08-28T12:00:00 | BV7: 150000000 | BW7: 1300000000 | BX7: 0.09817303531 | BZ7: 2029-08-28T12:00:00 | CA7: 150000000 | CB7: 1300000000 | CC7: =IF($E$5="Uniform Inputs","",IF(CH7>0,IF(CH7=0,"",CH7),"")) ->  | CD7: 2031-02-27 | CE7: 200000000 | CF7: 2300000000 | CG7: 0.08963624963 | CI7: 2031-02-27 | CJ7: 200000000 | CK7: 2300000000 | CL7: =IF($E$5="Uniform Inputs","",IF(CQ7>0,IF(CQ7=0,"",CQ7),"")) ->  | CM7: 2032-08-27T12:00:00 | CN7: 275000000 | CO7: 3000000000 | CP7: 0.08141959341 | CR7: 2032-08-27T12:00:00 | CS7: 275000000 | CT7: 3000000000 | CU7: =IF($E$5="Uniform Inputs","",IF(CZ7>0,IF(CZ7=0,"",CZ7),"")) ->  | CV7: 2034-02-26 | DA7: 2034-02-26
B8: Fund Characteristics | G8: Available for Co-Invest | I8: =SUMPRODUCT(--(AJ6:AJ105<>""),AE6:AE105,AL6:AL105)-SUM(AJ6:AJ105)+SUMPRODUCT(--(AS6:AS105<>""),AN6:AN105,AU6:AU105)-SUM(AS6:AS105)+SUMPRODUCT(--(BB6:BB105<>""),AW6:AW105,BD6:BD105)-SUM(BB6:BB105)+SUMPRODUCT(--(BK6:BK105<>""),BF6:BF105,BM6:BM105)-SUM(BK6:BK105) -> 20238636.36 | K8: 3 | L8: 500000000 | M8: Series D | O8: 3 | P8: Seed | Q8: 0.1818181818 | R8: 0.1109782138 | S8: 2022-03-31 | T8: 2029-09-27T12:00:00 | U8: 5770454.545 | V8: 55489106.91 | W8: 9.616072092 | Y8: 3 | Z8: 3 | AA8: =IF($E$5="Uniform Inputs",IF($Z8>$E$12,"",MIN($E$21,($I$5+'Cash Flows'!$BX$6+INDEX('Cash Flows'!$C$17:$BW$17,1,MATCH(EOMONTH(AB8,MOD(-MONTH(AB8),3)-3),'Cash Flows'!$C$4:$BW$4,0)))/$E$12)),IF(AF8>0,AF8,"")) -> 2000000 | AB8: 2022-03-31 | AC8: 3000000 | AD8: 11000000 | AE8: 0.1818181818 | AF8: 2000000 | AG8: 2022-03-31 | AH8: 3000000 | AI8: 11000000 | AJ8: =IF($E$5="Uniform Inputs",IF($Z8>$E$13,"",IF($E$23="Pro-Rata",MIN(AL8*AE8,(($I$5+'Cash Flows'!$BX$6+INDEX('Cash Flows'!$C$17:$BW$17,1,MATCH(EOMONTH(AK8,MOD(-MONTH(AK8),3)-3),'Cash Flows'!$C$4:$BW$4,0)))-$AA$5)/$E$13),MIN($E$24,(($I$5+'Cash Flows'!$BX$6+INDEX('Cash Flows'!$C$17:$BW$17,1,MATCH(EOMONTH(AK8,MOD(-MONTH(AK8),3)-3),'Cash Flows'!$C$4:$BW$4,0)))-$AA$5)/$E$13))),IF(AO8=0,"",AO8)) -> 2181818.182 | AK8: 2023-09-29T12:00:00 | AL8: 12000000 | AM8: 48000000 | AN8: 0.1818181818 | AO8: 2181818.182 | AP8: 2023-09-29T12:00:00 | AQ8: 12000000 | AR8: 48000000 | AS8: =IF($E$5="Uniform Inputs",IF($Z8>$E$14,"",IF($E$23="Pro-Rata",MIN(AU8*AN8,(($I$5+'Cash Flows'!$BX$6+INDEX('Cash Flows'!$C$17:$BW$17,1,MATCH(EOMONTH(AT8,MOD(-MONTH(AT8),3)-3),'Cash Flows'!$C$4:$BW$4,0)))-SUM($AJ$5,$AA$5))/$E$14),MIN($E$25,(($I$5+'Cash Flows'!$BX$6+INDEX('Cash Flows'!$C$17:$BW$17,1,MATCH(EOMONTH(AT8,MOD(-MONTH(AT8),3)-3),'Cash Flows'!$C$4:$BW$4,0)))-SUM($AJ$5,$AA$5))/$E$14))),IF(AX8=0,"",AX8)) -> 1588636.364 | AT8: 2025-03-30 | AU8: 31000000 | AV8: 142000000 | AW8: 0.1533130602 | AX8: 1588636.364 | AY8: 2025-03-30 | AZ8: 31000000 | BA8: 142000000 | BB8: =IF($E$5="Uniform Inputs",IF($Z8>$E$15,"",IF($E$23="Pro-Rata",MIN(BD8*AW8,(($I$5+'Cash Flows'!$BX$6+INDEX('Cash Flows'!$C$17:$BW$17,1,MATCH(EOMONTH(BC8,MOD(-MONTH(BC8),3)-3),'Cash Flows'!$C$4:$BW$4,0)))-SUM($AS$5,$AJ$5,$AA$5))/$E$15),MIN($E$26,(($I$5+'Cash Flows'!$BX$6+INDEX('Cash Flows'!$C$17:$BW$17,1,MATCH(EOMONTH(BC8,MOD(-MONTH(BC8),3)-3),'Cash Flows'!$C$4:$BW$4,0)))-SUM($AS$5,$AJ$5,$AA$5))/$E$15))),IF(BG8=0,"",BG8)) ->  | BC8: 2026-09-28T12:00:00 | BD8: 70000000 | BE8: 375000000 | BF8: 0.1246946223 | BH8: 2026-09-28T12:00:00 | BI8: 70000000 | BJ8: 375000000 | BK8: =IF($E$5="Uniform Inputs",IF($Z8>$E$16,"",IF($E$23="Pro-Rata",MIN(BM8*BF8,(($I$5+'Cash Flows'!$BX$6+INDEX('Cash Flows'!$C$17:$BW$17,1,MATCH(EOMONTH(BL8,MOD(-MONTH(BL8),3)-3),'Cash Flows'!$C$4:$BW$4,0)))-SUM($BB$5,$AS$5,$AJ$5,$AA$5))/$E$16),MIN($E$27,(($I$5+'Cash Flows'!$BX$6+INDEX('Cash Flows'!$C$17:$BW$17,1,MATCH(EOMONTH(BL8,MOD(-MONTH(BL8),3)-3),'Cash Flows'!$C$4:$BW$4,0)))-SUM($BB$5,$AS$5,$AJ$5,$AA$5))/$E$16))),IF(BP8=0,"",BP8)) ->  | BL8: 2028-03-29 | BM8: 110000000 | BN8: 1000000000 | BO8: 0.1109782138 | BQ8: 2028-03-29 | BR8: 110000000 | BS8: 1000000000 | BU8: 2029-09-27T12:00:00 | BV8: 150000000 | BW8: 1300000000 | BX8: 0.09817303531 | BZ8: 2029-09-27T12:00:00 | CA8: 150000000 | CB8: 1300000000 | CD8: 2031-03-29 | CE8: 200000000 | CF8: 2300000000 | CG8: 0.08963624963 | CI8: 2031-03-29 | CJ8: 200000000 | CK8: 2300000000 | CM8: 2032-09-26T12:00:00 | CN8: 275000000 | CO8: 3000000000 | CP8: 0.08141959341 | CR8: 2032-09-26T12:00:00 | CS8: 275000000 | CT8: 3000000000 | CV8: 2034-03-28 | DA8: 2034-03-28
B9: Inception Date: | E9: 2021-12-31 | G9: Percent Of Fund Size Invested | I9: =I7/I5 -> 0.84125 | K9: 4 | L9: 250000000 | M9: Series D | O9: 4 | P9: Seed | Q9: 0.1818181818 | R9: 0.1109782138 | S9: 2022-04-30 | T9: 2029-10-27T12:00:00 | U9: 5770454.545 | V9: 27744553.46 | W9: 4.808036046 | Y9: 4 | Z9: 4 | AA9: =IF($E$5="Uniform Inputs",IF($Z9>$E$12,"",MIN($E$21,($I$5+'Cash Flows'!$BX$6+INDEX('Cash Flows'!$C$17:$BW$17,1,MATCH(EOMONTH(AB9,MOD(-MONTH(AB9),3)-3),'Cash Flows'!$C$4:$BW$4,0)))/$E$12)),IF(AF9>0,AF9,"")) -> 2000000 | AB9: 2022-04-30 | AC9: 3000000 | AD9: 11000000 | AE9: 0.1818181818 | AF9: 2000000 | AG9: 2022-04-30 | AH9: 3000000 | AI9: 11000000 | AJ9: =IF($E$5="Uniform Inputs",IF($Z9>$E$13,"",IF($E$23="Pro-Rata",MIN(AL9*AE9,(($I$5+'Cash Flows'!$BX$6+INDEX('Cash Flows'!$C$17:$BW$17,1,MATCH(EOMONTH(AK9,MOD(-MONTH(AK9),3)-3),'Cash Flows'!$C$4:$BW$4,0)))-$AA$5)/$E$13),MIN($E$24,(($I$5+'Cash Flows'!$BX$6+INDEX('Cash Flows'!$C$17:$BW$17,1,MATCH(EOMONTH(AK9,MOD(-MONTH(AK9),3)-3),'Cash Flows'!$C$4:$BW$4,0)))-$AA$5)/$E$13))),IF(AO9=0,"",AO9)) -> 2181818.182 | AK9: 2023-10-29T12:00:00 | AL9: 12000000 | AM9: 48000000 | AN9: 0.1818181818 | AO9: 2181818.182 | AP9: 2023-10-29T12:00:00 | AQ9: 12000000 | AR9: 48000000 | AS9: =IF($E$5="Uniform Inputs",IF($Z9>$E$14,"",IF($E$23="Pro-Rata",MIN(AU9*AN9,(($I$5+'Cash Flows'!$BX$6+INDEX('Cash Flows'!$C$17:$BW$17,1,MATCH(EOMONTH(AT9,MOD(-MONTH(AT9),3)-3),'Cash Flows'!$C$4:$BW$4,0)))-SUM($AJ$5,$AA$5))/$E$14),MIN($E$25,(($I$5+'Cash Flows'!$BX$6+INDEX('Cash Flows'!$C$17:$BW$17,1,MATCH(EOMONTH(AT9,MOD(-MONTH(AT9),3)-3),'Cash Flows'!$C$4:$BW$4,0)))-SUM($AJ$5,$AA$5))/$E$14))),IF(AX9=0,"",AX9)) -> 1588636.364 | AT9: 2025-04-29 | AU9: 31000000 | AV9: 142000000 | AW9: 0.1533130602 | AX9: 1588636.364 | AY9: 2025-04-29 | AZ9: 31000000 | BA9: 142000000 | BB9: =IF($E$5="Uniform Inputs",IF($Z9>$E$15,"",IF($E$23="Pro-Rata",MIN(BD9*AW9,(($I$5+'Cash Flows'!$BX$6+INDEX('Cash Flows'!$C$17:$BW$17,1,MATCH(EOMONTH(BC9,MOD(-MONTH(BC9),3)-3),'Cash Flows'!$C$4:$BW$4,0)))-SUM($AS$5,$AJ$5,$AA$5))/$E$15),MIN($E$26,(($I$5+'Cash Flows'!$BX$6+INDEX('Cash Flows'!$C$17:$BW$17,1,MATCH(EOMONTH(BC9,MOD(-MONTH(BC9),3)-3),'Cash Flows'!$C$4:$BW$4,0)))-SUM($AS$5,$AJ$5,$AA$5))/$E$15))),IF(BG9=0,"",BG9)) ->  | BC9: 2026-10-28T12:00:00 | BD9: 70000000 | BE9: 375000000 | BF9: 0.1246946223 | BH9: 2026-10-28T12:00:00 | BI9: 70000000 | BJ9: 375000000 | BK9: =IF($E$5="Uniform Inputs",IF($Z9>$E$16,"",IF($E$23="Pro-Rata",MIN(BM9*BF9,(($I$5+'Cash Flows'!$BX$6+INDEX('Cash Flows'!$C$17:$BW$17,1,MATCH(EOMONTH(BL9,MOD(-MONTH(BL9),3)-3),'Cash Flows'!$C$4:$BW$4,0)))-SUM($BB$5,$AS$5,$AJ$5,$AA$5))/$E$16),MIN($E$27,(($I$5+'Cash Flows'!$BX$6+INDEX('Cash Flows'!$C$17:$BW$17,1,MATCH(EOMONTH(BL9,MOD(-MONTH(BL9),3)-3),'Cash Flows'!$C$4:$BW$4,0)))-SUM($BB$5,$AS$5,$AJ$5,$AA$5))/$E$16))),IF(BP9=0,"",BP9)) ->  | BL9: 2028-04-28 | BM9: 110000000 | BN9: 1000000000 | BO9: 0.1109782138 | BQ9: 2028-04-28 | BR9: 110000000 | BS9: 1000000000 | BU9: 2029-10-27T12:00:00 | BV9: 150000000 | BW9: 1300000000 | BX9: 0.09817303531 | BZ9: 2029-10-27T12:00:00 | CA9: 150000000 | CB9: 1300000000 | CD9: 2031-04-28 | CE9: 200000000 | CF9: 2300000000 | CG9: 0.08963624963 | CI9: 2031-04-28 | CJ9: 200000000 | CK9: 2300000000 | CM9: 2032-10-26T12:00:00 | CN9: 275000000 | CO9: 3000000000 | CP9: 0.08141959341 | CR9: 2032-10-26T12:00:00 | CS9: 275000000 | CT9: 3000000000 | CV9: 2034-04-27 | DA9: 2034-04-27
B10: Fund Size: | E10: 100000000 | G10: Fund Fully Deployed/Reserved In | I10: =IF($E$5="Uniform Inputs",E12/E17,"N/A") -> 25 | K10: 5 | L10: 200000000 | M10: Series D | O10: 5 | P10: Seed | Q10: 0.1818181818 | R10: 0.1109782138 | S10: 2022-05-30 | T10: 2029-11-26T12:00:00 | U10: 5770454.545 | V10: 22195642.77 | W10: 3.846428837 | Y10: 5 | Z10: 5 | AA10: =IF($E$5="Uniform Inputs",IF($Z10>$E$12,"",MIN($E$21,($I$5+'Cash Flows'!$BX$6+INDEX('Cash Flows'!$C$17:$BW$17,1,MATCH(EOMONTH(AB10,MOD(-MONTH(AB10),3)-3),'Cash Flows'!$C$4:$BW$4,0)))/$E$12)),IF(AF10>0,AF10,"")) -> 2000000 | AB10: 2022-05-30 | AC10: 3000000 | AD10: 11000000 | AE10: 0.1818181818 | AF10: 2000000 | AG10: 2022-05-30 | AH10: 3000000 | AI10: 11000000 | AJ10: =IF($E$5="Uniform Inputs",IF($Z10>$E$13,"",IF($E$23="Pro-Rata",MIN(AL10*AE10,(($I$5+'Cash Flows'!$BX$6+INDEX('Cash Flows'!$C$17:$BW$17,1,MATCH(EOMONTH(AK10,MOD(-MONTH(AK10),3)-3),'Cash Flows'!$C$4:$BW$4,0)))-$AA$5)/$E$13),MIN($E$24,(($I$5+'Cash Flows'!$BX$6+INDEX('Cash Flows'!$C$17:$BW$17,1,MATCH(EOMONTH(AK10,MOD(-MONTH(AK10),3)-3),'Cash Flows'!$C$4:$BW$4,0)))-$AA$5)/$E$13))),IF(AO10=0,"",AO10)) -> 2181818.182 | AK10: 2023-11-28T12:00:00 | AL10: 12000000 | AM10: 48000000 | AN10: 0.1818181818 | AO10: 2181818.182 | AP10: 2023-11-28T12:00:00 | AQ10: 12000000 | AR10: 48000000 | AS10: =IF($E$5="Uniform Inputs",IF($Z10>$E$14,"",IF($E$23="Pro-Rata",MIN(AU10*AN10,(($I$5+'Cash Flows'!$BX$6+INDEX('Cash Flows'!$C$17:$BW$17,1,MATCH(EOMONTH(AT10,MOD(-MONTH(AT10),3)-3),'Cash Flows'!$C$4:$BW$4,0)))-SUM($AJ$5,$AA$5))/$E$14),MIN($E$25,(($I$5+'Cash Flows'!$BX$6+INDEX('Cash Flows'!$C$17:$BW$17,1,MATCH(EOMONTH(AT10,MOD(-MONTH(AT10),3)-3),'Cash Flows'!$C$4:$BW$4,0)))-SUM($AJ$5,$AA$5))/$E$14))),IF(AX10=0,"",AX10)) -> 1588636.364 | AT10: 2025-05-29 | AU10: 31000000 | AV10: 142000000 | AW10: 0.1533130602 | AX10: 1588636.364 | AY10: 2025-05-29 | AZ10: 31000000 | BA10: 142000000 | BB10: =IF($E$5="Uniform Inputs",IF($Z10>$E$15,"",IF($E$23="Pro-Rata",MIN(BD10*AW10,(($I$5+'Cash Flows'!$BX$6+INDEX('Cash Flows'!$C$17:$BW$17,1,MATCH(EOMONTH(BC10,MOD(-MONTH(BC10),3)-3),'Cash Flows'!$C$4:$BW$4,0)))-SUM($AS$5,$AJ$5,$AA$5))/$E$15),MIN($E$26,(($I$5+'Cash Flows'!$BX$6+INDEX('Cash Flows'!$C$17:$BW$17,1,MATCH(EOMONTH(BC10,MOD(-MONTH(BC10),3)-3),'Cash Flows'!$C$4:$BW$4,0)))-SUM($AS$5,$AJ$5,$AA$5))/$E$15))),IF(BG10=0,"",BG10)) ->  | BC10: 2026-11-27T12:00:00 | BD10: 70000000 | BE10: 375000000 | BF10: 0.1246946223 | BH10: 2026-11-27T12:00:00 | BI10: 70000000 | BJ10: 375000000 | BK10: =IF($E$5="Uniform Inputs",IF($Z10>$E$16,"",IF($E$23="Pro-Rata",MIN(BM10*BF10,(($I$5+'Cash Flows'!$BX$6+INDEX('Cash Flows'!$C$17:$BW$17,1,MATCH(EOMONTH(BL10,MOD(-MONTH(BL10),3)-3),'Cash Flows'!$C$4:$BW$4,0)))-SUM($BB$5,$AS$5,$AJ$5,$AA$5))/$E$16),MIN($E$27,(($I$5+'Cash Flows'!$BX$6+INDEX('Cash Flows'!$C$17:$BW$17,1,MATCH(EOMONTH(BL10,MOD(-MONTH(BL10),3)-3),'Cash Flows'!$C$4:$BW$4,0)))-SUM($BB$5,$AS$5,$AJ$5,$AA$5))/$E$16))),IF(BP10=0,"",BP10)) ->  | BL10: 2028-05-28 | BM10: 110000000 | BN10: 1000000000 | BO10: 0.1109782138 | BQ10: 2028-05-28 | BR10: 110000000 | BS10: 1000000000 | BU10: 2029-11-26T12:00:00 | BV10: 150000000 | BW10: 1300000000 | BX10: 0.09817303531 | BZ10: 2029-11-26T12:00:00 | CA10: 150000000 | CB10: 1300000000 | CD10: 2031-05-28 | CE10: 200000000 | CF10: 2300000000 | CG10: 0.08963624963 | CI10: 2031-05-28 | CJ10: 200000000 | CK10: 2300000000 | CM10: 2032-11-25T12:00:00 | CN10: 275000000 | CO10: 3000000000 | CP10: 0.08141959341 | CR10: 2032-11-25T12:00:00 | CS10: 275000000 | CT10: 3000000000 | CV10: 2034-05-27 | DA10: 2034-05-27
B11: Allowance for Recycling (% of fund size) | E11: 0.1 | G11: Fund Fully Deployed/Reserved By | I11: =IF($E$5="Uniform Inputs",EOMONTH(E9+(I10*30),0),"N/A") -> 2024-01-31 | K11: 6 | L11: 200000000 | M11: Series D | O11: 6 | P11: Seed | Q11: 0.1818181818 | R11: 0.1028798976 | S11: 2022-06-29 | T11: 2029-12-26T12:00:00 | U11: 4181818.182 | V11: 20575979.51 | W11: 4.920342927 | Y11: 6 | Z11: 6 | AA11: =IF($E$5="Uniform Inputs",IF($Z11>$E$12,"",MIN($E$21,($I$5+'Cash Flows'!$BX$6+INDEX('Cash Flows'!$C$17:$BW$17,1,MATCH(EOMONTH(AB11,MOD(-MONTH(AB11),3)-3),'Cash Flows'!$C$4:$BW$4,0)))/$E$12)),IF(AF11>0,AF11,"")) -> 2000000 | AB11: 2022-06-29 | AC11: 3000000 | AD11: 11000000 | AE11: 0.1818181818 | AF11: 2000000 | AG11: 2022-06-29 | AH11: 3000000 | AI11: 11000000 | AJ11: =IF($E$5="Uniform Inputs",IF($Z11>$E$13,"",IF($E$23="Pro-Rata",MIN(AL11*AE11,(($I$5+'Cash Flows'!$BX$6+INDEX('Cash Flows'!$C$17:$BW$17,1,MATCH(EOMONTH(AK11,MOD(-MONTH(AK11),3)-3),'Cash Flows'!$C$4:$BW$4,0)))-$AA$5)/$E$13),MIN($E$24,(($I$5+'Cash Flows'!$BX$6+INDEX('Cash Flows'!$C$17:$BW$17,1,MATCH(EOMONTH(AK11,MOD(-MONTH(AK11),3)-3),'Cash Flows'!$C$4:$BW$4,0)))-$AA$5)/$E$13))),IF(AO11=0,"",AO11)) -> 2181818.182 | AK11: 2023-12-28T12:00:00 | AL11: 12000000 | AM11: 48000000 | AN11: 0.1818181818 | AO11: 2181818.182 | AP11: 2023-12-28T12:00:00 | AQ11: 12000000 | AR11: 48000000 | AS11: =IF($E$5="Uniform Inputs",IF($Z11>$E$14,"",IF($E$23="Pro-Rata",MIN(AU11*AN11,(($I$5+'Cash Flows'!$BX$6+INDEX('Cash Flows'!$C$17:$BW$17,1,MATCH(EOMONTH(AT11,MOD(-MONTH(AT11),3)-3),'Cash Flows'!$C$4:$BW$4,0)))-SUM($AJ$5,$AA$5))/$E$14),MIN($E$25,(($I$5+'Cash Flows'!$BX$6+INDEX('Cash Flows'!$C$17:$BW$17,1,MATCH(EOMONTH(AT11,MOD(-MONTH(AT11),3)-3),'Cash Flows'!$C$4:$BW$4,0)))-SUM($AJ$5,$AA$5))/$E$14))),IF(AX11=0,"",AX11)) ->  | AT11: 2025-06-28 | AU11: 31000000 | AV11: 142000000 | AW11: 0.1421254802 | AY11: 2025-06-28 | AZ11: 31000000 | BA11: 142000000 | BB11: =IF($E$5="Uniform Inputs",IF($Z11>$E$15,"",IF($E$23="Pro-Rata",MIN(BD11*AW11,(($I$5+'Cash Flows'!$BX$6+INDEX('Cash Flows'!$C$17:$BW$17,1,MATCH(EOMONTH(BC11,MOD(-MONTH(BC11),3)-3),'Cash Flows'!$C$4:$BW$4,0)))-SUM($AS$5,$AJ$5,$AA$5))/$E$15),MIN($E$26,(($I$5+'Cash Flows'!$BX$6+INDEX('Cash Flows'!$C$17:$BW$17,1,MATCH(EOMONTH(BC11,MOD(-MONTH(BC11),3)-3),'Cash Flows'!$C$4:$BW$4,0)))-SUM($AS$5,$AJ$5,$AA$5))/$E$15))),IF(BG11=0,"",BG11)) ->  | BC11: 2026-12-27T12:00:00 | BD11: 70000000 | BE11: 375000000 | BF11: 0.1155953905 | BH11: 2026-12-27T12:00:00 | BI11: 70000000 | BJ11: 375000000 | BK11: =IF($E$5="Uniform Inputs",IF($Z11>$E$16,"",IF($E$23="Pro-Rata",MIN(BM11*BF11,(($I$5+'Cash Flows'!$BX$6+INDEX('Cash Flows'!$C$17:$BW$17,1,MATCH(EOMONTH(BL11,MOD(-MONTH(BL11),3)-3),'Cash Flows'!$C$4:$BW$4,0)))-SUM($BB$5,$AS$5,$AJ$5,$AA$5))/$E$16),MIN($E$27,(($I$5+'Cash Flows'!$BX$6+INDEX('Cash Flows'!$C$17:$BW$17,1,MATCH(EOMONTH(BL11,MOD(-MONTH(BL11),3)-3),'Cash Flows'!$C$4:$BW$4,0)))-SUM($BB$5,$AS$5,$AJ$5,$AA$5))/$E$16))),IF(BP11=0,"",BP11)) ->  | BL11: 2028-06-27 | BM11: 110000000 | BN11: 1000000000 | BO11: 0.1028798976 | BQ11: 2028-06-27 | BR11: 110000000 | BS11: 1000000000 | BU11: 2029-12-26T12:00:00 | BV11: 150000000 | BW11: 1300000000 | BX11: 0.09100914016 | BZ11: 2029-12-26T12:00:00 | CA11: 150000000 | CB11: 1300000000 | CD11: 2031-06-27 | CE11: 200000000 | CF11: 2300000000 | CG11: 0.08309530188 | CI11: 2031-06-27 | CJ11: 200000000 | CK11: 2300000000 | CM11: 2032-12-25T12:00:00 | CN11: 275000000 | CO11: 3000000000 | CP11: 0.07547823254 | CR11: 2032-12-25T12:00:00 | CS11: 275000000 | CT11: 3000000000 | CV11: 2034-06-26 | DA11: 2034-06-26
B12: Expected # of Deals: | E12: 25 | K12: 7 | L12: 150000000 | M12: Series D | O12: 7 | P12: Seed | Q12: 0.1818181818 | R12: 0.1028798976 | S12: 2022-07-29 | T12: 2030-01-25T12:00:00 | U12: 4181818.182 | V12: 15431984.64 | W12: 3.690257195 | Y12: 7 | Z12: 7 | AA12: =IF($E$5="Uniform Inputs",IF($Z12>$E$12,"",MIN($E$21,($I$5+'Cash Flows'!$BX$6+INDEX('Cash Flows'!$C$17:$BW$17,1,MATCH(EOMONTH(AB12,MOD(-MONTH(AB12),3)-3),'Cash Flows'!$C$4:$BW$4,0)))/$E$12)),IF(AF12>0,AF12,"")) -> 2000000 | AB12: 2022-07-29 | AC12: 3000000 | AD12: 11000000 | AE12: 0.1818181818 | AF12: 2000000 | AG12: 2022-07-29 | AH12: 3000000 | AI12: 11000000 | AJ12: =IF($E$5="Uniform Inputs",IF($Z12>$E$13,"",IF($E$23="Pro-Rata",MIN(AL12*AE12,(($I$5+'Cash Flows'!$BX$6+INDEX('Cash Flows'!$C$17:$BW$17,1,MATCH(EOMONTH(AK12,MOD(-MONTH(AK12),3)-3),'Cash Flows'!$C$4:$BW$4,0)))-$AA$5)/$E$13),MIN($E$24,(($I$5+'Cash Flows'!$BX$6+INDEX('Cash Flows'!$C$17:$BW$17,1,MATCH(EOMONTH(AK12,MOD(-MONTH(AK12),3)-3),'Cash Flows'!$C$4:$BW$4,0)))-$AA$5)/$E$13))),IF(AO12=0,"",AO12)) -> 2181818.182 | AK12: 2024-01-27T12:00:00 | AL12: 12000000 | AM12: 48000000 | AN12: 0.1818181818 | AO12: 2181818.182 | AP12: 2024-01-27T12:00:00 | AQ12: 12000000 | AR12: 48000000 | AS12: =IF($E$5="Uniform Inputs",IF($Z12>$E$14,"",IF($E$23="Pro-Rata",MIN(AU12*AN12,(($I$5+'Cash Flows'!$BX$6+INDEX('Cash Flows'!$C$17:$BW$17,1,MATCH(EOMONTH(AT12,MOD(-MONTH(AT12),3)-3),'Cash Flows'!$C$4:$BW$4,0)))-SUM($AJ$5,$AA$5))/$E$14),MIN($E$25,(($I$5+'Cash Flows'!$BX$6+INDEX('Cash Flows'!$C$17:$BW$17,1,MATCH(EOMONTH(AT12,MOD(-MONTH(AT12),3)-3),'Cash Flows'!$C$4:$BW$4,0)))-SUM($AJ$5,$AA$5))/$E$14))),IF(AX12=0,"",AX12)) ->  | AT12: 2025-07-28 | AU12: 31000000 | AV12: 142000000 | AW12: 0.1421254802 | AY12: 2025-07-28 | AZ12: 31000000 | BA12: 142000000 | BB12: =IF($E$5="Uniform Inputs",IF($Z12>$E$15,"",IF($E$23="Pro-Rata",MIN(BD12*AW12,(($I$5+'Cash Flows'!$BX$6+INDEX('Cash Flows'!$C$17:$BW$17,1,MATCH(EOMONTH(BC12,MOD(-MONTH(BC12),3)-3),'Cash Flows'!$C$4:$BW$4,0)))-SUM($AS$5,$AJ$5,$AA$5))/$E$15),MIN($E$26,(($I$5+'Cash Flows'!$BX$6+INDEX('Cash Flows'!$C$17:$BW$17,1,MATCH(EOMONTH(BC12,MOD(-MONTH(BC12),3)-3),'Cash Flows'!$C$4:$BW$4,0)))-SUM($AS$5,$AJ$5,$AA$5))/$E$15))),IF(BG12=0,"",BG12)) ->  | BC12: 2027-01-26T12:00:00 | BD12: 70000000 | BE12: 375000000 | BF12: 0.1155953905 | BH12: 2027-01-26T12:00:00 | BI12: 70000000 | BJ12: 375000000 | BK12: =IF($E$5="Uniform Inputs",IF($Z12>$E$16,"",IF($E$23="Pro-Rata",MIN(BM12*BF12,(($I$5+'Cash Flows'!$BX$6+INDEX('Cash Flows'!$C$17:$BW$17,1,MATCH(EOMONTH(BL12,MOD(-MONTH(BL12),3)-3),'Cash Flows'!$C$4:$BW$4,0)))-SUM($BB$5,$AS$5,$AJ$5,$AA$5))/$E$16),MIN($E$27,(($I$5+'Cash Flows'!$BX$6+INDEX('Cash Flows'!$C$17:$BW$17,1,MATCH(EOMONTH(BL12,MOD(-MONTH(BL12),3)-3),'Cash Flows'!$C$4:$BW$4,0)))-SUM($BB$5,$AS$5,$AJ$5,$AA$5))/$E$16))),IF(BP12=0,"",BP12)) ->  | BL12: 2028-07-27 | BM12: 110000000 | BN12: 1000000000 | BO12: 0.1028798976 | BQ12: 2028-07-27 | BR12: 110000000 | BS12: 1000000000 | BU12: 2030-01-25T12:00:00 | BV12: 150000000 | BW12: 1300000000 | BX12: 0.09100914016 | BZ12: 2030-01-25T12:00:00 | CA12: 150000000 | CB12: 1300000000 | CD12: 2031-07-27 | CE12: 200000000 | CF12: 2300000000 | CG12: 0.08309530188 | CI12: 2031-07-27 | CJ12: 200000000 | CK12: 2300000000 | CM12: 2033-01-24T12:00:00 | CN12: 275000000 | CO12: 3000000000 | CP12: 0.07547823254 | CR12: 2033-01-24T12:00:00 | CS12: 275000000 | CT12: 3000000000 | CV12: 2034-07-26 | DA12: 2034-07-26
B13: Expected # of Deals Receiving Follow On (1) | E13: 12 | G13: Performance | K13: 8 | L13: 150000000 | M13: Series C | O13: 8 | P13: Seed | Q13: 0.1818181818 | R13: 0.1155953905 | S13: 2022-08-28 | T13: 2028-08-26 | U13: 4181818.182 | V13: 17339308.58 | W13: 4.146356399 | Y13: 8 | Z13: 8 | AA13: =IF($E$5="Uniform Inputs",IF($Z13>$E$12,"",MIN($E$21,($I$5+'Cash Flows'!$BX$6+INDEX('Cash Flows'!$C$17:$BW$17,1,MATCH(EOMONTH(AB13,MOD(-MONTH(AB13),3)-3),'Cash Flows'!$C$4:$BW$4,0)))/$E$12)),IF(AF13>0,AF13,"")) -> 2000000 | AB13: 2022-08-28 | AC13: 3000000 | AD13: 11000000 | AE13: 0.1818181818 | AF13: 2000000 | AG13: 2022-08-28 | AH13: 3000000 | AI13: 11000000 | AJ13: =IF($E$5="Uniform Inputs",IF($Z13>$E$13,"",IF($E$23="Pro-Rata",MIN(AL13*AE13,(($I$5+'Cash Flows'!$BX$6+INDEX('Cash Flows'!$C$17:$BW$17,1,MATCH(EOMONTH(AK13,MOD(-MONTH(AK13),3)-3),'Cash Flows'!$C$4:$BW$4,0)))-$AA$5)/$E$13),MIN($E$24,(($I$5+'Cash Flows'!$BX$6+INDEX('Cash Flows'!$C$17:$BW$17,1,MATCH(EOMONTH(AK13,MOD(-MONTH(AK13),3)-3),'Cash Flows'!$C$4:$BW$4,0)))-$AA$5)/$E$13))),IF(AO13=0,"",AO13)) -> 2181818.182 | AK13: 2024-02-26T12:00:00 | AL13: 12000000 | AM13: 48000000 | AN13: 0.1818181818 | AO13: 2181818.182 | AP13: 2024-02-26T12:00:00 | AQ13: 12000000 | AR13: 48000000 | AS13: =IF($E$5="Uniform Inputs",IF($Z13>$E$14,"",IF($E$23="Pro-Rata",MIN(AU13*AN13,(($I$5+'Cash Flows'!$BX$6+INDEX('Cash Flows'!$C$17:$BW$17,1,MATCH(EOMONTH(AT13,MOD(-MONTH(AT13),3)-3),'Cash Flows'!$C$4:$BW$4,0)))-SUM($AJ$5,$AA$5))/$E$14),MIN($E$25,(($I$5+'Cash Flows'!$BX$6+INDEX('Cash Flows'!$C$17:$BW$17,1,MATCH(EOMONTH(AT13,MOD(-MONTH(AT13),3)-3),'Cash Flows'!$C$4:$BW$4,0)))-SUM($AJ$5,$AA$5))/$E$14))),IF(AX13=0,"",AX13)) ->  | AT13: 2025-08-27 | AU13: 31000000 | AV13: 142000000 | AW13: 0.1421254802 | AY13: 2025-08-27 | AZ13: 31000000 | BA13: 142000000 | BB13: =IF($E$5="Uniform Inputs",IF($Z13>$E$15,"",IF($E$23="Pro-Rata",MIN(BD13*AW13,(($I$5+'Cash Flows'!$BX$6+INDEX('Cash Flows'!$C$17:$BW$17,1,MATCH(EOMONTH(BC13,MOD(-MONTH(BC13),3)-3),'Cash Flows'!$C$4:$BW$4,0)))-SUM($AS$5,$AJ$5,$AA$5))/$E$15),MIN($E$26,(($I$5+'Cash Flows'!$BX$6+INDEX('Cash Flows'!$C$17:$BW$17,1,MATCH(EOMONTH(BC13,MOD(-MONTH(BC13),3)-3),'Cash Flows'!$C$4:$BW$4,0)))-SUM($AS$5,$AJ$5,$AA$5))/$E$15))),IF(BG13=0,"",BG13)) ->  | BC13: 2027-02-25T12:00:00 | BD13: 70000000 | BE13: 375000000 | BF13: 0.1155953905 | BH13: 2027-02-25T12:00:00 | BI13: 70000000 | BJ13: 375000000 | BK13: =IF($E$5="Uniform Inputs",IF($Z13>$E$16,"",IF($E$23="Pro-Rata",MIN(BM13*BF13,(($I$5+'Cash Flows'!$BX$6+INDEX('Cash Flows'!$C$17:$BW$17,1,MATCH(EOMONTH(BL13,MOD(-MONTH(BL13),3)-3),'Cash Flows'!$C$4:$BW$4,0)))-SUM($BB$5,$AS$5,$AJ$5,$AA$5))/$E$16),MIN($E$27,(($I$5+'Cash Flows'!$BX$6+INDEX('Cash Flows'!$C$17:$BW$17,1,MATCH(EOMONTH(BL13,MOD(-MONTH(BL13),3)-3),'Cash Flows'!$C$4:$BW$4,0)))-SUM($BB$5,$AS$5,$AJ$5,$AA$5))/$E$16))),IF(BP13=0,"",BP13)) ->  | BL13: 2028-08-26 | BM13: 110000000 | BN13: 1000000000 | BO13: 0.1028798976 | BQ13: 2028-08-26 | BR13: 110000000 | BS13: 1000000000 | BU13: 2030-02-24T12:00:00 | BV13: 150000000 | BW13: 1300000000 | BX13: 0.09100914016 | BZ13: 2030-02-24T12:00:00 | CA13: 150000000 | CB13: 1300000000 | CD13: 2031-08-26 | CE13: 200000000 | CF13: 2300000000 | CG13: 0.08309530188 | CI13: 2031-08-26 | CJ13: 200000000 | CK13: 2300000000 | CM13: 2033-02-23T12:00:00 | CN13: 275000000 | CO13: 3000000000 | CP13: 0.07547823254 | CR13: 2033-02-23T12:00:00 | CS13: 275000000 | CT13: 3000000000 | CV13: 2034-08-25 | DA13: 2034-08-25
B14: Expected # of Deals Receiving Follow On (2) | E14: 5 | G14: Gross MOIC | I14: =W5 -> 6.354643802 | K14: 9 | L14: 100000000 | M14: Series C | O14: 9 | P14: Seed | Q14: 0.1818181818 | R14: 0.1155953905 | S14: 2022-09-27 | T14: 2028-09-25 | U14: 4181818.182 | V14: 11559539.05 | W14: 2.7642376 | Y14: 9 | Z14: 9 | AA14: =IF($E$5="Uniform Inputs",IF($Z14>$E$12,"",MIN($E$21,($I$5+'Cash Flows'!$BX$6+INDEX('Cash Flows'!$C$17:$BW$17,1,MATCH(EOMONTH(AB14,MOD(-MONTH(AB14),3)-3),'Cash Flows'!$C$4:$BW$4,0)))/$E$12)),IF(AF14>0,AF14,"")) -> 2000000 | AB14: 2022-09-27 | AC14: 3000000 | AD14: 11000000 | AE14: 0.1818181818 | AF14: 2000000 | AG14: 2022-09-27 | AH14: 3000000 | AI14: 11000000 | AJ14: =IF($E$5="Uniform Inputs",IF($Z14>$E$13,"",IF($E$23="Pro-Rata",MIN(AL14*AE14,(($I$5+'Cash Flows'!$BX$6+INDEX('Cash Flows'!$C$17:$BW$17,1,MATCH(EOMONTH(AK14,MOD(-MONTH(AK14),3)-3),'Cash Flows'!$C$4:$BW$4,0)))-$AA$5)/$E$13),MIN($E$24,(($I$5+'Cash Flows'!$BX$6+INDEX('Cash Flows'!$C$17:$BW$17,1,MATCH(EOMONTH(AK14,MOD(-MONTH(AK14),3)-3),'Cash Flows'!$C$4:$BW$4,0)))-$AA$5)/$E$13))),IF(AO14=0,"",AO14)) -> 2181818.182 | AK14: 2024-03-27T12:00:00 | AL14: 12000000 | AM14: 48000000 | AN14: 0.1818181818 | AO14: 2181818.182 | AP14: 2024-03-27T12:00:00 | AQ14: 12000000 | AR14: 48000000 | AS14: =IF($E$5="Uniform Inputs",IF($Z14>$E$14,"",IF($E$23="Pro-Rata",MIN(AU14*AN14,(($I$5+'Cash Flows'!$BX$6+INDEX('Cash Flows'!$C$17:$BW$17,1,MATCH(EOMONTH(AT14,MOD(-MONTH(AT14),3)-3),'Cash Flows'!$C$4:$BW$4,0)))-SUM($AJ$5,$AA$5))/$E$14),MIN($E$25,(($I$5+'Cash Flows'!$BX$6+INDEX('Cash Flows'!$C$17:$BW$17,1,MATCH(EOMONTH(AT14,MOD(-MONTH(AT14),3)-3),'Cash Flows'!$C$4:$BW$4,0)))-SUM($AJ$5,$AA$5))/$E$14))),IF(AX14=0,"",AX14)) ->  | AT14: 2025-09-26 | AU14: 31000000 | AV14: 142000000 | AW14: 0.1421254802 | AY14: 2025-09-26 | AZ14: 31000000 | BA14: 142000000 | BB14: =IF($E$5="Uniform Inputs",IF($Z14>$E$15,"",IF($E$23="Pro-Rata",MIN(BD14*AW14,(($I$5+'Cash Flows'!$BX$6+INDEX('Cash Flows'!$C$17:$BW$17,1,MATCH(EOMONTH(BC14,MOD(-MONTH(BC14),3)-3),'Cash Flows'!$C$4:$BW$4,0)))-SUM($AS$5,$AJ$5,$AA$5))/$E$15),MIN($E$26,(($I$5+'Cash Flows'!$BX$6+INDEX('Cash Flows'!$C$17:$BW$17,1,MATCH(EOMONTH(BC14,MOD(-MONTH(BC14),3)-3),'Cash Flows'!$C$4:$BW$4,0)))-SUM($AS$5,$AJ$5,$AA$5))/$E$15))),IF(BG14=0,"",BG14)) ->  | BC14: 2027-03-27T12:00:00 | BD14: 70000000 | BE14: 375000000 | BF14: 0.1155953905 | BH14: 2027-03-27T12:00:00 | BI14: 70000000 | BJ14: 375000000 | BK14: =IF($E$5="Uniform Inputs",IF($Z14>$E$16,"",IF($E$23="Pro-Rata",MIN(BM14*BF14,(($I$5+'Cash Flows'!$BX$6+INDEX('Cash Flows'!$C$17:$BW$17,1,MATCH(EOMONTH(BL14,MOD(-MONTH(BL14),3)-3),'Cash Flows'!$C$4:$BW$4,0)))-SUM($BB$5,$AS$5,$AJ$5,$AA$5))/$E$16),MIN($E$27,(($I$5+'Cash Flows'!$BX$6+INDEX('Cash Flows'!$C$17:$BW$17,1,MATCH(EOMONTH(BL14,MOD(-MONTH(BL14),3)-3),'Cash Flows'!$C$4:$BW$4,0)))-SUM($BB$5,$AS$5,$AJ$5,$AA$5))/$E$16))),IF(BP14=0,"",BP14)) ->  | BL14: 2028-09-25 | BM14: 110000000 | BN14: 1000000000 | BO14: 0.1028798976 | BQ14: 2028-09-25 | BR14: 110000000 | BS14: 1000000000 | BU14: 2030-03-26T12:00:00 | BV14: 150000000 | BW14: 1300000000 | BX14: 0.09100914016 | BZ14: 2030-03-26T12:00:00 | CA14: 150000000 | CB14: 1300000000 | CD14: 2031-09-25 | CE14: 200000000 | CF14: 2300000000 | CG14: 0.08309530188 | CI14: 2031-09-25 | CJ14: 200000000 | CK14: 2300000000 | CM14: 2033-03-25T12:00:00 | CN14: 275000000 | CO14: 3000000000 | CP14: 0.07547823254 | CR14: 2033-03-25T12:00:00 | CS14: 275000000 | CT14: 3000000000 | CV14: 2034-09-24 | DA14: 2034-09-24
B15: Expected # of Deals Receiving Follow On (3) | E15: 0 | G15: Net TVPI | I15: =-'Cash Flows'!BX11/'Cash Flows'!BX8 -> 4.476675279 | K15: 10 | L15: 100000000 | M15: Series C | O15: 10 | P15: Seed | Q15: 0.1818181818 | R15: 0.1155953905 | S15: 2022-10-27 | T15: 2028-10-25 | U15: 4181818.182 | V15: 11559539.05 | W15: 2.7642376 | Y15: 10 | Z15: 10 | AA15: =IF($E$5="Uniform Inputs",IF($Z15>$E$12,"",MIN($E$21,($I$5+'Cash Flows'!$BX$6+INDEX('Cash Flows'!$C$17:$BW$17,1,MATCH(EOMONTH(AB15,MOD(-MONTH(AB15),3)-3),'Cash Flows'!$C$4:$BW$4,0)))/$E$12)),IF(AF15>0,AF15,"")) -> 2000000 | AB15: 2022-10-27 | AC15: 3000000 | AD15: 11000000 | AE15: 0.1818181818 | AF15: 2000000 | AG15: 2022-10-27 | AH15: 3000000 | AI15: 11000000 | AJ15: =IF($E$5="Uniform Inputs",IF($Z15>$E$13,"",IF($E$23="Pro-Rata",MIN(AL15*AE15,(($I$5+'Cash Flows'!$BX$6+INDEX('Cash Flows'!$C$17:$BW$17,1,MATCH(EOMONTH(AK15,MOD(-MONTH(AK15),3)-3),'Cash Flows'!$C$4:$BW$4,0)))-$AA$5)/$E$13),MIN($E$24,(($I$5+'Cash Flows'!$BX$6+INDEX('Cash Flows'!$C$17:$BW$17,1,MATCH(EOMONTH(AK15,MOD(-MONTH(AK15),3)-3),'Cash Flows'!$C$4:$BW$4,0)))-$AA$5)/$E$13))),IF(AO15=0,"",AO15)) -> 2181818.182 | AK15: 2024-04-26T12:00:00 | AL15: 12000000 | AM15: 48000000 | AN15: 0.1818181818 | AO15: 2181818.182 | AP15: 2024-04-26T12:00:00 | AQ15: 12000000 | AR15: 48000000 | AS15: =IF($E$5="Uniform Inputs",IF($Z15>$E$14,"",IF($E$23="Pro-Rata",MIN(AU15*AN15,(($I$5+'Cash Flows'!$BX$6+INDEX('Cash Flows'!$C$17:$BW$17,1,MATCH(EOMONTH(AT15,MOD(-MONTH(AT15),3)-3),'Cash Flows'!$C$4:$BW$4,0)))-SUM($AJ$5,$AA$5))/$E$14),MIN($E$25,(($I$5+'Cash Flows'!$BX$6+INDEX('Cash Flows'!$C$17:$BW$17,1,MATCH(EOMONTH(AT15,MOD(-MONTH(AT15),3)-3),'Cash Flows'!$C$4:$BW$4,0)))-SUM($AJ$5,$AA$5))/$E$14))),IF(AX15=0,"",AX15)) ->  | AT15: 2025-10-26 | AU15: 31000000 | AV15: 142000000 | AW15: 0.1421254802 | AY15: 2025-10-26 | AZ15: 31000000 | BA15: 142000000 | BB15: =IF($E$5="Uniform Inputs",IF($Z15>$E$15,"",IF($E$23="Pro-Rata",MIN(BD15*AW15,(($I$5+'Cash Flows'!$BX$6+INDEX('Cash Flows'!$C$17:$BW$17,1,MATCH(EOMONTH(BC15,MOD(-MONTH(BC15),3)-3),'Cash Flows'!$C$4:$BW$4,0)))-SUM($AS$5,$AJ$5,$AA$5))/$E$15),MIN($E$26,(($I$5+'Cash Flows'!$BX$6+INDEX('Cash Flows'!$C$17:$BW$17,1,MATCH(EOMONTH(BC15,MOD(-MONTH(BC15),3)-3),'Cash Flows'!$C$4:$BW$4,0)))-SUM($AS$5,$AJ$5,$AA$5))/$E$15))),IF(BG15=0,"",BG15)) ->  | BC15: 2027-04-26T12:00:00 | BD15: 70000000 | BE15: 375000000 | BF15: 0.1155953905 | BH15: 2027-04-26T12:00:00 | BI15: 70000000 | BJ15: 375000000 | BK15: =IF($E$5="Uniform Inputs",IF($Z15>$E$16,"",IF($E$23="Pro-Rata",MIN(BM15*BF15,(($I$5+'Cash Flows'!$BX$6+INDEX('Cash Flows'!$C$17:$BW$17,1,MATCH(EOMONTH(BL15,MOD(-MONTH(BL15),3)-3),'Cash Flows'!$C$4:$BW$4,0)))-SUM($BB$5,$AS$5,$AJ$5,$AA$5))/$E$16),MIN($E$27,(($I$5+'Cash Flows'!$BX$6+INDEX('Cash Flows'!$C$17:$BW$17,1,MATCH(EOMONTH(BL15,MOD(-MONTH(BL15),3)-3),'Cash Flows'!$C$4:$BW$4,0)))-SUM($BB$5,$AS$5,$AJ$5,$AA$5))/$E$16))),IF(BP15=0,"",BP15)) ->  | BL15: 2028-10-25 | BM15: 110000000 | BN15: 1000000000 | BO15: 0.1028798976 | BQ15: 2028-10-25 | BR15: 110000000 | BS15: 1000000000 | BU15: 2030-04-25T12:00:00 | BV15: 150000000 | BW15: 1300000000 | BX15: 0.09100914016 | BZ15: 2030-04-25T12:00:00 | CA15: 150000000 | CB15: 1300000000 | CD15: 2031-10-25 | CE15: 200000000 | CF15: 2300000000 | CG15: 0.08309530188 | CI15: 2031-10-25 | CJ15: 200000000 | CK15: 2300000000 | CM15: 2033-04-24T12:00:00 | CN15: 275000000 | CO15: 3000000000 | CP15: 0.07547823254 | CR15: 2033-04-24T12:00:00 | CS15: 275000000 | CT15: 3000000000 | CV15: 2034-10-24 | DA15: 2034-10-24
B16: Expected # of Deals Receiving Follow On (4) | E16: 0 | G16: Gross IRR | I16: =XIRR('Cash Flows'!D14:BK14,'Cash Flows'!D4:BK4) -> 0.2551940024 | K16: 11 | L16: 50000000 | M16: Series C | O16: 11 | P16: Seed | Q16: 0.1818181818 | R16: 0.1155953905 | S16: 2022-11-26 | T16: 2028-11-24 | U16: 4181818.182 | V16: 5779769.526 | W16: 1.3821188 | Y16: 11 | Z16: 11 | AA16: =IF($E$5="Uniform Inputs",IF($Z16>$E$12,"",MIN($E$21,($I$5+'Cash Flows'!$BX$6+INDEX('Cash Flows'!$C$17:$BW$17,1,MATCH(EOMONTH(AB16,MOD(-MONTH(AB16),3)-3),'Cash Flows'!$C$4:$BW$4,0)))/$E$12)),IF(AF16>0,AF16,"")) -> 2000000 | AB16: 2022-11-26 | AC16: 3000000 | AD16: 11000000 | AE16: 0.1818181818 | AF16: 2000000 | AG16: 2022-11-26 | AH16: 3000000 | AI16: 11000000 | AJ16: =IF($E$5="Uniform Inputs",IF($Z16>$E$13,"",IF($E$23="Pro-Rata",MIN(AL16*AE16,(($I$5+'Cash Flows'!$BX$6+INDEX('Cash Flows'!$C$17:$BW$17,1,MATCH(EOMONTH(AK16,MOD(-MONTH(AK16),3)-3),'Cash Flows'!$C$4:$BW$4,0)))-$AA$5)/$E$13),MIN($E$24,(($I$5+'Cash Flows'!$BX$6+INDEX('Cash Flows'!$C$17:$BW$17,1,MATCH(EOMONTH(AK16,MOD(-MONTH(AK16),3)-3),'Cash Flows'!$C$4:$BW$4,0)))-$AA$5)/$E$13))),IF(AO16=0,"",AO16)) -> 2181818.182 | AK16: 2024-05-26T12:00:00 | AL16: 12000000 | AM16: 48000000 | AN16: 0.1818181818 | AO16: 2181818.182 | AP16: 2024-05-26T12:00:00 | AQ16: 12000000 | AR16: 48000000 | AS16: =IF($E$5="Uniform Inputs",IF($Z16>$E$14,"",IF($E$23="Pro-Rata",MIN(AU16*AN16,(($I$5+'Cash Flows'!$BX$6+INDEX('Cash Flows'!$C$17:$BW$17,1,MATCH(EOMONTH(AT16,MOD(-MONTH(AT16),3)-3),'Cash Flows'!$C$4:$BW$4,0)))-SUM($AJ$5,$AA$5))/$E$14),MIN($E$25,(($I$5+'Cash Flows'!$BX$6+INDEX('Cash Flows'!$C$17:$BW$17,1,MATCH(EOMONTH(AT16,MOD(-MONTH(AT16),3)-3),'Cash Flows'!$C$4:$BW$4,0)))-SUM($AJ$5,$AA$5))/$E$14))),IF(AX16=0,"",AX16)) ->  | AT16: 2025-11-25 | AU16: 31000000 | AV16: 142000000 | AW16: 0.1421254802 | AY16: 2025-11-25 | AZ16: 31000000 | BA16: 142000000 | BB16: =IF($E$5="Uniform Inputs",IF($Z16>$E$15,"",IF($E$23="Pro-Rata",MIN(BD16*AW16,(($I$5+'Cash Flows'!$BX$6+INDEX('Cash Flows'!$C$17:$BW$17,1,MATCH(EOMONTH(BC16,MOD(-MONTH(BC16),3)-3),'Cash Flows'!$C$4:$BW$4,0)))-SUM($AS$5,$AJ$5,$AA$5))/$E$15),MIN($E$26,(($I$5+'Cash Flows'!$BX$6+INDEX('Cash Flows'!$C$17:$BW$17,1,MATCH(EOMONTH(BC16,MOD(-MONTH(BC16),3)-3),'Cash Flows'!$C$4:$BW$4,0)))-SUM($AS$5,$AJ$5,$AA$5))/$E$15))),IF(BG16=0,"",BG16)) ->  | BC16: 2027-05-26T12:00:00 | BD16: 70000000 | BE16: 375000000 | BF16: 0.1155953905 | BH16: 2027-05-26T12:00:00 | BI16: 70000000 | BJ16: 375000000 | BK16: =IF($E$5="Uniform Inputs",IF($Z16>$E$16,"",IF($E$23="Pro-Rata",MIN(BM16*BF16,(($I$5+'Cash Flows'!$BX$6+INDEX('Cash Flows'!$C$17:$BW$17,1,MATCH(EOMONTH(BL16,MOD(-MONTH(BL16),3)-3),'Cash Flows'!$C$4:$BW$4,0)))-SUM($BB$5,$AS$5,$AJ$5,$AA$5))/$E$16),MIN($E$27,(($I$5+'Cash Flows'!$BX$6+INDEX('Cash Flows'!$C$17:$BW$17,1,MATCH(EOMONTH(BL16,MOD(-MONTH(BL16),3)-3),'Cash Flows'!$C$4:$BW$4,0)))-SUM($BB$5,$AS$5,$AJ$5,$AA$5))/$E$16))),IF(BP16=0,"",BP16)) ->  | BL16: 2028-11-24 | BM16: 110000000 | BN16: 1000000000 | BO16: 0.1028798976 | BQ16: 2028-11-24 | BR16: 110000000 | BS16: 1000000000 | BU16: 2030-05-25T12:00:00 | BV16: 150000000 | BW16: 1300000000 | BX16: 0.09100914016 | BZ16: 2030-05-25T12:00:00 | CA16: 150000000 | CB16: 1300000000 | CD16: 2031-11-24 | CE16: 200000000 | CF16: 2300000000 | CG16: 0.08309530188 | CI16: 2031-11-24 | CJ16: 200000000 | CK16: 2300000000 | CM16: 2033-05-24T12:00:00 | CN16: 275000000 | CO16: 3000000000 | CP16: 0.07547823254 | CR16: 2033-05-24T12:00:00 | CS16: 275000000 | CT16: 3000000000 | CV16: 2034-11-23 | DA16: 2034-11-23
B17: Initial Checks per Month | E17: 1 | G17: Net IRR | I17: =XIRR('Cash Flows'!D15:BK15,'Cash Flows'!D4:BK4) -> 0.2126649559 | K17: 12 | L17: 50000000 | M17: Series C | O17: 12 | P17: Seed | Q17: 0.1818181818 | R17: 0.1155953905 | S17: 2022-12-26 | T17: 2028-12-24 | U17: 4181818.182 | V17: 5779769.526 | W17: 1.3821188 | Y17: 12 | Z17: 12 | AA17: =IF($E$5="Uniform Inputs",IF($Z17>$E$12,"",MIN($E$21,($I$5+'Cash Flows'!$BX$6+INDEX('Cash Flows'!$C$17:$BW$17,1,MATCH(EOMONTH(AB17,MOD(-MONTH(AB17),3)-3),'Cash Flows'!$C$4:$BW$4,0)))/$E$12)),IF(AF17>0,AF17,"")) -> 2000000 | AB17: 2022-12-26 | AC17: 3000000 | AD17: 11000000 | AE17: 0.1818181818 | AF17: 2000000 | AG17: 2022-12-26 | AH17: 3000000 | AI17: 11000000 | AJ17: =IF($E$5="Uniform Inputs",IF($Z17>$E$13,"",IF($E$23="Pro-Rata",MIN(AL17*AE17,(($I$5+'Cash Flows'!$BX$6+INDEX('Cash Flows'!$C$17:$BW$17,1,MATCH(EOMONTH(AK17,MOD(-MONTH(AK17),3)-3),'Cash Flows'!$C$4:$BW$4,0)))-$AA$5)/$E$13),MIN($E$24,(($I$5+'Cash Flows'!$BX$6+INDEX('Cash Flows'!$C$17:$BW$17,1,MATCH(EOMONTH(AK17,MOD(-MONTH(AK17),3)-3),'Cash Flows'!$C$4:$BW$4,0)))-$AA$5)/$E$13))),IF(AO17=0,"",AO17)) -> 2181818.182 | AK17: 2024-06-25T12:00:00 | AL17: 12000000 | AM17: 48000000 | AN17: 0.1818181818 | AO17: 2181818.182 | AP17: 2024-06-25T12:00:00 | AQ17: 12000000 | AR17: 48000000 | AS17: =IF($E$5="Uniform Inputs",IF($Z17>$E$14,"",IF($E$23="Pro-Rata",MIN(AU17*AN17,(($I$5+'Cash Flows'!$BX$6+INDEX('Cash Flows'!$C$17:$BW$17,1,MATCH(EOMONTH(AT17,MOD(-MONTH(AT17),3)-3),'Cash Flows'!$C$4:$BW$4,0)))-SUM($AJ$5,$AA$5))/$E$14),MIN($E$25,(($I$5+'Cash Flows'!$BX$6+INDEX('Cash Flows'!$C$17:$BW$17,1,MATCH(EOMONTH(AT17,MOD(-MONTH(AT17),3)-3),'Cash Flows'!$C$4:$BW$4,0)))-SUM($AJ$5,$AA$5))/$E$14))),IF(AX17=0,"",AX17)) ->  | AT17: 2025-12-25 | AU17: 31000000 | AV17: 142000000 | AW17: 0.1421254802 | AY17: 2025-12-25 | AZ17: 31000000 | BA17: 142000000 | BB17: =IF($E$5="Uniform Inputs",IF($Z17>$E$15,"",IF($E$23="Pro-Rata",MIN(BD17*AW17,(($I$5+'Cash Flows'!$BX$6+INDEX('Cash Flows'!$C$17:$BW$17,1,MATCH(EOMONTH(BC17,MOD(-MONTH(BC17),3)-3),'Cash Flows'!$C$4:$BW$4,0)))-SUM($AS$5,$AJ$5,$AA$5))/$E$15),MIN($E$26,(($I$5+'Cash Flows'!$BX$6+INDEX('Cash Flows'!$C$17:$BW$17,1,MATCH(EOMONTH(BC17,MOD(-MONTH(BC17),3)-3),'Cash Flows'!$C$4:$BW$4,0)))-SUM($AS$5,$AJ$5,$AA$5))/$E$15))),IF(BG17=0,"",BG17)) ->  | BC17: 2027-06-25T12:00:00 | BD17: 70000000 | BE17: 375000000 | BF17: 0.1155953905 | BH17: 2027-06-25T12:00:00 | BI17: 70000000 | BJ17: 375000000 | BK17: =IF($E$5="Uniform Inputs",IF($Z17>$E$16,"",IF($E$23="Pro-Rata",MIN(BM17*BF17,(($I$5+'Cash Flows'!$BX$6+INDEX('Cash Flows'!$C$17:$BW$17,1,MATCH(EOMONTH(BL17,MOD(-MONTH(BL17),3)-3),'Cash Flows'!$C$4:$BW$4,0)))-SUM($BB$5,$AS$5,$AJ$5,$AA$5))/$E$16),MIN($E$27,(($I$5+'Cash Flows'!$BX$6+INDEX('Cash Flows'!$C$17:$BW$17,1,MATCH(EOMONTH(BL17,MOD(-MONTH(BL17),3)-3),'Cash Flows'!$C$4:$BW$4,0)))-SUM($BB$5,$AS$5,$AJ$5,$AA$5))/$E$16))),IF(BP17=0,"",BP17)) ->  | BL17: 2028-12-24 | BM17: 110000000 | BN17: 1000000000 | BO17: 0.1028798976 | BQ17: 2028-12-24 | BR17: 110000000 | BS17: 1000000000 | BU17: 2030-06-24T12:00:00 | BV17: 150000000 | BW17: 1300000000 | BX17: 0.09100914016 | BZ17: 2030-06-24T12:00:00 | CA17: 150000000 | CB17: 1300000000 | CD17: 2031-12-24 | CE17: 200000000 | CF17: 2300000000 | CG17: 0.08309530188 | CI17: 2031-12-24 | CJ17: 200000000 | CK17: 2300000000 | CM17: 2033-06-23T12:00:00 | CN17: 275000000 | CO17: 3000000000 | CP17: 0.07547823254 | CR17: 2033-06-23T12:00:00 | CS17: 275000000 | CT17: 3000000000 | CV17: 2034-12-23 | DA17: 2034-12-23
K18: 13 | L18: 50000000 | M18: Series C | O18: 13 | P18: Seed | Q18: 0.1818181818 | R18: 0.08669654289 | S18: 2023-01-25 | T18: 2029-01-23 | U18: 2000000 | V18: 4334827.145 | W18: 2.167413572 | Y18: 13 | Z18: 13 | AA18: =IF($E$5="Uniform Inputs",IF($Z18>$E$12,"",MIN($E$21,($I$5+'Cash Flows'!$BX$6+INDEX('Cash Flows'!$C$17:$BW$17,1,MATCH(EOMONTH(AB18,MOD(-MONTH(AB18),3)-3),'Cash Flows'!$C$4:$BW$4,0)))/$E$12)),IF(AF18>0,AF18,"")) -> 2000000 | AB18: 2023-01-25 | AC18: 3000000 | AD18: 11000000 | AE18: 0.1818181818 | AF18: 2000000 | AG18: 2023-01-25 | AH18: 3000000 | AI18: 11000000 | AJ18: =IF($E$5="Uniform Inputs",IF($Z18>$E$13,"",IF($E$23="Pro-Rata",MIN(AL18*AE18,(($I$5+'Cash Flows'!$BX$6+INDEX('Cash Flows'!$C$17:$BW$17,1,MATCH(EOMONTH(AK18,MOD(-MONTH(AK18),3)-3),'Cash Flows'!$C$4:$BW$4,0)))-$AA$5)/$E$13),MIN($E$24,(($I$5+'Cash Flows'!$BX$6+INDEX('Cash Flows'!$C$17:$BW$17,1,MATCH(EOMONTH(AK18,MOD(-MONTH(AK18),3)-3),'Cash Flows'!$C$4:$BW$4,0)))-$AA$5)/$E$13))),IF(AO18=0,"",AO18)) ->  | AK18: 2024-07-25T12:00:00 | AL18: 12000000 | AM18: 48000000 | AN18: 0.1363636364 | AP18: 2024-07-25T12:00:00 | AQ18: 12000000 | AR18: 48000000 | AS18: =IF($E$5="Uniform Inputs",IF($Z18>$E$14,"",IF($E$23="Pro-Rata",MIN(AU18*AN18,(($I$5+'Cash Flows'!$BX$6+INDEX('Cash Flows'!$C$17:$BW$17,1,MATCH(EOMONTH(AT18,MOD(-MONTH(AT18),3)-3),'Cash Flows'!$C$4:$BW$4,0)))-SUM($AJ$5,$AA$5))/$E$14),MIN($E$25,(($I$5+'Cash Flows'!$BX$6+INDEX('Cash Flows'!$C$17:$BW$17,1,MATCH(EOMONTH(AT18,MOD(-MONTH(AT18),3)-3),'Cash Flows'!$C$4:$BW$4,0)))-SUM($AJ$5,$AA$5))/$E$14))),IF(AX18=0,"",AX18)) ->  | AT18: 2026-01-24 | AU18: 31000000 | AV18: 142000000 | AW18: 0.1065941101 | AY18: 2026-01-24 | AZ18: 31000000 | BA18: 142000000 | BB18: =IF($E$5="Uniform Inputs",IF($Z18>$E$15,"",IF($E$23="Pro-Rata",MIN(BD18*AW18,(($I$5+'Cash Flows'!$BX$6+INDEX('Cash Flows'!$C$17:$BW$17,1,MATCH(EOMONTH(BC18,MOD(-MONTH(BC18),3)-3),'Cash Flows'!$C$4:$BW$4,0)))-SUM($AS$5,$AJ$5,$AA$5))/$E$15),MIN($E$26,(($I$5+'Cash Flows'!$BX$6+INDEX('Cash Flows'!$C$17:$BW$17,1,MATCH(EOMONTH(BC18,MOD(-MONTH(BC18),3)-3),'Cash Flows'!$C$4:$BW$4,0)))-SUM($AS$5,$AJ$5,$AA$5))/$E$15))),IF(BG18=0,"",BG18)) ->  | BC18: 2027-07-25T12:00:00 | BD18: 70000000 | BE18: 375000000 | BF18: 0.08669654289 | BH18: 2027-07-25T12:00:00 | BI18: 70000000 | BJ18: 375000000 | BK18: =IF($E$5="Uniform Inputs",IF($Z18>$E$16,"",IF($E$23="Pro-Rata",MIN(BM18*BF18,(($I$5+'Cash Flows'!$BX$6+INDEX('Cash Flows'!$C$17:$BW$17,1,MATCH(EOMONTH(BL18,MOD(-MONTH(BL18),3)-3),'Cash Flows'!$C$4:$BW$4,0)))-SUM($BB$5,$AS$5,$AJ$5,$AA$5))/$E$16),MIN($E$27,(($I$5+'Cash Flows'!$BX$6+INDEX('Cash Flows'!$C$17:$BW$17,1,MATCH(EOMONTH(BL18,MOD(-MONTH(BL18),3)-3),'Cash Flows'!$C$4:$BW$4,0)))-SUM($BB$5,$AS$5,$AJ$5,$AA$5))/$E$16))),IF(BP18=0,"",BP18)) ->  | BL18: 2029-01-23 | BM18: 110000000 | BN18: 1000000000 | BO18: 0.07715992318 | BQ18: 2029-01-23 | BR18: 110000000 | BS18: 1000000000 | BU18: 2030-07-24T12:00:00 | BV18: 150000000 | BW18: 1300000000 | BX18: 0.06825685512 | BZ18: 2030-07-24T12:00:00 | CA18: 150000000 | CB18: 1300000000 | CD18: 2032-01-23 | CE18: 200000000 | CF18: 2300000000 | CG18: 0.06232147641 | CI18: 2032-01-23 | CJ18: 200000000 | CK18: 2300000000 | CM18: 2033-07-23T12:00:00 | CN18: 275000000 | CO18: 3000000000 | CP18: 0.05660867441 | CR18: 2033-07-23T12:00:00 | CS18: 275000000 | CT18: 3000000000 | CV18: 2035-01-22 | DA18: 2035-01-22
K19: 14 | L19: 15000000 | M19: Series C | O19: 14 | P19: Seed | Q19: 0.1818181818 | R19: 0.08669654289 | S19: 2023-02-24 | T19: 2029-02-22 | U19: 2000000 | V19: 1300448.143 | W19: 0.6502240717 | Y19: 14 | Z19: 14 | AA19: =IF($E$5="Uniform Inputs",IF($Z19>$E$12,"",MIN($E$21,($I$5+'Cash Flows'!$BX$6+INDEX('Cash Flows'!$C$17:$BW$17,1,MATCH(EOMONTH(AB19,MOD(-MONTH(AB19),3)-3),'Cash Flows'!$C$4:$BW$4,0)))/$E$12)),IF(AF19>0,AF19,"")) -> 2000000 | AB19: 2023-02-24 | AC19: 3000000 | AD19: 11000000 | AE19: 0.1818181818 | AF19: 2000000 | AG19: 2023-02-24 | AH19: 3000000 | AI19: 11000000 | AJ19: =IF($E$5="Uniform Inputs",IF($Z19>$E$13,"",IF($E$23="Pro-Rata",MIN(AL19*AE19,(($I$5+'Cash Flows'!$BX$6+INDEX('Cash Flows'!$C$17:$BW$17,1,MATCH(EOMONTH(AK19,MOD(-MONTH(AK19),3)-3),'Cash Flows'!$C$4:$BW$4,0)))-$AA$5)/$E$13),MIN($E$24,(($I$5+'Cash Flows'!$BX$6+INDEX('Cash Flows'!$C$17:$BW$17,1,MATCH(EOMONTH(AK19,MOD(-MONTH(AK19),3)-3),'Cash Flows'!$C$4:$BW$4,0)))-$AA$5)/$E$13))),IF(AO19=0,"",AO19)) ->  | AK19: 2024-08-24T12:00:00 | AL19: 12000000 | AM19: 48000000 | AN19: 0.1363636364 | AP19: 2024-08-24T12:00:00 | AQ19: 12000000 | AR19: 48000000 | AS19: =IF($E$5="Uniform Inputs",IF($Z19>$E$14,"",IF($E$23="Pro-Rata",MIN(AU19*AN19,(($I$5+'Cash Flows'!$BX$6+INDEX('Cash Flows'!$C$17:$BW$17,1,MATCH(EOMONTH(AT19,MOD(-MONTH(AT19),3)-3),'Cash Flows'!$C$4:$BW$4,0)))-SUM($AJ$5,$AA$5))/$E$14),MIN($E$25,(($I$5+'Cash Flows'!$BX$6+INDEX('Cash Flows'!$C$17:$BW$17,1,MATCH(EOMONTH(AT19,MOD(-MONTH(AT19),3)-3),'Cash Flows'!$C$4:$BW$4,0)))-SUM($AJ$5,$AA$5))/$E$14))),IF(AX19=0,"",AX19)) ->  | AT19: 2026-02-23 | AU19: 31000000 | AV19: 142000000 | AW19: 0.1065941101 | AY19: 2026-02-23 | AZ19: 31000000 | BA19: 142000000 | BB19: =IF($E$5="Uniform Inputs",IF($Z19>$E$15,"",IF($E$23="Pro-Rata",MIN(BD19*AW19,(($I$5+'Cash Flows'!$BX$6+INDEX('Cash Flows'!$C$17:$BW$17,1,MATCH(EOMONTH(BC19,MOD(-MONTH(BC19),3)-3),'Cash Flows'!$C$4:$BW$4,0)))-SUM($AS$5,$AJ$5,$AA$5))/$E$15),MIN($E$26,(($I$5+'Cash Flows'!$BX$6+INDEX('Cash Flows'!$C$17:$BW$17,1,MATCH(EOMONTH(BC19,MOD(-MONTH(BC19),3)-3),'Cash Flows'!$C$4:$BW$4,0)))-SUM($AS$5,$AJ$5,$AA$5))/$E$15))),IF(BG19=0,"",BG19)) ->  | BC19: 2027-08-24T12:00:00 | BD19: 70000000 | BE19: 375000000 | BF19: 0.08669654289 | BH19: 2027-08-24T12:00:00 | BI19: 70000000 | BJ19: 375000000 | BK19: =IF($E$5="Uniform Inputs",IF($Z19>$E$16,"",IF($E$23="Pro-Rata",MIN(BM19*BF19,(($I$5+'Cash Flows'!$BX$6+INDEX('Cash Flows'!$C$17:$BW$17,1,MATCH(EOMONTH(BL19,MOD(-MONTH(BL19),3)-3),'Cash Flows'!$C$4:$BW$4,0)))-SUM($BB$5,$AS$5,$AJ$5,$AA$5))/$E$16),MIN($E$27,(($I$5+'Cash Flows'!$BX$6+INDEX('Cash Flows'!$C$17:$BW$17,1,MATCH(EOMONTH(BL19,MOD(-MONTH(BL19),3)-3),'Cash Flows'!$C$4:$BW$4,0)))-SUM($BB$5,$AS$5,$AJ$5,$AA$5))/$E$16))),IF(BP19=0,"",BP19)) ->  | BL19: 2029-02-22 | BM19: 110000000 | BN19: 1000000000 | BO19: 0.07715992318 | BQ19: 2029-02-22 | BR19: 110000000 | BS19: 1000000000 | BU19: 2030-08-23T12:00:00 | BV19: 150000000 | BW19: 1300000000 | BX19: 0.06825685512 | BZ19: 2030-08-23T12:00:00 | CA19: 150000000 | CB19: 1300000000 | CD19: 2032-02-22 | CE19: 200000000 | CF19: 2300000000 | CG19: 0.06232147641 | CI19: 2032-02-22 | CJ19: 200000000 | CK19: 2300000000 | CM19: 2033-08-22T12:00:00 | CN19: 275000000 | CO19: 3000000000 | CP19: 0.05660867441 | CR19: 2033-08-22T12:00:00 | CS19: 275000000 | CT19: 3000000000 | CV19: 2035-02-21 | DA19: 2035-02-21
B20: Financing Round Characteristics | G20: Loss Ratio | K20: 15 | L20: 10000000 | M20: Series B | O20: 15 | P20: Seed | Q20: 0.1818181818 | R20: 0.1065941101 | S20: 2023-03-26 | T20: 2027-09-23T12:00:00 | U20: 2000000 | V20: 1065941.101 | W20: 0.5329705506 | Y20: 15 | Z20: 15 | AA20: =IF($E$5="Uniform Inputs",IF($Z20>$E$12,"",MIN($E$21,($I$5+'Cash Flows'!$BX$6+INDEX('Cash Flows'!$C$17:$BW$17,1,MATCH(EOMONTH(AB20,MOD(-MONTH(AB20),3)-3),'Cash Flows'!$C$4:$BW$4,0)))/$E$12)),IF(AF20>0,AF20,"")) -> 2000000 | AB20: 2023-03-26 | AC20: 3000000 | AD20: 11000000 | AE20: 0.1818181818 | AF20: 2000000 | AG20: 2023-03-26 | AH20: 3000000 | AI20: 11000000 | AJ20: =IF($E$5="Uniform Inputs",IF($Z20>$E$13,"",IF($E$23="Pro-Rata",MIN(AL20*AE20,(($I$5+'Cash Flows'!$BX$6+INDEX('Cash Flows'!$C$17:$BW$17,1,MATCH(EOMONTH(AK20,MOD(-MONTH(AK20),3)-3),'Cash Flows'!$C$4:$BW$4,0)))-$AA$5)/$E$13),MIN($E$24,(($I$5+'Cash Flows'!$BX$6+INDEX('Cash Flows'!$C$17:$BW$17,1,MATCH(EOMONTH(AK20,MOD(-MONTH(AK20),3)-3),'Cash Flows'!$C$4:$BW$4,0)))-$AA$5)/$E$13))),IF(AO20=0,"",AO20)) ->  | AK20: 2024-09-23T12:00:00 | AL20: 12000000 | AM20: 48000000 | AN20: 0.1363636364 | AP20: 2024-09-23T12:00:00 | AQ20: 12000000 | AR20: 48000000 | AS20: =IF($E$5="Uniform Inputs",IF($Z20>$E$14,"",IF($E$23="Pro-Rata",MIN(AU20*AN20,(($I$5+'Cash Flows'!$BX$6+INDEX('Cash Flows'!$C$17:$BW$17,1,MATCH(EOMONTH(AT20,MOD(-MONTH(AT20),3)-3),'Cash Flows'!$C$4:$BW$4,0)))-SUM($AJ$5,$AA$5))/$E$14),MIN($E$25,(($I$5+'Cash Flows'!$BX$6+INDEX('Cash Flows'!$C$17:$BW$17,1,MATCH(EOMONTH(AT20,MOD(-MONTH(AT20),3)-3),'Cash Flows'!$C$4:$BW$4,0)))-SUM($AJ$5,$AA$5))/$E$14))),IF(AX20=0,"",AX20)) ->  | AT20: 2026-03-25 | AU20: 31000000 | AV20: 142000000 | AW20: 0.1065941101 | AY20: 2026-03-25 | AZ20: 31000000 | BA20: 142000000 | BB20: =IF($E$5="Uniform Inputs",IF($Z20>$E$15,"",IF($E$23="Pro-Rata",MIN(BD20*AW20,(($I$5+'Cash Flows'!$BX$6+INDEX('Cash Flows'!$C$17:$BW$17,1,MATCH(EOMONTH(BC20,MOD(-MONTH(BC20),3)-3),'Cash Flows'!$C$4:$BW$4,0)))-SUM($AS$5,$AJ$5,$AA$5))/$E$15),MIN($E$26,(($I$5+'Cash Flows'!$BX$6+INDEX('Cash Flows'!$C$17:$BW$17,1,MATCH(EOMONTH(BC20,MOD(-MONTH(BC20),3)-3),'Cash Flows'!$C$4:$BW$4,0)))-SUM($AS$5,$AJ$5,$AA$5))/$E$15))),IF(BG20=0,"",BG20)) ->  | BC20: 2027-09-23T12:00:00 | BD20: 70000000 | BE20: 375000000 | BF20: 0.08669654289 | BH20: 2027-09-23T12:00:00 | BI20: 70000000 | BJ20: 375000000 | BK20: =IF($E$5="Uniform Inputs",IF($Z20>$E$16,"",IF($E$23="Pro-Rata",MIN(BM20*BF20,(($I$5+'Cash Flows'!$BX$6+INDEX('Cash Flows'!$C$17:$BW$17,1,MATCH(EOMONTH(BL20,MOD(-MONTH(BL20),3)-3),'Cash Flows'!$C$4:$BW$4,0)))-SUM($BB$5,$AS$5,$AJ$5,$AA$5))/$E$16),MIN($E$27,(($I$5+'Cash Flows'!$BX$6+INDEX('Cash Flows'!$C$17:$BW$17,1,MATCH(EOMONTH(BL20,MOD(-MONTH(BL20),3)-3),'Cash Flows'!$C$4:$BW$4,0)))-SUM($BB$5,$AS$5,$AJ$5,$AA$5))/$E$16))),IF(BP20=0,"",BP20)) ->  | BL20: 2029-03-24 | BM20: 110000000 | BN20: 1000000000 | BO20: 0.07715992318 | BQ20: 2029-03-24 | BR20: 110000000 | BS20: 1000000000 | BU20: 2030-09-22T12:00:00 | BV20: 150000000 | BW20: 1300000000 | BX20: 0.06825685512 | BZ20: 2030-09-22T12:00:00 | CA20: 150000000 | CB20: 1300000000 | CD20: 2032-03-23 | CE20: 200000000 | CF20: 2300000000 | CG20: 0.06232147641 | CI20: 2032-03-23 | CJ20: 200000000 | CK20: 2300000000 | CM20: 2033-09-21T12:00:00 | CN20: 275000000 | CO20: 3000000000 | CP20: 0.05660867441 | CR20: 2033-09-21T12:00:00 | CS20: 275000000 | CT20: 3000000000 | CV20: 2035-03-23 | DA20: 2035-03-23
B21: Initial Check Size: | E21: 2000000 | G21: Loss Ratio (#) - Full Write-Offs | I21: =COUNTIF(W6:W105,0)/COUNT(K6:K105) -> 0.36 | K21: 16 | L21: 5000000 | M21: Series B | O21: 16 | P21: Seed | Q21: 0.1818181818 | R21: 0.1065941101 | S21: 2023-04-25 | T21: 2027-10-23T12:00:00 | U21: 2000000 | V21: 532970.5506 | W21: 0.2664852753 | Y21: 16 | Z21: 16 | AA21: =IF($E$5="Uniform Inputs",IF($Z21>$E$12,"",MIN($E$21,($I$5+'Cash Flows'!$BX$6+INDEX('Cash Flows'!$C$17:$BW$17,1,MATCH(EOMONTH(AB21,MOD(-MONTH(AB21),3)-3),'Cash Flows'!$C$4:$BW$4,0)))/$E$12)),IF(AF21>0,AF21,"")) -> 2000000 | AB21: 2023-04-25 | AC21: 3000000 | AD21: 11000000 | AE21: 0.1818181818 | AF21: 2000000 | AG21: 2023-04-25 | AH21: 3000000 | AI21: 11000000 | AJ21: =IF($E$5="Uniform Inputs",IF($Z21>$E$13,"",IF($E$23="Pro-Rata",MIN(AL21*AE21,(($I$5+'Cash Flows'!$BX$6+INDEX('Cash Flows'!$C$17:$BW$17,1,MATCH(EOMONTH(AK21,MOD(-MONTH(AK21),3)-3),'Cash Flows'!$C$4:$BW$4,0)))-$AA$5)/$E$13),MIN($E$24,(($I$5+'Cash Flows'!$BX$6+INDEX('Cash Flows'!$C$17:$BW$17,1,MATCH(EOMONTH(AK21,MOD(-MONTH(AK21),3)-3),'Cash Flows'!$C$4:$BW$4,0)))-$AA$5)/$E$13))),IF(AO21=0,"",AO21)) ->  | AK21: 2024-10-23T12:00:00 | AL21: 12000000 | AM21: 48000000 | AN21: 0.1363636364 | AP21: 2024-10-23T12:00:00 | AQ21: 12000000 | AR21: 48000000 | AS21: =IF($E$5="Uniform Inputs",IF($Z21>$E$14,"",IF($E$23="Pro-Rata",MIN(AU21*AN21,(($I$5+'Cash Flows'!$BX$6+INDEX('Cash Flows'!$C$17:$BW$17,1,MATCH(EOMONTH(AT21,MOD(-MONTH(AT21),3)-3),'Cash Flows'!$C$4:$BW$4,0)))-SUM($AJ$5,$AA$5))/$E$14),MIN($E$25,(($I$5+'Cash Flows'!$BX$6+INDEX('Cash Flows'!$C$17:$BW$17,1,MATCH(EOMONTH(AT21,MOD(-MONTH(AT21),3)-3),'Cash Flows'!$C$4:$BW$4,0)))-SUM($AJ$5,$AA$5))/$E$14))),IF(AX21=0,"",AX21)) ->  | AT21: 2026-04-24 | AU21: 31000000 | AV21: 142000000 | AW21: 0.1065941101 | AY21: 2026-04-24 | AZ21: 31000000 | BA21: 142000000 | BB21: =IF($E$5="Uniform Inputs",IF($Z21>$E$15,"",IF($E$23="Pro-Rata",MIN(BD21*AW21,(($I$5+'Cash Flows'!$BX$6+INDEX('Cash Flows'!$C$17:$BW$17,1,MATCH(EOMONTH(BC21,MOD(-MONTH(BC21),3)-3),'Cash Flows'!$C$4:$BW$4,0)))-SUM($AS$5,$AJ$5,$AA$5))/$E$15),MIN($E$26,(($I$5+'Cash Flows'!$BX$6+INDEX('Cash Flows'!$C$17:$BW$17,1,MATCH(EOMONTH(BC21,MOD(-MONTH(BC21),3)-3),'Cash Flows'!$C$4:$BW$4,0)))-SUM($AS$5,$AJ$5,$AA$5))/$E$15))),IF(BG21=0,"",BG21)) ->  | BC21: 2027-10-23T12:00:00 | BD21: 70000000 | BE21: 375000000 | BF21: 0.08669654289 | BH21: 2027-10-23T12:00:00 | BI21: 70000000 | BJ21: 375000000 | BK21: =IF($E$5="Uniform Inputs",IF($Z21>$E$16,"",IF($E$23="Pro-Rata",MIN(BM21*BF21,(($I$5+'Cash Flows'!$BX$6+INDEX('Cash Flows'!$C$17:$BW$17,1,MATCH(EOMONTH(BL21,MOD(-MONTH(BL21),3)-3),'Cash Flows'!$C$4:$BW$4,0)))-SUM($BB$5,$AS$5,$AJ$5,$AA$5))/$E$16),MIN($E$27,(($I$5+'Cash Flows'!$BX$6+INDEX('Cash Flows'!$C$17:$BW$17,1,MATCH(EOMONTH(BL21,MOD(-MONTH(BL21),3)-3),'Cash Flows'!$C$4:$BW$4,0)))-SUM($BB$5,$AS$5,$AJ$5,$AA$5))/$E$16))),IF(BP21=0,"",BP21)) ->  | BL21: 2029-04-23 | BM21: 110000000 | BN21: 1000000000 | BO21: 0.07715992318 | BQ21: 2029-04-23 | BR21: 110000000 | BS21: 1000000000 | BU21: 2030-10-22T12:00:00 | BV21: 150000000 | BW21: 1300000000 | BX21: 0.06825685512 | BZ21: 2030-10-22T12:00:00 | CA21: 150000000 | CB21: 1300000000 | CD21: 2032-04-22 | CE21: 200000000 | CF21: 2300000000 | CG21: 0.06232147641 | CI21: 2032-04-22 | CJ21: 200000000 | CK21: 2300000000 | CM21: 2033-10-21T12:00:00 | CN21: 275000000 | CO21: 3000000000 | CP21: 0.05660867441 | CR21: 2033-10-21T12:00:00 | CS21: 275000000 | CT21: 3000000000 | CV21: 2035-04-22 | DA21: 2035-04-22
B22: Initial Investment Round: | E22: Seed | G22: Loss Ratio (#) - Less than Cost | I22: =COUNTIF(W6:W105,"<1")/COUNT(K6:K105) -> 0.48 | K22: 17 | L22: 0 | M22: Series B | O22: 17 | P22: Seed | Q22: 0.1818181818 | R22: 0.1065941101 | S22: 2023-05-25 | T22: 2027-11-22T12:00:00 | U22: 2000000 | V22: 0 | W22: 0 | Y22: 17 | Z22: 17 | AA22: =IF($E$5="Uniform Inputs",IF($Z22>$E$12,"",MIN($E$21,($I$5+'Cash Flows'!$BX$6+INDEX('Cash Flows'!$C$17:$BW$17,1,MATCH(EOMONTH(AB22,MOD(-MONTH(AB22),3)-3),'Cash Flows'!$C$4:$BW$4,0)))/$E$12)),IF(AF22>0,AF22,"")) -> 2000000 | AB22: 2023-05-25 | AC22: 3000000 | AD22: 11000000 | AE22: 0.1818181818 | AF22: 2000000 | AG22: 2023-05-25 | AH22: 3000000 | AI22: 11000000 | AJ22: =IF($E$5="Uniform Inputs",IF($Z22>$E$13,"",IF($E$23="Pro-Rata",MIN(AL22*AE22,(($I$5+'Cash Flows'!$BX$6+INDEX('Cash Flows'!$C$17:$BW$17,1,MATCH(EOMONTH(AK22,MOD(-MONTH(AK22),3)-3),'Cash Flows'!$C$4:$BW$4,0)))-$AA$5)/$E$13),MIN($E$24,(($I$5+'Cash Flows'!$BX$6+INDEX('Cash Flows'!$C$17:$BW$17,1,MATCH(EOMONTH(AK22,MOD(-MONTH(AK22),3)-3),'Cash Flows'!$C$4:$BW$4,0)))-$AA$5)/$E$13))),IF(AO22=0,"",AO22)) ->  | AK22: 2024-11-22T12:00:00 | AL22: 12000000 | AM22: 48000000 | AN22: 0.1363636364 | AP22: 2024-11-22T12:00:00 | AQ22: 12000000 | AR22: 48000000 | AS22: =IF($E$5="Uniform Inputs",IF($Z22>$E$14,"",IF($E$23="Pro-Rata",MIN(AU22*AN22,(($I$5+'Cash Flows'!$BX$6+INDEX('Cash Flows'!$C$17:$BW$17,1,MATCH(EOMONTH(AT22,MOD(-MONTH(AT22),3)-3),'Cash Flows'!$C$4:$BW$4,0)))-SUM($AJ$5,$AA$5))/$E$14),MIN($E$25,(($I$5+'Cash Flows'!$BX$6+INDEX('Cash Flows'!$C$17:$BW$17,1,MATCH(EOMONTH(AT22,MOD(-MONTH(AT22),3)-3),'Cash Flows'!$C$4:$BW$4,0)))-SUM($AJ$5,$AA$5))/$E$14))),IF(AX22=0,"",AX22)) ->  | AT22: 2026-05-24 | AU22: 31000000 | AV22: 142000000 | AW22: 0.1065941101 | AY22: 2026-05-24 | AZ22: 31000000 | BA22: 142000000 | BB22: =IF($E$5="Uniform Inputs",IF($Z22>$E$15,"",IF($E$23="Pro-Rata",MIN(BD22*AW22,(($I$5+'Cash Flows'!$BX$6+INDEX('Cash Flows'!$C$17:$BW$17,1,MATCH(EOMONTH(BC22,MOD(-MONTH(BC22),3)-3),'Cash Flows'!$C$4:$BW$4,0)))-SUM($AS$5,$AJ$5,$AA$5))/$E$15),MIN($E$26,(($I$5+'Cash Flows'!$BX$6+INDEX('Cash Flows'!$C$17:$BW$17,1,MATCH(EOMONTH(BC22,MOD(-MONTH(BC22),3)-3),'Cash Flows'!$C$4:$BW$4,0)))-SUM($AS$5,$AJ$5,$AA$5))/$E$15))),IF(BG22=0,"",BG22)) ->  | BC22: 2027-11-22T12:00:00 | BD22: 70000000 | BE22: 375000000 | BF22: 0.08669654289 | BH22: 2027-11-22T12:00:00 | BI22: 70000000 | BJ22: 375000000 | BK22: =IF($E$5="Uniform Inputs",IF($Z22>$E$16,"",IF($E$23="Pro-Rata",MIN(BM22*BF22,(($I$5+'Cash Flows'!$BX$6+INDEX('Cash Flows'!$C$17:$BW$17,1,MATCH(EOMONTH(BL22,MOD(-MONTH(BL22),3)-3),'Cash Flows'!$C$4:$BW$4,0)))-SUM($BB$5,$AS$5,$AJ$5,$AA$5))/$E$16),MIN($E$27,(($I$5+'Cash Flows'!$BX$6+INDEX('Cash Flows'!$C$17:$BW$17,1,MATCH(EOMONTH(BL22,MOD(-MONTH(BL22),3)-3),'Cash Flows'!$C$4:$BW$4,0)))-SUM($BB$5,$AS$5,$AJ$5,$AA$5))/$E$16))),IF(BP22=0,"",BP22)) ->  | BL22: 2029-05-23 | BM22: 110000000 | BN22: 1000000000 | BO22: 0.07715992318 | BQ22: 2029-05-23 | BR22: 110000000 | BS22: 1000000000 | BU22: 2030-11-21T12:00:00 | BV22: 150000000 | BW22: 1300000000 | BX22: 0.06825685512 | BZ22: 2030-11-21T12:00:00 | CA22: 150000000 | CB22: 1300000000 | CD22: 2032-05-22 | CE22: 200000000 | CF22: 2300000000 | CG22: 0.06232147641 | CI22: 2032-05-22 | CJ22: 200000000 | CK22: 2300000000 | CM22: 2033-11-20T12:00:00 | CN22: 275000000 | CO22: 3000000000 | CP22: 0.05660867441 | CR22: 2033-11-20T12:00:00 | CS22: 275000000 | CT22: 3000000000 | CV22: 2035-05-22 | DA22: 2035-05-22
B23: Follow-on Check Size: | E23: Pro-Rata | G23: Loss Ratio ($) - Full Write-Offs | I23: =SUMIF(W6:W105,0,U6:U105)/U5 -> 0.2139673105 | K23: 18 | L23: 0 | M23: Series B | O23: 18 | P23: Seed | Q23: 0.1818181818 | R23: 0.1065941101 | S23: 2023-06-24 | T23: 2027-12-22T12:00:00 | U23: 2000000 | V23: 0 | W23: 0 | Y23: 18 | Z23: 18 | AA23: =IF($E$5="Uniform Inputs",IF($Z23>$E$12,"",MIN($E$21,($I$5+'Cash Flows'!$BX$6+INDEX('Cash Flows'!$C$17:$BW$17,1,MATCH(EOMONTH(AB23,MOD(-MONTH(AB23),3)-3),'Cash Flows'!$C$4:$BW$4,0)))/$E$12)),IF(AF23>0,AF23,"")) -> 2000000 | AB23: 2023-06-24 | AC23: 3000000 | AD23: 11000000 | AE23: 0.1818181818 | AF23: 2000000 | AG23: 2023-06-24 | AH23: 3000000 | AI23: 11000000 | AJ23: =IF($E$5="Uniform Inputs",IF($Z23>$E$13,"",IF($E$23="Pro-Rata",MIN(AL23*AE23,(($I$5+'Cash Flows'!$BX$6+INDEX('Cash Flows'!$C$17:$BW$17,1,MATCH(EOMONTH(AK23,MOD(-MONTH(AK23),3)-3),'Cash Flows'!$C$4:$BW$4,0)))-$AA$5)/$E$13),MIN($E$24,(($I$5+'Cash Flows'!$BX$6+INDEX('Cash Flows'!$C$17:$BW$17,1,MATCH(EOMONTH(AK23,MOD(-MONTH(AK23),3)-3),'Cash Flows'!$C$4:$BW$4,0)))-$AA$5)/$E$13))),IF(AO23=0,"",AO23)) ->  | AK23: 2024-12-22T12:00:00 | AL23: 12000000 | AM23: 48000000 | AN23: 0.1363636364 | AP23: 2024-12-22T12:00:00 | AQ23: 12000000 | AR23: 48000000 | AS23: =IF($E$5="Uniform Inputs",IF($Z23>$E$14,"",IF($E$23="Pro-Rata",MIN(AU23*AN23,(($I$5+'Cash Flows'!$BX$6+INDEX('Cash Flows'!$C$17:$BW$17,1,MATCH(EOMONTH(AT23,MOD(-MONTH(AT23),3)-3),'Cash Flows'!$C$4:$BW$4,0)))-SUM($AJ$5,$AA$5))/$E$14),MIN($E$25,(($I$5+'Cash Flows'!$BX$6+INDEX('Cash Flows'!$C$17:$BW$17,1,MATCH(EOMONTH(AT23,MOD(-MONTH(AT23),3)-3),'Cash Flows'!$C$4:$BW$4,0)))-SUM($AJ$5,$AA$5))/$E$14))),IF(AX23=0,"",AX23)) ->  | AT23: 2026-06-23 | AU23: 31000000 | AV23: 142000000 | AW23: 0.1065941101 | AY23: 2026-06-23 | AZ23: 31000000 | BA23: 142000000 | BB23: =IF($E$5="Uniform Inputs",IF($Z23>$E$15,"",IF($E$23="Pro-Rata",MIN(BD23*AW23,(($I$5+'Cash Flows'!$BX$6+INDEX('Cash Flows'!$C$17:$BW$17,1,MATCH(EOMONTH(BC23,MOD(-MONTH(BC23),3)-3),'Cash Flows'!$C$4:$BW$4,0)))-SUM($AS$5,$AJ$5,$AA$5))/$E$15),MIN($E$26,(($I$5+'Cash Flows'!$BX$6+INDEX('Cash Flows'!$C$17:$BW$17,1,MATCH(EOMONTH(BC23,MOD(-MONTH(BC23),3)-3),'Cash Flows'!$C$4:$BW$4,0)))-SUM($AS$5,$AJ$5,$AA$5))/$E$15))),IF(BG23=0,"",BG23)) ->  | BC23: 2027-12-22T12:00:00 | BD23: 70000000 | BE23: 375000000 | BF23: 0.08669654289 | BH23: 2027-12-22T12:00:00 | BI23: 70000000 | BJ23: 375000000 | BK23: =IF($E$5="Uniform Inputs",IF($Z23>$E$16,"",IF($E$23="Pro-Rata",MIN(BM23*BF23,(($I$5+'Cash Flows'!$BX$6+INDEX('Cash Flows'!$C$17:$BW$17,1,MATCH(EOMONTH(BL23,MOD(-MONTH(BL23),3)-3),'Cash Flows'!$C$4:$BW$4,0)))-SUM($BB$5,$AS$5,$AJ$5,$AA$5))/$E$16),MIN($E$27,(($I$5+'Cash Flows'!$BX$6+INDEX('Cash Flows'!$C$17:$BW$17,1,MATCH(EOMONTH(BL23,MOD(-MONTH(BL23),3)-3),'Cash Flows'!$C$4:$BW$4,0)))-SUM($BB$5,$AS$5,$AJ$5,$AA$5))/$E$16))),IF(BP23=0,"",BP23)) ->  | BL23: 2029-06-22 | BM23: 110000000 | BN23: 1000000000 | BO23: 0.07715992318 | BQ23: 2029-06-22 | BR23: 110000000 | BS23: 1000000000 | BU23: 2030-12-21T12:00:00 | BV23: 150000000 | BW23: 1300000000 | BX23: 0.06825685512 | BZ23: 2030-12-21T12:00:00 | CA23: 150000000 | CB23: 1300000000 | CD23: 2032-06-21 | CE23: 200000000 | CF23: 2300000000 | CG23: 0.06232147641 | CI23: 2032-06-21 | CJ23: 200000000 | CK23: 2300000000 | CM23: 2033-12-20T12:00:00 | CN23: 275000000 | CO23: 3000000000 | CP23: 0.05660867441 | CR23: 2033-12-20T12:00:00 | CS23: 275000000 | CT23: 3000000000 | CV23: 2035-06-21 | DA23: 2035-06-21
B24: ="Fixed Follow-On Check Size ("&INDEX($B$44:$B$52,MATCH($E$22,$B$44:$B$52,0)+1)&")" -> Fixed Follow-On Check Size (Series A) | E24: 0 | G24: Loss Ratio ($) - Less than Cost | I24: =SUMIF(W6:W105,"<1",U6:U105)/U5 -> 0.2852897474 | K24: 19 | L24: 0 | M24: Series A | O24: 19 | P24: Seed | Q24: 0.1818181818 | R24: 0.1363636364 | S24: 2023-07-24 | T24: 2026-07-23 | U24: 2000000 | V24: 0 | W24: 0 | Y24: 19 | Z24: 19 | AA24: =IF($E$5="Uniform Inputs",IF($Z24>$E$12,"",MIN($E$21,($I$5+'Cash Flows'!$BX$6+INDEX('Cash Flows'!$C$17:$BW$17,1,MATCH(EOMONTH(AB24,MOD(-MONTH(AB24),3)-3),'Cash Flows'!$C$4:$BW$4,0)))/$E$12)),IF(AF24>0,AF24,"")) -> 2000000 | AB24: 2023-07-24 | AC24: 3000000 | AD24: 11000000 | AE24: 0.1818181818 | AF24: 2000000 | AG24: 2023-07-24 | AH24: 3000000 | AI24: 11000000 | AJ24: =IF($E$5="Uniform Inputs",IF($Z24>$E$13,"",IF($E$23="Pro-Rata",MIN(AL24*AE24,(($I$5+'Cash Flows'!$BX$6+INDEX('Cash Flows'!$C$17:$BW$17,1,MATCH(EOMONTH(AK24,MOD(-MONTH(AK24),3)-3),'Cash Flows'!$C$4:$BW$4,0)))-$AA$5)/$E$13),MIN($E$24,(($I$5+'Cash Flows'!$BX$6+INDEX('Cash Flows'!$C$17:$BW$17,1,MATCH(EOMONTH(AK24,MOD(-MONTH(AK24),3)-3),'Cash Flows'!$C$4:$BW$4,0)))-$AA$5)/$E$13))),IF(AO24=0,"",AO24)) ->  | AK24: 2025-01-21T12:00:00 | AL24: 12000000 | AM24: 48000000 | AN24: 0.1363636364 | AP24: 2025-01-21T12:00:00 | AQ24: 12000000 | AR24: 48000000 | AS24: =IF($E$5="Uniform Inputs",IF($Z24>$E$14,"",IF($E$23="Pro-Rata",MIN(AU24*AN24,(($I$5+'Cash Flows'!$BX$6+INDEX('Cash Flows'!$C$17:$BW$17,1,MATCH(EOMONTH(AT24,MOD(-MONTH(AT24),3)-3),'Cash Flows'!$C$4:$BW$4,0)))-SUM($AJ$5,$AA$5))/$E$14),MIN($E$25,(($I$5+'Cash Flows'!$BX$6+INDEX('Cash Flows'!$C$17:$BW$17,1,MATCH(EOMONTH(AT24,MOD(-MONTH(AT24),3)-3),'Cash Flows'!$C$4:$BW$4,0)))-SUM($AJ$5,$AA$5))/$E$14))),IF(AX24=0,"",AX24)) ->  | AT24: 2026-07-23 | AU24: 31000000 | AV24: 142000000 | AW24: 0.1065941101 | AY24: 2026-07-23 | AZ24: 31000000 | BA24: 142000000 | BB24: =IF($E$5="Uniform Inputs",IF($Z24>$E$15,"",IF($E$23="Pro-Rata",MIN(BD24*AW24,(($I$5+'Cash Flows'!$BX$6+INDEX('Cash Flows'!$C$17:$BW$17,1,MATCH(EOMONTH(BC24,MOD(-MONTH(BC24),3)-3),'Cash Flows'!$C$4:$BW$4,0)))-SUM($AS$5,$AJ$5,$AA$5))/$E$15),MIN($E$26,(($I$5+'Cash Flows'!$BX$6+INDEX('Cash Flows'!$C$17:$BW$17,1,MATCH(EOMONTH(BC24,MOD(-MONTH(BC24),3)-3),'Cash Flows'!$C$4:$BW$4,0)))-SUM($AS$5,$AJ$5,$AA$5))/$E$15))),IF(BG24=0,"",BG24)) ->  | BC24: 2028-01-21T12:00:00 | BD24: 70000000 | BE24: 375000000 | BF24: 0.08669654289 | BH24: 2028-01-21T12:00:00 | BI24: 70000000 | BJ24: 375000000 | BK24: =IF($E$5="Uniform Inputs",IF($Z24>$E$16,"",IF($E$23="Pro-Rata",MIN(BM24*BF24,(($I$5+'Cash Flows'!$BX$6+INDEX('Cash Flows'!$C$17:$BW$17,1,MATCH(EOMONTH(BL24,MOD(-MONTH(BL24),3)-3),'Cash Flows'!$C$4:$BW$4,0)))-SUM($BB$5,$AS$5,$AJ$5,$AA$5))/$E$16),MIN($E$27,(($I$5+'Cash Flows'!$BX$6+INDEX('Cash Flows'!$C$17:$BW$17,1,MATCH(EOMONTH(BL24,MOD(-MONTH(BL24),3)-3),'Cash Flows'!$C$4:$BW$4,0)))-SUM($BB$5,$AS$5,$AJ$5,$AA$5))/$E$16))),IF(BP24=0,"",BP24)) ->  | BL24: 2029-07-22 | BM24: 110000000 | BN24: 1000000000 | BO24: 0.07715992318 | BQ24: 2029-07-22 | BR24: 110000000 | BS24: 1000000000 | BU24: 2031-01-20T12:00:00 | BV24: 150000000 | BW24: 1300000000 | BX24: 0.06825685512 | BZ24: 2031-01-20T12:00:00 | CA24: 150000000 | CB24: 1300000000 | CD24: 2032-07-21 | CE24: 200000000 | CF24: 2300000000 | CG24: 0.06232147641 | CI24: 2032-07-21 | CJ24: 200000000 | CK24: 2300000000 | CM24: 2034-01-19T12:00:00 | CN24: 275000000 | CO24: 3000000000 | CP24: 0.05660867441 | CR24: 2034-01-19T12:00:00 | CS24: 275000000 | CT24: 3000000000 | CV24: 2035-07-21 | DA24: 2035-07-21
B25: ="Fixed Follow-On Check Size ("&INDEX($B$44:$B$52,MATCH($E$22,$B$44:$B$52,0)+2)&")" -> Fixed Follow-On Check Size (Series B) | E25: 0 | K25: 20 | L25: 0 | M25: Series A | O25: 20 | P25: Seed | Q25: 0.1818181818 | R25: 0.1363636364 | S25: 2023-08-23 | T25: 2026-08-22 | U25: 2000000 | V25: 0 | W25: 0 | Y25: 20 | Z25: 20 | AA25: =IF($E$5="Uniform Inputs",IF($Z25>$E$12,"",MIN($E$21,($I$5+'Cash Flows'!$BX$6+INDEX('Cash Flows'!$C$17:$BW$17,1,MATCH(EOMONTH(AB25,MOD(-MONTH(AB25),3)-3),'Cash Flows'!$C$4:$BW$4,0)))/$E$12)),IF(AF25>0,AF25,"")) -> 2000000 | AB25: 2023-08-23 | AC25: 3000000 | AD25: 11000000 | AE25: 0.1818181818 | AF25: 2000000 | AG25: 2023-08-23 | AH25: 3000000 | AI25: 11000000 | AJ25: =IF($E$5="Uniform Inputs",IF($Z25>$E$13,"",IF($E$23="Pro-Rata",MIN(AL25*AE25,(($I$5+'Cash Flows'!$BX$6+INDEX('Cash Flows'!$C$17:$BW$17,1,MATCH(EOMONTH(AK25,MOD(-MONTH(AK25),3)-3),'Cash Flows'!$C$4:$BW$4,0)))-$AA$5)/$E$13),MIN($E$24,(($I$5+'Cash Flows'!$BX$6+INDEX('Cash Flows'!$C$17:$BW$17,1,MATCH(EOMONTH(AK25,MOD(-MONTH(AK25),3)-3),'Cash Flows'!$C$4:$BW$4,0)))-$AA$5)/$E$13))),IF(AO25=0,"",AO25)) ->  | AK25: 2025-02-20T12:00:00 | AL25: 12000000 | AM25: 48000000 | AN25: 0.1363636364 | AP25: 2025-02-20T12:00:00 | AQ25: 12000000 | AR25: 48000000 | AS25: =IF($E$5="Uniform Inputs",IF($Z25>$E$14,"",IF($E$23="Pro-Rata",MIN(AU25*AN25,(($I$5+'Cash Flows'!$BX$6+INDEX('Cash Flows'!$C$17:$BW$17,1,MATCH(EOMONTH(AT25,MOD(-MONTH(AT25),3)-3),'Cash Flows'!$C$4:$BW$4,0)))-SUM($AJ$5,$AA$5))/$E$14),MIN($E$25,(($I$5+'Cash Flows'!$BX$6+INDEX('Cash Flows'!$C$17:$BW$17,1,MATCH(EOMONTH(AT25,MOD(-MONTH(AT25),3)-3),'Cash Flows'!$C$4:$BW$4,0)))-SUM($AJ$5,$AA$5))/$E$14))),IF(AX25=0,"",AX25)) ->  | AT25: 2026-08-22 | AU25: 31000000 | AV25: 142000000 | AW25: 0.1065941101 | AY25: 2026-08-22 | AZ25: 31000000 | BA25: 142000000 | BB25: =IF($E$5="Uniform Inputs",IF($Z25>$E$15,"",IF($E$23="Pro-Rata",MIN(BD25*AW25,(($I$5+'Cash Flows'!$BX$6+INDEX('Cash Flows'!$C$17:$BW$17,1,MATCH(EOMONTH(BC25,MOD(-MONTH(BC25),3)-3),'Cash Flows'!$C$4:$BW$4,0)))-SUM($AS$5,$AJ$5,$AA$5))/$E$15),MIN($E$26,(($I$5+'Cash Flows'!$BX$6+INDEX('Cash Flows'!$C$17:$BW$17,1,MATCH(EOMONTH(BC25,MOD(-MONTH(BC25),3)-3),'Cash Flows'!$C$4:$BW$4,0)))-SUM($AS$5,$AJ$5,$AA$5))/$E$15))),IF(BG25=0,"",BG25)) ->  | BC25: 2028-02-20T12:00:00 | BD25: 70000000 | BE25: 375000000 | BF25: 0.08669654289 | BH25: 2028-02-20T12:00:00 | BI25: 70000000 | BJ25: 375000000 | BK25: =IF($E$5="Uniform Inputs",IF($Z25>$E$16,"",IF($E$23="Pro-Rata",MIN(BM25*BF25,(($I$5+'Cash Flows'!$BX$6+INDEX('Cash Flows'!$C$17:$BW$17,1,MATCH(EOMONTH(BL25,MOD(-MONTH(BL25),3)-3),'Cash Flows'!$C$4:$BW$4,0)))-SUM($BB$5,$AS$5,$AJ$5,$AA$5))/$E$16),MIN($E$27,(($I$5+'Cash Flows'!$BX$6+INDEX('Cash Flows'!$C$17:$BW$17,1,MATCH(EOMONTH(BL25,MOD(-MONTH(BL25),3)-3),'Cash Flows'!$C$4:$BW$4,0)))-SUM($BB$5,$AS$5,$AJ$5,$AA$5))/$E$16))),IF(BP25=0,"",BP25)) ->  | BL25: 2029-08-21 | BM25: 110000000 | BN25: 1000000000 | BO25: 0.07715992318 | BQ25: 2029-08-21 | BR25: 110000000 | BS25: 1000000000 | BU25: 2031-02-19T12:00:00 | BV25: 150000000 | BW25: 1300000000 | BX25: 0.06825685512 | BZ25: 2031-02-19T12:00:00 | CA25: 150000000 | CB25: 1300000000 | CD25: 2032-08-20 | CE25: 200000000 | CF25: 2300000000 | CG25: 0.06232147641 | CI25: 2032-08-20 | CJ25: 200000000 | CK25: 2300000000 | CM25: 2034-02-18T12:00:00 | CN25: 275000000 | CO25: 3000000000 | CP25: 0.05660867441 | CR25: 2034-02-18T12:00:00 | CS25: 275000000 | CT25: 3000000000 | CV25: 2035-08-20 | DA25: 2035-08-20
B26: ="Fixed Follow-On Check Size ("&INDEX($B$44:$B$52,MATCH($E$22,$B$44:$B$52,0)+3)&")" -> Fixed Follow-On Check Size (Series C) | E26: 0 | K26: 21 | L26: 0 | M26: Series A | O26: 21 | P26: Seed | Q26: 0.1818181818 | R26: 0.1363636364 | S26: 2023-09-22 | T26: 2026-09-21 | U26: 2000000 | V26: 0 | W26: 0 | Y26: 21 | Z26: 21 | AA26: =IF($E$5="Uniform Inputs",IF($Z26>$E$12,"",MIN($E$21,($I$5+'Cash Flows'!$BX$6+INDEX('Cash Flows'!$C$17:$BW$17,1,MATCH(EOMONTH(AB26,MOD(-MONTH(AB26),3)-3),'Cash Flows'!$C$4:$BW$4,0)))/$E$12)),IF(AF26>0,AF26,"")) -> 2000000 | AB26: 2023-09-22 | AC26: 3000000 | AD26: 11000000 | AE26: 0.1818181818 | AF26: 2000000 | AG26: 2023-09-22 | AH26: 3000000 | AI26: 11000000 | AJ26: =IF($E$5="Uniform Inputs",IF($Z26>$E$13,"",IF($E$23="Pro-Rata",MIN(AL26*AE26,(($I$5+'Cash Flows'!$BX$6+INDEX('Cash Flows'!$C$17:$BW$17,1,MATCH(EOMONTH(AK26,MOD(-MONTH(AK26),3)-3),'Cash Flows'!$C$4:$BW$4,0)))-$AA$5)/$E$13),MIN($E$24,(($I$5+'Cash Flows'!$BX$6+INDEX('Cash Flows'!$C$17:$BW$17,1,MATCH(EOMONTH(AK26,MOD(-MONTH(AK26),3)-3),'Cash Flows'!$C$4:$BW$4,0)))-$AA$5)/$E$13))),IF(AO26=0,"",AO26)) ->  | AK26: 2025-03-22T12:00:00 | AL26: 12000000 | AM26: 48000000 | AN26: 0.1363636364 | AP26: 2025-03-22T12:00:00 | AQ26: 12000000 | AR26: 48000000 | AS26: =IF($E$5="Uniform Inputs",IF($Z26>$E$14,"",IF($E$23="Pro-Rata",MIN(AU26*AN26,(($I$5+'Cash Flows'!$BX$6+INDEX('Cash Flows'!$C$17:$BW$17,1,MATCH(EOMONTH(AT26,MOD(-MONTH(AT26),3)-3),'Cash Flows'!$C$4:$BW$4,0)))-SUM($AJ$5,$AA$5))/$E$14),MIN($E$25,(($I$5+'Cash Flows'!$BX$6+INDEX('Cash Flows'!$C$17:$BW$17,1,MATCH(EOMONTH(AT26,MOD(-MONTH(AT26),3)-3),'Cash Flows'!$C$4:$BW$4,0)))-SUM($AJ$5,$AA$5))/$E$14))),IF(AX26=0,"",AX26)) ->  | AT26: 2026-09-21 | AU26: 31000000 | AV26: 142000000 | AW26: 0.1065941101 | AY26: 2026-09-21 | AZ26: 31000000 | BA26: 142000000 | BB26: =IF($E$5="Uniform Inputs",IF($Z26>$E$15,"",IF($E$23="Pro-Rata",MIN(BD26*AW26,(($I$5+'Cash Flows'!$BX$6+INDEX('Cash Flows'!$C$17:$BW$17,1,MATCH(EOMONTH(BC26,MOD(-MONTH(BC26),3)-3),'Cash Flows'!$C$4:$BW$4,0)))-SUM($AS$5,$AJ$5,$AA$5))/$E$15),MIN($E$26,(($I$5+'Cash Flows'!$BX$6+INDEX('Cash Flows'!$C$17:$BW$17,1,MATCH(EOMONTH(BC26,MOD(-MONTH(BC26),3)-3),'Cash Flows'!$C$4:$BW$4,0)))-SUM($AS$5,$AJ$5,$AA$5))/$E$15))),IF(BG26=0,"",BG26)) ->  | BC26: 2028-03-21T12:00:00 | BD26: 70000000 | BE26: 375000000 | BF26: 0.08669654289 | BH26: 2028-03-21T12:00:00 | BI26: 70000000 | BJ26: 375000000 | BK26: =IF($E$5="Uniform Inputs",IF($Z26>$E$16,"",IF($E$23="Pro-Rata",MIN(BM26*BF26,(($I$5+'Cash Flows'!$BX$6+INDEX('Cash Flows'!$C$17:$BW$17,1,MATCH(EOMONTH(BL26,MOD(-MONTH(BL26),3)-3),'Cash Flows'!$C$4:$BW$4,0)))-SUM($BB$5,$AS$5,$AJ$5,$AA$5))/$E$16),MIN($E$27,(($I$5+'Cash Flows'!$BX$6+INDEX('Cash Flows'!$C$17:$BW$17,1,MATCH(EOMONTH(BL26,MOD(-MONTH(BL26),3)-3),'Cash Flows'!$C$4:$BW$4,0)))-SUM($BB$5,$AS$5,$AJ$5,$AA$5))/$E$16))),IF(BP26=0,"",BP26)) ->  | BL26: 2029-09-20 | BM26: 110000000 | BN26: 1000000000 | BO26: 0.07715992318 | BQ26: 2029-09-20 | BR26: 110000000 | BS26: 1000000000 | BU26: 2031-03-21T12:00:00 | BV26: 150000000 | BW26: 1300000000 | BX26: 0.06825685512 | BZ26: 2031-03-21T12:00:00 | CA26: 150000000 | CB26: 1300000000 | CD26: 2032-09-19 | CE26: 200000000 | CF26: 2300000000 | CG26: 0.06232147641 | CI26: 2032-09-19 | CJ26: 200000000 | CK26: 2300000000 | CM26: 2034-03-20T12:00:00 | CN26: 275000000 | CO26: 3000000000 | CP26: 0.05660867441 | CR26: 2034-03-20T12:00:00 | CS26: 275000000 | CT26: 3000000000 | CV26: 2035-09-19 | DA26: 2035-09-19
B27: ="Fixed Follow-On Check Size ("&INDEX($B$44:$B$52,MATCH($E$22,$B$44:$B$52,0)+4)&")" -> Fixed Follow-On Check Size (Series D) | E27: 0 | G27: Sensitivity | K27: 22 | L27: 0 | M27: Series A | O27: 22 | P27: Seed | Q27: 0.1818181818 | R27: 0.1363636364 | S27: 2023-10-22 | T27: 2026-10-21 | U27: 2000000 | V27: 0 | W27: 0 | Y27: 22 | Z27: 22 | AA27: =IF($E$5="Uniform Inputs",IF($Z27>$E$12,"",MIN($E$21,($I$5+'Cash Flows'!$BX$6+INDEX('Cash Flows'!$C$17:$BW$17,1,MATCH(EOMONTH(AB27,MOD(-MONTH(AB27),3)-3),'Cash Flows'!$C$4:$BW$4,0)))/$E$12)),IF(AF27>0,AF27,"")) -> 2000000 | AB27: 2023-10-22 | AC27: 3000000 | AD27: 11000000 | AE27: 0.1818181818 | AF27: 2000000 | AG27: 2023-10-22 | AH27: 3000000 | AI27: 11000000 | AJ27: =IF($E$5="Uniform Inputs",IF($Z27>$E$13,"",IF($E$23="Pro-Rata",MIN(AL27*AE27,(($I$5+'Cash Flows'!$BX$6+INDEX('Cash Flows'!$C$17:$BW$17,1,MATCH(EOMONTH(AK27,MOD(-MONTH(AK27),3)-3),'Cash Flows'!$C$4:$BW$4,0)))-$AA$5)/$E$13),MIN($E$24,(($I$5+'Cash Flows'!$BX$6+INDEX('Cash Flows'!$C$17:$BW$17,1,MATCH(EOMONTH(AK27,MOD(-MONTH(AK27),3)-3),'Cash Flows'!$C$4:$BW$4,0)))-$AA$5)/$E$13))),IF(AO27=0,"",AO27)) ->  | AK27: 2025-04-21T12:00:00 | AL27: 12000000 | AM27: 48000000 | AN27: 0.1363636364 | AP27: 2025-04-21T12:00:00 | AQ27: 12000000 | AR27: 48000000 | AS27: =IF($E$5="Uniform Inputs",IF($Z27>$E$14,"",IF($E$23="Pro-Rata",MIN(AU27*AN27,(($I$5+'Cash Flows'!$BX$6+INDEX('Cash Flows'!$C$17:$BW$17,1,MATCH(EOMONTH(AT27,MOD(-MONTH(AT27),3)-3),'Cash Flows'!$C$4:$BW$4,0)))-SUM($AJ$5,$AA$5))/$E$14),MIN($E$25,(($I$5+'Cash Flows'!$BX$6+INDEX('Cash Flows'!$C$17:$BW$17,1,MATCH(EOMONTH(AT27,MOD(-MONTH(AT27),3)-3),'Cash Flows'!$C$4:$BW$4,0)))-SUM($AJ$5,$AA$5))/$E$14))),IF(AX27=0,"",AX27)) ->  | AT27: 2026-10-21 | AU27: 31000000 | AV27: 142000000 | AW27: 0.1065941101 | AY27: 2026-10-21 | AZ27: 31000000 | BA27: 142000000 | BB27: =IF($E$5="Uniform Inputs",IF($Z27>$E$15,"",IF($E$23="Pro-Rata",MIN(BD27*AW27,(($I$5+'Cash Flows'!$BX$6+INDEX('Cash Flows'!$C$17:$BW$17,1,MATCH(EOMONTH(BC27,MOD(-MONTH(BC27),3)-3),'Cash Flows'!$C$4:$BW$4,0)))-SUM($AS$5,$AJ$5,$AA$5))/$E$15),MIN($E$26,(($I$5+'Cash Flows'!$BX$6+INDEX('Cash Flows'!$C$17:$BW$17,1,MATCH(EOMONTH(BC27,MOD(-MONTH(BC27),3)-3),'Cash Flows'!$C$4:$BW$4,0)))-SUM($AS$5,$AJ$5,$AA$5))/$E$15))),IF(BG27=0,"",BG27)) ->  | BC27: 2028-04-20T12:00:00 | BD27: 70000000 | BE27: 375000000 | BF27: 0.08669654289 | BH27: 2028-04-20T12:00:00 | BI27: 70000000 | BJ27: 375000000 | BK27: =IF($E$5="Uniform Inputs",IF($Z27>$E$16,"",IF($E$23="Pro-Rata",MIN(BM27*BF27,(($I$5+'Cash Flows'!$BX$6+INDEX('Cash Flows'!$C$17:$BW$17,1,MATCH(EOMONTH(BL27,MOD(-MONTH(BL27),3)-3),'Cash Flows'!$C$4:$BW$4,0)))-SUM($BB$5,$AS$5,$AJ$5,$AA$5))/$E$16),MIN($E$27,(($I$5+'Cash Flows'!$BX$6+INDEX('Cash Flows'!$C$17:$BW$17,1,MATCH(EOMONTH(BL27,MOD(-MONTH(BL27),3)-3),'Cash Flows'!$C$4:$BW$4,0)))-SUM($BB$5,$AS$5,$AJ$5,$AA$5))/$E$16))),IF(BP27=0,"",BP27)) ->  | BL27: 2029-10-20 | BM27: 110000000 | BN27: 1000000000 | BO27: 0.07715992318 | BQ27: 2029-10-20 | BR27: 110000000 | BS27: 1000000000 | BU27: 2031-04-20T12:00:00 | BV27: 150000000 | BW27: 1300000000 | BX27: 0.06825685512 | BZ27: 2031-04-20T12:00:00 | CA27: 150000000 | CB27: 1300000000 | CD27: 2032-10-19 | CE27: 200000000 | CF27: 2300000000 | CG27: 0.06232147641 | CI27: 2032-10-19 | CJ27: 200000000 | CK27: 2300000000 | CM27: 2034-04-19T12:00:00 | CN27: 275000000 | CO27: 3000000000 | CP27: 0.05660867441 | CR27: 2034-04-19T12:00:00 | CS27: 275000000 | CT27: 3000000000 | CV27: 2035-10-19 | DA27: 2035-10-19
B28: Time Between Rounds | E28: 1.5 | G28: Gross MOIC (ex. Company 1) | I28: =(V5-V6)/(U5-U6) -> 3.705281269 | K28: 23 | L28: 0 | M28: Series A | O28: 23 | P28: Seed | Q28: 0.1818181818 | R28: 0.1363636364 | S28: 2023-11-21 | T28: 2026-11-20 | U28: 2000000 | V28: 0 | W28: 0 | Y28: 23 | Z28: 23 | AA28: =IF($E$5="Uniform Inputs",IF($Z28>$E$12,"",MIN($E$21,($I$5+'Cash Flows'!$BX$6+INDEX('Cash Flows'!$C$17:$BW$17,1,MATCH(EOMONTH(AB28,MOD(-MONTH(AB28),3)-3),'Cash Flows'!$C$4:$BW$4,0)))/$E$12)),IF(AF28>0,AF28,"")) -> 2000000 | AB28: 2023-11-21 | AC28: 3000000 | AD28: 11000000 | AE28: 0.1818181818 | AF28: 2000000 | AG28: 2023-11-21 | AH28: 3000000 | AI28: 11000000 | AJ28: =IF($E$5="Uniform Inputs",IF($Z28>$E$13,"",IF($E$23="Pro-Rata",MIN(AL28*AE28,(($I$5+'Cash Flows'!$BX$6+INDEX('Cash Flows'!$C$17:$BW$17,1,MATCH(EOMONTH(AK28,MOD(-MONTH(AK28),3)-3),'Cash Flows'!$C$4:$BW$4,0)))-$AA$5)/$E$13),MIN($E$24,(($I$5+'Cash Flows'!$BX$6+INDEX('Cash Flows'!$C$17:$BW$17,1,MATCH(EOMONTH(AK28,MOD(-MONTH(AK28),3)-3),'Cash Flows'!$C$4:$BW$4,0)))-$AA$5)/$E$13))),IF(AO28=0,"",AO28)) ->  | AK28: 2025-05-21T12:00:00 | AL28: 12000000 | AM28: 48000000 | AN28: 0.1363636364 | AP28: 2025-05-21T12:00:00 | AQ28: 12000000 | AR28: 48000000 | AS28: =IF($E$5="Uniform Inputs",IF($Z28>$E$14,"",IF($E$23="Pro-Rata",MIN(AU28*AN28,(($I$5+'Cash Flows'!$BX$6+INDEX('Cash Flows'!$C$17:$BW$17,1,MATCH(EOMONTH(AT28,MOD(-MONTH(AT28),3)-3),'Cash Flows'!$C$4:$BW$4,0)))-SUM($AJ$5,$AA$5))/$E$14),MIN($E$25,(($I$5+'Cash Flows'!$BX$6+INDEX('Cash Flows'!$C$17:$BW$17,1,MATCH(EOMONTH(AT28,MOD(-MONTH(AT28),3)-3),'Cash Flows'!$C$4:$BW$4,0)))-SUM($AJ$5,$AA$5))/$E$14))),IF(AX28=0,"",AX28)) ->  | AT28: 2026-11-20 | AU28: 31000000 | AV28: 142000000 | AW28: 0.1065941101 | AY28: 2026-11-20 | AZ28: 31000000 | BA28: 142000000 | BB28: =IF($E$5="Uniform Inputs",IF($Z28>$E$15,"",IF($E$23="Pro-Rata",MIN(BD28*AW28,(($I$5+'Cash Flows'!$BX$6+INDEX('Cash Flows'!$C$17:$BW$17,1,MATCH(EOMONTH(BC28,MOD(-MONTH(BC28),3)-3),'Cash Flows'!$C$4:$BW$4,0)))-SUM($AS$5,$AJ$5,$AA$5))/$E$15),MIN($E$26,(($I$5+'Cash Flows'!$BX$6+INDEX('Cash Flows'!$C$17:$BW$17,1,MATCH(EOMONTH(BC28,MOD(-MONTH(BC28),3)-3),'Cash Flows'!$C$4:$BW$4,0)))-SUM($AS$5,$AJ$5,$AA$5))/$E$15))),IF(BG28=0,"",BG28)) ->  | BC28: 2028-05-20T12:00:00 | BD28: 70000000 | BE28: 375000000 | BF28: 0.08669654289 | BH28: 2028-05-20T12:00:00 | BI28: 70000000 | BJ28: 375000000 | BK28: =IF($E$5="Uniform Inputs",IF($Z28>$E$16,"",IF($E$23="Pro-Rata",MIN(BM28*BF28,(($I$5+'Cash Flows'!$BX$6+INDEX('Cash Flows'!$C$17:$BW$17,1,MATCH(EOMONTH(BL28,MOD(-MONTH(BL28),3)-3),'Cash Flows'!$C$4:$BW$4,0)))-SUM($BB$5,$AS$5,$AJ$5,$AA$5))/$E$16),MIN($E$27,(($I$5+'Cash Flows'!$BX$6+INDEX('Cash Flows'!$C$17:$BW$17,1,MATCH(EOMONTH(BL28,MOD(-MONTH(BL28),3)-3),'Cash Flows'!$C$4:$BW$4,0)))-SUM($BB$5,$AS$5,$AJ$5,$AA$5))/$E$16))),IF(BP28=0,"",BP28)) ->  | BL28: 2029-11-19 | BM28: 110000000 | BN28: 1000000000 | BO28: 0.07715992318 | BQ28: 2029-11-19 | BR28: 110000000 | BS28: 1000000000 | BU28: 2031-05-20T12:00:00 | BV28: 150000000 | BW28: 1300000000 | BX28: 0.06825685512 | BZ28: 2031-05-20T12:00:00 | CA28: 150000000 | CB28: 1300000000 | CD28: 2032-11-18 | CE28: 200000000 | CF28: 2300000000 | CG28: 0.06232147641 | CI28: 2032-11-18 | CJ28: 200000000 | CK28: 2300000000 | CM28: 2034-05-19T12:00:00 | CN28: 275000000 | CO28: 3000000000 | CP28: 0.05660867441 | CR28: 2034-05-19T12:00:00 | CS28: 275000000 | CT28: 3000000000 | CV28: 2035-11-18 | DA28: 2035-11-18
G29: Gross MOIC (ex. Company 1 & 2) | I29: =(V5-SUM(V6,V7))/(U5-SUM(U6,U7)) -> 2.764922415 | K29: 24 | L29: 0 | M29: Series A | O29: 24 | P29: Seed | Q29: 0.1818181818 | R29: 0.1363636364 | S29: 2023-12-21 | T29: 2026-12-20 | U29: 2000000 | V29: 0 | W29: 0 | Y29: 24 | Z29: 24 | AA29: =IF($E$5="Uniform Inputs",IF($Z29>$E$12,"",MIN($E$21,($I$5+'Cash Flows'!$BX$6+INDEX('Cash Flows'!$C$17:$BW$17,1,MATCH(EOMONTH(AB29,MOD(-MONTH(AB29),3)-3),'Cash Flows'!$C$4:$BW$4,0)))/$E$12)),IF(AF29>0,AF29,"")) -> 2000000 | AB29: 2023-12-21 | AC29: 3000000 | AD29: 11000000 | AE29: 0.1818181818 | AF29: 2000000 | AG29: 2023-12-21 | AH29: 3000000 | AI29: 11000000 | AJ29: =IF($E$5="Uniform Inputs",IF($Z29>$E$13,"",IF($E$23="Pro-Rata",MIN(AL29*AE29,(($I$5+'Cash Flows'!$BX$6+INDEX('Cash Flows'!$C$17:$BW$17,1,MATCH(EOMONTH(AK29,MOD(-MONTH(AK29),3)-3),'Cash Flows'!$C$4:$BW$4,0)))-$AA$5)/$E$13),MIN($E$24,(($I$5+'Cash Flows'!$BX$6+INDEX('Cash Flows'!$C$17:$BW$17,1,MATCH(EOMONTH(AK29,MOD(-MONTH(AK29),3)-3),'Cash Flows'!$C$4:$BW$4,0)))-$AA$5)/$E$13))),IF(AO29=0,"",AO29)) ->  | AK29: 2025-06-20T12:00:00 | AL29: 12000000 | AM29: 48000000 | AN29: 0.1363636364 | AP29: 2025-06-20T12:00:00 | AQ29: 12000000 | AR29: 48000000 | AS29: =IF($E$5="Uniform Inputs",IF($Z29>$E$14,"",IF($E$23="Pro-Rata",MIN(AU29*AN29,(($I$5+'Cash Flows'!$BX$6+INDEX('Cash Flows'!$C$17:$BW$17,1,MATCH(EOMONTH(AT29,MOD(-MONTH(AT29),3)-3),'Cash Flows'!$C$4:$BW$4,0)))-SUM($AJ$5,$AA$5))/$E$14),MIN($E$25,(($I$5+'Cash Flows'!$BX$6+INDEX('Cash Flows'!$C$17:$BW$17,1,MATCH(EOMONTH(AT29,MOD(-MONTH(AT29),3)-3),'Cash Flows'!$C$4:$BW$4,0)))-SUM($AJ$5,$AA$5))/$E$14))),IF(AX29=0,"",AX29)) ->  | AT29: 2026-12-20 | AU29: 31000000 | AV29: 142000000 | AW29: 0.1065941101 | AY29: 2026-12-20 | AZ29: 31000000 | BA29: 142000000 | BB29: =IF($E$5="Uniform Inputs",IF($Z29>$E$15,"",IF($E$23="Pro-Rata",MIN(BD29*AW29,(($I$5+'Cash Flows'!$BX$6+INDEX('Cash Flows'!$C$17:$BW$17,1,MATCH(EOMONTH(BC29,MOD(-MONTH(BC29),3)-3),'Cash Flows'!$C$4:$BW$4,0)))-SUM($AS$5,$AJ$5,$AA$5))/$E$15),MIN($E$26,(($I$5+'Cash Flows'!$BX$6+INDEX('Cash Flows'!$C$17:$BW$17,1,MATCH(EOMONTH(BC29,MOD(-MONTH(BC29),3)-3),'Cash Flows'!$C$4:$BW$4,0)))-SUM($AS$5,$AJ$5,$AA$5))/$E$15))),IF(BG29=0,"",BG29)) ->  | BC29: 2028-06-19T12:00:00 | BD29: 70000000 | BE29: 375000000 | BF29: 0.08669654289 | BH29: 2028-06-19T12:00:00 | BI29: 70000000 | BJ29: 375000000 | BK29: =IF($E$5="Uniform Inputs",IF($Z29>$E$16,"",IF($E$23="Pro-Rata",MIN(BM29*BF29,(($I$5+'Cash Flows'!$BX$6+INDEX('Cash Flows'!$C$17:$BW$17,1,MATCH(EOMONTH(BL29,MOD(-MONTH(BL29),3)-3),'Cash Flows'!$C$4:$BW$4,0)))-SUM($BB$5,$AS$5,$AJ$5,$AA$5))/$E$16),MIN($E$27,(($I$5+'Cash Flows'!$BX$6+INDEX('Cash Flows'!$C$17:$BW$17,1,MATCH(EOMONTH(BL29,MOD(-MONTH(BL29),3)-3),'Cash Flows'!$C$4:$BW$4,0)))-SUM($BB$5,$AS$5,$AJ$5,$AA$5))/$E$16))),IF(BP29=0,"",BP29)) ->  | BL29: 2029-12-19 | BM29: 110000000 | BN29: 1000000000 | BO29: 0.07715992318 | BQ29: 2029-12-19 | BR29: 110000000 | BS29: 1000000000 | BU29: 2031-06-19T12:00:00 | BV29: 150000000 | BW29: 1300000000 | BX29: 0.06825685512 | BZ29: 2031-06-19T12:00:00 | CA29: 150000000 | CB29: 1300000000 | CD29: 2032-12-18 | CE29: 200000000 | CF29: 2300000000 | CG29: 0.06232147641 | CI29: 2032-12-18 | CJ29: 200000000 | CK29: 2300000000 | CM29: 2034-06-18T12:00:00 | CN29: 275000000 | CO29: 3000000000 | CP29: 0.05660867441 | CR29: 2034-06-18T12:00:00 | CS29: 275000000 | CT29: 3000000000 | CV29: 2035-12-18 | DA29: 2035-12-18
G30: Gross MOIC (ex. Company 1, 2 & 3) | I30: =(V5-SUM(V6,V7,V8))/(U5-SUM(U6,U7,U8)) -> 2.173213149 | K30: 25 | L30: 0 | M30: Series A | O30: 25 | P30: Seed | Q30: 0.1818181818 | R30: 0.1363636364 | S30: 2024-01-20 | T30: 2027-01-19 | U30: 2000000 | V30: 0 | W30: 0 | Y30: 25 | Z30: 25 | AA30: =IF($E$5="Uniform Inputs",IF($Z30>$E$12,"",MIN($E$21,($I$5+'Cash Flows'!$BX$6+INDEX('Cash Flows'!$C$17:$BW$17,1,MATCH(EOMONTH(AB30,MOD(-MONTH(AB30),3)-3),'Cash Flows'!$C$4:$BW$4,0)))/$E$12)),IF(AF30>0,AF30,"")) -> 2000000 | AB30: 2024-01-20 | AC30: 3000000 | AD30: 11000000 | AE30: 0.1818181818 | AF30: 2000000 | AG30: 2024-01-20 | AH30: 3000000 | AI30: 11000000 | AJ30: =IF($E$5="Uniform Inputs",IF($Z30>$E$13,"",IF($E$23="Pro-Rata",MIN(AL30*AE30,(($I$5+'Cash Flows'!$BX$6+INDEX('Cash Flows'!$C$17:$BW$17,1,MATCH(EOMONTH(AK30,MOD(-MONTH(AK30),3)-3),'Cash Flows'!$C$4:$BW$4,0)))-$AA$5)/$E$13),MIN($E$24,(($I$5+'Cash Flows'!$BX$6+INDEX('Cash Flows'!$C$17:$BW$17,1,MATCH(EOMONTH(AK30,MOD(-MONTH(AK30),3)-3),'Cash Flows'!$C$4:$BW$4,0)))-$AA$5)/$E$13))),IF(AO30=0,"",AO30)) ->  | AK30: 2025-07-20T12:00:00 | AL30: 12000000 | AM30: 48000000 | AN30: 0.1363636364 | AP30: 2025-07-20T12:00:00 | AQ30: 12000000 | AR30: 48000000 | AS30: =IF($E$5="Uniform Inputs",IF($Z30>$E$14,"",IF($E$23="Pro-Rata",MIN(AU30*AN30,(($I$5+'Cash Flows'!$BX$6+INDEX('Cash Flows'!$C$17:$BW$17,1,MATCH(EOMONTH(AT30,MOD(-MONTH(AT30),3)-3),'Cash Flows'!$C$4:$BW$4,0)))-SUM($AJ$5,$AA$5))/$E$14),MIN($E$25,(($I$5+'Cash Flows'!$BX$6+INDEX('Cash Flows'!$C$17:$BW$17,1,MATCH(EOMONTH(AT30,MOD(-MONTH(AT30),3)-3),'Cash Flows'!$C$4:$BW$4,0)))-SUM($AJ$5,$AA$5))/$E$14))),IF(AX30=0,"",AX30)) ->  | AT30: 2027-01-19 | AU30: 31000000 | AV30: 142000000 | AW30: 0.1065941101 | AY30: 2027-01-19 | AZ30: 31000000 | BA30: 142000000 | BB30: =IF($E$5="Uniform Inputs",IF($Z30>$E$15,"",IF($E$23="Pro-Rata",MIN(BD30*AW30,(($I$5+'Cash Flows'!$BX$6+INDEX('Cash Flows'!$C$17:$BW$17,1,MATCH(EOMONTH(BC30,MOD(-MONTH(BC30),3)-3),'Cash Flows'!$C$4:$BW$4,0)))-SUM($AS$5,$AJ$5,$AA$5))/$E$15),MIN($E$26,(($I$5+'Cash Flows'!$BX$6+INDEX('Cash Flows'!$C$17:$BW$17,1,MATCH(EOMONTH(BC30,MOD(-MONTH(BC30),3)-3),'Cash Flows'!$C$4:$BW$4,0)))-SUM($AS$5,$AJ$5,$AA$5))/$E$15))),IF(BG30=0,"",BG30)) ->  | BC30: 2028-07-19T12:00:00 | BD30: 70000000 | BE30: 375000000 | BF30: 0.08669654289 | BH30: 2028-07-19T12:00:00 | BI30: 70000000 | BJ30: 375000000 | BK30: =IF($E$5="Uniform Inputs",IF($Z30>$E$16,"",IF($E$23="Pro-Rata",MIN(BM30*BF30,(($I$5+'Cash Flows'!$BX$6+INDEX('Cash Flows'!$C$17:$BW$17,1,MATCH(EOMONTH(BL30,MOD(-MONTH(BL30),3)-3),'Cash Flows'!$C$4:$BW$4,0)))-SUM($BB$5,$AS$5,$AJ$5,$AA$5))/$E$16),MIN($E$27,(($I$5+'Cash Flows'!$BX$6+INDEX('Cash Flows'!$C$17:$BW$17,1,MATCH(EOMONTH(BL30,MOD(-MONTH(BL30),3)-3),'Cash Flows'!$C$4:$BW$4,0)))-SUM($BB$5,$AS$5,$AJ$5,$AA$5))/$E$16))),IF(BP30=0,"",BP30)) ->  | BL30: 2030-01-18 | BM30: 110000000 | BN30: 1000000000 | BO30: 0.07715992318 | BQ30: 2030-01-18 | BR30: 110000000 | BS30: 1000000000 | BU30: 2031-07-19T12:00:00 | BV30: 150000000 | BW30: 1300000000 | BX30: 0.06825685512 | BZ30: 2031-07-19T12:00:00 | CA30: 150000000 | CB30: 1300000000 | CD30: 2033-01-17 | CE30: 200000000 | CF30: 2300000000 | CG30: 0.06232147641 | CI30: 2033-01-17 | CJ30: 200000000 | CK30: 2300000000 | CM30: 2034-07-18T12:00:00 | CN30: 275000000 | CO30: 3000000000 | CP30: 0.05660867441 | CR30: 2034-07-18T12:00:00 | CS30: 275000000 | CT30: 3000000000 | CV30: 2036-01-17 | DA30: 2036-01-17
B31: Fee Structure | Y31: 26 | AA31: =IF($E$5="Uniform Inputs",IF($Z31>$E$12,"",MIN($E$21,($I$5+'Cash Flows'!$BX$6+INDEX('Cash Flows'!$C$17:$BW$17,1,MATCH(EOMONTH(AB31,MOD(-MONTH(AB31),3)-3),'Cash Flows'!$C$4:$BW$4,0)))/$E$12)),IF(AF31>0,AF31,"")) ->  | AJ31: =IF($E$5="Uniform Inputs",IF($Z31>$E$13,"",IF($E$23="Pro-Rata",MIN(AL31*AE31,(($I$5+'Cash Flows'!$BX$6+INDEX('Cash Flows'!$C$17:$BW$17,1,MATCH(EOMONTH(AK31,MOD(-MONTH(AK31),3)-3),'Cash Flows'!$C$4:$BW$4,0)))-$AA$5)/$E$13),MIN($E$24,(($I$5+'Cash Flows'!$BX$6+INDEX('Cash Flows'!$C$17:$BW$17,1,MATCH(EOMONTH(AK31,MOD(-MONTH(AK31),3)-3),'Cash Flows'!$C$4:$BW$4,0)))-$AA$5)/$E$13))),IF(AO31=0,"",AO31)) ->  | AS31: =IF($E$5="Uniform Inputs",IF($Z31>$E$14,"",IF($E$23="Pro-Rata",MIN(AU31*AN31,(($I$5+'Cash Flows'!$BX$6+INDEX('Cash Flows'!$C$17:$BW$17,1,MATCH(EOMONTH(AT31,MOD(-MONTH(AT31),3)-3),'Cash Flows'!$C$4:$BW$4,0)))-SUM($AJ$5,$AA$5))/$E$14),MIN($E$25,(($I$5+'Cash Flows'!$BX$6+INDEX('Cash Flows'!$C$17:$BW$17,1,MATCH(EOMONTH(AT31,MOD(-MONTH(AT31),3)-3),'Cash Flows'!$C$4:$BW$4,0)))-SUM($AJ$5,$AA$5))/$E$14))),IF(AX31=0,"",AX31)) ->  | BB31: =IF($E$5="Uniform Inputs",IF($Z31>$E$15,"",IF($E$23="Pro-Rata",MIN(BD31*AW31,(($I$5+'Cash Flows'!$BX$6+INDEX('Cash Flows'!$C$17:$BW$17,1,MATCH(EOMONTH(BC31,MOD(-MONTH(BC31),3)-3),'Cash Flows'!$C$4:$BW$4,0)))-SUM($AS$5,$AJ$5,$AA$5))/$E$15),MIN($E$26,(($I$5+'Cash Flows'!$BX$6+INDEX('Cash Flows'!$C$17:$BW$17,1,MATCH(EOMONTH(BC31,MOD(-MONTH(BC31),3)-3),'Cash Flows'!$C$4:$BW$4,0)))-SUM($AS$5,$AJ$5,$AA$5))/$E$15))),IF(BG31=0,"",BG31)) ->  | BK31: =IF($E$5="Uniform Inputs",IF($Z31>$E$16,"",IF($E$23="Pro-Rata",MIN(BM31*BF31,(($I$5+'Cash Flows'!$BX$6+INDEX('Cash Flows'!$C$17:$BW$17,1,MATCH(EOMONTH(BL31,MOD(-MONTH(BL31),3)-3),'Cash Flows'!$C$4:$BW$4,0)))-SUM($BB$5,$AS$5,$AJ$5,$AA$5))/$E$16),MIN($E$27,(($I$5+'Cash Flows'!$BX$6+INDEX('Cash Flows'!$C$17:$BW$17,1,MATCH(EOMONTH(BL31,MOD(-MONTH(BL31),3)-3),'Cash Flows'!$C$4:$BW$4,0)))-SUM($BB$5,$AS$5,$AJ$5,$AA$5))/$E$16))),IF(BP31=0,"",BP31)) -> 
B32: Hurdle: | D32: 1 | E32: 1 | Y32: 27 | AA32: =IF($E$5="Uniform Inputs",IF($Z32>$E$12,"",MIN($E$21,($I$5+'Cash Flows'!$BX$6+INDEX('Cash Flows'!$C$17:$BW$17,1,MATCH(EOMONTH(AB32,MOD(-MONTH(AB32),3)-3),'Cash Flows'!$C$4:$BW$4,0)))/$E$12)),IF(AF32>0,AF32,"")) ->  | AJ32: =IF($E$5="Uniform Inputs",IF($Z32>$E$13,"",IF($E$23="Pro-Rata",MIN(AL32*AE32,(($I$5+'Cash Flows'!$BX$6+INDEX('Cash Flows'!$C$17:$BW$17,1,MATCH(EOMONTH(AK32,MOD(-MONTH(AK32),3)-3),'Cash Flows'!$C$4:$BW$4,0)))-$AA$5)/$E$13),MIN($E$24,(($I$5+'Cash Flows'!$BX$6+INDEX('Cash Flows'!$C$17:$BW$17,1,MATCH(EOMONTH(AK32,MOD(-MONTH(AK32),3)-3),'Cash Flows'!$C$4:$BW$4,0)))-$AA$5)/$E$13))),IF(AO32=0,"",AO32)) ->  | AS32: =IF($E$5="Uniform Inputs",IF($Z32>$E$14,"",IF($E$23="Pro-Rata",MIN(AU32*AN32,(($I$5+'Cash Flows'!$BX$6+INDEX('Cash Flows'!$C$17:$BW$17,1,MATCH(EOMONTH(AT32,MOD(-MONTH(AT32),3)-3),'Cash Flows'!$C$4:$BW$4,0)))-SUM($AJ$5,$AA$5))/$E$14),MIN($E$25,(($I$5+'Cash Flows'!$BX$6+INDEX('Cash Flows'!$C$17:$BW$17,1,MATCH(EOMONTH(AT32,MOD(-MONTH(AT32),3)-3),'Cash Flows'!$C$4:$BW$4,0)))-SUM($AJ$5,$AA$5))/$E$14))),IF(AX32=0,"",AX32)) ->  | BB32: =IF($E$5="Uniform Inputs",IF($Z32>$E$15,"",IF($E$23="Pro-Rata",MIN(BD32*AW32,(($I$5+'Cash Flows'!$BX$6+INDEX('Cash Flows'!$C$17:$BW$17,1,MATCH(EOMONTH(BC32,MOD(-MONTH(BC32),3)-3),'Cash Flows'!$C$4:$BW$4,0)))-SUM($AS$5,$AJ$5,$AA$5))/$E$15),MIN($E$26,(($I$5+'Cash Flows'!$BX$6+INDEX('Cash Flows'!$C$17:$BW$17,1,MATCH(EOMONTH(BC32,MOD(-MONTH(BC32),3)-3),'Cash Flows'!$C$4:$BW$4,0)))-SUM($AS$5,$AJ$5,$AA$5))/$E$15))),IF(BG32=0,"",BG32)) ->  | BK32: =IF($E$5="Uniform Inputs",IF($Z32>$E$16,"",IF($E$23="Pro-Rata",MIN(BM32*BF32,(($I$5+'Cash Flows'!$BX$6+INDEX('Cash Flows'!$C$17:$BW$17,1,MATCH(EOMONTH(BL32,MOD(-MONTH(BL32),3)-3),'Cash Flows'!$C$4:$BW$4,0)))-SUM($BB$5,$AS$5,$AJ$5,$AA$5))/$E$16),MIN($E$27,(($I$5+'Cash Flows'!$BX$6+INDEX('Cash Flows'!$C$17:$BW$17,1,MATCH(EOMONTH(BL32,MOD(-MONTH(BL32),3)-3),'Cash Flows'!$C$4:$BW$4,0)))-SUM($BB$5,$AS$5,$AJ$5,$AA$5))/$E$16))),IF(BP32=0,"",BP32)) -> 
B33: Carried Interest: | D33: 0.2 | E33: 0.2 | G33: Annual Cash Flows | Y33: 28 | AA33: =IF($E$5="Uniform Inputs",IF($Z33>$E$12,"",MIN($E$21,($I$5+'Cash Flows'!$BX$6+INDEX('Cash Flows'!$C$17:$BW$17,1,MATCH(EOMONTH(AB33,MOD(-MONTH(AB33),3)-3),'Cash Flows'!$C$4:$BW$4,0)))/$E$12)),IF(AF33>0,AF33,"")) ->  | AJ33: =IF($E$5="Uniform Inputs",IF($Z33>$E$13,"",IF($E$23="Pro-Rata",MIN(AL33*AE33,(($I$5+'Cash Flows'!$BX$6+INDEX('Cash Flows'!$C$17:$BW$17,1,MATCH(EOMONTH(AK33,MOD(-MONTH(AK33),3)-3),'Cash Flows'!$C$4:$BW$4,0)))-$AA$5)/$E$13),MIN($E$24,(($I$5+'Cash Flows'!$BX$6+INDEX('Cash Flows'!$C$17:$BW$17,1,MATCH(EOMONTH(AK33,MOD(-MONTH(AK33),3)-3),'Cash Flows'!$C$4:$BW$4,0)))-$AA$5)/$E$13))),IF(AO33=0,"",AO33)) ->  | AS33: =IF($E$5="Uniform Inputs",IF($Z33>$E$14,"",IF($E$23="Pro-Rata",MIN(AU33*AN33,(($I$5+'Cash Flows'!$BX$6+INDEX('Cash Flows'!$C$17:$BW$17,1,MATCH(EOMONTH(AT33,MOD(-MONTH(AT33),3)-3),'Cash Flows'!$C$4:$BW$4,0)))-SUM($AJ$5,$AA$5))/$E$14),MIN($E$25,(($I$5+'Cash Flows'!$BX$6+INDEX('Cash Flows'!$C$17:$BW$17,1,MATCH(EOMONTH(AT33,MOD(-MONTH(AT33),3)-3),'Cash Flows'!$C$4:$BW$4,0)))-SUM($AJ$5,$AA$5))/$E$14))),IF(AX33=0,"",AX33)) ->  | BB33: =IF($E$5="Uniform Inputs",IF($Z33>$E$15,"",IF($E$23="Pro-Rata",MIN(BD33*AW33,(($I$5+'Cash Flows'!$BX$6+INDEX('Cash Flows'!$C$17:$BW$17,1,MATCH(EOMONTH(BC33,MOD(-MONTH(BC33),3)-3),'Cash Flows'!$C$4:$BW$4,0)))-SUM($AS$5,$AJ$5,$AA$5))/$E$15),MIN($E$26,(($I$5+'Cash Flows'!$BX$6+INDEX('Cash Flows'!$C$17:$BW$17,1,MATCH(EOMONTH(BC33,MOD(-MONTH(BC33),3)-3),'Cash Flows'!$C$4:$BW$4,0)))-SUM($AS$5,$AJ$5,$AA$5))/$E$15))),IF(BG33=0,"",BG33)) ->  | BK33: =IF($E$5="Uniform Inputs",IF($Z33>$E$16,"",IF($E$23="Pro-Rata",MIN(BM33*BF33,(($I$5+'Cash Flows'!$BX$6+INDEX('Cash Flows'!$C$17:$BW$17,1,MATCH(EOMONTH(BL33,MOD(-MONTH(BL33),3)-3),'Cash Flows'!$C$4:$BW$4,0)))-SUM($BB$5,$AS$5,$AJ$5,$AA$5))/$E$16),MIN($E$27,(($I$5+'Cash Flows'!$BX$6+INDEX('Cash Flows'!$C$17:$BW$17,1,MATCH(EOMONTH(BL33,MOD(-MONTH(BL33),3)-3),'Cash Flows'!$C$4:$BW$4,0)))-SUM($BB$5,$AS$5,$AJ$5,$AA$5))/$E$16))),IF(BP33=0,"",BP33)) -> 
B34: GP Catchup | D34: N/A | E34: 0.5 | H34: Capital Calls | I34: Distributions | Y34: 29 | AA34: =IF($E$5="Uniform Inputs",IF($Z34>$E$12,"",MIN($E$21,($I$5+'Cash Flows'!$BX$6+INDEX('Cash Flows'!$C$17:$BW$17,1,MATCH(EOMONTH(AB34,MOD(-MONTH(AB34),3)-3),'Cash Flows'!$C$4:$BW$4,0)))/$E$12)),IF(AF34>0,AF34,"")) ->  | AJ34: =IF($E$5="Uniform Inputs",IF($Z34>$E$13,"",IF($E$23="Pro-Rata",MIN(AL34*AE34,(($I$5+'Cash Flows'!$BX$6+INDEX('Cash Flows'!$C$17:$BW$17,1,MATCH(EOMONTH(AK34,MOD(-MONTH(AK34),3)-3),'Cash Flows'!$C$4:$BW$4,0)))-$AA$5)/$E$13),MIN($E$24,(($I$5+'Cash Flows'!$BX$6+INDEX('Cash Flows'!$C$17:$BW$17,1,MATCH(EOMONTH(AK34,MOD(-MONTH(AK34),3)-3),'Cash Flows'!$C$4:$BW$4,0)))-$AA$5)/$E$13))),IF(AO34=0,"",AO34)) ->  | AS34: =IF($E$5="Uniform Inputs",IF($Z34>$E$14,"",IF($E$23="Pro-Rata",MIN(AU34*AN34,(($I$5+'Cash Flows'!$BX$6+INDEX('Cash Flows'!$C$17:$BW$17,1,MATCH(EOMONTH(AT34,MOD(-MONTH(AT34),3)-3),'Cash Flows'!$C$4:$BW$4,0)))-SUM($AJ$5,$AA$5))/$E$14),MIN($E$25,(($I$5+'Cash Flows'!$BX$6+INDEX('Cash Flows'!$C$17:$BW$17,1,MATCH(EOMONTH(AT34,MOD(-MONTH(AT34),3)-3),'Cash Flows'!$C$4:$BW$4,0)))-SUM($AJ$5,$AA$5))/$E$14))),IF(AX34=0,"",AX34)) ->  | BB34: =IF($E$5="Uniform Inputs",IF($Z34>$E$15,"",IF($E$23="Pro-Rata",MIN(BD34*AW34,(($I$5+'Cash Flows'!$BX$6+INDEX('Cash Flows'!$C$17:$BW$17,1,MATCH(EOMONTH(BC34,MOD(-MONTH(BC34),3)-3),'Cash Flows'!$C$4:$BW$4,0)))-SUM($AS$5,$AJ$5,$AA$5))/$E$15),MIN($E$26,(($I$5+'Cash Flows'!$BX$6+INDEX('Cash Flows'!$C$17:$BW$17,1,MATCH(EOMONTH(BC34,MOD(-MONTH(BC34),3)-3),'Cash Flows'!$C$4:$BW$4,0)))-SUM($AS$5,$AJ$5,$AA$5))/$E$15))),IF(BG34=0,"",BG34)) ->  | BK34: =IF($E$5="Uniform Inputs",IF($Z34>$E$16,"",IF($E$23="Pro-Rata",MIN(BM34*BF34,(($I$5+'Cash Flows'!$BX$6+INDEX('Cash Flows'!$C$17:$BW$17,1,MATCH(EOMONTH(BL34,MOD(-MONTH(BL34),3)-3),'Cash Flows'!$C$4:$BW$4,0)))-SUM($BB$5,$AS$5,$AJ$5,$AA$5))/$E$16),MIN($E$27,(($I$5+'Cash Flows'!$BX$6+INDEX('Cash Flows'!$C$17:$BW$17,1,MATCH(EOMONTH(BL34,MOD(-MONTH(BL34),3)-3),'Cash Flows'!$C$4:$BW$4,0)))-SUM($BB$5,$AS$5,$AJ$5,$AA$5))/$E$16))),IF(BP34=0,"",BP34)) -> 
B35: Management Fee: | E35: 0.02 | G35: 1 | H35: =SUMIF('Cash Flows'!$C$2:$BW$2,Model!$G35,'Cash Flows'!$C$8:$BW$8)/'Cash Flows'!$BX$8 -> 0.26 | I35: =SUMIF('Cash Flows'!$C$2:$BW$2,Model!$G35,'Cash Flows'!$C$11:$BW$11)/-'Cash Flows'!$BX$8 -> 0 | Y35: 30 | AA35: =IF($E$5="Uniform Inputs",IF($Z35>$E$12,"",MIN($E$21,($I$5+'Cash Flows'!$BX$6+INDEX('Cash Flows'!$C$17:$BW$17,1,MATCH(EOMONTH(AB35,MOD(-MONTH(AB35),3)-3),'Cash Flows'!$C$4:$BW$4,0)))/$E$12)),IF(AF35>0,AF35,"")) ->  | AJ35: =IF($E$5="Uniform Inputs",IF($Z35>$E$13,"",IF($E$23="Pro-Rata",MIN(AL35*AE35,(($I$5+'Cash Flows'!$BX$6+INDEX('Cash Flows'!$C$17:$BW$17,1,MATCH(EOMONTH(AK35,MOD(-MONTH(AK35),3)-3),'Cash Flows'!$C$4:$BW$4,0)))-$AA$5)/$E$13),MIN($E$24,(($I$5+'Cash Flows'!$BX$6+INDEX('Cash Flows'!$C$17:$BW$17,1,MATCH(EOMONTH(AK35,MOD(-MONTH(AK35),3)-3),'Cash Flows'!$C$4:$BW$4,0)))-$AA$5)/$E$13))),IF(AO35=0,"",AO35)) ->  | AS35: =IF($E$5="Uniform Inputs",IF($Z35>$E$14,"",IF($E$23="Pro-Rata",MIN(AU35*AN35,(($I$5+'Cash Flows'!$BX$6+INDEX('Cash Flows'!$C$17:$BW$17,1,MATCH(EOMONTH(AT35,MOD(-MONTH(AT35),3)-3),'Cash Flows'!$C$4:$BW$4,0)))-SUM($AJ$5,$AA$5))/$E$14),MIN($E$25,(($I$5+'Cash Flows'!$BX$6+INDEX('Cash Flows'!$C$17:$BW$17,1,MATCH(EOMONTH(AT35,MOD(-MONTH(AT35),3)-3),'Cash Flows'!$C$4:$BW$4,0)))-SUM($AJ$5,$AA$5))/$E$14))),IF(AX35=0,"",AX35)) ->  | BB35: =IF($E$5="Uniform Inputs",IF($Z35>$E$15,"",IF($E$23="Pro-Rata",MIN(BD35*AW35,(($I$5+'Cash Flows'!$BX$6+INDEX('Cash Flows'!$C$17:$BW$17,1,MATCH(EOMONTH(BC35,MOD(-MONTH(BC35),3)-3),'Cash Flows'!$C$4:$BW$4,0)))-SUM($AS$5,$AJ$5,$AA$5))/$E$15),MIN($E$26,(($I$5+'Cash Flows'!$BX$6+INDEX('Cash Flows'!$C$17:$BW$17,1,MATCH(EOMONTH(BC35,MOD(-MONTH(BC35),3)-3),'Cash Flows'!$C$4:$BW$4,0)))-SUM($AS$5,$AJ$5,$AA$5))/$E$15))),IF(BG35=0,"",BG35)) ->  | BK35: =IF($E$5="Uniform Inputs",IF($Z35>$E$16,"",IF($E$23="Pro-Rata",MIN(BM35*BF35,(($I$5+'Cash Flows'!$BX$6+INDEX('Cash Flows'!$C$17:$BW$17,1,MATCH(EOMONTH(BL35,MOD(-MONTH(BL35),3)-3),'Cash Flows'!$C$4:$BW$4,0)))-SUM($BB$5,$AS$5,$AJ$5,$AA$5))/$E$16),MIN($E$27,(($I$5+'Cash Flows'!$BX$6+INDEX('Cash Flows'!$C$17:$BW$17,1,MATCH(EOMONTH(BL35,MOD(-MONTH(BL35),3)-3),'Cash Flows'!$C$4:$BW$4,0)))-SUM($BB$5,$AS$5,$AJ$5,$AA$5))/$E$16))),IF(BP35=0,"",BP35)) -> 
B36: Step Down Rate (per qtr after inv. period) | E36: 0.00125 | G36: 2 | H36: =SUMIF('Cash Flows'!$C$2:$BW$2,Model!$G36,'Cash Flows'!$C$8:$BW$8)/'Cash Flows'!$BX$8 -> 0.3909090909 | I36: =SUMIF('Cash Flows'!$C$2:$BW$2,Model!$G36,'Cash Flows'!$C$11:$BW$11)/-'Cash Flows'!$BX$8 -> 0 | Y36: 31 | AA36: =IF($E$5="Uniform Inputs",IF($Z36>$E$12,"",MIN($E$21,($I$5+'Cash Flows'!$BX$6+INDEX('Cash Flows'!$C$17:$BW$17,1,MATCH(EOMONTH(AB36,MOD(-MONTH(AB36),3)-3),'Cash Flows'!$C$4:$BW$4,0)))/$E$12)),IF(AF36>0,AF36,"")) ->  | AJ36: =IF($E$5="Uniform Inputs",IF($Z36>$E$13,"",IF($E$23="Pro-Rata",MIN(AL36*AE36,(($I$5+'Cash Flows'!$BX$6+INDEX('Cash Flows'!$C$17:$BW$17,1,MATCH(EOMONTH(AK36,MOD(-MONTH(AK36),3)-3),'Cash Flows'!$C$4:$BW$4,0)))-$AA$5)/$E$13),MIN($E$24,(($I$5+'Cash Flows'!$BX$6+INDEX('Cash Flows'!$C$17:$BW$17,1,MATCH(EOMONTH(AK36,MOD(-MONTH(AK36),3)-3),'Cash Flows'!$C$4:$BW$4,0)))-$AA$5)/$E$13))),IF(AO36=0,"",AO36)) ->  | AS36: =IF($E$5="Uniform Inputs",IF($Z36>$E$14,"",IF($E$23="Pro-Rata",MIN(AU36*AN36,(($I$5+'Cash Flows'!$BX$6+INDEX('Cash Flows'!$C$17:$BW$17,1,MATCH(EOMONTH(AT36,MOD(-MONTH(AT36),3)-3),'Cash Flows'!$C$4:$BW$4,0)))-SUM($AJ$5,$AA$5))/$E$14),MIN($E$25,(($I$5+'Cash Flows'!$BX$6+INDEX('Cash Flows'!$C$17:$BW$17,1,MATCH(EOMONTH(AT36,MOD(-MONTH(AT36),3)-3),'Cash Flows'!$C$4:$BW$4,0)))-SUM($AJ$5,$AA$5))/$E$14))),IF(AX36=0,"",AX36)) ->  | BB36: =IF($E$5="Uniform Inputs",IF($Z36>$E$15,"",IF($E$23="Pro-Rata",MIN(BD36*AW36,(($I$5+'Cash Flows'!$BX$6+INDEX('Cash Flows'!$C$17:$BW$17,1,MATCH(EOMONTH(BC36,MOD(-MONTH(BC36),3)-3),'Cash Flows'!$C$4:$BW$4,0)))-SUM($AS$5,$AJ$5,$AA$5))/$E$15),MIN($E$26,(($I$5+'Cash Flows'!$BX$6+INDEX('Cash Flows'!$C$17:$BW$17,1,MATCH(EOMONTH(BC36,MOD(-MONTH(BC36),3)-3),'Cash Flows'!$C$4:$BW$4,0)))-SUM($AS$5,$AJ$5,$AA$5))/$E$15))),IF(BG36=0,"",BG36)) ->  | BK36: =IF($E$5="Uniform Inputs",IF($Z36>$E$16,"",IF($E$23="Pro-Rata",MIN(BM36*BF36,(($I$5+'Cash Flows'!$BX$6+INDEX('Cash Flows'!$C$17:$BW$17,1,MATCH(EOMONTH(BL36,MOD(-MONTH(BL36),3)-3),'Cash Flows'!$C$4:$BW$4,0)))-SUM($BB$5,$AS$5,$AJ$5,$AA$5))/$E$16),MIN($E$27,(($I$5+'Cash Flows'!$BX$6+INDEX('Cash Flows'!$C$17:$BW$17,1,MATCH(EOMONTH(BL36,MOD(-MONTH(BL36),3)-3),'Cash Flows'!$C$4:$BW$4,0)))-SUM($BB$5,$AS$5,$AJ$5,$AA$5))/$E$16))),IF(BP36=0,"",BP36)) -> 
B37: Management Fee Floor | E37: 0.01 | G37: 3 | H37: =SUMIF('Cash Flows'!$C$2:$BW$2,Model!$G37,'Cash Flows'!$C$8:$BW$8)/'Cash Flows'!$BX$8 -> 0.1709090909 | I37: =SUMIF('Cash Flows'!$C$2:$BW$2,Model!$G37,'Cash Flows'!$C$11:$BW$11)/-'Cash Flows'!$BX$8 -> 0 | Y37: 32 | AA37: =IF($E$5="Uniform Inputs",IF($Z37>$E$12,"",MIN($E$21,($I$5+'Cash Flows'!$BX$6+INDEX('Cash Flows'!$C$17:$BW$17,1,MATCH(EOMONTH(AB37,MOD(-MONTH(AB37),3)-3),'Cash Flows'!$C$4:$BW$4,0)))/$E$12)),IF(AF37>0,AF37,"")) ->  | AJ37: =IF($E$5="Uniform Inputs",IF($Z37>$E$13,"",IF($E$23="Pro-Rata",MIN(AL37*AE37,(($I$5+'Cash Flows'!$BX$6+INDEX('Cash Flows'!$C$17:$BW$17,1,MATCH(EOMONTH(AK37,MOD(-MONTH(AK37),3)-3),'Cash Flows'!$C$4:$BW$4,0)))-$AA$5)/$E$13),MIN($E$24,(($I$5+'Cash Flows'!$BX$6+INDEX('Cash Flows'!$C$17:$BW$17,1,MATCH(EOMONTH(AK37,MOD(-MONTH(AK37),3)-3),'Cash Flows'!$C$4:$BW$4,0)))-$AA$5)/$E$13))),IF(AO37=0,"",AO37)) ->  | AS37: =IF($E$5="Uniform Inputs",IF($Z37>$E$14,"",IF($E$23="Pro-Rata",MIN(AU37*AN37,(($I$5+'Cash Flows'!$BX$6+INDEX('Cash Flows'!$C$17:$BW$17,1,MATCH(EOMONTH(AT37,MOD(-MONTH(AT37),3)-3),'Cash Flows'!$C$4:$BW$4,0)))-SUM($AJ$5,$AA$5))/$E$14),MIN($E$25,(($I$5+'Cash Flows'!$BX$6+INDEX('Cash Flows'!$C$17:$BW$17,1,MATCH(EOMONTH(AT37,MOD(-MONTH(AT37),3)-3),'Cash Flows'!$C$4:$BW$4,0)))-SUM($AJ$5,$AA$5))/$E$14))),IF(AX37=0,"",AX37)) ->  | BB37: =IF($E$5="Uniform Inputs",IF($Z37>$E$15,"",IF($E$23="Pro-Rata",MIN(BD37*AW37,(($I$5+'Cash Flows'!$BX$6+INDEX('Cash Flows'!$C$17:$BW$17,1,MATCH(EOMONTH(BC37,MOD(-MONTH(BC37),3)-3),'Cash Flows'!$C$4:$BW$4,0)))-SUM($AS$5,$AJ$5,$AA$5))/$E$15),MIN($E$26,(($I$5+'Cash Flows'!$BX$6+INDEX('Cash Flows'!$C$17:$BW$17,1,MATCH(EOMONTH(BC37,MOD(-MONTH(BC37),3)-3),'Cash Flows'!$C$4:$BW$4,0)))-SUM($AS$5,$AJ$5,$AA$5))/$E$15))),IF(BG37=0,"",BG37)) ->  | BK37: =IF($E$5="Uniform Inputs",IF($Z37>$E$16,"",IF($E$23="Pro-Rata",MIN(BM37*BF37,(($I$5+'Cash Flows'!$BX$6+INDEX('Cash Flows'!$C$17:$BW$17,1,MATCH(EOMONTH(BL37,MOD(-MONTH(BL37),3)-3),'Cash Flows'!$C$4:$BW$4,0)))-SUM($BB$5,$AS$5,$AJ$5,$AA$5))/$E$16),MIN($E$27,(($I$5+'Cash Flows'!$BX$6+INDEX('Cash Flows'!$C$17:$BW$17,1,MATCH(EOMONTH(BL37,MOD(-MONTH(BL37),3)-3),'Cash Flows'!$C$4:$BW$4,0)))-SUM($BB$5,$AS$5,$AJ$5,$AA$5))/$E$16))),IF(BP37=0,"",BP37)) -> 
B38: Fund Life | E38: 10 | G38: 4 | H38: =SUMIF('Cash Flows'!$C$2:$BW$2,Model!$G38,'Cash Flows'!$C$8:$BW$8)/'Cash Flows'!$BX$8 -> 0.09943181818 | I38: =SUMIF('Cash Flows'!$C$2:$BW$2,Model!$G38,'Cash Flows'!$C$11:$BW$11)/-'Cash Flows'!$BX$8 -> 0 | P38: =IF(AA38="",IF(AJ38="",IF(AS38="",IF(BB38="",IF(BK38="","",$BK$3),$BB$3),$AS$3),$AJ$3),$AA$3) ->  | Q38: =IF($E$5="Uniform Inputs",AE38,IF(P38=$AA$3,AE38,IF(P38=$AJ$3,AN38,IF(P38=$AS$3,AW38,IF(P38=$BB$3,BF38,IF(P38=$BK$3,BO38,"")))))) ->  | R38: =IFERROR(OFFSET($Z$6,MATCH($K38,$Z$6:$Z$105,0)-1,MATCH($M38,$AA$3:$CY$3,0)+4),"") ->  | T38: =IFERROR(IF($E$5="Uniform Inputs",OFFSET($Z$6,MATCH($K38,$Z$6:$Z$105,0)-1,MATCH($M38,$AA$3:$CY$3,0)+1)+(365*$E$28),OFFSET($Z$6,MATCH($K38,$Z$6:$Z$105,0)-1,MATCH($M38,$AA$3:$CY$3,0)+6)+(365*$E$28)),"") ->  | V38: =IFERROR(R38*L38,"") ->  | Y38: 33 | AA38: =IF($E$5="Uniform Inputs",IF($Z38>$E$12,"",MIN($E$21,($I$5+'Cash Flows'!$BX$6+INDEX('Cash Flows'!$C$17:$BW$17,1,MATCH(EOMONTH(AB38,MOD(-MONTH(AB38),3)-3),'Cash Flows'!$C$4:$BW$4,0)))/$E$12)),IF(AF38>0,AF38,"")) ->  | AC38: =IFERROR(IF($Z38>$E$12,"",IF($E$5="Uniform Inputs",INDEX($D$44:$E$52,MATCH($AA$3,$B$44:$B$52,0),MATCH(AC$4,$D$43:$E$43,0)),IF(AH38=0,"",AH38))),"") ->  | AD38: =IFERROR(IF($Z38>$E$12,"",IF($E$5="Uniform Inputs",INDEX($D$44:$E$52,MATCH($AA$3,$B$44:$B$52,0),MATCH(AD$4,$D$43:$E$43,0)),IF(AI38=0,"",AI38))),"") ->  | AJ38: =IF($E$5="Uniform Inputs",IF($Z38>$E$13,"",IF($E$23="Pro-Rata",MIN(AL38*AE38,(($I$5+'Cash Flows'!$BX$6+INDEX('Cash Flows'!$C$17:$BW$17,1,MATCH(EOMONTH(AK38,MOD(-MONTH(AK38),3)-3),'Cash Flows'!$C$4:$BW$4,0)))-$AA$5)/$E$13),MIN($E$24,(($I$5+'Cash Flows'!$BX$6+INDEX('Cash Flows'!$C$17:$BW$17,1,MATCH(EOMONTH(AK38,MOD(-MONTH(AK38),3)-3),'Cash Flows'!$C$4:$BW$4,0)))-$AA$5)/$E$13))),IF(AO38=0,"",AO38)) ->  | AK38: =IF($E$5="Uniform Inputs",IF($Z38>$E$12,"",AB38+(365*$E$28)),IF(AP38=0,"",AP38)) ->  | AL38: =IFERROR(IF($Z38>$E$12,"",IF($E$5="Uniform Inputs",INDEX($D$44:$E$52,MATCH($AJ$3,$B$44:$B$52,0),MATCH(AL$4,$D$43:$E$43,0)),IF(AQ38=0,"",AQ38))),"") ->  | AM38: =IFERROR(IF($Z38>$E$12,"",IF($E$5="Uniform Inputs",INDEX($D$44:$E$52,MATCH($AJ$3,$B$44:$B$52,0),MATCH(AM$4,$D$43:$E$43,0)),IF(AR38=0,"",AR38))),"") ->  | AN38: =IFERROR(IF($E$5="Uniform Inputs",(AE38*(AM38-AL38)+IF(AJ38="",0,AJ38))/AM38,IF(AE38="",AJ38/AM38,(AE38*(AM38-AL38)+IF(AJ38="",0,AJ38))/AM38)),"") ->  | AS38: =IF($E$5="Uniform Inputs",IF($Z38>$E$14,"",IF($E$23="Pro-Rata",MIN(AU38*AN38,(($I$5+'Cash Flows'!$BX$6+INDEX('Cash Flows'!$C$17:$BW$17,1,MATCH(EOMONTH(AT38,MOD(-MONTH(AT38),3)-3),'Cash Flows'!$C$4:$BW$4,0)))-SUM($AJ$5,$AA$5))/$E$14),MIN($E$25,(($I$5+'Cash Flows'!$BX$6+INDEX('Cash Flows'!$C$17:$BW$17,1,MATCH(EOMONTH(AT38,MOD(-MONTH(AT38),3)-3),'Cash Flows'!$C$4:$BW$4,0)))-SUM($AJ$5,$AA$5))/$E$14))),IF(AX38=0,"",AX38)) ->  | AT38: =IF($E$5="Uniform Inputs",IF($Z38>$E$12,"",AK38+(365*$E$28)),IF(AY38=0,"",AY38)) ->  | AU38: =IFERROR(IF($Z38>$E$12,"",IF($E$5="Uniform Inputs",INDEX($D$44:$E$52,MATCH($AS$3,$B$44:$B$52,0),MATCH(AU$4,$D$43:$E$43,0)),IF(AZ38=0,"",AZ38))),"") ->  | AV38: =IFERROR(IF($Z38>$E$12,"",IF($E$5="Uniform Inputs",INDEX($D$44:$E$52,MATCH($AS$3,$B$44:$B$52,0),MATCH(AV$4,$D$43:$E$43,0)),IF(BA38=0,"",BA38))),"") ->  | AW38: =IFERROR(IF($E$5="Uniform Inputs",(AN38*(AV38-AU38)+IF(AS38="",0,AS38))/AV38,IF(AN38="",AS38/AV38,(AN38*(AV38-AU38)+IF(AS38="",0,AS38))/AV38)),"") ->  | BB38: =IF($E$5="Uniform Inputs",IF($Z38>$E$15,"",IF($E$23="Pro-Rata",MIN(BD38*AW38,(($I$5+'Cash Flows'!$BX$6+INDEX('Cash Flows'!$C$17:$BW$17,1,MATCH(EOMONTH(BC38,MOD(-MONTH(BC38),3)-3),'Cash Flows'!$C$4:$BW$4,0)))-SUM($AS$5,$AJ$5,$AA$5))/$E$15),MIN($E$26,(($I$5+'Cash Flows'!$BX$6+INDEX('Cash Flows'!$C$17:$BW$17,1,MATCH(EOMONTH(BC38,MOD(-MONTH(BC38),3)-3),'Cash Flows'!$C$4:$BW$4,0)))-SUM($AS$5,$AJ$5,$AA$5))/$E$15))),IF(BG38=0,"",BG38)) ->  | BC38: =IF($E$5="Uniform Inputs",IF($Z38>$E$12,"",AT38+(365*$E$28)),IF(BH38=0,"",BH38)) ->  | BD38: =IFERROR(IF($Z38>$E$12,"",IF($E$5="Uniform Inputs",INDEX($D$44:$E$52,MATCH($BB$3,$B$44:$B$52,0),MATCH(BD$4,$D$43:$E$43,0)),IF(BI38=0,"",BI38))),"") ->  | BE38: =IFERROR(IF($Z38>$E$12,"",IF($E$5="Uniform Inputs",INDEX($D$44:$E$52,MATCH($BB$3,$B$44:$B$52,0),MATCH(BE$4,$D$43:$E$43,0)),IF(BJ38=0,"",BJ38))),"") ->  | BF38: =IFERROR(IF($E$5="Uniform Inputs",(AW38*(BE38-BD38)+IF(BB38="",0,BB38))/BE38,IF(AW38="",BB38/BE38,(AW38*(BE38-BD38)+IF(BB38="",0,BB38))/BE38)),"") ->  | BK38: =IF($E$5="Uniform Inputs",IF($Z38>$E$16,"",IF($E$23="Pro-Rata",MIN(BM38*BF38,(($I$5+'Cash Flows'!$BX$6+INDEX('Cash Flows'!$C$17:$BW$17,1,MATCH(EOMONTH(BL38,MOD(-MONTH(BL38),3)-3),'Cash Flows'!$C$4:$BW$4,0)))-SUM($BB$5,$AS$5,$AJ$5,$AA$5))/$E$16),MIN($E$27,(($I$5+'Cash Flows'!$BX$6+INDEX('Cash Flows'!$C$17:$BW$17,1,MATCH(EOMONTH(BL38,MOD(-MONTH(BL38),3)-3),'Cash Flows'!$C$4:$BW$4,0)))-SUM($BB$5,$AS$5,$AJ$5,$AA$5))/$E$16))),IF(BP38=0,"",BP38)) ->  | BL38: =IF($E$5="Uniform Inputs",IF($Z38>$E$12,"",BC38+(365*$E$28)),IF(BQ38=0,"",BQ38)) ->  | BM38: =IFERROR(IF($Z38>$E$12,"",IF($E$5="Uniform Inputs",INDEX($D$44:$E$52,MATCH($BK$3,$B$44:$B$52,0),MATCH(BM$4,$D$43:$E$43,0)),IF(BR38=0,"",BR38))),"") ->  | BN38: =IFERROR(IF($Z38>$E$12,"",IF($E$5="Uniform Inputs",INDEX($D$44:$E$52,MATCH($BK$3,$B$44:$B$52,0),MATCH(BN$4,$D$43:$E$43,0)),IF(BS38=0,"",BS38))),"") ->  | BO38: =IFERROR(IF($E$5="Uniform Inputs",(BF38*(BN38-BM38)+IF(BK38="",0,BK38))/BN38,IF(BF38="",BK38/BN38,(BF38*(BN38-BM38)+IF(BK38="",0,BK38))/BN38)),"") ->  | BU38: =IF($E$5="Uniform Inputs",IF($Z38>$E$12,"",BL38+(365*$E$28)),IF(BZ38=0,"",BZ38)) ->  | BV38: =IFERROR(IF($Z38>$E$12,"",IF($E$5="Uniform Inputs",INDEX($D$44:$E$52,MATCH($BT$3,$B$44:$B$52,0),MATCH(BV$4,$D$43:$E$43,0)),IF(CA38=0,"",CA38))),"") ->  | BW38: =IFERROR(IF($Z38>$E$12,"",IF($E$5="Uniform Inputs",INDEX($D$44:$E$52,MATCH($BT$3,$B$44:$B$52,0),MATCH(BW$4,$D$43:$E$43,0)),IF(CB38=0,"",CB38))),"") ->  | BX38: =IFERROR(IF($E$5="Uniform Inputs",(BO38*(BW38-BV38)+IF(BT38="",0,BT38))/BW38,IF(BO38="",BT38/BW38,(BO38*(BW38-BV38)+IF(BT38="",0,BT38))/BW38)),"") ->  | CD38: =IF($E$5="Uniform Inputs",IF($Z38>$E$12,"",BU38+(365*$E$28)),IF(CI38=0,"",CI38)) ->  | CE38: =IFERROR(IF($Z38>$E$12,"",IF($E$5="Uniform Inputs",INDEX($D$44:$E$52,MATCH($CC$3,$B$44:$B$52,0),MATCH(CE$4,$D$43:$E$43,0)),IF(CJ38=0,"",CJ38))),"") ->  | CF38: =IFERROR(IF($Z38>$E$12,"",IF($E$5="Uniform Inputs",INDEX($D$44:$E$52,MATCH($CC$3,$B$44:$B$52,0),MATCH(CF$4,$D$43:$E$43,0)),IF(CK38=0,"",CK38))),"") ->  | CG38: =IFERROR(IF($E$5="Uniform Inputs",(BX38*(CF38-CE38)+IF(CC38="",0,CC38))/CF38,IF(BX38="",CC38/CF38,(BX38*(CF38-CE38)+IF(CC38="",0,CC38))/CF38)),"") ->  | CM38: =IF($E$5="Uniform Inputs",IF($Z38>$E$12,"",CD38+(365*$E$28)),IF(CR38=0,"",CR38)) ->  | CN38: =IFERROR(IF($Z38>$E$12,"",IF($E$5="Uniform Inputs",INDEX($D$44:$E$52,MATCH($CL$3,$B$44:$B$52,0),MATCH(CN$4,$D$43:$E$43,0)),IF(CS38=0,"",CS38))),"") ->  | CO38: =IFERROR(IF($Z38>$E$12,"",IF($E$5="Uniform Inputs",INDEX($D$44:$E$52,MATCH($CL$3,$B$44:$B$52,0),MATCH(CO$4,$D$43:$E$43,0)),IF(CT38=0,"",CT38))),"") ->  | CP38: =IFERROR(IF($E$5="Uniform Inputs",(CG38*(CO38-CN38)+IF(CL38="",0,CL38))/CO38,IF(CG38="",CL38/CO38,(CG38*(CO38-CN38)+IF(CL38="",0,CL38))/CO38)),"") ->  | CV38: =IF($E$5="Uniform Inputs",IF($Z38>$E$12,"",CM38+(365*$E$28)),IF(DA38=0,"",DA38)) ->  | CW38: =IFERROR(IF($Z38>$E$12,"",IF($E$5="Uniform Inputs",INDEX($D$44:$E$52,MATCH($CU$3,$B$44:$B$52,0),MATCH(CW$4,$D$43:$E$43,0)),IF(DB38=0,"",DB38))),"") ->  | CX38: =IFERROR(IF($Z38>$E$12,"",IF($E$5="Uniform Inputs",INDEX($D$44:$E$52,MATCH($CU$3,$B$44:$B$52,0),MATCH(CX$4,$D$43:$E$43,0)),IF(DC38=0,"",DC38))),"") ->  | CY38: =IFERROR(IF($E$5="Uniform Inputs",(CP38*(CX38-CW38)+IF(CU38="",0,CU38))/CX38,IF(CP38="",CU38/CX38,(CP38*(CX38-CW38)+IF(CU38="",0,CU38))/CX38)),"") -> 
B39: Investment Period | E39: 5 | G39: 5 | H39: =SUMIF('Cash Flows'!$C$2:$BW$2,Model!$G39,'Cash Flows'!$C$8:$BW$8)/'Cash Flows'!$BX$8 -> 0.02 | I39: =SUMIF('Cash Flows'!$C$2:$BW$2,Model!$G39,'Cash Flows'!$C$11:$BW$11)/-'Cash Flows'!$BX$8 -> 0 | Y39: 34 | AA39: =IF($E$5="Uniform Inputs",IF($Z39>$E$12,"",MIN($E$21,($I$5+'Cash Flows'!$BX$6+INDEX('Cash Flows'!$C$17:$BW$17,1,MATCH(EOMONTH(AB39,MOD(-MONTH(AB39),3)-3),'Cash Flows'!$C$4:$BW$4,0)))/$E$12)),IF(AF39>0,AF39,"")) ->  | AB39: =IF($E$5="Uniform Inputs",IF($Z39>$E$12,"",AB38+(30/$E$17)),IF(AG39="","",AG39)) ->  | AJ39: =IF($E$5="Uniform Inputs",IF($Z39>$E$13,"",IF($E$23="Pro-Rata",MIN(AL39*AE39,(($I$5+'Cash Flows'!$BX$6+INDEX('Cash Flows'!$C$17:$BW$17,1,MATCH(EOMONTH(AK39,MOD(-MONTH(AK39),3)-3),'Cash Flows'!$C$4:$BW$4,0)))-$AA$5)/$E$13),MIN($E$24,(($I$5+'Cash Flows'!$BX$6+INDEX('Cash Flows'!$C$17:$BW$17,1,MATCH(EOMONTH(AK39,MOD(-MONTH(AK39),3)-3),'Cash Flows'!$C$4:$BW$4,0)))-$AA$5)/$E$13))),IF(AO39=0,"",AO39)) ->  | AS39: =IF($E$5="Uniform Inputs",IF($Z39>$E$14,"",IF($E$23="Pro-Rata",MIN(AU39*AN39,(($I$5+'Cash Flows'!$BX$6+INDEX('Cash Flows'!$C$17:$BW$17,1,MATCH(EOMONTH(AT39,MOD(-MONTH(AT39),3)-3),'Cash Flows'!$C$4:$BW$4,0)))-SUM($AJ$5,$AA$5))/$E$14),MIN($E$25,(($I$5+'Cash Flows'!$BX$6+INDEX('Cash Flows'!$C$17:$BW$17,1,MATCH(EOMONTH(AT39,MOD(-MONTH(AT39),3)-3),'Cash Flows'!$C$4:$BW$4,0)))-SUM($AJ$5,$AA$5))/$E$14))),IF(AX39=0,"",AX39)) ->  | BB39: =IF($E$5="Uniform Inputs",IF($Z39>$E$15,"",IF($E$23="Pro-Rata",MIN(BD39*AW39,(($I$5+'Cash Flows'!$BX$6+INDEX('Cash Flows'!$C$17:$BW$17,1,MATCH(EOMONTH(BC39,MOD(-MONTH(BC39),3)-3),'Cash Flows'!$C$4:$BW$4,0)))-SUM($AS$5,$AJ$5,$AA$5))/$E$15),MIN($E$26,(($I$5+'Cash Flows'!$BX$6+INDEX('Cash Flows'!$C$17:$BW$17,1,MATCH(EOMONTH(BC39,MOD(-MONTH(BC39),3)-3),'Cash Flows'!$C$4:$BW$4,0)))-SUM($AS$5,$AJ$5,$AA$5))/$E$15))),IF(BG39=0,"",BG39)) ->  | BK39: =IF($E$5="Uniform Inputs",IF($Z39>$E$16,"",IF($E$23="Pro-Rata",MIN(BM39*BF39,(($I$5+'Cash Flows'!$BX$6+INDEX('Cash Flows'!$C$17:$BW$17,1,MATCH(EOMONTH(BL39,MOD(-MONTH(BL39),3)-3),'Cash Flows'!$C$4:$BW$4,0)))-SUM($BB$5,$AS$5,$AJ$5,$AA$5))/$E$16),MIN($E$27,(($I$5+'Cash Flows'!$BX$6+INDEX('Cash Flows'!$C$17:$BW$17,1,MATCH(EOMONTH(BL39,MOD(-MONTH(BL39),3)-3),'Cash Flows'!$C$4:$BW$4,0)))-SUM($BB$5,$AS$5,$AJ$5,$AA$5))/$E$16))),IF(BP39=0,"",BP39)) -> 
G40: 6 | H40: =SUMIF('Cash Flows'!$C$2:$BW$2,Model!$G40,'Cash Flows'!$C$8:$BW$8)/'Cash Flows'!$BX$8 -> 0.016875 | I40: =SUMIF('Cash Flows'!$C$2:$BW$2,Model!$G40,'Cash Flows'!$C$11:$BW$11)/-'Cash Flows'!$BX$8 -> 0.01598911652 | Y40: 35 | AA40: =IF($E$5="Uniform Inputs",IF($Z40>$E$12,"",MIN($E$21,($I$5+'Cash Flows'!$BX$6+INDEX('Cash Flows'!$C$17:$BW$17,1,MATCH(EOMONTH(AB40,MOD(-MONTH(AB40),3)-3),'Cash Flows'!$C$4:$BW$4,0)))/$E$12)),IF(AF40>0,AF40,"")) ->  | AJ40: =IF($E$5="Uniform Inputs",IF($Z40>$E$13,"",IF($E$23="Pro-Rata",MIN(AL40*AE40,(($I$5+'Cash Flows'!$BX$6+INDEX('Cash Flows'!$C$17:$BW$17,1,MATCH(EOMONTH(AK40,MOD(-MONTH(AK40),3)-3),'Cash Flows'!$C$4:$BW$4,0)))-$AA$5)/$E$13),MIN($E$24,(($I$5+'Cash Flows'!$BX$6+INDEX('Cash Flows'!$C$17:$BW$17,1,MATCH(EOMONTH(AK40,MOD(-MONTH(AK40),3)-3),'Cash Flows'!$C$4:$BW$4,0)))-$AA$5)/$E$13))),IF(AO40=0,"",AO40)) ->  | AS40: =IF($E$5="Uniform Inputs",IF($Z40>$E$14,"",IF($E$23="Pro-Rata",MIN(AU40*AN40,(($I$5+'Cash Flows'!$BX$6+INDEX('Cash Flows'!$C$17:$BW$17,1,MATCH(EOMONTH(AT40,MOD(-MONTH(AT40),3)-3),'Cash Flows'!$C$4:$BW$4,0)))-SUM($AJ$5,$AA$5))/$E$14),MIN($E$25,(($I$5+'Cash Flows'!$BX$6+INDEX('Cash Flows'!$C$17:$BW$17,1,MATCH(EOMONTH(AT40,MOD(-MONTH(AT40),3)-3),'Cash Flows'!$C$4:$BW$4,0)))-SUM($AJ$5,$AA$5))/$E$14))),IF(AX40=0,"",AX40)) ->  | BB40: =IF($E$5="Uniform Inputs",IF($Z40>$E$15,"",IF($E$23="Pro-Rata",MIN(BD40*AW40,(($I$5+'Cash Flows'!$BX$6+INDEX('Cash Flows'!$C$17:$BW$17,1,MATCH(EOMONTH(BC40,MOD(-MONTH(BC40),3)-3),'Cash Flows'!$C$4:$BW$4,0)))-SUM($AS$5,$AJ$5,$AA$5))/$E$15),MIN($E$26,(($I$5+'Cash Flows'!$BX$6+INDEX('Cash Flows'!$C$17:$BW$17,1,MATCH(EOMONTH(BC40,MOD(-MONTH(BC40),3)-3),'Cash Flows'!$C$4:$BW$4,0)))-SUM($AS$5,$AJ$5,$AA$5))/$E$15))),IF(BG40=0,"",BG40)) ->  | BK40: =IF($E$5="Uniform Inputs",IF($Z40>$E$16,"",IF($E$23="Pro-Rata",MIN(BM40*BF40,(($I$5+'Cash Flows'!$BX$6+INDEX('Cash Flows'!$C$17:$BW$17,1,MATCH(EOMONTH(BL40,MOD(-MONTH(BL40),3)-3),'Cash Flows'!$C$4:$BW$4,0)))-SUM($BB$5,$AS$5,$AJ$5,$AA$5))/$E$16),MIN($E$27,(($I$5+'Cash Flows'!$BX$6+INDEX('Cash Flows'!$C$17:$BW$17,1,MATCH(EOMONTH(BL40,MOD(-MONTH(BL40),3)-3),'Cash Flows'!$C$4:$BW$4,0)))-SUM($BB$5,$AS$5,$AJ$5,$AA$5))/$E$16))),IF(BP40=0,"",BP40)) -> 
G41: 7 | H41: =SUMIF('Cash Flows'!$C$2:$BW$2,Model!$G41,'Cash Flows'!$C$8:$BW$8)/'Cash Flows'!$BX$8 -> 0.011875 | I41: =SUMIF('Cash Flows'!$C$2:$BW$2,Model!$G41,'Cash Flows'!$C$11:$BW$11)/-'Cash Flows'!$BX$8 -> 0.5201792574 | Y41: 36 | AA41: =IF($E$5="Uniform Inputs",IF($Z41>$E$12,"",MIN($E$21,($I$5+'Cash Flows'!$BX$6+INDEX('Cash Flows'!$C$17:$BW$17,1,MATCH(EOMONTH(AB41,MOD(-MONTH(AB41),3)-3),'Cash Flows'!$C$4:$BW$4,0)))/$E$12)),IF(AF41>0,AF41,"")) ->  | AJ41: =IF($E$5="Uniform Inputs",IF($Z41>$E$13,"",IF($E$23="Pro-Rata",MIN(AL41*AE41,(($I$5+'Cash Flows'!$BX$6+INDEX('Cash Flows'!$C$17:$BW$17,1,MATCH(EOMONTH(AK41,MOD(-MONTH(AK41),3)-3),'Cash Flows'!$C$4:$BW$4,0)))-$AA$5)/$E$13),MIN($E$24,(($I$5+'Cash Flows'!$BX$6+INDEX('Cash Flows'!$C$17:$BW$17,1,MATCH(EOMONTH(AK41,MOD(-MONTH(AK41),3)-3),'Cash Flows'!$C$4:$BW$4,0)))-$AA$5)/$E$13))),IF(AO41=0,"",AO41)) ->  | AS41: =IF($E$5="Uniform Inputs",IF($Z41>$E$14,"",IF($E$23="Pro-Rata",MIN(AU41*AN41,(($I$5+'Cash Flows'!$BX$6+INDEX('Cash Flows'!$C$17:$BW$17,1,MATCH(EOMONTH(AT41,MOD(-MONTH(AT41),3)-3),'Cash Flows'!$C$4:$BW$4,0)))-SUM($AJ$5,$AA$5))/$E$14),MIN($E$25,(($I$5+'Cash Flows'!$BX$6+INDEX('Cash Flows'!$C$17:$BW$17,1,MATCH(EOMONTH(AT41,MOD(-MONTH(AT41),3)-3),'Cash Flows'!$C$4:$BW$4,0)))-SUM($AJ$5,$AA$5))/$E$14))),IF(AX41=0,"",AX41)) ->  | BB41: =IF($E$5="Uniform Inputs",IF($Z41>$E$15,"",IF($E$23="Pro-Rata",MIN(BD41*AW41,(($I$5+'Cash Flows'!$BX$6+INDEX('Cash Flows'!$C$17:$BW$17,1,MATCH(EOMONTH(BC41,MOD(-MONTH(BC41),3)-3),'Cash Flows'!$C$4:$BW$4,0)))-SUM($AS$5,$AJ$5,$AA$5))/$E$15),MIN($E$26,(($I$5+'Cash Flows'!$BX$6+INDEX('Cash Flows'!$C$17:$BW$17,1,MATCH(EOMONTH(BC41,MOD(-MONTH(BC41),3)-3),'Cash Flows'!$C$4:$BW$4,0)))-SUM($AS$5,$AJ$5,$AA$5))/$E$15))),IF(BG41=0,"",BG41)) ->  | BK41: =IF($E$5="Uniform Inputs",IF($Z41>$E$16,"",IF($E$23="Pro-Rata",MIN(BM41*BF41,(($I$5+'Cash Flows'!$BX$6+INDEX('Cash Flows'!$C$17:$BW$17,1,MATCH(EOMONTH(BL41,MOD(-MONTH(BL41),3)-3),'Cash Flows'!$C$4:$BW$4,0)))-SUM($BB$5,$AS$5,$AJ$5,$AA$5))/$E$16),MIN($E$27,(($I$5+'Cash Flows'!$BX$6+INDEX('Cash Flows'!$C$17:$BW$17,1,MATCH(EOMONTH(BL41,MOD(-MONTH(BL41),3)-3),'Cash Flows'!$C$4:$BW$4,0)))-SUM($BB$5,$AS$5,$AJ$5,$AA$5))/$E$16))),IF(BP41=0,"",BP41)) -> 
B42: Market Assumptions (Median) | G42: 8 | H42: =SUMIF('Cash Flows'!$C$2:$BW$2,Model!$G42,'Cash Flows'!$C$8:$BW$8)/'Cash Flows'!$BX$8 -> 0.01 | I42: =SUMIF('Cash Flows'!$C$2:$BW$2,Model!$G42,'Cash Flows'!$C$11:$BW$11)/-'Cash Flows'!$BX$8 -> 1.145890789 | Y42: 37 | AA42: =IF($E$5="Uniform Inputs",IF($Z42>$E$12,"",MIN($E$21,($I$5+'Cash Flows'!$BX$6+INDEX('Cash Flows'!$C$17:$BW$17,1,MATCH(EOMONTH(AB42,MOD(-MONTH(AB42),3)-3),'Cash Flows'!$C$4:$BW$4,0)))/$E$12)),IF(AF42>0,AF42,"")) ->  | AJ42: =IF($E$5="Uniform Inputs",IF($Z42>$E$13,"",IF($E$23="Pro-Rata",MIN(AL42*AE42,(($I$5+'Cash Flows'!$BX$6+INDEX('Cash Flows'!$C$17:$BW$17,1,MATCH(EOMONTH(AK42,MOD(-MONTH(AK42),3)-3),'Cash Flows'!$C$4:$BW$4,0)))-$AA$5)/$E$13),MIN($E$24,(($I$5+'Cash Flows'!$BX$6+INDEX('Cash Flows'!$C$17:$BW$17,1,MATCH(EOMONTH(AK42,MOD(-MONTH(AK42),3)-3),'Cash Flows'!$C$4:$BW$4,0)))-$AA$5)/$E$13))),IF(AO42=0,"",AO42)) ->  | AS42: =IF($E$5="Uniform Inputs",IF($Z42>$E$14,"",IF($E$23="Pro-Rata",MIN(AU42*AN42,(($I$5+'Cash Flows'!$BX$6+INDEX('Cash Flows'!$C$17:$BW$17,1,MATCH(EOMONTH(AT42,MOD(-MONTH(AT42),3)-3),'Cash Flows'!$C$4:$BW$4,0)))-SUM($AJ$5,$AA$5))/$E$14),MIN($E$25,(($I$5+'Cash Flows'!$BX$6+INDEX('Cash Flows'!$C$17:$BW$17,1,MATCH(EOMONTH(AT42,MOD(-MONTH(AT42),3)-3),'Cash Flows'!$C$4:$BW$4,0)))-SUM($AJ$5,$AA$5))/$E$14))),IF(AX42=0,"",AX42)) ->  | BB42: =IF($E$5="Uniform Inputs",IF($Z42>$E$15,"",IF($E$23="Pro-Rata",MIN(BD42*AW42,(($I$5+'Cash Flows'!$BX$6+INDEX('Cash Flows'!$C$17:$BW$17,1,MATCH(EOMONTH(BC42,MOD(-MONTH(BC42),3)-3),'Cash Flows'!$C$4:$BW$4,0)))-SUM($AS$5,$AJ$5,$AA$5))/$E$15),MIN($E$26,(($I$5+'Cash Flows'!$BX$6+INDEX('Cash Flows'!$C$17:$BW$17,1,MATCH(EOMONTH(BC42,MOD(-MONTH(BC42),3)-3),'Cash Flows'!$C$4:$BW$4,0)))-SUM($AS$5,$AJ$5,$AA$5))/$E$15))),IF(BG42=0,"",BG42)) ->  | BK42: =IF($E$5="Uniform Inputs",IF($Z42>$E$16,"",IF($E$23="Pro-Rata",MIN(BM42*BF42,(($I$5+'Cash Flows'!$BX$6+INDEX('Cash Flows'!$C$17:$BW$17,1,MATCH(EOMONTH(BL42,MOD(-MONTH(BL42),3)-3),'Cash Flows'!$C$4:$BW$4,0)))-SUM($BB$5,$AS$5,$AJ$5,$AA$5))/$E$16),MIN($E$27,(($I$5+'Cash Flows'!$BX$6+INDEX('Cash Flows'!$C$17:$BW$17,1,MATCH(EOMONTH(BL42,MOD(-MONTH(BL42),3)-3),'Cash Flows'!$C$4:$BW$4,0)))-SUM($BB$5,$AS$5,$AJ$5,$AA$5))/$E$16))),IF(BP42=0,"",BP42)) -> 
D43: Round Size | E43: Post-$ Valuation | G43: 9 | H43: =SUMIF('Cash Flows'!$C$2:$BW$2,Model!$G43,'Cash Flows'!$C$8:$BW$8)/'Cash Flows'!$BX$8 -> 0.01 | I43: =SUMIF('Cash Flows'!$C$2:$BW$2,Model!$G43,'Cash Flows'!$C$11:$BW$11)/-'Cash Flows'!$BX$8 -> 0.1234558771 | Y43: 38 | AA43: =IF($E$5="Uniform Inputs",IF($Z43>$E$12,"",MIN($E$21,($I$5+'Cash Flows'!$BX$6+INDEX('Cash Flows'!$C$17:$BW$17,1,MATCH(EOMONTH(AB43,MOD(-MONTH(AB43),3)-3),'Cash Flows'!$C$4:$BW$4,0)))/$E$12)),IF(AF43>0,AF43,"")) ->  | AJ43: =IF($E$5="Uniform Inputs",IF($Z43>$E$13,"",IF($E$23="Pro-Rata",MIN(AL43*AE43,(($I$5+'Cash Flows'!$BX$6+INDEX('Cash Flows'!$C$17:$BW$17,1,MATCH(EOMONTH(AK43,MOD(-MONTH(AK43),3)-3),'Cash Flows'!$C$4:$BW$4,0)))-$AA$5)/$E$13),MIN($E$24,(($I$5+'Cash Flows'!$BX$6+INDEX('Cash Flows'!$C$17:$BW$17,1,MATCH(EOMONTH(AK43,MOD(-MONTH(AK43),3)-3),'Cash Flows'!$C$4:$BW$4,0)))-$AA$5)/$E$13))),IF(AO43=0,"",AO43)) ->  | AS43: =IF($E$5="Uniform Inputs",IF($Z43>$E$14,"",IF($E$23="Pro-Rata",MIN(AU43*AN43,(($I$5+'Cash Flows'!$BX$6+INDEX('Cash Flows'!$C$17:$BW$17,1,MATCH(EOMONTH(AT43,MOD(-MONTH(AT43),3)-3),'Cash Flows'!$C$4:$BW$4,0)))-SUM($AJ$5,$AA$5))/$E$14),MIN($E$25,(($I$5+'Cash Flows'!$BX$6+INDEX('Cash Flows'!$C$17:$BW$17,1,MATCH(EOMONTH(AT43,MOD(-MONTH(AT43),3)-3),'Cash Flows'!$C$4:$BW$4,0)))-SUM($AJ$5,$AA$5))/$E$14))),IF(AX43=0,"",AX43)) ->  | BB43: =IF($E$5="Uniform Inputs",IF($Z43>$E$15,"",IF($E$23="Pro-Rata",MIN(BD43*AW43,(($I$5+'Cash Flows'!$BX$6+INDEX('Cash Flows'!$C$17:$BW$17,1,MATCH(EOMONTH(BC43,MOD(-MONTH(BC43),3)-3),'Cash Flows'!$C$4:$BW$4,0)))-SUM($AS$5,$AJ$5,$AA$5))/$E$15),MIN($E$26,(($I$5+'Cash Flows'!$BX$6+INDEX('Cash Flows'!$C$17:$BW$17,1,MATCH(EOMONTH(BC43,MOD(-MONTH(BC43),3)-3),'Cash Flows'!$C$4:$BW$4,0)))-SUM($AS$5,$AJ$5,$AA$5))/$E$15))),IF(BG43=0,"",BG43)) ->  | BK43: =IF($E$5="Uniform Inputs",IF($Z43>$E$16,"",IF($E$23="Pro-Rata",MIN(BM43*BF43,(($I$5+'Cash Flows'!$BX$6+INDEX('Cash Flows'!$C$17:$BW$17,1,MATCH(EOMONTH(BL43,MOD(-MONTH(BL43),3)-3),'Cash Flows'!$C$4:$BW$4,0)))-SUM($BB$5,$AS$5,$AJ$5,$AA$5))/$E$16),MIN($E$27,(($I$5+'Cash Flows'!$BX$6+INDEX('Cash Flows'!$C$17:$BW$17,1,MATCH(EOMONTH(BL43,MOD(-MONTH(BL43),3)-3),'Cash Flows'!$C$4:$BW$4,0)))-SUM($BB$5,$AS$5,$AJ$5,$AA$5))/$E$16))),IF(BP43=0,"",BP43)) -> 
B44: Pre-Seed | D44: 1500000 | E44: 7500000 | G44: 10 | H44: =SUMIF('Cash Flows'!$C$2:$BW$2,Model!$G44,'Cash Flows'!$C$8:$BW$8)/'Cash Flows'!$BX$8 -> 0.01 | I44: =SUMIF('Cash Flows'!$C$2:$BW$2,Model!$G44,'Cash Flows'!$C$11:$BW$11)/-'Cash Flows'!$BX$8 -> 0 | Y44: 39 | AA44: =IF($E$5="Uniform Inputs",IF($Z44>$E$12,"",MIN($E$21,($I$5+'Cash Flows'!$BX$6+INDEX('Cash Flows'!$C$17:$BW$17,1,MATCH(EOMONTH(AB44,MOD(-MONTH(AB44),3)-3),'Cash Flows'!$C$4:$BW$4,0)))/$E$12)),IF(AF44>0,AF44,"")) ->  | AJ44: =IF($E$5="Uniform Inputs",IF($Z44>$E$13,"",IF($E$23="Pro-Rata",MIN(AL44*AE44,(($I$5+'Cash Flows'!$BX$6+INDEX('Cash Flows'!$C$17:$BW$17,1,MATCH(EOMONTH(AK44,MOD(-MONTH(AK44),3)-3),'Cash Flows'!$C$4:$BW$4,0)))-$AA$5)/$E$13),MIN($E$24,(($I$5+'Cash Flows'!$BX$6+INDEX('Cash Flows'!$C$17:$BW$17,1,MATCH(EOMONTH(AK44,MOD(-MONTH(AK44),3)-3),'Cash Flows'!$C$4:$BW$4,0)))-$AA$5)/$E$13))),IF(AO44=0,"",AO44)) ->  | AS44: =IF($E$5="Uniform Inputs",IF($Z44>$E$14,"",IF($E$23="Pro-Rata",MIN(AU44*AN44,(($I$5+'Cash Flows'!$BX$6+INDEX('Cash Flows'!$C$17:$BW$17,1,MATCH(EOMONTH(AT44,MOD(-MONTH(AT44),3)-3),'Cash Flows'!$C$4:$BW$4,0)))-SUM($AJ$5,$AA$5))/$E$14),MIN($E$25,(($I$5+'Cash Flows'!$BX$6+INDEX('Cash Flows'!$C$17:$BW$17,1,MATCH(EOMONTH(AT44,MOD(-MONTH(AT44),3)-3),'Cash Flows'!$C$4:$BW$4,0)))-SUM($AJ$5,$AA$5))/$E$14))),IF(AX44=0,"",AX44)) ->  | BB44: =IF($E$5="Uniform Inputs",IF($Z44>$E$15,"",IF($E$23="Pro-Rata",MIN(BD44*AW44,(($I$5+'Cash Flows'!$BX$6+INDEX('Cash Flows'!$C$17:$BW$17,1,MATCH(EOMONTH(BC44,MOD(-MONTH(BC44),3)-3),'Cash Flows'!$C$4:$BW$4,0)))-SUM($AS$5,$AJ$5,$AA$5))/$E$15),MIN($E$26,(($I$5+'Cash Flows'!$BX$6+INDEX('Cash Flows'!$C$17:$BW$17,1,MATCH(EOMONTH(BC44,MOD(-MONTH(BC44),3)-3),'Cash Flows'!$C$4:$BW$4,0)))-SUM($AS$5,$AJ$5,$AA$5))/$E$15))),IF(BG44=0,"",BG44)) ->  | BK44: =IF($E$5="Uniform Inputs",IF($Z44>$E$16,"",IF($E$23="Pro-Rata",MIN(BM44*BF44,(($I$5+'Cash Flows'!$BX$6+INDEX('Cash Flows'!$C$17:$BW$17,1,MATCH(EOMONTH(BL44,MOD(-MONTH(BL44),3)-3),'Cash Flows'!$C$4:$BW$4,0)))-SUM($BB$5,$AS$5,$AJ$5,$AA$5))/$E$16),MIN($E$27,(($I$5+'Cash Flows'!$BX$6+INDEX('Cash Flows'!$C$17:$BW$17,1,MATCH(EOMONTH(BL44,MOD(-MONTH(BL44),3)-3),'Cash Flows'!$C$4:$BW$4,0)))-SUM($BB$5,$AS$5,$AJ$5,$AA$5))/$E$16))),IF(BP44=0,"",BP44)) -> 
B45: Seed | D45: 3000000 | E45: 11000000 | G45: 11 | H45: =SUMIF('Cash Flows'!$C$2:$BW$2,Model!$G45,'Cash Flows'!$C$8:$BW$8)/'Cash Flows'!$BX$8 -> 0 | I45: =SUMIF('Cash Flows'!$C$2:$BW$2,Model!$G45,'Cash Flows'!$C$11:$BW$11)/-'Cash Flows'!$BX$8 -> 0.717089997 | Y45: 40 | AA45: =IF($E$5="Uniform Inputs",IF($Z45>$E$12,"",MIN($E$21,($I$5+'Cash Flows'!$BX$6+INDEX('Cash Flows'!$C$17:$BW$17,1,MATCH(EOMONTH(AB45,MOD(-MONTH(AB45),3)-3),'Cash Flows'!$C$4:$BW$4,0)))/$E$12)),IF(AF45>0,AF45,"")) ->  | AJ45: =IF($E$5="Uniform Inputs",IF($Z45>$E$13,"",IF($E$23="Pro-Rata",MIN(AL45*AE45,(($I$5+'Cash Flows'!$BX$6+INDEX('Cash Flows'!$C$17:$BW$17,1,MATCH(EOMONTH(AK45,MOD(-MONTH(AK45),3)-3),'Cash Flows'!$C$4:$BW$4,0)))-$AA$5)/$E$13),MIN($E$24,(($I$5+'Cash Flows'!$BX$6+INDEX('Cash Flows'!$C$17:$BW$17,1,MATCH(EOMONTH(AK45,MOD(-MONTH(AK45),3)-3),'Cash Flows'!$C$4:$BW$4,0)))-$AA$5)/$E$13))),IF(AO45=0,"",AO45)) ->  | AS45: =IF($E$5="Uniform Inputs",IF($Z45>$E$14,"",IF($E$23="Pro-Rata",MIN(AU45*AN45,(($I$5+'Cash Flows'!$BX$6+INDEX('Cash Flows'!$C$17:$BW$17,1,MATCH(EOMONTH(AT45,MOD(-MONTH(AT45),3)-3),'Cash Flows'!$C$4:$BW$4,0)))-SUM($AJ$5,$AA$5))/$E$14),MIN($E$25,(($I$5+'Cash Flows'!$BX$6+INDEX('Cash Flows'!$C$17:$BW$17,1,MATCH(EOMONTH(AT45,MOD(-MONTH(AT45),3)-3),'Cash Flows'!$C$4:$BW$4,0)))-SUM($AJ$5,$AA$5))/$E$14))),IF(AX45=0,"",AX45)) ->  | BB45: =IF($E$5="Uniform Inputs",IF($Z45>$E$15,"",IF($E$23="Pro-Rata",MIN(BD45*AW45,(($I$5+'Cash Flows'!$BX$6+INDEX('Cash Flows'!$C$17:$BW$17,1,MATCH(EOMONTH(BC45,MOD(-MONTH(BC45),3)-3),'Cash Flows'!$C$4:$BW$4,0)))-SUM($AS$5,$AJ$5,$AA$5))/$E$15),MIN($E$26,(($I$5+'Cash Flows'!$BX$6+INDEX('Cash Flows'!$C$17:$BW$17,1,MATCH(EOMONTH(BC45,MOD(-MONTH(BC45),3)-3),'Cash Flows'!$C$4:$BW$4,0)))-SUM($AS$5,$AJ$5,$AA$5))/$E$15))),IF(BG45=0,"",BG45)) ->  | BK45: =IF($E$5="Uniform Inputs",IF($Z45>$E$16,"",IF($E$23="Pro-Rata",MIN(BM45*BF45,(($I$5+'Cash Flows'!$BX$6+INDEX('Cash Flows'!$C$17:$BW$17,1,MATCH(EOMONTH(BL45,MOD(-MONTH(BL45),3)-3),'Cash Flows'!$C$4:$BW$4,0)))-SUM($BB$5,$AS$5,$AJ$5,$AA$5))/$E$16),MIN($E$27,(($I$5+'Cash Flows'!$BX$6+INDEX('Cash Flows'!$C$17:$BW$17,1,MATCH(EOMONTH(BL45,MOD(-MONTH(BL45),3)-3),'Cash Flows'!$C$4:$BW$4,0)))-SUM($BB$5,$AS$5,$AJ$5,$AA$5))/$E$16))),IF(BP45=0,"",BP45)) -> 
B46: Series A | D46: 12000000 | E46: 48000000 | G46: 12 | H46: =SUMIF('Cash Flows'!$C$2:$BW$2,Model!$G46,'Cash Flows'!$C$8:$BW$8)/'Cash Flows'!$BX$8 -> 0 | I46: =SUMIF('Cash Flows'!$C$2:$BW$2,Model!$G46,'Cash Flows'!$C$11:$BW$11)/-'Cash Flows'!$BX$8 -> 0 | Y46: 41 | AA46: =IF($E$5="Uniform Inputs",IF($Z46>$E$12,"",MIN($E$21,($I$5+'Cash Flows'!$BX$6+INDEX('Cash Flows'!$C$17:$BW$17,1,MATCH(EOMONTH(AB46,MOD(-MONTH(AB46),3)-3),'Cash Flows'!$C$4:$BW$4,0)))/$E$12)),IF(AF46>0,AF46,"")) ->  | AJ46: =IF($E$5="Uniform Inputs",IF($Z46>$E$13,"",IF($E$23="Pro-Rata",MIN(AL46*AE46,(($I$5+'Cash Flows'!$BX$6+INDEX('Cash Flows'!$C$17:$BW$17,1,MATCH(EOMONTH(AK46,MOD(-MONTH(AK46),3)-3),'Cash Flows'!$C$4:$BW$4,0)))-$AA$5)/$E$13),MIN($E$24,(($I$5+'Cash Flows'!$BX$6+INDEX('Cash Flows'!$C$17:$BW$17,1,MATCH(EOMONTH(AK46,MOD(-MONTH(AK46),3)-3),'Cash Flows'!$C$4:$BW$4,0)))-$AA$5)/$E$13))),IF(AO46=0,"",AO46)) ->  | AS46: =IF($E$5="Uniform Inputs",IF($Z46>$E$14,"",IF($E$23="Pro-Rata",MIN(AU46*AN46,(($I$5+'Cash Flows'!$BX$6+INDEX('Cash Flows'!$C$17:$BW$17,1,MATCH(EOMONTH(AT46,MOD(-MONTH(AT46),3)-3),'Cash Flows'!$C$4:$BW$4,0)))-SUM($AJ$5,$AA$5))/$E$14),MIN($E$25,(($I$5+'Cash Flows'!$BX$6+INDEX('Cash Flows'!$C$17:$BW$17,1,MATCH(EOMONTH(AT46,MOD(-MONTH(AT46),3)-3),'Cash Flows'!$C$4:$BW$4,0)))-SUM($AJ$5,$AA$5))/$E$14))),IF(AX46=0,"",AX46)) ->  | BB46: =IF($E$5="Uniform Inputs",IF($Z46>$E$15,"",IF($E$23="Pro-Rata",MIN(BD46*AW46,(($I$5+'Cash Flows'!$BX$6+INDEX('Cash Flows'!$C$17:$BW$17,1,MATCH(EOMONTH(BC46,MOD(-MONTH(BC46),3)-3),'Cash Flows'!$C$4:$BW$4,0)))-SUM($AS$5,$AJ$5,$AA$5))/$E$15),MIN($E$26,(($I$5+'Cash Flows'!$BX$6+INDEX('Cash Flows'!$C$17:$BW$17,1,MATCH(EOMONTH(BC46,MOD(-MONTH(BC46),3)-3),'Cash Flows'!$C$4:$BW$4,0)))-SUM($AS$5,$AJ$5,$AA$5))/$E$15))),IF(BG46=0,"",BG46)) ->  | BK46: =IF($E$5="Uniform Inputs",IF($Z46>$E$16,"",IF($E$23="Pro-Rata",MIN(BM46*BF46,(($I$5+'Cash Flows'!$BX$6+INDEX('Cash Flows'!$C$17:$BW$17,1,MATCH(EOMONTH(BL46,MOD(-MONTH(BL46),3)-3),'Cash Flows'!$C$4:$BW$4,0)))-SUM($BB$5,$AS$5,$AJ$5,$AA$5))/$E$16),MIN($E$27,(($I$5+'Cash Flows'!$BX$6+INDEX('Cash Flows'!$C$17:$BW$17,1,MATCH(EOMONTH(BL46,MOD(-MONTH(BL46),3)-3),'Cash Flows'!$C$4:$BW$4,0)))-SUM($BB$5,$AS$5,$AJ$5,$AA$5))/$E$16))),IF(BP46=0,"",BP46)) -> 
B47: Series B | D47: 31000000 | E47: 142000000 | G47: 13 | H47: =SUMIF('Cash Flows'!$C$2:$BW$2,Model!$G47,'Cash Flows'!$C$8:$BW$8)/'Cash Flows'!$BX$8 -> 0 | I47: =SUMIF('Cash Flows'!$C$2:$BW$2,Model!$G47,'Cash Flows'!$C$11:$BW$11)/-'Cash Flows'!$BX$8 -> 1.954070242 | Y47: 42 | AA47: =IF($E$5="Uniform Inputs",IF($Z47>$E$12,"",MIN($E$21,($I$5+'Cash Flows'!$BX$6+INDEX('Cash Flows'!$C$17:$BW$17,1,MATCH(EOMONTH(AB47,MOD(-MONTH(AB47),3)-3),'Cash Flows'!$C$4:$BW$4,0)))/$E$12)),IF(AF47>0,AF47,"")) ->  | AJ47: =IF($E$5="Uniform Inputs",IF($Z47>$E$13,"",IF($E$23="Pro-Rata",MIN(AL47*AE47,(($I$5+'Cash Flows'!$BX$6+INDEX('Cash Flows'!$C$17:$BW$17,1,MATCH(EOMONTH(AK47,MOD(-MONTH(AK47),3)-3),'Cash Flows'!$C$4:$BW$4,0)))-$AA$5)/$E$13),MIN($E$24,(($I$5+'Cash Flows'!$BX$6+INDEX('Cash Flows'!$C$17:$BW$17,1,MATCH(EOMONTH(AK47,MOD(-MONTH(AK47),3)-3),'Cash Flows'!$C$4:$BW$4,0)))-$AA$5)/$E$13))),IF(AO47=0,"",AO47)) ->  | AS47: =IF($E$5="Uniform Inputs",IF($Z47>$E$14,"",IF($E$23="Pro-Rata",MIN(AU47*AN47,(($I$5+'Cash Flows'!$BX$6+INDEX('Cash Flows'!$C$17:$BW$17,1,MATCH(EOMONTH(AT47,MOD(-MONTH(AT47),3)-3),'Cash Flows'!$C$4:$BW$4,0)))-SUM($AJ$5,$AA$5))/$E$14),MIN($E$25,(($I$5+'Cash Flows'!$BX$6+INDEX('Cash Flows'!$C$17:$BW$17,1,MATCH(EOMONTH(AT47,MOD(-MONTH(AT47),3)-3),'Cash Flows'!$C$4:$BW$4,0)))-SUM($AJ$5,$AA$5))/$E$14))),IF(AX47=0,"",AX47)) ->  | BB47: =IF($E$5="Uniform Inputs",IF($Z47>$E$15,"",IF($E$23="Pro-Rata",MIN(BD47*AW47,(($I$5+'Cash Flows'!$BX$6+INDEX('Cash Flows'!$C$17:$BW$17,1,MATCH(EOMONTH(BC47,MOD(-MONTH(BC47),3)-3),'Cash Flows'!$C$4:$BW$4,0)))-SUM($AS$5,$AJ$5,$AA$5))/$E$15),MIN($E$26,(($I$5+'Cash Flows'!$BX$6+INDEX('Cash Flows'!$C$17:$BW$17,1,MATCH(EOMONTH(BC47,MOD(-MONTH(BC47),3)-3),'Cash Flows'!$C$4:$BW$4,0)))-SUM($AS$5,$AJ$5,$AA$5))/$E$15))),IF(BG47=0,"",BG47)) ->  | BK47: =IF($E$5="Uniform Inputs",IF($Z47>$E$16,"",IF($E$23="Pro-Rata",MIN(BM47*BF47,(($I$5+'Cash Flows'!$BX$6+INDEX('Cash Flows'!$C$17:$BW$17,1,MATCH(EOMONTH(BL47,MOD(-MONTH(BL47),3)-3),'Cash Flows'!$C$4:$BW$4,0)))-SUM($BB$5,$AS$5,$AJ$5,$AA$5))/$E$16),MIN($E$27,(($I$5+'Cash Flows'!$BX$6+INDEX('Cash Flows'!$C$17:$BW$17,1,MATCH(EOMONTH(BL47,MOD(-MONTH(BL47),3)-3),'Cash Flows'!$C$4:$BW$4,0)))-SUM($BB$5,$AS$5,$AJ$5,$AA$5))/$E$16))),IF(BP47=0,"",BP47)) -> 
B48: Series C | D48: 70000000 | E48: 375000000 | G48: 14 | H48: =SUMIF('Cash Flows'!$C$2:$BW$2,Model!$G48,'Cash Flows'!$C$8:$BW$8)/'Cash Flows'!$BX$8 -> 0 | I48: =SUMIF('Cash Flows'!$C$2:$BW$2,Model!$G48,'Cash Flows'!$C$11:$BW$11)/-'Cash Flows'!$BX$8 -> 0 | Y48: 43 | AA48: =IF($E$5="Uniform Inputs",IF($Z48>$E$12,"",MIN($E$21,($I$5+'Cash Flows'!$BX$6+INDEX('Cash Flows'!$C$17:$BW$17,1,MATCH(EOMONTH(AB48,MOD(-MONTH(AB48),3)-3),'Cash Flows'!$C$4:$BW$4,0)))/$E$12)),IF(AF48>0,AF48,"")) ->  | AJ48: =IF($E$5="Uniform Inputs",IF($Z48>$E$13,"",IF($E$23="Pro-Rata",MIN(AL48*AE48,(($I$5+'Cash Flows'!$BX$6+INDEX('Cash Flows'!$C$17:$BW$17,1,MATCH(EOMONTH(AK48,MOD(-MONTH(AK48),3)-3),'Cash Flows'!$C$4:$BW$4,0)))-$AA$5)/$E$13),MIN($E$24,(($I$5+'Cash Flows'!$BX$6+INDEX('Cash Flows'!$C$17:$BW$17,1,MATCH(EOMONTH(AK48,MOD(-MONTH(AK48),3)-3),'Cash Flows'!$C$4:$BW$4,0)))-$AA$5)/$E$13))),IF(AO48=0,"",AO48)) ->  | AS48: =IF($E$5="Uniform Inputs",IF($Z48>$E$14,"",IF($E$23="Pro-Rata",MIN(AU48*AN48,(($I$5+'Cash Flows'!$BX$6+INDEX('Cash Flows'!$C$17:$BW$17,1,MATCH(EOMONTH(AT48,MOD(-MONTH(AT48),3)-3),'Cash Flows'!$C$4:$BW$4,0)))-SUM($AJ$5,$AA$5))/$E$14),MIN($E$25,(($I$5+'Cash Flows'!$BX$6+INDEX('Cash Flows'!$C$17:$BW$17,1,MATCH(EOMONTH(AT48,MOD(-MONTH(AT48),3)-3),'Cash Flows'!$C$4:$BW$4,0)))-SUM($AJ$5,$AA$5))/$E$14))),IF(AX48=0,"",AX48)) ->  | BB48: =IF($E$5="Uniform Inputs",IF($Z48>$E$15,"",IF($E$23="Pro-Rata",MIN(BD48*AW48,(($I$5+'Cash Flows'!$BX$6+INDEX('Cash Flows'!$C$17:$BW$17,1,MATCH(EOMONTH(BC48,MOD(-MONTH(BC48),3)-3),'Cash Flows'!$C$4:$BW$4,0)))-SUM($AS$5,$AJ$5,$AA$5))/$E$15),MIN($E$26,(($I$5+'Cash Flows'!$BX$6+INDEX('Cash Flows'!$C$17:$BW$17,1,MATCH(EOMONTH(BC48,MOD(-MONTH(BC48),3)-3),'Cash Flows'!$C$4:$BW$4,0)))-SUM($AS$5,$AJ$5,$AA$5))/$E$15))),IF(BG48=0,"",BG48)) ->  | BK48: =IF($E$5="Uniform Inputs",IF($Z48>$E$16,"",IF($E$23="Pro-Rata",MIN(BM48*BF48,(($I$5+'Cash Flows'!$BX$6+INDEX('Cash Flows'!$C$17:$BW$17,1,MATCH(EOMONTH(BL48,MOD(-MONTH(BL48),3)-3),'Cash Flows'!$C$4:$BW$4,0)))-SUM($BB$5,$AS$5,$AJ$5,$AA$5))/$E$16),MIN($E$27,(($I$5+'Cash Flows'!$BX$6+INDEX('Cash Flows'!$C$17:$BW$17,1,MATCH(EOMONTH(BL48,MOD(-MONTH(BL48),3)-3),'Cash Flows'!$C$4:$BW$4,0)))-SUM($BB$5,$AS$5,$AJ$5,$AA$5))/$E$16))),IF(BP48=0,"",BP48)) -> 
B49: Series D | D49: 110000000 | E49: 1000000000 | G49: 15 | H49: =SUMIF('Cash Flows'!$C$2:$BW$2,Model!$G49,'Cash Flows'!$C$8:$BW$8)/'Cash Flows'!$BX$8 -> 0 | I49: =SUMIF('Cash Flows'!$C$2:$BW$2,Model!$G49,'Cash Flows'!$C$11:$BW$11)/-'Cash Flows'!$BX$8 -> 0 | Y49: 44 | AA49: =IF($E$5="Uniform Inputs",IF($Z49>$E$12,"",MIN($E$21,($I$5+'Cash Flows'!$BX$6+INDEX('Cash Flows'!$C$17:$BW$17,1,MATCH(EOMONTH(AB49,MOD(-MONTH(AB49),3)-3),'Cash Flows'!$C$4:$BW$4,0)))/$E$12)),IF(AF49>0,AF49,"")) ->  | AJ49: =IF($E$5="Uniform Inputs",IF($Z49>$E$13,"",IF($E$23="Pro-Rata",MIN(AL49*AE49,(($I$5+'Cash Flows'!$BX$6+INDEX('Cash Flows'!$C$17:$BW$17,1,MATCH(EOMONTH(AK49,MOD(-MONTH(AK49),3)-3),'Cash Flows'!$C$4:$BW$4,0)))-$AA$5)/$E$13),MIN($E$24,(($I$5+'Cash Flows'!$BX$6+INDEX('Cash Flows'!$C$17:$BW$17,1,MATCH(EOMONTH(AK49,MOD(-MONTH(AK49),3)-3),'Cash Flows'!$C$4:$BW$4,0)))-$AA$5)/$E$13))),IF(AO49=0,"",AO49)) ->  | AS49: =IF($E$5="Uniform Inputs",IF($Z49>$E$14,"",IF($E$23="Pro-Rata",MIN(AU49*AN49,(($I$5+'Cash Flows'!$BX$6+INDEX('Cash Flows'!$C$17:$BW$17,1,MATCH(EOMONTH(AT49,MOD(-MONTH(AT49),3)-3),'Cash Flows'!$C$4:$BW$4,0)))-SUM($AJ$5,$AA$5))/$E$14),MIN($E$25,(($I$5+'Cash Flows'!$BX$6+INDEX('Cash Flows'!$C$17:$BW$17,1,MATCH(EOMONTH(AT49,MOD(-MONTH(AT49),3)-3),'Cash Flows'!$C$4:$BW$4,0)))-SUM($AJ$5,$AA$5))/$E$14))),IF(AX49=0,"",AX49)) ->  | BB49: =IF($E$5="Uniform Inputs",IF($Z49>$E$15,"",IF($E$23="Pro-Rata",MIN(BD49*AW49,(($I$5+'Cash Flows'!$BX$6+INDEX('Cash Flows'!$C$17:$BW$17,1,MATCH(EOMONTH(BC49,MOD(-MONTH(BC49),3)-3),'Cash Flows'!$C$4:$BW$4,0)))-SUM($AS$5,$AJ$5,$AA$5))/$E$15),MIN($E$26,(($I$5+'Cash Flows'!$BX$6+INDEX('Cash Flows'!$C$17:$BW$17,1,MATCH(EOMONTH(BC49,MOD(-MONTH(BC49),3)-3),'Cash Flows'!$C$4:$BW$4,0)))-SUM($AS$5,$AJ$5,$AA$5))/$E$15))),IF(BG49=0,"",BG49)) ->  | BK49: =IF($E$5="Uniform Inputs",IF($Z49>$E$16,"",IF($E$23="Pro-Rata",MIN(BM49*BF49,(($I$5+'Cash Flows'!$BX$6+INDEX('Cash Flows'!$C$17:$BW$17,1,MATCH(EOMONTH(BL49,MOD(-MONTH(BL49),3)-3),'Cash Flows'!$C$4:$BW$4,0)))-SUM($BB$5,$AS$5,$AJ$5,$AA$5))/$E$16),MIN($E$27,(($I$5+'Cash Flows'!$BX$6+INDEX('Cash Flows'!$C$17:$BW$17,1,MATCH(EOMONTH(BL49,MOD(-MONTH(BL49),3)-3),'Cash Flows'!$C$4:$BW$4,0)))-SUM($BB$5,$AS$5,$AJ$5,$AA$5))/$E$16))),IF(BP49=0,"",BP49)) -> 
B50: Series E | D50: 150000000 | E50: 1300000000 | G50: 16 | H50: =SUMIF('Cash Flows'!$C$2:$BW$2,Model!$G50,'Cash Flows'!$C$8:$BW$8)/'Cash Flows'!$BX$8 -> 0 | I50: =SUMIF('Cash Flows'!$C$2:$BW$2,Model!$G50,'Cash Flows'!$C$11:$BW$11)/-'Cash Flows'!$BX$8 -> 0 | Y50: 45 | AA50: =IF($E$5="Uniform Inputs",IF($Z50>$E$12,"",MIN($E$21,($I$5+'Cash Flows'!$BX$6+INDEX('Cash Flows'!$C$17:$BW$17,1,MATCH(EOMONTH(AB50,MOD(-MONTH(AB50),3)-3),'Cash Flows'!$C$4:$BW$4,0)))/$E$12)),IF(AF50>0,AF50,"")) ->  | AJ50: =IF($E$5="Uniform Inputs",IF($Z50>$E$13,"",IF($E$23="Pro-Rata",MIN(AL50*AE50,(($I$5+'Cash Flows'!$BX$6+INDEX('Cash Flows'!$C$17:$BW$17,1,MATCH(EOMONTH(AK50,MOD(-MONTH(AK50),3)-3),'Cash Flows'!$C$4:$BW$4,0)))-$AA$5)/$E$13),MIN($E$24,(($I$5+'Cash Flows'!$BX$6+INDEX('Cash Flows'!$C$17:$BW$17,1,MATCH(EOMONTH(AK50,MOD(-MONTH(AK50),3)-3),'Cash Flows'!$C$4:$BW$4,0)))-$AA$5)/$E$13))),IF(AO50=0,"",AO50)) ->  | AS50: =IF($E$5="Uniform Inputs",IF($Z50>$E$14,"",IF($E$23="Pro-Rata",MIN(AU50*AN50,(($I$5+'Cash Flows'!$BX$6+INDEX('Cash Flows'!$C$17:$BW$17,1,MATCH(EOMONTH(AT50,MOD(-MONTH(AT50),3)-3),'Cash Flows'!$C$4:$BW$4,0)))-SUM($AJ$5,$AA$5))/$E$14),MIN($E$25,(($I$5+'Cash Flows'!$BX$6+INDEX('Cash Flows'!$C$17:$BW$17,1,MATCH(EOMONTH(AT50,MOD(-MONTH(AT50),3)-3),'Cash Flows'!$C$4:$BW$4,0)))-SUM($AJ$5,$AA$5))/$E$14))),IF(AX50=0,"",AX50)) ->  | BB50: =IF($E$5="Uniform Inputs",IF($Z50>$E$15,"",IF($E$23="Pro-Rata",MIN(BD50*AW50,(($I$5+'Cash Flows'!$BX$6+INDEX('Cash Flows'!$C$17:$BW$17,1,MATCH(EOMONTH(BC50,MOD(-MONTH(BC50),3)-3),'Cash Flows'!$C$4:$BW$4,0)))-SUM($AS$5,$AJ$5,$AA$5))/$E$15),MIN($E$26,(($I$5+'Cash Flows'!$BX$6+INDEX('Cash Flows'!$C$17:$BW$17,1,MATCH(EOMONTH(BC50,MOD(-MONTH(BC50),3)-3),'Cash Flows'!$C$4:$BW$4,0)))-SUM($AS$5,$AJ$5,$AA$5))/$E$15))),IF(BG50=0,"",BG50)) ->  | BK50: =IF($E$5="Uniform Inputs",IF($Z50>$E$16,"",IF($E$23="Pro-Rata",MIN(BM50*BF50,(($I$5+'Cash Flows'!$BX$6+INDEX('Cash Flows'!$C$17:$BW$17,1,MATCH(EOMONTH(BL50,MOD(-MONTH(BL50),3)-3),'Cash Flows'!$C$4:$BW$4,0)))-SUM($BB$5,$AS$5,$AJ$5,$AA$5))/$E$16),MIN($E$27,(($I$5+'Cash Flows'!$BX$6+INDEX('Cash Flows'!$C$17:$BW$17,1,MATCH(EOMONTH(BL50,MOD(-MONTH(BL50),3)-3),'Cash Flows'!$C$4:$BW$4,0)))-SUM($BB$5,$AS$5,$AJ$5,$AA$5))/$E$16))),IF(BP50=0,"",BP50)) -> 
B51: Series F | D51: 200000000 | E51: 2300000000 | G51: 17 | H51: =SUMIF('Cash Flows'!$C$2:$BW$2,Model!$G51,'Cash Flows'!$C$8:$BW$8)/'Cash Flows'!$BX$8 -> 0 | I51: =SUMIF('Cash Flows'!$C$2:$BW$2,Model!$G51,'Cash Flows'!$C$11:$BW$11)/-'Cash Flows'!$BX$8 -> 0 | Y51: 46 | AA51: =IF($E$5="Uniform Inputs",IF($Z51>$E$12,"",MIN($E$21,($I$5+'Cash Flows'!$BX$6+INDEX('Cash Flows'!$C$17:$BW$17,1,MATCH(EOMONTH(AB51,MOD(-MONTH(AB51),3)-3),'Cash Flows'!$C$4:$BW$4,0)))/$E$12)),IF(AF51>0,AF51,"")) ->  | AJ51: =IF($E$5="Uniform Inputs",IF($Z51>$E$13,"",IF($E$23="Pro-Rata",MIN(AL51*AE51,(($I$5+'Cash Flows'!$BX$6+INDEX('Cash Flows'!$C$17:$BW$17,1,MATCH(EOMONTH(AK51,MOD(-MONTH(AK51),3)-3),'Cash Flows'!$C$4:$BW$4,0)))-$AA$5)/$E$13),MIN($E$24,(($I$5+'Cash Flows'!$BX$6+INDEX('Cash Flows'!$C$17:$BW$17,1,MATCH(EOMONTH(AK51,MOD(-MONTH(AK51),3)-3),'Cash Flows'!$C$4:$BW$4,0)))-$AA$5)/$E$13))),IF(AO51=0,"",AO51)) ->  | AS51: =IF($E$5="Uniform Inputs",IF($Z51>$E$14,"",IF($E$23="Pro-Rata",MIN(AU51*AN51,(($I$5+'Cash Flows'!$BX$6+INDEX('Cash Flows'!$C$17:$BW$17,1,MATCH(EOMONTH(AT51,MOD(-MONTH(AT51),3)-3),'Cash Flows'!$C$4:$BW$4,0)))-SUM($AJ$5,$AA$5))/$E$14),MIN($E$25,(($I$5+'Cash Flows'!$BX$6+INDEX('Cash Flows'!$C$17:$BW$17,1,MATCH(EOMONTH(AT51,MOD(-MONTH(AT51),3)-3),'Cash Flows'!$C$4:$BW$4,0)))-SUM($AJ$5,$AA$5))/$E$14))),IF(AX51=0,"",AX51)) ->  | BB51: =IF($E$5="Uniform Inputs",IF($Z51>$E$15,"",IF($E$23="Pro-Rata",MIN(BD51*AW51,(($I$5+'Cash Flows'!$BX$6+INDEX('Cash Flows'!$C$17:$BW$17,1,MATCH(EOMONTH(BC51,MOD(-MONTH(BC51),3)-3),'Cash Flows'!$C$4:$BW$4,0)))-SUM($AS$5,$AJ$5,$AA$5))/$E$15),MIN($E$26,(($I$5+'Cash Flows'!$BX$6+INDEX('Cash Flows'!$C$17:$BW$17,1,MATCH(EOMONTH(BC51,MOD(-MONTH(BC51),3)-3),'Cash Flows'!$C$4:$BW$4,0)))-SUM($AS$5,$AJ$5,$AA$5))/$E$15))),IF(BG51=0,"",BG51)) ->  | BK51: =IF($E$5="Uniform Inputs",IF($Z51>$E$16,"",IF($E$23="Pro-Rata",MIN(BM51*BF51,(($I$5+'Cash Flows'!$BX$6+INDEX('Cash Flows'!$C$17:$BW$17,1,MATCH(EOMONTH(BL51,MOD(-MONTH(BL51),3)-3),'Cash Flows'!$C$4:$BW$4,0)))-SUM($BB$5,$AS$5,$AJ$5,$AA$5))/$E$16),MIN($E$27,(($I$5+'Cash Flows'!$BX$6+INDEX('Cash Flows'!$C$17:$BW$17,1,MATCH(EOMONTH(BL51,MOD(-MONTH(BL51),3)-3),'Cash Flows'!$C$4:$BW$4,0)))-SUM($BB$5,$AS$5,$AJ$5,$AA$5))/$E$16))),IF(BP51=0,"",BP51)) -> 
B52: Series G | D52: 275000000 | E52: 3000000000 | G52: 18 | H52: =SUMIF('Cash Flows'!$C$2:$BW$2,Model!$G52,'Cash Flows'!$C$8:$BW$8)/'Cash Flows'!$BX$8 -> 0 | I52: =SUMIF('Cash Flows'!$C$2:$BW$2,Model!$G52,'Cash Flows'!$C$11:$BW$11)/-'Cash Flows'!$BX$8 -> 0 | Y52: 47 | AA52: =IF($E$5="Uniform Inputs",IF($Z52>$E$12,"",MIN($E$21,($I$5+'Cash Flows'!$BX$6+INDEX('Cash Flows'!$C$17:$BW$17,1,MATCH(EOMONTH(AB52,MOD(-MONTH(AB52),3)-3),'Cash Flows'!$C$4:$BW$4,0)))/$E$12)),IF(AF52>0,AF52,"")) ->  | AJ52: =IF($E$5="Uniform Inputs",IF($Z52>$E$13,"",IF($E$23="Pro-Rata",MIN(AL52*AE52,(($I$5+'Cash Flows'!$BX$6+INDEX('Cash Flows'!$C$17:$BW$17,1,MATCH(EOMONTH(AK52,MOD(-MONTH(AK52),3)-3),'Cash Flows'!$C$4:$BW$4,0)))-$AA$5)/$E$13),MIN($E$24,(($I$5+'Cash Flows'!$BX$6+INDEX('Cash Flows'!$C$17:$BW$17,1,MATCH(EOMONTH(AK52,MOD(-MONTH(AK52),3)-3),'Cash Flows'!$C$4:$BW$4,0)))-$AA$5)/$E$13))),IF(AO52=0,"",AO52)) ->  | AS52: =IF($E$5="Uniform Inputs",IF($Z52>$E$14,"",IF($E$23="Pro-Rata",MIN(AU52*AN52,(($I$5+'Cash Flows'!$BX$6+INDEX('Cash Flows'!$C$17:$BW$17,1,MATCH(EOMONTH(AT52,MOD(-MONTH(AT52),3)-3),'Cash Flows'!$C$4:$BW$4,0)))-SUM($AJ$5,$AA$5))/$E$14),MIN($E$25,(($I$5+'Cash Flows'!$BX$6+INDEX('Cash Flows'!$C$17:$BW$17,1,MATCH(EOMONTH(AT52,MOD(-MONTH(AT52),3)-3),'Cash Flows'!$C$4:$BW$4,0)))-SUM($AJ$5,$AA$5))/$E$14))),IF(AX52=0,"",AX52)) ->  | BB52: =IF($E$5="Uniform Inputs",IF($Z52>$E$15,"",IF($E$23="Pro-Rata",MIN(BD52*AW52,(($I$5+'Cash Flows'!$BX$6+INDEX('Cash Flows'!$C$17:$BW$17,1,MATCH(EOMONTH(BC52,MOD(-MONTH(BC52),3)-3),'Cash Flows'!$C$4:$BW$4,0)))-SUM($AS$5,$AJ$5,$AA$5))/$E$15),MIN($E$26,(($I$5+'Cash Flows'!$BX$6+INDEX('Cash Flows'!$C$17:$BW$17,1,MATCH(EOMONTH(BC52,MOD(-MONTH(BC52),3)-3),'Cash Flows'!$C$4:$BW$4,0)))-SUM($AS$5,$AJ$5,$AA$5))/$E$15))),IF(BG52=0,"",BG52)) ->  | BK52: =IF($E$5="Uniform Inputs",IF($Z52>$E$16,"",IF($E$23="Pro-Rata",MIN(BM52*BF52,(($I$5+'Cash Flows'!$BX$6+INDEX('Cash Flows'!$C$17:$BW$17,1,MATCH(EOMONTH(BL52,MOD(-MONTH(BL52),3)-3),'Cash Flows'!$C$4:$BW$4,0)))-SUM($BB$5,$AS$5,$AJ$5,$AA$5))/$E$16),MIN($E$27,(($I$5+'Cash Flows'!$BX$6+INDEX('Cash Flows'!$C$17:$BW$17,1,MATCH(EOMONTH(BL52,MOD(-MONTH(BL52),3)-3),'Cash Flows'!$C$4:$BW$4,0)))-SUM($BB$5,$AS$5,$AJ$5,$AA$5))/$E$16))),IF(BP52=0,"",BP52)) -> 
G53: Total | H53: =SUM(H35:H52) -> 1 | I53: =SUM(I35:I52) -> 4.476675279 | Y53: 48 | AA53: =IF($E$5="Uniform Inputs",IF($Z53>$E$12,"",MIN($E$21,($I$5+'Cash Flows'!$BX$6+INDEX('Cash Flows'!$C$17:$BW$17,1,MATCH(EOMONTH(AB53,MOD(-MONTH(AB53),3)-3),'Cash Flows'!$C$4:$BW$4,0)))/$E$12)),IF(AF53>0,AF53,"")) ->  | AJ53: =IF($E$5="Uniform Inputs",IF($Z53>$E$13,"",IF($E$23="Pro-Rata",MIN(AL53*AE53,(($I$5+'Cash Flows'!$BX$6+INDEX('Cash Flows'!$C$17:$BW$17,1,MATCH(EOMONTH(AK53,MOD(-MONTH(AK53),3)-3),'Cash Flows'!$C$4:$BW$4,0)))-$AA$5)/$E$13),MIN($E$24,(($I$5+'Cash Flows'!$BX$6+INDEX('Cash Flows'!$C$17:$BW$17,1,MATCH(EOMONTH(AK53,MOD(-MONTH(AK53),3)-3),'Cash Flows'!$C$4:$BW$4,0)))-$AA$5)/$E$13))),IF(AO53=0,"",AO53)) ->  | AS53: =IF($E$5="Uniform Inputs",IF($Z53>$E$14,"",IF($E$23="Pro-Rata",MIN(AU53*AN53,(($I$5+'Cash Flows'!$BX$6+INDEX('Cash Flows'!$C$17:$BW$17,1,MATCH(EOMONTH(AT53,MOD(-MONTH(AT53),3)-3),'Cash Flows'!$C$4:$BW$4,0)))-SUM($AJ$5,$AA$5))/$E$14),MIN($E$25,(($I$5+'Cash Flows'!$BX$6+INDEX('Cash Flows'!$C$17:$BW$17,1,MATCH(EOMONTH(AT53,MOD(-MONTH(AT53),3)-3),'Cash Flows'!$C$4:$BW$4,0)))-SUM($AJ$5,$AA$5))/$E$14))),IF(AX53=0,"",AX53)) ->  | BB53: =IF($E$5="Uniform Inputs",IF($Z53>$E$15,"",IF($E$23="Pro-Rata",MIN(BD53*AW53,(($I$5+'Cash Flows'!$BX$6+INDEX('Cash Flows'!$C$17:$BW$17,1,MATCH(EOMONTH(BC53,MOD(-MONTH(BC53),3)-3),'Cash Flows'!$C$4:$BW$4,0)))-SUM($AS$5,$AJ$5,$AA$5))/$E$15),MIN($E$26,(($I$5+'Cash Flows'!$BX$6+INDEX('Cash Flows'!$C$17:$BW$17,1,MATCH(EOMONTH(BC53,MOD(-MONTH(BC53),3)-3),'Cash Flows'!$C$4:$BW$4,0)))-SUM($AS$5,$AJ$5,$AA$5))/$E$15))),IF(BG53=0,"",BG53)) ->  | BK53: =IF($E$5="Uniform Inputs",IF($Z53>$E$16,"",IF($E$23="Pro-Rata",MIN(BM53*BF53,(($I$5+'Cash Flows'!$BX$6+INDEX('Cash Flows'!$C$17:$BW$17,1,MATCH(EOMONTH(BL53,MOD(-MONTH(BL53),3)-3),'Cash Flows'!$C$4:$BW$4,0)))-SUM($BB$5,$AS$5,$AJ$5,$AA$5))/$E$16),MIN($E$27,(($I$5+'Cash Flows'!$BX$6+INDEX('Cash Flows'!$C$17:$BW$17,1,MATCH(EOMONTH(BL53,MOD(-MONTH(BL53),3)-3),'Cash Flows'!$C$4:$BW$4,0)))-SUM($BB$5,$AS$5,$AJ$5,$AA$5))/$E$16))),IF(BP53=0,"",BP53)) -> 
Y54: 49 | AA54: =IF($E$5="Uniform Inputs",IF($Z54>$E$12,"",MIN($E$21,($I$5+'Cash Flows'!$BX$6+INDEX('Cash Flows'!$C$17:$BW$17,1,MATCH(EOMONTH(AB54,MOD(-MONTH(AB54),3)-3),'Cash Flows'!$C$4:$BW$4,0)))/$E$12)),IF(AF54>0,AF54,"")) ->  | AJ54: =IF($E$5="Uniform Inputs",IF($Z54>$E$13,"",IF($E$23="Pro-Rata",MIN(AL54*AE54,(($I$5+'Cash Flows'!$BX$6+INDEX('Cash Flows'!$C$17:$BW$17,1,MATCH(EOMONTH(AK54,MOD(-MONTH(AK54),3)-3),'Cash Flows'!$C$4:$BW$4,0)))-$AA$5)/$E$13),MIN($E$24,(($I$5+'Cash Flows'!$BX$6+INDEX('Cash Flows'!$C$17:$BW$17,1,MATCH(EOMONTH(AK54,MOD(-MONTH(AK54),3)-3),'Cash Flows'!$C$4:$BW$4,0)))-$AA$5)/$E$13))),IF(AO54=0,"",AO54)) ->  | AS54: =IF($E$5="Uniform Inputs",IF($Z54>$E$14,"",IF($E$23="Pro-Rata",MIN(AU54*AN54,(($I$5+'Cash Flows'!$BX$6+INDEX('Cash Flows'!$C$17:$BW$17,1,MATCH(EOMONTH(AT54,MOD(-MONTH(AT54),3)-3),'Cash Flows'!$C$4:$BW$4,0)))-SUM($AJ$5,$AA$5))/$E$14),MIN($E$25,(($I$5+'Cash Flows'!$BX$6+INDEX('Cash Flows'!$C$17:$BW$17,1,MATCH(EOMONTH(AT54,MOD(-MONTH(AT54),3)-3),'Cash Flows'!$C$4:$BW$4,0)))-SUM($AJ$5,$AA$5))/$E$14))),IF(AX54=0,"",AX54)) ->  | BB54: =IF($E$5="Uniform Inputs",IF($Z54>$E$15,"",IF($E$23="Pro-Rata",MIN(BD54*AW54,(($I$5+'Cash Flows'!$BX$6+INDEX('Cash Flows'!$C$17:$BW$17,1,MATCH(EOMONTH(BC54,MOD(-MONTH(BC54),3)-3),'Cash Flows'!$C$4:$BW$4,0)))-SUM($AS$5,$AJ$5,$AA$5))/$E$15),MIN($E$26,(($I$5+'Cash Flows'!$BX$6+INDEX('Cash Flows'!$C$17:$BW$17,1,MATCH(EOMONTH(BC54,MOD(-MONTH(BC54),3)-3),'Cash Flows'!$C$4:$BW$4,0)))-SUM($AS$5,$AJ$5,$AA$5))/$E$15))),IF(BG54=0,"",BG54)) ->  | BK54: =IF($E$5="Uniform Inputs",IF($Z54>$E$16,"",IF($E$23="Pro-Rata",MIN(BM54*BF54,(($I$5+'Cash Flows'!$BX$6+INDEX('Cash Flows'!$C$17:$BW$17,1,MATCH(EOMONTH(BL54,MOD(-MONTH(BL54),3)-3),'Cash Flows'!$C$4:$BW$4,0)))-SUM($BB$5,$AS$5,$AJ$5,$AA$5))/$E$16),MIN($E$27,(($I$5+'Cash Flows'!$BX$6+INDEX('Cash Flows'!$C$17:$BW$17,1,MATCH(EOMONTH(BL54,MOD(-MONTH(BL54),3)-3),'Cash Flows'!$C$4:$BW$4,0)))-SUM($BB$5,$AS$5,$AJ$5,$AA$5))/$E$16))),IF(BP54=0,"",BP54)) -> 
Y55: 50 | AA55: =IF($E$5="Uniform Inputs",IF($Z55>$E$12,"",MIN($E$21,($I$5+'Cash Flows'!$BX$6+INDEX('Cash Flows'!$C$17:$BW$17,1,MATCH(EOMONTH(AB55,MOD(-MONTH(AB55),3)-3),'Cash Flows'!$C$4:$BW$4,0)))/$E$12)),IF(AF55>0,AF55,"")) ->  | AJ55: =IF($E$5="Uniform Inputs",IF($Z55>$E$13,"",IF($E$23="Pro-Rata",MIN(AL55*AE55,(($I$5+'Cash Flows'!$BX$6+INDEX('Cash Flows'!$C$17:$BW$17,1,MATCH(EOMONTH(AK55,MOD(-MONTH(AK55),3)-3),'Cash Flows'!$C$4:$BW$4,0)))-$AA$5)/$E$13),MIN($E$24,(($I$5+'Cash Flows'!$BX$6+INDEX('Cash Flows'!$C$17:$BW$17,1,MATCH(EOMONTH(AK55,MOD(-MONTH(AK55),3)-3),'Cash Flows'!$C$4:$BW$4,0)))-$AA$5)/$E$13))),IF(AO55=0,"",AO55)) ->  | AS55: =IF($E$5="Uniform Inputs",IF($Z55>$E$14,"",IF($E$23="Pro-Rata",MIN(AU55*AN55,(($I$5+'Cash Flows'!$BX$6+INDEX('Cash Flows'!$C$17:$BW$17,1,MATCH(EOMONTH(AT55,MOD(-MONTH(AT55),3)-3),'Cash Flows'!$C$4:$BW$4,0)))-SUM($AJ$5,$AA$5))/$E$14),MIN($E$25,(($I$5+'Cash Flows'!$BX$6+INDEX('Cash Flows'!$C$17:$BW$17,1,MATCH(EOMONTH(AT55,MOD(-MONTH(AT55),3)-3),'Cash Flows'!$C$4:$BW$4,0)))-SUM($AJ$5,$AA$5))/$E$14))),IF(AX55=0,"",AX55)) ->  | BB55: =IF($E$5="Uniform Inputs",IF($Z55>$E$15,"",IF($E$23="Pro-Rata",MIN(BD55*AW55,(($I$5+'Cash Flows'!$BX$6+INDEX('Cash Flows'!$C$17:$BW$17,1,MATCH(EOMONTH(BC55,MOD(-MONTH(BC55),3)-3),'Cash Flows'!$C$4:$BW$4,0)))-SUM($AS$5,$AJ$5,$AA$5))/$E$15),MIN($E$26,(($I$5+'Cash Flows'!$BX$6+INDEX('Cash Flows'!$C$17:$BW$17,1,MATCH(EOMONTH(BC55,MOD(-MONTH(BC55),3)-3),'Cash Flows'!$C$4:$BW$4,0)))-SUM($AS$5,$AJ$5,$AA$5))/$E$15))),IF(BG55=0,"",BG55)) ->  | BK55: =IF($E$5="Uniform Inputs",IF($Z55>$E$16,"",IF($E$23="Pro-Rata",MIN(BM55*BF55,(($I$5+'Cash Flows'!$BX$6+INDEX('Cash Flows'!$C$17:$BW$17,1,MATCH(EOMONTH(BL55,MOD(-MONTH(BL55),3)-3),'Cash Flows'!$C$4:$BW$4,0)))-SUM($BB$5,$AS$5,$AJ$5,$AA$5))/$E$16),MIN($E$27,(($I$5+'Cash Flows'!$BX$6+INDEX('Cash Flows'!$C$17:$BW$17,1,MATCH(EOMONTH(BL55,MOD(-MONTH(BL55),3)-3),'Cash Flows'!$C$4:$BW$4,0)))-SUM($BB$5,$AS$5,$AJ$5,$AA$5))/$E$16))),IF(BP55=0,"",BP55)) -> 
Y56: 51 | AA56: =IF($E$5="Uniform Inputs",IF($Z56>$E$12,"",MIN($E$21,($I$5+'Cash Flows'!$BX$6+INDEX('Cash Flows'!$C$17:$BW$17,1,MATCH(EOMONTH(AB56,MOD(-MONTH(AB56),3)-3),'Cash Flows'!$C$4:$BW$4,0)))/$E$12)),IF(AF56>0,AF56,"")) ->  | AJ56: =IF($E$5="Uniform Inputs",IF($Z56>$E$13,"",IF($E$23="Pro-Rata",MIN(AL56*AE56,(($I$5+'Cash Flows'!$BX$6+INDEX('Cash Flows'!$C$17:$BW$17,1,MATCH(EOMONTH(AK56,MOD(-MONTH(AK56),3)-3),'Cash Flows'!$C$4:$BW$4,0)))-$AA$5)/$E$13),MIN($E$24,(($I$5+'Cash Flows'!$BX$6+INDEX('Cash Flows'!$C$17:$BW$17,1,MATCH(EOMONTH(AK56,MOD(-MONTH(AK56),3)-3),'Cash Flows'!$C$4:$BW$4,0)))-$AA$5)/$E$13))),IF(AO56=0,"",AO56)) ->  | AS56: =IF($E$5="Uniform Inputs",IF($Z56>$E$14,"",IF($E$23="Pro-Rata",MIN(AU56*AN56,(($I$5+'Cash Flows'!$BX$6+INDEX('Cash Flows'!$C$17:$BW$17,1,MATCH(EOMONTH(AT56,MOD(-MONTH(AT56),3)-3),'Cash Flows'!$C$4:$BW$4,0)))-SUM($AJ$5,$AA$5))/$E$14),MIN($E$25,(($I$5+'Cash Flows'!$BX$6+INDEX('Cash Flows'!$C$17:$BW$17,1,MATCH(EOMONTH(AT56,MOD(-MONTH(AT56),3)-3),'Cash Flows'!$C$4:$BW$4,0)))-SUM($AJ$5,$AA$5))/$E$14))),IF(AX56=0,"",AX56)) ->  | BB56: =IF($E$5="Uniform Inputs",IF($Z56>$E$15,"",IF($E$23="Pro-Rata",MIN(BD56*AW56,(($I$5+'Cash Flows'!$BX$6+INDEX('Cash Flows'!$C$17:$BW$17,1,MATCH(EOMONTH(BC56,MOD(-MONTH(BC56),3)-3),'Cash Flows'!$C$4:$BW$4,0)))-SUM($AS$5,$AJ$5,$AA$5))/$E$15),MIN($E$26,(($I$5+'Cash Flows'!$BX$6+INDEX('Cash Flows'!$C$17:$BW$17,1,MATCH(EOMONTH(BC56,MOD(-MONTH(BC56),3)-3),'Cash Flows'!$C$4:$BW$4,0)))-SUM($AS$5,$AJ$5,$AA$5))/$E$15))),IF(BG56=0,"",BG56)) ->  | BK56: =IF($E$5="Uniform Inputs",IF($Z56>$E$16,"",IF($E$23="Pro-Rata",MIN(BM56*BF56,(($I$5+'Cash Flows'!$BX$6+INDEX('Cash Flows'!$C$17:$BW$17,1,MATCH(EOMONTH(BL56,MOD(-MONTH(BL56),3)-3),'Cash Flows'!$C$4:$BW$4,0)))-SUM($BB$5,$AS$5,$AJ$5,$AA$5))/$E$16),MIN($E$27,(($I$5+'Cash Flows'!$BX$6+INDEX('Cash Flows'!$C$17:$BW$17,1,MATCH(EOMONTH(BL56,MOD(-MONTH(BL56),3)-3),'Cash Flows'!$C$4:$BW$4,0)))-SUM($BB$5,$AS$5,$AJ$5,$AA$5))/$E$16))),IF(BP56=0,"",BP56)) -> 
Y57: 52 | AA57: =IF($E$5="Uniform Inputs",IF($Z57>$E$12,"",MIN($E$21,($I$5+'Cash Flows'!$BX$6+INDEX('Cash Flows'!$C$17:$BW$17,1,MATCH(EOMONTH(AB57,MOD(-MONTH(AB57),3)-3),'Cash Flows'!$C$4:$BW$4,0)))/$E$12)),IF(AF57>0,AF57,"")) ->  | AJ57: =IF($E$5="Uniform Inputs",IF($Z57>$E$13,"",IF($E$23="Pro-Rata",MIN(AL57*AE57,(($I$5+'Cash Flows'!$BX$6+INDEX('Cash Flows'!$C$17:$BW$17,1,MATCH(EOMONTH(AK57,MOD(-MONTH(AK57),3)-3),'Cash Flows'!$C$4:$BW$4,0)))-$AA$5)/$E$13),MIN($E$24,(($I$5+'Cash Flows'!$BX$6+INDEX('Cash Flows'!$C$17:$BW$17,1,MATCH(EOMONTH(AK57,MOD(-MONTH(AK57),3)-3),'Cash Flows'!$C$4:$BW$4,0)))-$AA$5)/$E$13))),IF(AO57=0,"",AO57)) ->  | AS57: =IF($E$5="Uniform Inputs",IF($Z57>$E$14,"",IF($E$23="Pro-Rata",MIN(AU57*AN57,(($I$5+'Cash Flows'!$BX$6+INDEX('Cash Flows'!$C$17:$BW$17,1,MATCH(EOMONTH(AT57,MOD(-MONTH(AT57),3)-3),'Cash Flows'!$C$4:$BW$4,0)))-SUM($AJ$5,$AA$5))/$E$14),MIN($E$25,(($I$5+'Cash Flows'!$BX$6+INDEX('Cash Flows'!$C$17:$BW$17,1,MATCH(EOMONTH(AT57,MOD(-MONTH(AT57),3)-3),'Cash Flows'!$C$4:$BW$4,0)))-SUM($AJ$5,$AA$5))/$E$14))),IF(AX57=0,"",AX57)) ->  | BB57: =IF($E$5="Uniform Inputs",IF($Z57>$E$15,"",IF($E$23="Pro-Rata",MIN(BD57*AW57,(($I$5+'Cash Flows'!$BX$6+INDEX('Cash Flows'!$C$17:$BW$17,1,MATCH(EOMONTH(BC57,MOD(-MONTH(BC57),3)-3),'Cash Flows'!$C$4:$BW$4,0)))-SUM($AS$5,$AJ$5,$AA$5))/$E$15),MIN($E$26,(($I$5+'Cash Flows'!$BX$6+INDEX('Cash Flows'!$C$17:$BW$17,1,MATCH(EOMONTH(BC57,MOD(-MONTH(BC57),3)-3),'Cash Flows'!$C$4:$BW$4,0)))-SUM($AS$5,$AJ$5,$AA$5))/$E$15))),IF(BG57=0,"",BG57)) ->  | BK57: =IF($E$5="Uniform Inputs",IF($Z57>$E$16,"",IF($E$23="Pro-Rata",MIN(BM57*BF57,(($I$5+'Cash Flows'!$BX$6+INDEX('Cash Flows'!$C$17:$BW$17,1,MATCH(EOMONTH(BL57,MOD(-MONTH(BL57),3)-3),'Cash Flows'!$C$4:$BW$4,0)))-SUM($BB$5,$AS$5,$AJ$5,$AA$5))/$E$16),MIN($E$27,(($I$5+'Cash Flows'!$BX$6+INDEX('Cash Flows'!$C$17:$BW$17,1,MATCH(EOMONTH(BL57,MOD(-MONTH(BL57),3)-3),'Cash Flows'!$C$4:$BW$4,0)))-SUM($BB$5,$AS$5,$AJ$5,$AA$5))/$E$16))),IF(BP57=0,"",BP57)) -> 
Y58: 53 | AA58: =IF($E$5="Uniform Inputs",IF($Z58>$E$12,"",MIN($E$21,($I$5+'Cash Flows'!$BX$6+INDEX('Cash Flows'!$C$17:$BW$17,1,MATCH(EOMONTH(AB58,MOD(-MONTH(AB58),3)-3),'Cash Flows'!$C$4:$BW$4,0)))/$E$12)),IF(AF58>0,AF58,"")) ->  | AJ58: =IF($E$5="Uniform Inputs",IF($Z58>$E$13,"",IF($E$23="Pro-Rata",MIN(AL58*AE58,(($I$5+'Cash Flows'!$BX$6+INDEX('Cash Flows'!$C$17:$BW$17,1,MATCH(EOMONTH(AK58,MOD(-MONTH(AK58),3)-3),'Cash Flows'!$C$4:$BW$4,0)))-$AA$5)/$E$13),MIN($E$24,(($I$5+'Cash Flows'!$BX$6+INDEX('Cash Flows'!$C$17:$BW$17,1,MATCH(EOMONTH(AK58,MOD(-MONTH(AK58),3)-3),'Cash Flows'!$C$4:$BW$4,0)))-$AA$5)/$E$13))),IF(AO58=0,"",AO58)) ->  | AS58: =IF($E$5="Uniform Inputs",IF($Z58>$E$14,"",IF($E$23="Pro-Rata",MIN(AU58*AN58,(($I$5+'Cash Flows'!$BX$6+INDEX('Cash Flows'!$C$17:$BW$17,1,MATCH(EOMONTH(AT58,MOD(-MONTH(AT58),3)-3),'Cash Flows'!$C$4:$BW$4,0)))-SUM($AJ$5,$AA$5))/$E$14),MIN($E$25,(($I$5+'Cash Flows'!$BX$6+INDEX('Cash Flows'!$C$17:$BW$17,1,MATCH(EOMONTH(AT58,MOD(-MONTH(AT58),3)-3),'Cash Flows'!$C$4:$BW$4,0)))-SUM($AJ$5,$AA$5))/$E$14))),IF(AX58=0,"",AX58)) ->  | BB58: =IF($E$5="Uniform Inputs",IF($Z58>$E$15,"",IF($E$23="Pro-Rata",MIN(BD58*AW58,(($I$5+'Cash Flows'!$BX$6+INDEX('Cash Flows'!$C$17:$BW$17,1,MATCH(EOMONTH(BC58,MOD(-MONTH(BC58),3)-3),'Cash Flows'!$C$4:$BW$4,0)))-SUM($AS$5,$AJ$5,$AA$5))/$E$15),MIN($E$26,(($I$5+'Cash Flows'!$BX$6+INDEX('Cash Flows'!$C$17:$BW$17,1,MATCH(EOMONTH(BC58,MOD(-MONTH(BC58),3)-3),'Cash Flows'!$C$4:$BW$4,0)))-SUM($AS$5,$AJ$5,$AA$5))/$E$15))),IF(BG58=0,"",BG58)) ->  | BK58: =IF($E$5="Uniform Inputs",IF($Z58>$E$16,"",IF($E$23="Pro-Rata",MIN(BM58*BF58,(($I$5+'Cash Flows'!$BX$6+INDEX('Cash Flows'!$C$17:$BW$17,1,MATCH(EOMONTH(BL58,MOD(-MONTH(BL58),3)-3),'Cash Flows'!$C$4:$BW$4,0)))-SUM($BB$5,$AS$5,$AJ$5,$AA$5))/$E$16),MIN($E$27,(($I$5+'Cash Flows'!$BX$6+INDEX('Cash Flows'!$C$17:$BW$17,1,MATCH(EOMONTH(BL58,MOD(-MONTH(BL58),3)-3),'Cash Flows'!$C$4:$BW$4,0)))-SUM($BB$5,$AS$5,$AJ$5,$AA$5))/$E$16))),IF(BP58=0,"",BP58)) -> 
Y59: 54 | AA59: =IF($E$5="Uniform Inputs",IF($Z59>$E$12,"",MIN($E$21,($I$5+'Cash Flows'!$BX$6+INDEX('Cash Flows'!$C$17:$BW$17,1,MATCH(EOMONTH(AB59,MOD(-MONTH(AB59),3)-3),'Cash Flows'!$C$4:$BW$4,0)))/$E$12)),IF(AF59>0,AF59,"")) ->  | AJ59: =IF($E$5="Uniform Inputs",IF($Z59>$E$13,"",IF($E$23="Pro-Rata",MIN(AL59*AE59,(($I$5+'Cash Flows'!$BX$6+INDEX('Cash Flows'!$C$17:$BW$17,1,MATCH(EOMONTH(AK59,MOD(-MONTH(AK59),3)-3),'Cash Flows'!$C$4:$BW$4,0)))-$AA$5)/$E$13),MIN($E$24,(($I$5+'Cash Flows'!$BX$6+INDEX('Cash Flows'!$C$17:$BW$17,1,MATCH(EOMONTH(AK59,MOD(-MONTH(AK59),3)-3),'Cash Flows'!$C$4:$BW$4,0)))-$AA$5)/$E$13))),IF(AO59=0,"",AO59)) ->  | AS59: =IF($E$5="Uniform Inputs",IF($Z59>$E$14,"",IF($E$23="Pro-Rata",MIN(AU59*AN59,(($I$5+'Cash Flows'!$BX$6+INDEX('Cash Flows'!$C$17:$BW$17,1,MATCH(EOMONTH(AT59,MOD(-MONTH(AT59),3)-3),'Cash Flows'!$C$4:$BW$4,0)))-SUM($AJ$5,$AA$5))/$E$14),MIN($E$25,(($I$5+'Cash Flows'!$BX$6+INDEX('Cash Flows'!$C$17:$BW$17,1,MATCH(EOMONTH(AT59,MOD(-MONTH(AT59),3)-3),'Cash Flows'!$C$4:$BW$4,0)))-SUM($AJ$5,$AA$5))/$E$14))),IF(AX59=0,"",AX59)) ->  | BB59: =IF($E$5="Uniform Inputs",IF($Z59>$E$15,"",IF($E$23="Pro-Rata",MIN(BD59*AW59,(($I$5+'Cash Flows'!$BX$6+INDEX('Cash Flows'!$C$17:$BW$17,1,MATCH(EOMONTH(BC59,MOD(-MONTH(BC59),3)-3),'Cash Flows'!$C$4:$BW$4,0)))-SUM($AS$5,$AJ$5,$AA$5))/$E$15),MIN($E$26,(($I$5+'Cash Flows'!$BX$6+INDEX('Cash Flows'!$C$17:$BW$17,1,MATCH(EOMONTH(BC59,MOD(-MONTH(BC59),3)-3),'Cash Flows'!$C$4:$BW$4,0)))-SUM($AS$5,$AJ$5,$AA$5))/$E$15))),IF(BG59=0,"",BG59)) ->  | BK59: =IF($E$5="Uniform Inputs",IF($Z59>$E$16,"",IF($E$23="Pro-Rata",MIN(BM59*BF59,(($I$5+'Cash Flows'!$BX$6+INDEX('Cash Flows'!$C$17:$BW$17,1,MATCH(EOMONTH(BL59,MOD(-MONTH(BL59),3)-3),'Cash Flows'!$C$4:$BW$4,0)))-SUM($BB$5,$AS$5,$AJ$5,$AA$5))/$E$16),MIN($E$27,(($I$5+'Cash Flows'!$BX$6+INDEX('Cash Flows'!$C$17:$BW$17,1,MATCH(EOMONTH(BL59,MOD(-MONTH(BL59),3)-3),'Cash Flows'!$C$4:$BW$4,0)))-SUM($BB$5,$AS$5,$AJ$5,$AA$5))/$E$16))),IF(BP59=0,"",BP59)) -> 
Y60: 55 | AA60: =IF($E$5="Uniform Inputs",IF($Z60>$E$12,"",MIN($E$21,($I$5+'Cash Flows'!$BX$6+INDEX('Cash Flows'!$C$17:$BW$17,1,MATCH(EOMONTH(AB60,MOD(-MONTH(AB60),3)-3),'Cash Flows'!$C$4:$BW$4,0)))/$E$12)),IF(AF60>0,AF60,"")) ->  | AJ60: =IF($E$5="Uniform Inputs",IF($Z60>$E$13,"",IF($E$23="Pro-Rata",MIN(AL60*AE60,(($I$5+'Cash Flows'!$BX$6+INDEX('Cash Flows'!$C$17:$BW$17,1,MATCH(EOMONTH(AK60,MOD(-MONTH(AK60),3)-3),'Cash Flows'!$C$4:$BW$4,0)))-$AA$5)/$E$13),MIN($E$24,(($I$5+'Cash Flows'!$BX$6+INDEX('Cash Flows'!$C$17:$BW$17,1,MATCH(EOMONTH(AK60,MOD(-MONTH(AK60),3)-3),'Cash Flows'!$C$4:$BW$4,0)))-$AA$5)/$E$13))),IF(AO60=0,"",AO60)) ->  | AS60: =IF($E$5="Uniform Inputs",IF($Z60>$E$14,"",IF($E$23="Pro-Rata",MIN(AU60*AN60,(($I$5+'Cash Flows'!$BX$6+INDEX('Cash Flows'!$C$17:$BW$17,1,MATCH(EOMONTH(AT60,MOD(-MONTH(AT60),3)-3),'Cash Flows'!$C$4:$BW$4,0)))-SUM($AJ$5,$AA$5))/$E$14),MIN($E$25,(($I$5+'Cash Flows'!$BX$6+INDEX('Cash Flows'!$C$17:$BW$17,1,MATCH(EOMONTH(AT60,MOD(-MONTH(AT60),3)-3),'Cash Flows'!$C$4:$BW$4,0)))-SUM($AJ$5,$AA$5))/$E$14))),IF(AX60=0,"",AX60)) ->  | BB60: =IF($E$5="Uniform Inputs",IF($Z60>$E$15,"",IF($E$23="Pro-Rata",MIN(BD60*AW60,(($I$5+'Cash Flows'!$BX$6+INDEX('Cash Flows'!$C$17:$BW$17,1,MATCH(EOMONTH(BC60,MOD(-MONTH(BC60),3)-3),'Cash Flows'!$C$4:$BW$4,0)))-SUM($AS$5,$AJ$5,$AA$5))/$E$15),MIN($E$26,(($I$5+'Cash Flows'!$BX$6+INDEX('Cash Flows'!$C$17:$BW$17,1,MATCH(EOMONTH(BC60,MOD(-MONTH(BC60),3)-3),'Cash Flows'!$C$4:$BW$4,0)))-SUM($AS$5,$AJ$5,$AA$5))/$E$15))),IF(BG60=0,"",BG60)) ->  | BK60: =IF($E$5="Uniform Inputs",IF($Z60>$E$16,"",IF($E$23="Pro-Rata",MIN(BM60*BF60,(($I$5+'Cash Flows'!$BX$6+INDEX('Cash Flows'!$C$17:$BW$17,1,MATCH(EOMONTH(BL60,MOD(-MONTH(BL60),3)-3),'Cash Flows'!$C$4:$BW$4,0)))-SUM($BB$5,$AS$5,$AJ$5,$AA$5))/$E$16),MIN($E$27,(($I$5+'Cash Flows'!$BX$6+INDEX('Cash Flows'!$C$17:$BW$17,1,MATCH(EOMONTH(BL60,MOD(-MONTH(BL60),3)-3),'Cash Flows'!$C$4:$BW$4,0)))-SUM($BB$5,$AS$5,$AJ$5,$AA$5))/$E$16))),IF(BP60=0,"",BP60)) -> 
Y61: 56 | AA61: =IF($E$5="Uniform Inputs",IF($Z61>$E$12,"",MIN($E$21,($I$5+'Cash Flows'!$BX$6+INDEX('Cash Flows'!$C$17:$BW$17,1,MATCH(EOMONTH(AB61,MOD(-MONTH(AB61),3)-3),'Cash Flows'!$C$4:$BW$4,0)))/$E$12)),IF(AF61>0,AF61,"")) ->  | AJ61: =IF($E$5="Uniform Inputs",IF($Z61>$E$13,"",IF($E$23="Pro-Rata",MIN(AL61*AE61,(($I$5+'Cash Flows'!$BX$6+INDEX('Cash Flows'!$C$17:$BW$17,1,MATCH(EOMONTH(AK61,MOD(-MONTH(AK61),3)-3),'Cash Flows'!$C$4:$BW$4,0)))-$AA$5)/$E$13),MIN($E$24,(($I$5+'Cash Flows'!$BX$6+INDEX('Cash Flows'!$C$17:$BW$17,1,MATCH(EOMONTH(AK61,MOD(-MONTH(AK61),3)-3),'Cash Flows'!$C$4:$BW$4,0)))-$AA$5)/$E$13))),IF(AO61=0,"",AO61)) ->  | AS61: =IF($E$5="Uniform Inputs",IF($Z61>$E$14,"",IF($E$23="Pro-Rata",MIN(AU61*AN61,(($I$5+'Cash Flows'!$BX$6+INDEX('Cash Flows'!$C$17:$BW$17,1,MATCH(EOMONTH(AT61,MOD(-MONTH(AT61),3)-3),'Cash Flows'!$C$4:$BW$4,0)))-SUM($AJ$5,$AA$5))/$E$14),MIN($E$25,(($I$5+'Cash Flows'!$BX$6+INDEX('Cash Flows'!$C$17:$BW$17,1,MATCH(EOMONTH(AT61,MOD(-MONTH(AT61),3)-3),'Cash Flows'!$C$4:$BW$4,0)))-SUM($AJ$5,$AA$5))/$E$14))),IF(AX61=0,"",AX61)) ->  | BB61: =IF($E$5="Uniform Inputs",IF($Z61>$E$15,"",IF($E$23="Pro-Rata",MIN(BD61*AW61,(($I$5+'Cash Flows'!$BX$6+INDEX('Cash Flows'!$C$17:$BW$17,1,MATCH(EOMONTH(BC61,MOD(-MONTH(BC61),3)-3),'Cash Flows'!$C$4:$BW$4,0)))-SUM($AS$5,$AJ$5,$AA$5))/$E$15),MIN($E$26,(($I$5+'Cash Flows'!$BX$6+INDEX('Cash Flows'!$C$17:$BW$17,1,MATCH(EOMONTH(BC61,MOD(-MONTH(BC61),3)-3),'Cash Flows'!$C$4:$BW$4,0)))-SUM($AS$5,$AJ$5,$AA$5))/$E$15))),IF(BG61=0,"",BG61)) ->  | BK61: =IF($E$5="Uniform Inputs",IF($Z61>$E$16,"",IF($E$23="Pro-Rata",MIN(BM61*BF61,(($I$5+'Cash Flows'!$BX$6+INDEX('Cash Flows'!$C$17:$BW$17,1,MATCH(EOMONTH(BL61,MOD(-MONTH(BL61),3)-3),'Cash Flows'!$C$4:$BW$4,0)))-SUM($BB$5,$AS$5,$AJ$5,$AA$5))/$E$16),MIN($E$27,(($I$5+'Cash Flows'!$BX$6+INDEX('Cash Flows'!$C$17:$BW$17,1,MATCH(EOMONTH(BL61,MOD(-MONTH(BL61),3)-3),'Cash Flows'!$C$4:$BW$4,0)))-SUM($BB$5,$AS$5,$AJ$5,$AA$5))/$E$16))),IF(BP61=0,"",BP61)) -> 
Y62: 57 | AA62: =IF($E$5="Uniform Inputs",IF($Z62>$E$12,"",MIN($E$21,($I$5+'Cash Flows'!$BX$6+INDEX('Cash Flows'!$C$17:$BW$17,1,MATCH(EOMONTH(AB62,MOD(-MONTH(AB62),3)-3),'Cash Flows'!$C$4:$BW$4,0)))/$E$12)),IF(AF62>0,AF62,"")) ->  | AJ62: =IF($E$5="Uniform Inputs",IF($Z62>$E$13,"",IF($E$23="Pro-Rata",MIN(AL62*AE62,(($I$5+'Cash Flows'!$BX$6+INDEX('Cash Flows'!$C$17:$BW$17,1,MATCH(EOMONTH(AK62,MOD(-MONTH(AK62),3)-3),'Cash Flows'!$C$4:$BW$4,0)))-$AA$5)/$E$13),MIN($E$24,(($I$5+'Cash Flows'!$BX$6+INDEX('Cash Flows'!$C$17:$BW$17,1,MATCH(EOMONTH(AK62,MOD(-MONTH(AK62),3)-3),'Cash Flows'!$C$4:$BW$4,0)))-$AA$5)/$E$13))),IF(AO62=0,"",AO62)) ->  | AS62: =IF($E$5="Uniform Inputs",IF($Z62>$E$14,"",IF($E$23="Pro-Rata",MIN(AU62*AN62,(($I$5+'Cash Flows'!$BX$6+INDEX('Cash Flows'!$C$17:$BW$17,1,MATCH(EOMONTH(AT62,MOD(-MONTH(AT62),3)-3),'Cash Flows'!$C$4:$BW$4,0)))-SUM($AJ$5,$AA$5))/$E$14),MIN($E$25,(($I$5+'Cash Flows'!$BX$6+INDEX('Cash Flows'!$C$17:$BW$17,1,MATCH(EOMONTH(AT62,MOD(-MONTH(AT62),3)-3),'Cash Flows'!$C$4:$BW$4,0)))-SUM($AJ$5,$AA$5))/$E$14))),IF(AX62=0,"",AX62)) ->  | BB62: =IF($E$5="Uniform Inputs",IF($Z62>$E$15,"",IF($E$23="Pro-Rata",MIN(BD62*AW62,(($I$5+'Cash Flows'!$BX$6+INDEX('Cash Flows'!$C$17:$BW$17,1,MATCH(EOMONTH(BC62,MOD(-MONTH(BC62),3)-3),'Cash Flows'!$C$4:$BW$4,0)))-SUM($AS$5,$AJ$5,$AA$5))/$E$15),MIN($E$26,(($I$5+'Cash Flows'!$BX$6+INDEX('Cash Flows'!$C$17:$BW$17,1,MATCH(EOMONTH(BC62,MOD(-MONTH(BC62),3)-3),'Cash Flows'!$C$4:$BW$4,0)))-SUM($AS$5,$AJ$5,$AA$5))/$E$15))),IF(BG62=0,"",BG62)) ->  | BK62: =IF($E$5="Uniform Inputs",IF($Z62>$E$16,"",IF($E$23="Pro-Rata",MIN(BM62*BF62,(($I$5+'Cash Flows'!$BX$6+INDEX('Cash Flows'!$C$17:$BW$17,1,MATCH(EOMONTH(BL62,MOD(-MONTH(BL62),3)-3),'Cash Flows'!$C$4:$BW$4,0)))-SUM($BB$5,$AS$5,$AJ$5,$AA$5))/$E$16),MIN($E$27,(($I$5+'Cash Flows'!$BX$6+INDEX('Cash Flows'!$C$17:$BW$17,1,MATCH(EOMONTH(BL62,MOD(-MONTH(BL62),3)-3),'Cash Flows'!$C$4:$BW$4,0)))-SUM($BB$5,$AS$5,$AJ$5,$AA$5))/$E$16))),IF(BP62=0,"",BP62)) -> 
Y63: 58 | AA63: =IF($E$5="Uniform Inputs",IF($Z63>$E$12,"",MIN($E$21,($I$5+'Cash Flows'!$BX$6+INDEX('Cash Flows'!$C$17:$BW$17,1,MATCH(EOMONTH(AB63,MOD(-MONTH(AB63),3)-3),'Cash Flows'!$C$4:$BW$4,0)))/$E$12)),IF(AF63>0,AF63,"")) ->  | AJ63: =IF($E$5="Uniform Inputs",IF($Z63>$E$13,"",IF($E$23="Pro-Rata",MIN(AL63*AE63,(($I$5+'Cash Flows'!$BX$6+INDEX('Cash Flows'!$C$17:$BW$17,1,MATCH(EOMONTH(AK63,MOD(-MONTH(AK63),3)-3),'Cash Flows'!$C$4:$BW$4,0)))-$AA$5)/$E$13),MIN($E$24,(($I$5+'Cash Flows'!$BX$6+INDEX('Cash Flows'!$C$17:$BW$17,1,MATCH(EOMONTH(AK63,MOD(-MONTH(AK63),3)-3),'Cash Flows'!$C$4:$BW$4,0)))-$AA$5)/$E$13))),IF(AO63=0,"",AO63)) ->  | AS63: =IF($E$5="Uniform Inputs",IF($Z63>$E$14,"",IF($E$23="Pro-Rata",MIN(AU63*AN63,(($I$5+'Cash Flows'!$BX$6+INDEX('Cash Flows'!$C$17:$BW$17,1,MATCH(EOMONTH(AT63,MOD(-MONTH(AT63),3)-3),'Cash Flows'!$C$4:$BW$4,0)))-SUM($AJ$5,$AA$5))/$E$14),MIN($E$25,(($I$5+'Cash Flows'!$BX$6+INDEX('Cash Flows'!$C$17:$BW$17,1,MATCH(EOMONTH(AT63,MOD(-MONTH(AT63),3)-3),'Cash Flows'!$C$4:$BW$4,0)))-SUM($AJ$5,$AA$5))/$E$14))),IF(AX63=0,"",AX63)) ->  | BB63: =IF($E$5="Uniform Inputs",IF($Z63>$E$15,"",IF($E$23="Pro-Rata",MIN(BD63*AW63,(($I$5+'Cash Flows'!$BX$6+INDEX('Cash Flows'!$C$17:$BW$17,1,MATCH(EOMONTH(BC63,MOD(-MONTH(BC63),3)-3),'Cash Flows'!$C$4:$BW$4,0)))-SUM($AS$5,$AJ$5,$AA$5))/$E$15),MIN($E$26,(($I$5+'Cash Flows'!$BX$6+INDEX('Cash Flows'!$C$17:$BW$17,1,MATCH(EOMONTH(BC63,MOD(-MONTH(BC63),3)-3),'Cash Flows'!$C$4:$BW$4,0)))-SUM($AS$5,$AJ$5,$AA$5))/$E$15))),IF(BG63=0,"",BG63)) ->  | BK63: =IF($E$5="Uniform Inputs",IF($Z63>$E$16,"",IF($E$23="Pro-Rata",MIN(BM63*BF63,(($I$5+'Cash Flows'!$BX$6+INDEX('Cash Flows'!$C$17:$BW$17,1,MATCH(EOMONTH(BL63,MOD(-MONTH(BL63),3)-3),'Cash Flows'!$C$4:$BW$4,0)))-SUM($BB$5,$AS$5,$AJ$5,$AA$5))/$E$16),MIN($E$27,(($I$5+'Cash Flows'!$BX$6+INDEX('Cash Flows'!$C$17:$BW$17,1,MATCH(EOMONTH(BL63,MOD(-MONTH(BL63),3)-3),'Cash Flows'!$C$4:$BW$4,0)))-SUM($BB$5,$AS$5,$AJ$5,$AA$5))/$E$16))),IF(BP63=0,"",BP63)) -> 
Y64: 59 | AA64: =IF($E$5="Uniform Inputs",IF($Z64>$E$12,"",MIN($E$21,($I$5+'Cash Flows'!$BX$6+INDEX('Cash Flows'!$C$17:$BW$17,1,MATCH(EOMONTH(AB64,MOD(-MONTH(AB64),3)-3),'Cash Flows'!$C$4:$BW$4,0)))/$E$12)),IF(AF64>0,AF64,"")) ->  | AJ64: =IF($E$5="Uniform Inputs",IF($Z64>$E$13,"",IF($E$23="Pro-Rata",MIN(AL64*AE64,(($I$5+'Cash Flows'!$BX$6+INDEX('Cash Flows'!$C$17:$BW$17,1,MATCH(EOMONTH(AK64,MOD(-MONTH(AK64),3)-3),'Cash Flows'!$C$4:$BW$4,0)))-$AA$5)/$E$13),MIN($E$24,(($I$5+'Cash Flows'!$BX$6+INDEX('Cash Flows'!$C$17:$BW$17,1,MATCH(EOMONTH(AK64,MOD(-MONTH(AK64),3)-3),'Cash Flows'!$C$4:$BW$4,0)))-$AA$5)/$E$13))),IF(AO64=0,"",AO64)) ->  | AS64: =IF($E$5="Uniform Inputs",IF($Z64>$E$14,"",IF($E$23="Pro-Rata",MIN(AU64*AN64,(($I$5+'Cash Flows'!$BX$6+INDEX('Cash Flows'!$C$17:$BW$17,1,MATCH(EOMONTH(AT64,MOD(-MONTH(AT64),3)-3),'Cash Flows'!$C$4:$BW$4,0)))-SUM($AJ$5,$AA$5))/$E$14),MIN($E$25,(($I$5+'Cash Flows'!$BX$6+INDEX('Cash Flows'!$C$17:$BW$17,1,MATCH(EOMONTH(AT64,MOD(-MONTH(AT64),3)-3),'Cash Flows'!$C$4:$BW$4,0)))-SUM($AJ$5,$AA$5))/$E$14))),IF(AX64=0,"",AX64)) ->  | BB64: =IF($E$5="Uniform Inputs",IF($Z64>$E$15,"",IF($E$23="Pro-Rata",MIN(BD64*AW64,(($I$5+'Cash Flows'!$BX$6+INDEX('Cash Flows'!$C$17:$BW$17,1,MATCH(EOMONTH(BC64,MOD(-MONTH(BC64),3)-3),'Cash Flows'!$C$4:$BW$4,0)))-SUM($AS$5,$AJ$5,$AA$5))/$E$15),MIN($E$26,(($I$5+'Cash Flows'!$BX$6+INDEX('Cash Flows'!$C$17:$BW$17,1,MATCH(EOMONTH(BC64,MOD(-MONTH(BC64),3)-3),'Cash Flows'!$C$4:$BW$4,0)))-SUM($AS$5,$AJ$5,$AA$5))/$E$15))),IF(BG64=0,"",BG64)) ->  | BK64: =IF($E$5="Uniform Inputs",IF($Z64>$E$16,"",IF($E$23="Pro-Rata",MIN(BM64*BF64,(($I$5+'Cash Flows'!$BX$6+INDEX('Cash Flows'!$C$17:$BW$17,1,MATCH(EOMONTH(BL64,MOD(-MONTH(BL64),3)-3),'Cash Flows'!$C$4:$BW$4,0)))-SUM($BB$5,$AS$5,$AJ$5,$AA$5))/$E$16),MIN($E$27,(($I$5+'Cash Flows'!$BX$6+INDEX('Cash Flows'!$C$17:$BW$17,1,MATCH(EOMONTH(BL64,MOD(-MONTH(BL64),3)-3),'Cash Flows'!$C$4:$BW$4,0)))-SUM($BB$5,$AS$5,$AJ$5,$AA$5))/$E$16))),IF(BP64=0,"",BP64)) -> 
Y65: 60 | AA65: =IF($E$5="Uniform Inputs",IF($Z65>$E$12,"",MIN($E$21,($I$5+'Cash Flows'!$BX$6+INDEX('Cash Flows'!$C$17:$BW$17,1,MATCH(EOMONTH(AB65,MOD(-MONTH(AB65),3)-3),'Cash Flows'!$C$4:$BW$4,0)))/$E$12)),IF(AF65>0,AF65,"")) ->  | AJ65: =IF($E$5="Uniform Inputs",IF($Z65>$E$13,"",IF($E$23="Pro-Rata",MIN(AL65*AE65,(($I$5+'Cash Flows'!$BX$6+INDEX('Cash Flows'!$C$17:$BW$17,1,MATCH(EOMONTH(AK65,MOD(-MONTH(AK65),3)-3),'Cash Flows'!$C$4:$BW$4,0)))-$AA$5)/$E$13),MIN($E$24,(($I$5+'Cash Flows'!$BX$6+INDEX('Cash Flows'!$C$17:$BW$17,1,MATCH(EOMONTH(AK65,MOD(-MONTH(AK65),3)-3),'Cash Flows'!$C$4:$BW$4,0)))-$AA$5)/$E$13))),IF(AO65=0,"",AO65)) ->  | AS65: =IF($E$5="Uniform Inputs",IF($Z65>$E$14,"",IF($E$23="Pro-Rata",MIN(AU65*AN65,(($I$5+'Cash Flows'!$BX$6+INDEX('Cash Flows'!$C$17:$BW$17,1,MATCH(EOMONTH(AT65,MOD(-MONTH(AT65),3)-3),'Cash Flows'!$C$4:$BW$4,0)))-SUM($AJ$5,$AA$5))/$E$14),MIN($E$25,(($I$5+'Cash Flows'!$BX$6+INDEX('Cash Flows'!$C$17:$BW$17,1,MATCH(EOMONTH(AT65,MOD(-MONTH(AT65),3)-3),'Cash Flows'!$C$4:$BW$4,0)))-SUM($AJ$5,$AA$5))/$E$14))),IF(AX65=0,"",AX65)) ->  | BB65: =IF($E$5="Uniform Inputs",IF($Z65>$E$15,"",IF($E$23="Pro-Rata",MIN(BD65*AW65,(($I$5+'Cash Flows'!$BX$6+INDEX('Cash Flows'!$C$17:$BW$17,1,MATCH(EOMONTH(BC65,MOD(-MONTH(BC65),3)-3),'Cash Flows'!$C$4:$BW$4,0)))-SUM($AS$5,$AJ$5,$AA$5))/$E$15),MIN($E$26,(($I$5+'Cash Flows'!$BX$6+INDEX('Cash Flows'!$C$17:$BW$17,1,MATCH(EOMONTH(BC65,MOD(-MONTH(BC65),3)-3),'Cash Flows'!$C$4:$BW$4,0)))-SUM($AS$5,$AJ$5,$AA$5))/$E$15))),IF(BG65=0,"",BG65)) ->  | BK65: =IF($E$5="Uniform Inputs",IF($Z65>$E$16,"",IF($E$23="Pro-Rata",MIN(BM65*BF65,(($I$5+'Cash Flows'!$BX$6+INDEX('Cash Flows'!$C$17:$BW$17,1,MATCH(EOMONTH(BL65,MOD(-MONTH(BL65),3)-3),'Cash Flows'!$C$4:$BW$4,0)))-SUM($BB$5,$AS$5,$AJ$5,$AA$5))/$E$16),MIN($E$27,(($I$5+'Cash Flows'!$BX$6+INDEX('Cash Flows'!$C$17:$BW$17,1,MATCH(EOMONTH(BL65,MOD(-MONTH(BL65),3)-3),'Cash Flows'!$C$4:$BW$4,0)))-SUM($BB$5,$AS$5,$AJ$5,$AA$5))/$E$16))),IF(BP65=0,"",BP65)) -> 
Y66: 61 | AA66: =IF($E$5="Uniform Inputs",IF($Z66>$E$12,"",MIN($E$21,($I$5+'Cash Flows'!$BX$6+INDEX('Cash Flows'!$C$17:$BW$17,1,MATCH(EOMONTH(AB66,MOD(-MONTH(AB66),3)-3),'Cash Flows'!$C$4:$BW$4,0)))/$E$12)),IF(AF66>0,AF66,"")) ->  | AJ66: =IF($E$5="Uniform Inputs",IF($Z66>$E$13,"",IF($E$23="Pro-Rata",MIN(AL66*AE66,(($I$5+'Cash Flows'!$BX$6+INDEX('Cash Flows'!$C$17:$BW$17,1,MATCH(EOMONTH(AK66,MOD(-MONTH(AK66),3)-3),'Cash Flows'!$C$4:$BW$4,0)))-$AA$5)/$E$13),MIN($E$24,(($I$5+'Cash Flows'!$BX$6+INDEX('Cash Flows'!$C$17:$BW$17,1,MATCH(EOMONTH(AK66,MOD(-MONTH(AK66),3)-3),'Cash Flows'!$C$4:$BW$4,0)))-$AA$5)/$E$13))),IF(AO66=0,"",AO66)) ->  | AS66: =IF($E$5="Uniform Inputs",IF($Z66>$E$14,"",IF($E$23="Pro-Rata",MIN(AU66*AN66,(($I$5+'Cash Flows'!$BX$6+INDEX('Cash Flows'!$C$17:$BW$17,1,MATCH(EOMONTH(AT66,MOD(-MONTH(AT66),3)-3),'Cash Flows'!$C$4:$BW$4,0)))-SUM($AJ$5,$AA$5))/$E$14),MIN($E$25,(($I$5+'Cash Flows'!$BX$6+INDEX('Cash Flows'!$C$17:$BW$17,1,MATCH(EOMONTH(AT66,MOD(-MONTH(AT66),3)-3),'Cash Flows'!$C$4:$BW$4,0)))-SUM($AJ$5,$AA$5))/$E$14))),IF(AX66=0,"",AX66)) ->  | BB66: =IF($E$5="Uniform Inputs",IF($Z66>$E$15,"",IF($E$23="Pro-Rata",MIN(BD66*AW66,(($I$5+'Cash Flows'!$BX$6+INDEX('Cash Flows'!$C$17:$BW$17,1,MATCH(EOMONTH(BC66,MOD(-MONTH(BC66),3)-3),'Cash Flows'!$C$4:$BW$4,0)))-SUM($AS$5,$AJ$5,$AA$5))/$E$15),MIN($E$26,(($I$5+'Cash Flows'!$BX$6+INDEX('Cash Flows'!$C$17:$BW$17,1,MATCH(EOMONTH(BC66,MOD(-MONTH(BC66),3)-3),'Cash Flows'!$C$4:$BW$4,0)))-SUM($AS$5,$AJ$5,$AA$5))/$E$15))),IF(BG66=0,"",BG66)) ->  | BK66: =IF($E$5="Uniform Inputs",IF($Z66>$E$16,"",IF($E$23="Pro-Rata",MIN(BM66*BF66,(($I$5+'Cash Flows'!$BX$6+INDEX('Cash Flows'!$C$17:$BW$17,1,MATCH(EOMONTH(BL66,MOD(-MONTH(BL66),3)-3),'Cash Flows'!$C$4:$BW$4,0)))-SUM($BB$5,$AS$5,$AJ$5,$AA$5))/$E$16),MIN($E$27,(($I$5+'Cash Flows'!$BX$6+INDEX('Cash Flows'!$C$17:$BW$17,1,MATCH(EOMONTH(BL66,MOD(-MONTH(BL66),3)-3),'Cash Flows'!$C$4:$BW$4,0)))-SUM($BB$5,$AS$5,$AJ$5,$AA$5))/$E$16))),IF(BP66=0,"",BP66)) -> 
Y67: 62 | AA67: =IF($E$5="Uniform Inputs",IF($Z67>$E$12,"",MIN($E$21,($I$5+'Cash Flows'!$BX$6+INDEX('Cash Flows'!$C$17:$BW$17,1,MATCH(EOMONTH(AB67,MOD(-MONTH(AB67),3)-3),'Cash Flows'!$C$4:$BW$4,0)))/$E$12)),IF(AF67>0,AF67,"")) ->  | AJ67: =IF($E$5="Uniform Inputs",IF($Z67>$E$13,"",IF($E$23="Pro-Rata",MIN(AL67*AE67,(($I$5+'Cash Flows'!$BX$6+INDEX('Cash Flows'!$C$17:$BW$17,1,MATCH(EOMONTH(AK67,MOD(-MONTH(AK67),3)-3),'Cash Flows'!$C$4:$BW$4,0)))-$AA$5)/$E$13),MIN($E$24,(($I$5+'Cash Flows'!$BX$6+INDEX('Cash Flows'!$C$17:$BW$17,1,MATCH(EOMONTH(AK67,MOD(-MONTH(AK67),3)-3),'Cash Flows'!$C$4:$BW$4,0)))-$AA$5)/$E$13))),IF(AO67=0,"",AO67)) ->  | AS67: =IF($E$5="Uniform Inputs",IF($Z67>$E$14,"",IF($E$23="Pro-Rata",MIN(AU67*AN67,(($I$5+'Cash Flows'!$BX$6+INDEX('Cash Flows'!$C$17:$BW$17,1,MATCH(EOMONTH(AT67,MOD(-MONTH(AT67),3)-3),'Cash Flows'!$C$4:$BW$4,0)))-SUM($AJ$5,$AA$5))/$E$14),MIN($E$25,(($I$5+'Cash Flows'!$BX$6+INDEX('Cash Flows'!$C$17:$BW$17,1,MATCH(EOMONTH(AT67,MOD(-MONTH(AT67),3)-3),'Cash Flows'!$C$4:$BW$4,0)))-SUM($AJ$5,$AA$5))/$E$14))),IF(AX67=0,"",AX67)) ->  | BB67: =IF($E$5="Uniform Inputs",IF($Z67>$E$15,"",IF($E$23="Pro-Rata",MIN(BD67*AW67,(($I$5+'Cash Flows'!$BX$6+INDEX('Cash Flows'!$C$17:$BW$17,1,MATCH(EOMONTH(BC67,MOD(-MONTH(BC67),3)-3),'Cash Flows'!$C$4:$BW$4,0)))-SUM($AS$5,$AJ$5,$AA$5))/$E$15),MIN($E$26,(($I$5+'Cash Flows'!$BX$6+INDEX('Cash Flows'!$C$17:$BW$17,1,MATCH(EOMONTH(BC67,MOD(-MONTH(BC67),3)-3),'Cash Flows'!$C$4:$BW$4,0)))-SUM($AS$5,$AJ$5,$AA$5))/$E$15))),IF(BG67=0,"",BG67)) ->  | BK67: =IF($E$5="Uniform Inputs",IF($Z67>$E$16,"",IF($E$23="Pro-Rata",MIN(BM67*BF67,(($I$5+'Cash Flows'!$BX$6+INDEX('Cash Flows'!$C$17:$BW$17,1,MATCH(EOMONTH(BL67,MOD(-MONTH(BL67),3)-3),'Cash Flows'!$C$4:$BW$4,0)))-SUM($BB$5,$AS$5,$AJ$5,$AA$5))/$E$16),MIN($E$27,(($I$5+'Cash Flows'!$BX$6+INDEX('Cash Flows'!$C$17:$BW$17,1,MATCH(EOMONTH(BL67,MOD(-MONTH(BL67),3)-3),'Cash Flows'!$C$4:$BW$4,0)))-SUM($BB$5,$AS$5,$AJ$5,$AA$5))/$E$16))),IF(BP67=0,"",BP67)) -> 
Y68: 63 | AA68: =IF($E$5="Uniform Inputs",IF($Z68>$E$12,"",MIN($E$21,($I$5+'Cash Flows'!$BX$6+INDEX('Cash Flows'!$C$17:$BW$17,1,MATCH(EOMONTH(AB68,MOD(-MONTH(AB68),3)-3),'Cash Flows'!$C$4:$BW$4,0)))/$E$12)),IF(AF68>0,AF68,"")) ->  | AJ68: =IF($E$5="Uniform Inputs",IF($Z68>$E$13,"",IF($E$23="Pro-Rata",MIN(AL68*AE68,(($I$5+'Cash Flows'!$BX$6+INDEX('Cash Flows'!$C$17:$BW$17,1,MATCH(EOMONTH(AK68,MOD(-MONTH(AK68),3)-3),'Cash Flows'!$C$4:$BW$4,0)))-$AA$5)/$E$13),MIN($E$24,(($I$5+'Cash Flows'!$BX$6+INDEX('Cash Flows'!$C$17:$BW$17,1,MATCH(EOMONTH(AK68,MOD(-MONTH(AK68),3)-3),'Cash Flows'!$C$4:$BW$4,0)))-$AA$5)/$E$13))),IF(AO68=0,"",AO68)) ->  | AS68: =IF($E$5="Uniform Inputs",IF($Z68>$E$14,"",IF($E$23="Pro-Rata",MIN(AU68*AN68,(($I$5+'Cash Flows'!$BX$6+INDEX('Cash Flows'!$C$17:$BW$17,1,MATCH(EOMONTH(AT68,MOD(-MONTH(AT68),3)-3),'Cash Flows'!$C$4:$BW$4,0)))-SUM($AJ$5,$AA$5))/$E$14),MIN($E$25,(($I$5+'Cash Flows'!$BX$6+INDEX('Cash Flows'!$C$17:$BW$17,1,MATCH(EOMONTH(AT68,MOD(-MONTH(AT68),3)-3),'Cash Flows'!$C$4:$BW$4,0)))-SUM($AJ$5,$AA$5))/$E$14))),IF(AX68=0,"",AX68)) ->  | BB68: =IF($E$5="Uniform Inputs",IF($Z68>$E$15,"",IF($E$23="Pro-Rata",MIN(BD68*AW68,(($I$5+'Cash Flows'!$BX$6+INDEX('Cash Flows'!$C$17:$BW$17,1,MATCH(EOMONTH(BC68,MOD(-MONTH(BC68),3)-3),'Cash Flows'!$C$4:$BW$4,0)))-SUM($AS$5,$AJ$5,$AA$5))/$E$15),MIN($E$26,(($I$5+'Cash Flows'!$BX$6+INDEX('Cash Flows'!$C$17:$BW$17,1,MATCH(EOMONTH(BC68,MOD(-MONTH(BC68),3)-3),'Cash Flows'!$C$4:$BW$4,0)))-SUM($AS$5,$AJ$5,$AA$5))/$E$15))),IF(BG68=0,"",BG68)) ->  | BK68: =IF($E$5="Uniform Inputs",IF($Z68>$E$16,"",IF($E$23="Pro-Rata",MIN(BM68*BF68,(($I$5+'Cash Flows'!$BX$6+INDEX('Cash Flows'!$C$17:$BW$17,1,MATCH(EOMONTH(BL68,MOD(-MONTH(BL68),3)-3),'Cash Flows'!$C$4:$BW$4,0)))-SUM($BB$5,$AS$5,$AJ$5,$AA$5))/$E$16),MIN($E$27,(($I$5+'Cash Flows'!$BX$6+INDEX('Cash Flows'!$C$17:$BW$17,1,MATCH(EOMONTH(BL68,MOD(-MONTH(BL68),3)-3),'Cash Flows'!$C$4:$BW$4,0)))-SUM($BB$5,$AS$5,$AJ$5,$AA$5))/$E$16))),IF(BP68=0,"",BP68)) -> 
Y69: 64 | AA69: =IF($E$5="Uniform Inputs",IF($Z69>$E$12,"",MIN($E$21,($I$5+'Cash Flows'!$BX$6+INDEX('Cash Flows'!$C$17:$BW$17,1,MATCH(EOMONTH(AB69,MOD(-MONTH(AB69),3)-3),'Cash Flows'!$C$4:$BW$4,0)))/$E$12)),IF(AF69>0,AF69,"")) ->  | AJ69: =IF($E$5="Uniform Inputs",IF($Z69>$E$13,"",IF($E$23="Pro-Rata",MIN(AL69*AE69,(($I$5+'Cash Flows'!$BX$6+INDEX('Cash Flows'!$C$17:$BW$17,1,MATCH(EOMONTH(AK69,MOD(-MONTH(AK69),3)-3),'Cash Flows'!$C$4:$BW$4,0)))-$AA$5)/$E$13),MIN($E$24,(($I$5+'Cash Flows'!$BX$6+INDEX('Cash Flows'!$C$17:$BW$17,1,MATCH(EOMONTH(AK69,MOD(-MONTH(AK69),3)-3),'Cash Flows'!$C$4:$BW$4,0)))-$AA$5)/$E$13))),IF(AO69=0,"",AO69)) ->  | AS69: =IF($E$5="Uniform Inputs",IF($Z69>$E$14,"",IF($E$23="Pro-Rata",MIN(AU69*AN69,(($I$5+'Cash Flows'!$BX$6+INDEX('Cash Flows'!$C$17:$BW$17,1,MATCH(EOMONTH(AT69,MOD(-MONTH(AT69),3)-3),'Cash Flows'!$C$4:$BW$4,0)))-SUM($AJ$5,$AA$5))/$E$14),MIN($E$25,(($I$5+'Cash Flows'!$BX$6+INDEX('Cash Flows'!$C$17:$BW$17,1,MATCH(EOMONTH(AT69,MOD(-MONTH(AT69),3)-3),'Cash Flows'!$C$4:$BW$4,0)))-SUM($AJ$5,$AA$5))/$E$14))),IF(AX69=0,"",AX69)) ->  | BB69: =IF($E$5="Uniform Inputs",IF($Z69>$E$15,"",IF($E$23="Pro-Rata",MIN(BD69*AW69,(($I$5+'Cash Flows'!$BX$6+INDEX('Cash Flows'!$C$17:$BW$17,1,MATCH(EOMONTH(BC69,MOD(-MONTH(BC69),3)-3),'Cash Flows'!$C$4:$BW$4,0)))-SUM($AS$5,$AJ$5,$AA$5))/$E$15),MIN($E$26,(($I$5+'Cash Flows'!$BX$6+INDEX('Cash Flows'!$C$17:$BW$17,1,MATCH(EOMONTH(BC69,MOD(-MONTH(BC69),3)-3),'Cash Flows'!$C$4:$BW$4,0)))-SUM($AS$5,$AJ$5,$AA$5))/$E$15))),IF(BG69=0,"",BG69)) ->  | BK69: =IF($E$5="Uniform Inputs",IF($Z69>$E$16,"",IF($E$23="Pro-Rata",MIN(BM69*BF69,(($I$5+'Cash Flows'!$BX$6+INDEX('Cash Flows'!$C$17:$BW$17,1,MATCH(EOMONTH(BL69,MOD(-MONTH(BL69),3)-3),'Cash Flows'!$C$4:$BW$4,0)))-SUM($BB$5,$AS$5,$AJ$5,$AA$5))/$E$16),MIN($E$27,(($I$5+'Cash Flows'!$BX$6+INDEX('Cash Flows'!$C$17:$BW$17,1,MATCH(EOMONTH(BL69,MOD(-MONTH(BL69),3)-3),'Cash Flows'!$C$4:$BW$4,0)))-SUM($BB$5,$AS$5,$AJ$5,$AA$5))/$E$16))),IF(BP69=0,"",BP69)) -> 
P70: =IF(AA70="",IF(AJ70="",IF(AS70="",IF(BB70="",IF(BK70="","",$BK$3),$BB$3),$AS$3),$AJ$3),$AA$3) ->  | Q70: =IF($E$5="Uniform Inputs",AE70,IF(P70=$AA$3,AE70,IF(P70=$AJ$3,AN70,IF(P70=$AS$3,AW70,IF(P70=$BB$3,BF70,IF(P70=$BK$3,BO70,"")))))) ->  | R70: =IFERROR(OFFSET($Z$6,MATCH($K70,$Z$6:$Z$105,0)-1,MATCH($M70,$AA$3:$CY$3,0)+4),"") ->  | T70: =IFERROR(IF($E$5="Uniform Inputs",OFFSET($Z$6,MATCH($K70,$Z$6:$Z$105,0)-1,MATCH($M70,$AA$3:$CY$3,0)+1)+(365*$E$28),OFFSET($Z$6,MATCH($K70,$Z$6:$Z$105,0)-1,MATCH($M70,$AA$3:$CY$3,0)+6)+(365*$E$28)),"") ->  | V70: =IFERROR(R70*L70,"") ->  | Y70: 65 | AA70: =IF($E$5="Uniform Inputs",IF($Z70>$E$12,"",MIN($E$21,($I$5+'Cash Flows'!$BX$6+INDEX('Cash Flows'!$C$17:$BW$17,1,MATCH(EOMONTH(AB70,MOD(-MONTH(AB70),3)-3),'Cash Flows'!$C$4:$BW$4,0)))/$E$12)),IF(AF70>0,AF70,"")) ->  | AC70: =IFERROR(IF($Z70>$E$12,"",IF($E$5="Uniform Inputs",INDEX($D$44:$E$52,MATCH($AA$3,$B$44:$B$52,0),MATCH(AC$4,$D$43:$E$43,0)),IF(AH70=0,"",AH70))),"") ->  | AD70: =IFERROR(IF($Z70>$E$12,"",IF($E$5="Uniform Inputs",INDEX($D$44:$E$52,MATCH($AA$3,$B$44:$B$52,0),MATCH(AD$4,$D$43:$E$43,0)),IF(AI70=0,"",AI70))),"") ->  | AJ70: =IF($E$5="Uniform Inputs",IF($Z70>$E$13,"",IF($E$23="Pro-Rata",MIN(AL70*AE70,(($I$5+'Cash Flows'!$BX$6+INDEX('Cash Flows'!$C$17:$BW$17,1,MATCH(EOMONTH(AK70,MOD(-MONTH(AK70),3)-3),'Cash Flows'!$C$4:$BW$4,0)))-$AA$5)/$E$13),MIN($E$24,(($I$5+'Cash Flows'!$BX$6+INDEX('Cash Flows'!$C$17:$BW$17,1,MATCH(EOMONTH(AK70,MOD(-MONTH(AK70),3)-3),'Cash Flows'!$C$4:$BW$4,0)))-$AA$5)/$E$13))),IF(AO70=0,"",AO70)) ->  | AK70: =IF($E$5="Uniform Inputs",IF($Z70>$E$12,"",AB70+(365*$E$28)),IF(AP70=0,"",AP70)) ->  | AL70: =IFERROR(IF($Z70>$E$12,"",IF($E$5="Uniform Inputs",INDEX($D$44:$E$52,MATCH($AJ$3,$B$44:$B$52,0),MATCH(AL$4,$D$43:$E$43,0)),IF(AQ70=0,"",AQ70))),"") ->  | AM70: =IFERROR(IF($Z70>$E$12,"",IF($E$5="Uniform Inputs",INDEX($D$44:$E$52,MATCH($AJ$3,$B$44:$B$52,0),MATCH(AM$4,$D$43:$E$43,0)),IF(AR70=0,"",AR70))),"") ->  | AN70: =IFERROR(IF($E$5="Uniform Inputs",(AE70*(AM70-AL70)+IF(AJ70="",0,AJ70))/AM70,IF(AE70="",AJ70/AM70,(AE70*(AM70-AL70)+IF(AJ70="",0,AJ70))/AM70)),"") ->  | AS70: =IF($E$5="Uniform Inputs",IF($Z70>$E$14,"",IF($E$23="Pro-Rata",MIN(AU70*AN70,(($I$5+'Cash Flows'!$BX$6+INDEX('Cash Flows'!$C$17:$BW$17,1,MATCH(EOMONTH(AT70,MOD(-MONTH(AT70),3)-3),'Cash Flows'!$C$4:$BW$4,0)))-SUM($AJ$5,$AA$5))/$E$14),MIN($E$25,(($I$5+'Cash Flows'!$BX$6+INDEX('Cash Flows'!$C$17:$BW$17,1,MATCH(EOMONTH(AT70,MOD(-MONTH(AT70),3)-3),'Cash Flows'!$C$4:$BW$4,0)))-SUM($AJ$5,$AA$5))/$E$14))),IF(AX70=0,"",AX70)) ->  | AT70: =IF($E$5="Uniform Inputs",IF($Z70>$E$12,"",AK70+(365*$E$28)),IF(AY70=0,"",AY70)) ->  | AU70: =IFERROR(IF($Z70>$E$12,"",IF($E$5="Uniform Inputs",INDEX($D$44:$E$52,MATCH($AS$3,$B$44:$B$52,0),MATCH(AU$4,$D$43:$E$43,0)),IF(AZ70=0,"",AZ70))),"") ->  | AV70: =IFERROR(IF($Z70>$E$12,"",IF($E$5="Uniform Inputs",INDEX($D$44:$E$52,MATCH($AS$3,$B$44:$B$52,0),MATCH(AV$4,$D$43:$E$43,0)),IF(BA70=0,"",BA70))),"") ->  | AW70: =IFERROR(IF($E$5="Uniform Inputs",(AN70*(AV70-AU70)+IF(AS70="",0,AS70))/AV70,IF(AN70="",AS70/AV70,(AN70*(AV70-AU70)+IF(AS70="",0,AS70))/AV70)),"") ->  | BB70: =IF($E$5="Uniform Inputs",IF($Z70>$E$15,"",IF($E$23="Pro-Rata",MIN(BD70*AW70,(($I$5+'Cash Flows'!$BX$6+INDEX('Cash Flows'!$C$17:$BW$17,1,MATCH(EOMONTH(BC70,MOD(-MONTH(BC70),3)-3),'Cash Flows'!$C$4:$BW$4,0)))-SUM($AS$5,$AJ$5,$AA$5))/$E$15),MIN($E$26,(($I$5+'Cash Flows'!$BX$6+INDEX('Cash Flows'!$C$17:$BW$17,1,MATCH(EOMONTH(BC70,MOD(-MONTH(BC70),3)-3),'Cash Flows'!$C$4:$BW$4,0)))-SUM($AS$5,$AJ$5,$AA$5))/$E$15))),IF(BG70=0,"",BG70)) ->  | BC70: =IF($E$5="Uniform Inputs",IF($Z70>$E$12,"",AT70+(365*$E$28)),IF(BH70=0,"",BH70)) ->  | BD70: =IFERROR(IF($Z70>$E$12,"",IF($E$5="Uniform Inputs",INDEX($D$44:$E$52,MATCH($BB$3,$B$44:$B$52,0),MATCH(BD$4,$D$43:$E$43,0)),IF(BI70=0,"",BI70))),"") ->  | BE70: =IFERROR(IF($Z70>$E$12,"",IF($E$5="Uniform Inputs",INDEX($D$44:$E$52,MATCH($BB$3,$B$44:$B$52,0),MATCH(BE$4,$D$43:$E$43,0)),IF(BJ70=0,"",BJ70))),"") ->  | BF70: =IFERROR(IF($E$5="Uniform Inputs",(AW70*(BE70-BD70)+IF(BB70="",0,BB70))/BE70,IF(AW70="",BB70/BE70,(AW70*(BE70-BD70)+IF(BB70="",0,BB70))/BE70)),"") ->  | BK70: =IF($E$5="Uniform Inputs",IF($Z70>$E$16,"",IF($E$23="Pro-Rata",MIN(BM70*BF70,(($I$5+'Cash Flows'!$BX$6+INDEX('Cash Flows'!$C$17:$BW$17,1,MATCH(EOMONTH(BL70,MOD(-MONTH(BL70),3)-3),'Cash Flows'!$C$4:$BW$4,0)))-SUM($BB$5,$AS$5,$AJ$5,$AA$5))/$E$16),MIN($E$27,(($I$5+'Cash Flows'!$BX$6+INDEX('Cash Flows'!$C$17:$BW$17,1,MATCH(EOMONTH(BL70,MOD(-MONTH(BL70),3)-3),'Cash Flows'!$C$4:$BW$4,0)))-SUM($BB$5,$AS$5,$AJ$5,$AA$5))/$E$16))),IF(BP70=0,"",BP70)) ->  | BL70: =IF($E$5="Uniform Inputs",IF($Z70>$E$12,"",BC70+(365*$E$28)),IF(BQ70=0,"",BQ70)) ->  | BM70: =IFERROR(IF($Z70>$E$12,"",IF($E$5="Uniform Inputs",INDEX($D$44:$E$52,MATCH($BK$3,$B$44:$B$52,0),MATCH(BM$4,$D$43:$E$43,0)),IF(BR70=0,"",BR70))),"") ->  | BN70: =IFERROR(IF($Z70>$E$12,"",IF($E$5="Uniform Inputs",INDEX($D$44:$E$52,MATCH($BK$3,$B$44:$B$52,0),MATCH(BN$4,$D$43:$E$43,0)),IF(BS70=0,"",BS70))),"") ->  | BO70: =IFERROR(IF($E$5="Uniform Inputs",(BF70*(BN70-BM70)+IF(BK70="",0,BK70))/BN70,IF(BF70="",BK70/BN70,(BF70*(BN70-BM70)+IF(BK70="",0,BK70))/BN70)),"") ->  | BU70: =IF($E$5="Uniform Inputs",IF($Z70>$E$12,"",BL70+(365*$E$28)),IF(BZ70=0,"",BZ70)) ->  | BV70: =IFERROR(IF($Z70>$E$12,"",IF($E$5="Uniform Inputs",INDEX($D$44:$E$52,MATCH($BT$3,$B$44:$B$52,0),MATCH(BV$4,$D$43:$E$43,0)),IF(CA70=0,"",CA70))),"") ->  | BW70: =IFERROR(IF($Z70>$E$12,"",IF($E$5="Uniform Inputs",INDEX($D$44:$E$52,MATCH($BT$3,$B$44:$B$52,0),MATCH(BW$4,$D$43:$E$43,0)),IF(CB70=0,"",CB70))),"") ->  | BX70: =IFERROR(IF($E$5="Uniform Inputs",(BO70*(BW70-BV70)+IF(BT70="",0,BT70))/BW70,IF(BO70="",BT70/BW70,(BO70*(BW70-BV70)+IF(BT70="",0,BT70))/BW70)),"") ->  | CD70: =IF($E$5="Uniform Inputs",IF($Z70>$E$12,"",BU70+(365*$E$28)),IF(CI70=0,"",CI70)) ->  | CE70: =IFERROR(IF($Z70>$E$12,"",IF($E$5="Uniform Inputs",INDEX($D$44:$E$52,MATCH($CC$3,$B$44:$B$52,0),MATCH(CE$4,$D$43:$E$43,0)),IF(CJ70=0,"",CJ70))),"") ->  | CF70: =IFERROR(IF($Z70>$E$12,"",IF($E$5="Uniform Inputs",INDEX($D$44:$E$52,MATCH($CC$3,$B$44:$B$52,0),MATCH(CF$4,$D$43:$E$43,0)),IF(CK70=0,"",CK70))),"") ->  | CG70: =IFERROR(IF($E$5="Uniform Inputs",(BX70*(CF70-CE70)+IF(CC70="",0,CC70))/CF70,IF(BX70="",CC70/CF70,(BX70*(CF70-CE70)+IF(CC70="",0,CC70))/CF70)),"") ->  | CM70: =IF($E$5="Uniform Inputs",IF($Z70>$E$12,"",CD70+(365*$E$28)),IF(CR70=0,"",CR70)) ->  | CN70: =IFERROR(IF($Z70>$E$12,"",IF($E$5="Uniform Inputs",INDEX($D$44:$E$52,MATCH($CL$3,$B$44:$B$52,0),MATCH(CN$4,$D$43:$E$43,0)),IF(CS70=0,"",CS70))),"") ->  | CO70: =IFERROR(IF($Z70>$E$12,"",IF($E$5="Uniform Inputs",INDEX($D$44:$E$52,MATCH($CL$3,$B$44:$B$52,0),MATCH(CO$4,$D$43:$E$43,0)),IF(CT70=0,"",CT70))),"") ->  | CP70: =IFERROR(IF($E$5="Uniform Inputs",(CG70*(CO70-CN70)+IF(CL70="",0,CL70))/CO70,IF(CG70="",CL70/CO70,(CG70*(CO70-CN70)+IF(CL70="",0,CL70))/CO70)),"") ->  | CV70: =IF($E$5="Uniform Inputs",IF($Z70>$E$12,"",CM70+(365*$E$28)),IF(DA70=0,"",DA70)) ->  | CW70: =IFERROR(IF($Z70>$E$12,"",IF($E$5="Uniform Inputs",INDEX($D$44:$E$52,MATCH($CU$3,$B$44:$B$52,0),MATCH(CW$4,$D$43:$E$43,0)),IF(DB70=0,"",DB70))),"") ->  | CX70: =IFERROR(IF($Z70>$E$12,"",IF($E$5="Uniform Inputs",INDEX($D$44:$E$52,MATCH($CU$3,$B$44:$B$52,0),MATCH(CX$4,$D$43:$E$43,0)),IF(DC70=0,"",DC70))),"") ->  | CY70: =IFERROR(IF($E$5="Uniform Inputs",(CP70*(CX70-CW70)+IF(CU70="",0,CU70))/CX70,IF(CP70="",CU70/CX70,(CP70*(CX70-CW70)+IF(CU70="",0,CU70))/CX70)),"") -> 
K71: =Z71 ->  | O71: =Z71 ->  | S71: =IF($E$5="Uniform Inputs",AB71,IF(P71=$AA$3,AB71,IF(P71=$AJ$3,AK71,IF(P71=$AS$3,AT71,IF(P71=$BB$3,BC71,IF(P71=$BK$3,BL71,"")))))) ->  | U71: =IF(SUM(AA71,AJ71,AS71,BB71,BK71,BT71,CC71,CL71)>0,SUM(AA71,AJ71,AS71,BB71,BK71,BT71,CC71,CL71),"") ->  | W71: =IFERROR(V71/U71,"") ->  | Y71: 66 | Z71: =IF(Y71>$E$12,"",Y71) ->  | AA71: =IF($E$5="Uniform Inputs",IF($Z71>$E$12,"",MIN($E$21,($I$5+'Cash Flows'!$BX$6+INDEX('Cash Flows'!$C$17:$BW$17,1,MATCH(EOMONTH(AB71,MOD(-MONTH(AB71),3)-3),'Cash Flows'!$C$4:$BW$4,0)))/$E$12)),IF(AF71>0,AF71,"")) ->  | AB71: =IF($E$5="Uniform Inputs",IF($Z71>$E$12,"",AB70+(30/$E$17)),IF(AG71="","",AG71)) ->  | AE71: =IFERROR(AA71/AD71,"") ->  | AJ71: =IF($E$5="Uniform Inputs",IF($Z71>$E$13,"",IF($E$23="Pro-Rata",MIN(AL71*AE71,(($I$5+'Cash Flows'!$BX$6+INDEX('Cash Flows'!$C$17:$BW$17,1,MATCH(EOMONTH(AK71,MOD(-MONTH(AK71),3)-3),'Cash Flows'!$C$4:$BW$4,0)))-$AA$5)/$E$13),MIN($E$24,(($I$5+'Cash Flows'!$BX$6+INDEX('Cash Flows'!$C$17:$BW$17,1,MATCH(EOMONTH(AK71,MOD(-MONTH(AK71),3)-3),'Cash Flows'!$C$4:$BW$4,0)))-$AA$5)/$E$13))),IF(AO71=0,"",AO71)) ->  | AS71: =IF($E$5="Uniform Inputs",IF($Z71>$E$14,"",IF($E$23="Pro-Rata",MIN(AU71*AN71,(($I$5+'Cash Flows'!$BX$6+INDEX('Cash Flows'!$C$17:$BW$17,1,MATCH(EOMONTH(AT71,MOD(-MONTH(AT71),3)-3),'Cash Flows'!$C$4:$BW$4,0)))-SUM($AJ$5,$AA$5))/$E$14),MIN($E$25,(($I$5+'Cash Flows'!$BX$6+INDEX('Cash Flows'!$C$17:$BW$17,1,MATCH(EOMONTH(AT71,MOD(-MONTH(AT71),3)-3),'Cash Flows'!$C$4:$BW$4,0)))-SUM($AJ$5,$AA$5))/$E$14))),IF(AX71=0,"",AX71)) ->  | BB71: =IF($E$5="Uniform Inputs",IF($Z71>$E$15,"",IF($E$23="Pro-Rata",MIN(BD71*AW71,(($I$5+'Cash Flows'!$BX$6+INDEX('Cash Flows'!$C$17:$BW$17,1,MATCH(EOMONTH(BC71,MOD(-MONTH(BC71),3)-3),'Cash Flows'!$C$4:$BW$4,0)))-SUM($AS$5,$AJ$5,$AA$5))/$E$15),MIN($E$26,(($I$5+'Cash Flows'!$BX$6+INDEX('Cash Flows'!$C$17:$BW$17,1,MATCH(EOMONTH(BC71,MOD(-MONTH(BC71),3)-3),'Cash Flows'!$C$4:$BW$4,0)))-SUM($AS$5,$AJ$5,$AA$5))/$E$15))),IF(BG71=0,"",BG71)) ->  | BK71: =IF($E$5="Uniform Inputs",IF($Z71>$E$16,"",IF($E$23="Pro-Rata",MIN(BM71*BF71,(($I$5+'Cash Flows'!$BX$6+INDEX('Cash Flows'!$C$17:$BW$17,1,MATCH(EOMONTH(BL71,MOD(-MONTH(BL71),3)-3),'Cash Flows'!$C$4:$BW$4,0)))-SUM($BB$5,$AS$5,$AJ$5,$AA$5))/$E$16),MIN($E$27,(($I$5+'Cash Flows'!$BX$6+INDEX('Cash Flows'!$C$17:$BW$17,1,MATCH(EOMONTH(BL71,MOD(-MONTH(BL71),3)-3),'Cash Flows'!$C$4:$BW$4,0)))-SUM($BB$5,$AS$5,$AJ$5,$AA$5))/$E$16))),IF(BP71=0,"",BP71)) ->  | BT71: =IF($E$5="Uniform Inputs","",IF(BY71>0,IF(BY71=0,"",BY71),"")) ->  | CC71: =IF($E$5="Uniform Inputs","",IF(CH71>0,IF(CH71=0,"",CH71),"")) ->  | CL71: =IF($E$5="Uniform Inputs","",IF(CQ71>0,IF(CQ71=0,"",CQ71),"")) ->  | CU71: =IF($E$5="Uniform Inputs","",IF(CZ71>0,IF(CZ71=0,"",CZ71),"")) -> 
Y72: 67 | AA72: =IF($E$5="Uniform Inputs",IF($Z72>$E$12,"",MIN($E$21,($I$5+'Cash Flows'!$BX$6+INDEX('Cash Flows'!$C$17:$BW$17,1,MATCH(EOMONTH(AB72,MOD(-MONTH(AB72),3)-3),'Cash Flows'!$C$4:$BW$4,0)))/$E$12)),IF(AF72>0,AF72,"")) ->  | AJ72: =IF($E$5="Uniform Inputs",IF($Z72>$E$13,"",IF($E$23="Pro-Rata",MIN(AL72*AE72,(($I$5+'Cash Flows'!$BX$6+INDEX('Cash Flows'!$C$17:$BW$17,1,MATCH(EOMONTH(AK72,MOD(-MONTH(AK72),3)-3),'Cash Flows'!$C$4:$BW$4,0)))-$AA$5)/$E$13),MIN($E$24,(($I$5+'Cash Flows'!$BX$6+INDEX('Cash Flows'!$C$17:$BW$17,1,MATCH(EOMONTH(AK72,MOD(-MONTH(AK72),3)-3),'Cash Flows'!$C$4:$BW$4,0)))-$AA$5)/$E$13))),IF(AO72=0,"",AO72)) ->  | AS72: =IF($E$5="Uniform Inputs",IF($Z72>$E$14,"",IF($E$23="Pro-Rata",MIN(AU72*AN72,(($I$5+'Cash Flows'!$BX$6+INDEX('Cash Flows'!$C$17:$BW$17,1,MATCH(EOMONTH(AT72,MOD(-MONTH(AT72),3)-3),'Cash Flows'!$C$4:$BW$4,0)))-SUM($AJ$5,$AA$5))/$E$14),MIN($E$25,(($I$5+'Cash Flows'!$BX$6+INDEX('Cash Flows'!$C$17:$BW$17,1,MATCH(EOMONTH(AT72,MOD(-MONTH(AT72),3)-3),'Cash Flows'!$C$4:$BW$4,0)))-SUM($AJ$5,$AA$5))/$E$14))),IF(AX72=0,"",AX72)) ->  | BB72: =IF($E$5="Uniform Inputs",IF($Z72>$E$15,"",IF($E$23="Pro-Rata",MIN(BD72*AW72,(($I$5+'Cash Flows'!$BX$6+INDEX('Cash Flows'!$C$17:$BW$17,1,MATCH(EOMONTH(BC72,MOD(-MONTH(BC72),3)-3),'Cash Flows'!$C$4:$BW$4,0)))-SUM($AS$5,$AJ$5,$AA$5))/$E$15),MIN($E$26,(($I$5+'Cash Flows'!$BX$6+INDEX('Cash Flows'!$C$17:$BW$17,1,MATCH(EOMONTH(BC72,MOD(-MONTH(BC72),3)-3),'Cash Flows'!$C$4:$BW$4,0)))-SUM($AS$5,$AJ$5,$AA$5))/$E$15))),IF(BG72=0,"",BG72)) ->  | BK72: =IF($E$5="Uniform Inputs",IF($Z72>$E$16,"",IF($E$23="Pro-Rata",MIN(BM72*BF72,(($I$5+'Cash Flows'!$BX$6+INDEX('Cash Flows'!$C$17:$BW$17,1,MATCH(EOMONTH(BL72,MOD(-MONTH(BL72),3)-3),'Cash Flows'!$C$4:$BW$4,0)))-SUM($BB$5,$AS$5,$AJ$5,$AA$5))/$E$16),MIN($E$27,(($I$5+'Cash Flows'!$BX$6+INDEX('Cash Flows'!$C$17:$BW$17,1,MATCH(EOMONTH(BL72,MOD(-MONTH(BL72),3)-3),'Cash Flows'!$C$4:$BW$4,0)))-SUM($BB$5,$AS$5,$AJ$5,$AA$5))/$E$16))),IF(BP72=0,"",BP72)) -> 
Y73: 68 | AA73: =IF($E$5="Uniform Inputs",IF($Z73>$E$12,"",MIN($E$21,($I$5+'Cash Flows'!$BX$6+INDEX('Cash Flows'!$C$17:$BW$17,1,MATCH(EOMONTH(AB73,MOD(-MONTH(AB73),3)-3),'Cash Flows'!$C$4:$BW$4,0)))/$E$12)),IF(AF73>0,AF73,"")) ->  | AJ73: =IF($E$5="Uniform Inputs",IF($Z73>$E$13,"",IF($E$23="Pro-Rata",MIN(AL73*AE73,(($I$5+'Cash Flows'!$BX$6+INDEX('Cash Flows'!$C$17:$BW$17,1,MATCH(EOMONTH(AK73,MOD(-MONTH(AK73),3)-3),'Cash Flows'!$C$4:$BW$4,0)))-$AA$5)/$E$13),MIN($E$24,(($I$5+'Cash Flows'!$BX$6+INDEX('Cash Flows'!$C$17:$BW$17,1,MATCH(EOMONTH(AK73,MOD(-MONTH(AK73),3)-3),'Cash Flows'!$C$4:$BW$4,0)))-$AA$5)/$E$13))),IF(AO73=0,"",AO73)) ->  | AS73: =IF($E$5="Uniform Inputs",IF($Z73>$E$14,"",IF($E$23="Pro-Rata",MIN(AU73*AN73,(($I$5+'Cash Flows'!$BX$6+INDEX('Cash Flows'!$C$17:$BW$17,1,MATCH(EOMONTH(AT73,MOD(-MONTH(AT73),3)-3),'Cash Flows'!$C$4:$BW$4,0)))-SUM($AJ$5,$AA$5))/$E$14),MIN($E$25,(($I$5+'Cash Flows'!$BX$6+INDEX('Cash Flows'!$C$17:$BW$17,1,MATCH(EOMONTH(AT73,MOD(-MONTH(AT73),3)-3),'Cash Flows'!$C$4:$BW$4,0)))-SUM($AJ$5,$AA$5))/$E$14))),IF(AX73=0,"",AX73)) ->  | BB73: =IF($E$5="Uniform Inputs",IF($Z73>$E$15,"",IF($E$23="Pro-Rata",MIN(BD73*AW73,(($I$5+'Cash Flows'!$BX$6+INDEX('Cash Flows'!$C$17:$BW$17,1,MATCH(EOMONTH(BC73,MOD(-MONTH(BC73),3)-3),'Cash Flows'!$C$4:$BW$4,0)))-SUM($AS$5,$AJ$5,$AA$5))/$E$15),MIN($E$26,(($I$5+'Cash Flows'!$BX$6+INDEX('Cash Flows'!$C$17:$BW$17,1,MATCH(EOMONTH(BC73,MOD(-MONTH(BC73),3)-3),'Cash Flows'!$C$4:$BW$4,0)))-SUM($AS$5,$AJ$5,$AA$5))/$E$15))),IF(BG73=0,"",BG73)) ->  | BK73: =IF($E$5="Uniform Inputs",IF($Z73>$E$16,"",IF($E$23="Pro-Rata",MIN(BM73*BF73,(($I$5+'Cash Flows'!$BX$6+INDEX('Cash Flows'!$C$17:$BW$17,1,MATCH(EOMONTH(BL73,MOD(-MONTH(BL73),3)-3),'Cash Flows'!$C$4:$BW$4,0)))-SUM($BB$5,$AS$5,$AJ$5,$AA$5))/$E$16),MIN($E$27,(($I$5+'Cash Flows'!$BX$6+INDEX('Cash Flows'!$C$17:$BW$17,1,MATCH(EOMONTH(BL73,MOD(-MONTH(BL73),3)-3),'Cash Flows'!$C$4:$BW$4,0)))-SUM($BB$5,$AS$5,$AJ$5,$AA$5))/$E$16))),IF(BP73=0,"",BP73)) -> 
Y74: 69 | AA74: =IF($E$5="Uniform Inputs",IF($Z74>$E$12,"",MIN($E$21,($I$5+'Cash Flows'!$BX$6+INDEX('Cash Flows'!$C$17:$BW$17,1,MATCH(EOMONTH(AB74,MOD(-MONTH(AB74),3)-3),'Cash Flows'!$C$4:$BW$4,0)))/$E$12)),IF(AF74>0,AF74,"")) ->  | AJ74: =IF($E$5="Uniform Inputs",IF($Z74>$E$13,"",IF($E$23="Pro-Rata",MIN(AL74*AE74,(($I$5+'Cash Flows'!$BX$6+INDEX('Cash Flows'!$C$17:$BW$17,1,MATCH(EOMONTH(AK74,MOD(-MONTH(AK74),3)-3),'Cash Flows'!$C$4:$BW$4,0)))-$AA$5)/$E$13),MIN($E$24,(($I$5+'Cash Flows'!$BX$6+INDEX('Cash Flows'!$C$17:$BW$17,1,MATCH(EOMONTH(AK74,MOD(-MONTH(AK74),3)-3),'Cash Flows'!$C$4:$BW$4,0)))-$AA$5)/$E$13))),IF(AO74=0,"",AO74)) ->  | AS74: =IF($E$5="Uniform Inputs",IF($Z74>$E$14,"",IF($E$23="Pro-Rata",MIN(AU74*AN74,(($I$5+'Cash Flows'!$BX$6+INDEX('Cash Flows'!$C$17:$BW$17,1,MATCH(EOMONTH(AT74,MOD(-MONTH(AT74),3)-3),'Cash Flows'!$C$4:$BW$4,0)))-SUM($AJ$5,$AA$5))/$E$14),MIN($E$25,(($I$5+'Cash Flows'!$BX$6+INDEX('Cash Flows'!$C$17:$BW$17,1,MATCH(EOMONTH(AT74,MOD(-MONTH(AT74),3)-3),'Cash Flows'!$C$4:$BW$4,0)))-SUM($AJ$5,$AA$5))/$E$14))),IF(AX74=0,"",AX74)) ->  | BB74: =IF($E$5="Uniform Inputs",IF($Z74>$E$15,"",IF($E$23="Pro-Rata",MIN(BD74*AW74,(($I$5+'Cash Flows'!$BX$6+INDEX('Cash Flows'!$C$17:$BW$17,1,MATCH(EOMONTH(BC74,MOD(-MONTH(BC74),3)-3),'Cash Flows'!$C$4:$BW$4,0)))-SUM($AS$5,$AJ$5,$AA$5))/$E$15),MIN($E$26,(($I$5+'Cash Flows'!$BX$6+INDEX('Cash Flows'!$C$17:$BW$17,1,MATCH(EOMONTH(BC74,MOD(-MONTH(BC74),3)-3),'Cash Flows'!$C$4:$BW$4,0)))-SUM($AS$5,$AJ$5,$AA$5))/$E$15))),IF(BG74=0,"",BG74)) ->  | BK74: =IF($E$5="Uniform Inputs",IF($Z74>$E$16,"",IF($E$23="Pro-Rata",MIN(BM74*BF74,(($I$5+'Cash Flows'!$BX$6+INDEX('Cash Flows'!$C$17:$BW$17,1,MATCH(EOMONTH(BL74,MOD(-MONTH(BL74),3)-3),'Cash Flows'!$C$4:$BW$4,0)))-SUM($BB$5,$AS$5,$AJ$5,$AA$5))/$E$16),MIN($E$27,(($I$5+'Cash Flows'!$BX$6+INDEX('Cash Flows'!$C$17:$BW$17,1,MATCH(EOMONTH(BL74,MOD(-MONTH(BL74),3)-3),'Cash Flows'!$C$4:$BW$4,0)))-SUM($BB$5,$AS$5,$AJ$5,$AA$5))/$E$16))),IF(BP74=0,"",BP74)) -> 
Y75: 70 | AA75: =IF($E$5="Uniform Inputs",IF($Z75>$E$12,"",MIN($E$21,($I$5+'Cash Flows'!$BX$6+INDEX('Cash Flows'!$C$17:$BW$17,1,MATCH(EOMONTH(AB75,MOD(-MONTH(AB75),3)-3),'Cash Flows'!$C$4:$BW$4,0)))/$E$12)),IF(AF75>0,AF75,"")) ->  | AJ75: =IF($E$5="Uniform Inputs",IF($Z75>$E$13,"",IF($E$23="Pro-Rata",MIN(AL75*AE75,(($I$5+'Cash Flows'!$BX$6+INDEX('Cash Flows'!$C$17:$BW$17,1,MATCH(EOMONTH(AK75,MOD(-MONTH(AK75),3)-3),'Cash Flows'!$C$4:$BW$4,0)))-$AA$5)/$E$13),MIN($E$24,(($I$5+'Cash Flows'!$BX$6+INDEX('Cash Flows'!$C$17:$BW$17,1,MATCH(EOMONTH(AK75,MOD(-MONTH(AK75),3)-3),'Cash Flows'!$C$4:$BW$4,0)))-$AA$5)/$E$13))),IF(AO75=0,"",AO75)) ->  | AS75: =IF($E$5="Uniform Inputs",IF($Z75>$E$14,"",IF($E$23="Pro-Rata",MIN(AU75*AN75,(($I$5+'Cash Flows'!$BX$6+INDEX('Cash Flows'!$C$17:$BW$17,1,MATCH(EOMONTH(AT75,MOD(-MONTH(AT75),3)-3),'Cash Flows'!$C$4:$BW$4,0)))-SUM($AJ$5,$AA$5))/$E$14),MIN($E$25,(($I$5+'Cash Flows'!$BX$6+INDEX('Cash Flows'!$C$17:$BW$17,1,MATCH(EOMONTH(AT75,MOD(-MONTH(AT75),3)-3),'Cash Flows'!$C$4:$BW$4,0)))-SUM($AJ$5,$AA$5))/$E$14))),IF(AX75=0,"",AX75)) ->  | BB75: =IF($E$5="Uniform Inputs",IF($Z75>$E$15,"",IF($E$23="Pro-Rata",MIN(BD75*AW75,(($I$5+'Cash Flows'!$BX$6+INDEX('Cash Flows'!$C$17:$BW$17,1,MATCH(EOMONTH(BC75,MOD(-MONTH(BC75),3)-3),'Cash Flows'!$C$4:$BW$4,0)))-SUM($AS$5,$AJ$5,$AA$5))/$E$15),MIN($E$26,(($I$5+'Cash Flows'!$BX$6+INDEX('Cash Flows'!$C$17:$BW$17,1,MATCH(EOMONTH(BC75,MOD(-MONTH(BC75),3)-3),'Cash Flows'!$C$4:$BW$4,0)))-SUM($AS$5,$AJ$5,$AA$5))/$E$15))),IF(BG75=0,"",BG75)) ->  | BK75: =IF($E$5="Uniform Inputs",IF($Z75>$E$16,"",IF($E$23="Pro-Rata",MIN(BM75*BF75,(($I$5+'Cash Flows'!$BX$6+INDEX('Cash Flows'!$C$17:$BW$17,1,MATCH(EOMONTH(BL75,MOD(-MONTH(BL75),3)-3),'Cash Flows'!$C$4:$BW$4,0)))-SUM($BB$5,$AS$5,$AJ$5,$AA$5))/$E$16),MIN($E$27,(($I$5+'Cash Flows'!$BX$6+INDEX('Cash Flows'!$C$17:$BW$17,1,MATCH(EOMONTH(BL75,MOD(-MONTH(BL75),3)-3),'Cash Flows'!$C$4:$BW$4,0)))-SUM($BB$5,$AS$5,$AJ$5,$AA$5))/$E$16))),IF(BP75=0,"",BP75)) -> 
Y76: 71 | AA76: =IF($E$5="Uniform Inputs",IF($Z76>$E$12,"",MIN($E$21,($I$5+'Cash Flows'!$BX$6+INDEX('Cash Flows'!$C$17:$BW$17,1,MATCH(EOMONTH(AB76,MOD(-MONTH(AB76),3)-3),'Cash Flows'!$C$4:$BW$4,0)))/$E$12)),IF(AF76>0,AF76,"")) ->  | AJ76: =IF($E$5="Uniform Inputs",IF($Z76>$E$13,"",IF($E$23="Pro-Rata",MIN(AL76*AE76,(($I$5+'Cash Flows'!$BX$6+INDEX('Cash Flows'!$C$17:$BW$17,1,MATCH(EOMONTH(AK76,MOD(-MONTH(AK76),3)-3),'Cash Flows'!$C$4:$BW$4,0)))-$AA$5)/$E$13),MIN($E$24,(($I$5+'Cash Flows'!$BX$6+INDEX('Cash Flows'!$C$17:$BW$17,1,MATCH(EOMONTH(AK76,MOD(-MONTH(AK76),3)-3),'Cash Flows'!$C$4:$BW$4,0)))-$AA$5)/$E$13))),IF(AO76=0,"",AO76)) ->  | AS76: =IF($E$5="Uniform Inputs",IF($Z76>$E$14,"",IF($E$23="Pro-Rata",MIN(AU76*AN76,(($I$5+'Cash Flows'!$BX$6+INDEX('Cash Flows'!$C$17:$BW$17,1,MATCH(EOMONTH(AT76,MOD(-MONTH(AT76),3)-3),'Cash Flows'!$C$4:$BW$4,0)))-SUM($AJ$5,$AA$5))/$E$14),MIN($E$25,(($I$5+'Cash Flows'!$BX$6+INDEX('Cash Flows'!$C$17:$BW$17,1,MATCH(EOMONTH(AT76,MOD(-MONTH(AT76),3)-3),'Cash Flows'!$C$4:$BW$4,0)))-SUM($AJ$5,$AA$5))/$E$14))),IF(AX76=0,"",AX76)) ->  | BB76: =IF($E$5="Uniform Inputs",IF($Z76>$E$15,"",IF($E$23="Pro-Rata",MIN(BD76*AW76,(($I$5+'Cash Flows'!$BX$6+INDEX('Cash Flows'!$C$17:$BW$17,1,MATCH(EOMONTH(BC76,MOD(-MONTH(BC76),3)-3),'Cash Flows'!$C$4:$BW$4,0)))-SUM($AS$5,$AJ$5,$AA$5))/$E$15),MIN($E$26,(($I$5+'Cash Flows'!$BX$6+INDEX('Cash Flows'!$C$17:$BW$17,1,MATCH(EOMONTH(BC76,MOD(-MONTH(BC76),3)-3),'Cash Flows'!$C$4:$BW$4,0)))-SUM($AS$5,$AJ$5,$AA$5))/$E$15))),IF(BG76=0,"",BG76)) ->  | BK76: =IF($E$5="Uniform Inputs",IF($Z76>$E$16,"",IF($E$23="Pro-Rata",MIN(BM76*BF76,(($I$5+'Cash Flows'!$BX$6+INDEX('Cash Flows'!$C$17:$BW$17,1,MATCH(EOMONTH(BL76,MOD(-MONTH(BL76),3)-3),'Cash Flows'!$C$4:$BW$4,0)))-SUM($BB$5,$AS$5,$AJ$5,$AA$5))/$E$16),MIN($E$27,(($I$5+'Cash Flows'!$BX$6+INDEX('Cash Flows'!$C$17:$BW$17,1,MATCH(EOMONTH(BL76,MOD(-MONTH(BL76),3)-3),'Cash Flows'!$C$4:$BW$4,0)))-SUM($BB$5,$AS$5,$AJ$5,$AA$5))/$E$16))),IF(BP76=0,"",BP76)) -> 
Y77: 72 | AA77: =IF($E$5="Uniform Inputs",IF($Z77>$E$12,"",MIN($E$21,($I$5+'Cash Flows'!$BX$6+INDEX('Cash Flows'!$C$17:$BW$17,1,MATCH(EOMONTH(AB77,MOD(-MONTH(AB77),3)-3),'Cash Flows'!$C$4:$BW$4,0)))/$E$12)),IF(AF77>0,AF77,"")) ->  | AJ77: =IF($E$5="Uniform Inputs",IF($Z77>$E$13,"",IF($E$23="Pro-Rata",MIN(AL77*AE77,(($I$5+'Cash Flows'!$BX$6+INDEX('Cash Flows'!$C$17:$BW$17,1,MATCH(EOMONTH(AK77,MOD(-MONTH(AK77),3)-3),'Cash Flows'!$C$4:$BW$4,0)))-$AA$5)/$E$13),MIN($E$24,(($I$5+'Cash Flows'!$BX$6+INDEX('Cash Flows'!$C$17:$BW$17,1,MATCH(EOMONTH(AK77,MOD(-MONTH(AK77),3)-3),'Cash Flows'!$C$4:$BW$4,0)))-$AA$5)/$E$13))),IF(AO77=0,"",AO77)) ->  | AS77: =IF($E$5="Uniform Inputs",IF($Z77>$E$14,"",IF($E$23="Pro-Rata",MIN(AU77*AN77,(($I$5+'Cash Flows'!$BX$6+INDEX('Cash Flows'!$C$17:$BW$17,1,MATCH(EOMONTH(AT77,MOD(-MONTH(AT77),3)-3),'Cash Flows'!$C$4:$BW$4,0)))-SUM($AJ$5,$AA$5))/$E$14),MIN($E$25,(($I$5+'Cash Flows'!$BX$6+INDEX('Cash Flows'!$C$17:$BW$17,1,MATCH(EOMONTH(AT77,MOD(-MONTH(AT77),3)-3),'Cash Flows'!$C$4:$BW$4,0)))-SUM($AJ$5,$AA$5))/$E$14))),IF(AX77=0,"",AX77)) ->  | BB77: =IF($E$5="Uniform Inputs",IF($Z77>$E$15,"",IF($E$23="Pro-Rata",MIN(BD77*AW77,(($I$5+'Cash Flows'!$BX$6+INDEX('Cash Flows'!$C$17:$BW$17,1,MATCH(EOMONTH(BC77,MOD(-MONTH(BC77),3)-3),'Cash Flows'!$C$4:$BW$4,0)))-SUM($AS$5,$AJ$5,$AA$5))/$E$15),MIN($E$26,(($I$5+'Cash Flows'!$BX$6+INDEX('Cash Flows'!$C$17:$BW$17,1,MATCH(EOMONTH(BC77,MOD(-MONTH(BC77),3)-3),'Cash Flows'!$C$4:$BW$4,0)))-SUM($AS$5,$AJ$5,$AA$5))/$E$15))),IF(BG77=0,"",BG77)) ->  | BK77: =IF($E$5="Uniform Inputs",IF($Z77>$E$16,"",IF($E$23="Pro-Rata",MIN(BM77*BF77,(($I$5+'Cash Flows'!$BX$6+INDEX('Cash Flows'!$C$17:$BW$17,1,MATCH(EOMONTH(BL77,MOD(-MONTH(BL77),3)-3),'Cash Flows'!$C$4:$BW$4,0)))-SUM($BB$5,$AS$5,$AJ$5,$AA$5))/$E$16),MIN($E$27,(($I$5+'Cash Flows'!$BX$6+INDEX('Cash Flows'!$C$17:$BW$17,1,MATCH(EOMONTH(BL77,MOD(-MONTH(BL77),3)-3),'Cash Flows'!$C$4:$BW$4,0)))-SUM($BB$5,$AS$5,$AJ$5,$AA$5))/$E$16))),IF(BP77=0,"",BP77)) -> 
Y78: 73 | AA78: =IF($E$5="Uniform Inputs",IF($Z78>$E$12,"",MIN($E$21,($I$5+'Cash Flows'!$BX$6+INDEX('Cash Flows'!$C$17:$BW$17,1,MATCH(EOMONTH(AB78,MOD(-MONTH(AB78),3)-3),'Cash Flows'!$C$4:$BW$4,0)))/$E$12)),IF(AF78>0,AF78,"")) ->  | AJ78: =IF($E$5="Uniform Inputs",IF($Z78>$E$13,"",IF($E$23="Pro-Rata",MIN(AL78*AE78,(($I$5+'Cash Flows'!$BX$6+INDEX('Cash Flows'!$C$17:$BW$17,1,MATCH(EOMONTH(AK78,MOD(-MONTH(AK78),3)-3),'Cash Flows'!$C$4:$BW$4,0)))-$AA$5)/$E$13),MIN($E$24,(($I$5+'Cash Flows'!$BX$6+INDEX('Cash Flows'!$C$17:$BW$17,1,MATCH(EOMONTH(AK78,MOD(-MONTH(AK78),3)-3),'Cash Flows'!$C$4:$BW$4,0)))-$AA$5)/$E$13))),IF(AO78=0,"",AO78)) ->  | AS78: =IF($E$5="Uniform Inputs",IF($Z78>$E$14,"",IF($E$23="Pro-Rata",MIN(AU78*AN78,(($I$5+'Cash Flows'!$BX$6+INDEX('Cash Flows'!$C$17:$BW$17,1,MATCH(EOMONTH(AT78,MOD(-MONTH(AT78),3)-3),'Cash Flows'!$C$4:$BW$4,0)))-SUM($AJ$5,$AA$5))/$E$14),MIN($E$25,(($I$5+'Cash Flows'!$BX$6+INDEX('Cash Flows'!$C$17:$BW$17,1,MATCH(EOMONTH(AT78,MOD(-MONTH(AT78),3)-3),'Cash Flows'!$C$4:$BW$4,0)))-SUM($AJ$5,$AA$5))/$E$14))),IF(AX78=0,"",AX78)) ->  | BB78: =IF($E$5="Uniform Inputs",IF($Z78>$E$15,"",IF($E$23="Pro-Rata",MIN(BD78*AW78,(($I$5+'Cash Flows'!$BX$6+INDEX('Cash Flows'!$C$17:$BW$17,1,MATCH(EOMONTH(BC78,MOD(-MONTH(BC78),3)-3),'Cash Flows'!$C$4:$BW$4,0)))-SUM($AS$5,$AJ$5,$AA$5))/$E$15),MIN($E$26,(($I$5+'Cash Flows'!$BX$6+INDEX('Cash Flows'!$C$17:$BW$17,1,MATCH(EOMONTH(BC78,MOD(-MONTH(BC78),3)-3),'Cash Flows'!$C$4:$BW$4,0)))-SUM($AS$5,$AJ$5,$AA$5))/$E$15))),IF(BG78=0,"",BG78)) ->  | BK78: =IF($E$5="Uniform Inputs",IF($Z78>$E$16,"",IF($E$23="Pro-Rata",MIN(BM78*BF78,(($I$5+'Cash Flows'!$BX$6+INDEX('Cash Flows'!$C$17:$BW$17,1,MATCH(EOMONTH(BL78,MOD(-MONTH(BL78),3)-3),'Cash Flows'!$C$4:$BW$4,0)))-SUM($BB$5,$AS$5,$AJ$5,$AA$5))/$E$16),MIN($E$27,(($I$5+'Cash Flows'!$BX$6+INDEX('Cash Flows'!$C$17:$BW$17,1,MATCH(EOMONTH(BL78,MOD(-MONTH(BL78),3)-3),'Cash Flows'!$C$4:$BW$4,0)))-SUM($BB$5,$AS$5,$AJ$5,$AA$5))/$E$16))),IF(BP78=0,"",BP78)) -> 
Y79: 74 | AA79: =IF($E$5="Uniform Inputs",IF($Z79>$E$12,"",MIN($E$21,($I$5+'Cash Flows'!$BX$6+INDEX('Cash Flows'!$C$17:$BW$17,1,MATCH(EOMONTH(AB79,MOD(-MONTH(AB79),3)-3),'Cash Flows'!$C$4:$BW$4,0)))/$E$12)),IF(AF79>0,AF79,"")) ->  | AJ79: =IF($E$5="Uniform Inputs",IF($Z79>$E$13,"",IF($E$23="Pro-Rata",MIN(AL79*AE79,(($I$5+'Cash Flows'!$BX$6+INDEX('Cash Flows'!$C$17:$BW$17,1,MATCH(EOMONTH(AK79,MOD(-MONTH(AK79),3)-3),'Cash Flows'!$C$4:$BW$4,0)))-$AA$5)/$E$13),MIN($E$24,(($I$5+'Cash Flows'!$BX$6+INDEX('Cash Flows'!$C$17:$BW$17,1,MATCH(EOMONTH(AK79,MOD(-MONTH(AK79),3)-3),'Cash Flows'!$C$4:$BW$4,0)))-$AA$5)/$E$13))),IF(AO79=0,"",AO79)) ->  | AS79: =IF($E$5="Uniform Inputs",IF($Z79>$E$14,"",IF($E$23="Pro-Rata",MIN(AU79*AN79,(($I$5+'Cash Flows'!$BX$6+INDEX('Cash Flows'!$C$17:$BW$17,1,MATCH(EOMONTH(AT79,MOD(-MONTH(AT79),3)-3),'Cash Flows'!$C$4:$BW$4,0)))-SUM($AJ$5,$AA$5))/$E$14),MIN($E$25,(($I$5+'Cash Flows'!$BX$6+INDEX('Cash Flows'!$C$17:$BW$17,1,MATCH(EOMONTH(AT79,MOD(-MONTH(AT79),3)-3),'Cash Flows'!$C$4:$BW$4,0)))-SUM($AJ$5,$AA$5))/$E$14))),IF(AX79=0,"",AX79)) ->  | BB79: =IF($E$5="Uniform Inputs",IF($Z79>$E$15,"",IF($E$23="Pro-Rata",MIN(BD79*AW79,(($I$5+'Cash Flows'!$BX$6+INDEX('Cash Flows'!$C$17:$BW$17,1,MATCH(EOMONTH(BC79,MOD(-MONTH(BC79),3)-3),'Cash Flows'!$C$4:$BW$4,0)))-SUM($AS$5,$AJ$5,$AA$5))/$E$15),MIN($E$26,(($I$5+'Cash Flows'!$BX$6+INDEX('Cash Flows'!$C$17:$BW$17,1,MATCH(EOMONTH(BC79,MOD(-MONTH(BC79),3)-3),'Cash Flows'!$C$4:$BW$4,0)))-SUM($AS$5,$AJ$5,$AA$5))/$E$15))),IF(BG79=0,"",BG79)) ->  | BK79: =IF($E$5="Uniform Inputs",IF($Z79>$E$16,"",IF($E$23="Pro-Rata",MIN(BM79*BF79,(($I$5+'Cash Flows'!$BX$6+INDEX('Cash Flows'!$C$17:$BW$17,1,MATCH(EOMONTH(BL79,MOD(-MONTH(BL79),3)-3),'Cash Flows'!$C$4:$BW$4,0)))-SUM($BB$5,$AS$5,$AJ$5,$AA$5))/$E$16),MIN($E$27,(($I$5+'Cash Flows'!$BX$6+INDEX('Cash Flows'!$C$17:$BW$17,1,MATCH(EOMONTH(BL79,MOD(-MONTH(BL79),3)-3),'Cash Flows'!$C$4:$BW$4,0)))-SUM($BB$5,$AS$5,$AJ$5,$AA$5))/$E$16))),IF(BP79=0,"",BP79)) -> 
Y80: 75 | AA80: =IF($E$5="Uniform Inputs",IF($Z80>$E$12,"",MIN($E$21,($I$5+'Cash Flows'!$BX$6+INDEX('Cash Flows'!$C$17:$BW$17,1,MATCH(EOMONTH(AB80,MOD(-MONTH(AB80),3)-3),'Cash Flows'!$C$4:$BW$4,0)))/$E$12)),IF(AF80>0,AF80,"")) ->  | AJ80: =IF($E$5="Uniform Inputs",IF($Z80>$E$13,"",IF($E$23="Pro-Rata",MIN(AL80*AE80,(($I$5+'Cash Flows'!$BX$6+INDEX('Cash Flows'!$C$17:$BW$17,1,MATCH(EOMONTH(AK80,MOD(-MONTH(AK80),3)-3),'Cash Flows'!$C$4:$BW$4,0)))-$AA$5)/$E$13),MIN($E$24,(($I$5+'Cash Flows'!$BX$6+INDEX('Cash Flows'!$C$17:$BW$17,1,MATCH(EOMONTH(AK80,MOD(-MONTH(AK80),3)-3),'Cash Flows'!$C$4:$BW$4,0)))-$AA$5)/$E$13))),IF(AO80=0,"",AO80)) ->  | AS80: =IF($E$5="Uniform Inputs",IF($Z80>$E$14,"",IF($E$23="Pro-Rata",MIN(AU80*AN80,(($I$5+'Cash Flows'!$BX$6+INDEX('Cash Flows'!$C$17:$BW$17,1,MATCH(EOMONTH(AT80,MOD(-MONTH(AT80),3)-3),'Cash Flows'!$C$4:$BW$4,0)))-SUM($AJ$5,$AA$5))/$E$14),MIN($E$25,(($I$5+'Cash Flows'!$BX$6+INDEX('Cash Flows'!$C$17:$BW$17,1,MATCH(EOMONTH(AT80,MOD(-MONTH(AT80),3)-3),'Cash Flows'!$C$4:$BW$4,0)))-SUM($AJ$5,$AA$5))/$E$14))),IF(AX80=0,"",AX80)) ->  | BB80: =IF($E$5="Uniform Inputs",IF($Z80>$E$15,"",IF($E$23="Pro-Rata",MIN(BD80*AW80,(($I$5+'Cash Flows'!$BX$6+INDEX('Cash Flows'!$C$17:$BW$17,1,MATCH(EOMONTH(BC80,MOD(-MONTH(BC80),3)-3),'Cash Flows'!$C$4:$BW$4,0)))-SUM($AS$5,$AJ$5,$AA$5))/$E$15),MIN($E$26,(($I$5+'Cash Flows'!$BX$6+INDEX('Cash Flows'!$C$17:$BW$17,1,MATCH(EOMONTH(BC80,MOD(-MONTH(BC80),3)-3),'Cash Flows'!$C$4:$BW$4,0)))-SUM($AS$5,$AJ$5,$AA$5))/$E$15))),IF(BG80=0,"",BG80)) ->  | BK80: =IF($E$5="Uniform Inputs",IF($Z80>$E$16,"",IF($E$23="Pro-Rata",MIN(BM80*BF80,(($I$5+'Cash Flows'!$BX$6+INDEX('Cash Flows'!$C$17:$BW$17,1,MATCH(EOMONTH(BL80,MOD(-MONTH(BL80),3)-3),'Cash Flows'!$C$4:$BW$4,0)))-SUM($BB$5,$AS$5,$AJ$5,$AA$5))/$E$16),MIN($E$27,(($I$5+'Cash Flows'!$BX$6+INDEX('Cash Flows'!$C$17:$BW$17,1,MATCH(EOMONTH(BL80,MOD(-MONTH(BL80),3)-3),'Cash Flows'!$C$4:$BW$4,0)))-SUM($BB$5,$AS$5,$AJ$5,$AA$5))/$E$16))),IF(BP80=0,"",BP80)) -> 
Y81: 76 | AA81: =IF($E$5="Uniform Inputs",IF($Z81>$E$12,"",MIN($E$21,($I$5+'Cash Flows'!$BX$6+INDEX('Cash Flows'!$C$17:$BW$17,1,MATCH(EOMONTH(AB81,MOD(-MONTH(AB81),3)-3),'Cash Flows'!$C$4:$BW$4,0)))/$E$12)),IF(AF81>0,AF81,"")) ->  | AJ81: =IF($E$5="Uniform Inputs",IF($Z81>$E$13,"",IF($E$23="Pro-Rata",MIN(AL81*AE81,(($I$5+'Cash Flows'!$BX$6+INDEX('Cash Flows'!$C$17:$BW$17,1,MATCH(EOMONTH(AK81,MOD(-MONTH(AK81),3)-3),'Cash Flows'!$C$4:$BW$4,0)))-$AA$5)/$E$13),MIN($E$24,(($I$5+'Cash Flows'!$BX$6+INDEX('Cash Flows'!$C$17:$BW$17,1,MATCH(EOMONTH(AK81,MOD(-MONTH(AK81),3)-3),'Cash Flows'!$C$4:$BW$4,0)))-$AA$5)/$E$13))),IF(AO81=0,"",AO81)) ->  | AS81: =IF($E$5="Uniform Inputs",IF($Z81>$E$14,"",IF($E$23="Pro-Rata",MIN(AU81*AN81,(($I$5+'Cash Flows'!$BX$6+INDEX('Cash Flows'!$C$17:$BW$17,1,MATCH(EOMONTH(AT81,MOD(-MONTH(AT81),3)-3),'Cash Flows'!$C$4:$BW$4,0)))-SUM($AJ$5,$AA$5))/$E$14),MIN($E$25,(($I$5+'Cash Flows'!$BX$6+INDEX('Cash Flows'!$C$17:$BW$17,1,MATCH(EOMONTH(AT81,MOD(-MONTH(AT81),3)-3),'Cash Flows'!$C$4:$BW$4,0)))-SUM($AJ$5,$AA$5))/$E$14))),IF(AX81=0,"",AX81)) ->  | BB81: =IF($E$5="Uniform Inputs",IF($Z81>$E$15,"",IF($E$23="Pro-Rata",MIN(BD81*AW81,(($I$5+'Cash Flows'!$BX$6+INDEX('Cash Flows'!$C$17:$BW$17,1,MATCH(EOMONTH(BC81,MOD(-MONTH(BC81),3)-3),'Cash Flows'!$C$4:$BW$4,0)))-SUM($AS$5,$AJ$5,$AA$5))/$E$15),MIN($E$26,(($I$5+'Cash Flows'!$BX$6+INDEX('Cash Flows'!$C$17:$BW$17,1,MATCH(EOMONTH(BC81,MOD(-MONTH(BC81),3)-3),'Cash Flows'!$C$4:$BW$4,0)))-SUM($AS$5,$AJ$5,$AA$5))/$E$15))),IF(BG81=0,"",BG81)) ->  | BK81: =IF($E$5="Uniform Inputs",IF($Z81>$E$16,"",IF($E$23="Pro-Rata",MIN(BM81*BF81,(($I$5+'Cash Flows'!$BX$6+INDEX('Cash Flows'!$C$17:$BW$17,1,MATCH(EOMONTH(BL81,MOD(-MONTH(BL81),3)-3),'Cash Flows'!$C$4:$BW$4,0)))-SUM($BB$5,$AS$5,$AJ$5,$AA$5))/$E$16),MIN($E$27,(($I$5+'Cash Flows'!$BX$6+INDEX('Cash Flows'!$C$17:$BW$17,1,MATCH(EOMONTH(BL81,MOD(-MONTH(BL81),3)-3),'Cash Flows'!$C$4:$BW$4,0)))-SUM($BB$5,$AS$5,$AJ$5,$AA$5))/$E$16))),IF(BP81=0,"",BP81)) -> 
Y82: 77 | AA82: =IF($E$5="Uniform Inputs",IF($Z82>$E$12,"",MIN($E$21,($I$5+'Cash Flows'!$BX$6+INDEX('Cash Flows'!$C$17:$BW$17,1,MATCH(EOMONTH(AB82,MOD(-MONTH(AB82),3)-3),'Cash Flows'!$C$4:$BW$4,0)))/$E$12)),IF(AF82>0,AF82,"")) ->  | AJ82: =IF($E$5="Uniform Inputs",IF($Z82>$E$13,"",IF($E$23="Pro-Rata",MIN(AL82*AE82,(($I$5+'Cash Flows'!$BX$6+INDEX('Cash Flows'!$C$17:$BW$17,1,MATCH(EOMONTH(AK82,MOD(-MONTH(AK82),3)-3),'Cash Flows'!$C$4:$BW$4,0)))-$AA$5)/$E$13),MIN($E$24,(($I$5+'Cash Flows'!$BX$6+INDEX('Cash Flows'!$C$17:$BW$17,1,MATCH(EOMONTH(AK82,MOD(-MONTH(AK82),3)-3),'Cash Flows'!$C$4:$BW$4,0)))-$AA$5)/$E$13))),IF(AO82=0,"",AO82)) ->  | AS82: =IF($E$5="Uniform Inputs",IF($Z82>$E$14,"",IF($E$23="Pro-Rata",MIN(AU82*AN82,(($I$5+'Cash Flows'!$BX$6+INDEX('Cash Flows'!$C$17:$BW$17,1,MATCH(EOMONTH(AT82,MOD(-MONTH(AT82),3)-3),'Cash Flows'!$C$4:$BW$4,0)))-SUM($AJ$5,$AA$5))/$E$14),MIN($E$25,(($I$5+'Cash Flows'!$BX$6+INDEX('Cash Flows'!$C$17:$BW$17,1,MATCH(EOMONTH(AT82,MOD(-MONTH(AT82),3)-3),'Cash Flows'!$C$4:$BW$4,0)))-SUM($AJ$5,$AA$5))/$E$14))),IF(AX82=0,"",AX82)) ->  | BB82: =IF($E$5="Uniform Inputs",IF($Z82>$E$15,"",IF($E$23="Pro-Rata",MIN(BD82*AW82,(($I$5+'Cash Flows'!$BX$6+INDEX('Cash Flows'!$C$17:$BW$17,1,MATCH(EOMONTH(BC82,MOD(-MONTH(BC82),3)-3),'Cash Flows'!$C$4:$BW$4,0)))-SUM($AS$5,$AJ$5,$AA$5))/$E$15),MIN($E$26,(($I$5+'Cash Flows'!$BX$6+INDEX('Cash Flows'!$C$17:$BW$17,1,MATCH(EOMONTH(BC82,MOD(-MONTH(BC82),3)-3),'Cash Flows'!$C$4:$BW$4,0)))-SUM($AS$5,$AJ$5,$AA$5))/$E$15))),IF(BG82=0,"",BG82)) ->  | BK82: =IF($E$5="Uniform Inputs",IF($Z82>$E$16,"",IF($E$23="Pro-Rata",MIN(BM82*BF82,(($I$5+'Cash Flows'!$BX$6+INDEX('Cash Flows'!$C$17:$BW$17,1,MATCH(EOMONTH(BL82,MOD(-MONTH(BL82),3)-3),'Cash Flows'!$C$4:$BW$4,0)))-SUM($BB$5,$AS$5,$AJ$5,$AA$5))/$E$16),MIN($E$27,(($I$5+'Cash Flows'!$BX$6+INDEX('Cash Flows'!$C$17:$BW$17,1,MATCH(EOMONTH(BL82,MOD(-MONTH(BL82),3)-3),'Cash Flows'!$C$4:$BW$4,0)))-SUM($BB$5,$AS$5,$AJ$5,$AA$5))/$E$16))),IF(BP82=0,"",BP82)) -> 
Y83: 78 | AA83: =IF($E$5="Uniform Inputs",IF($Z83>$E$12,"",MIN($E$21,($I$5+'Cash Flows'!$BX$6+INDEX('Cash Flows'!$C$17:$BW$17,1,MATCH(EOMONTH(AB83,MOD(-MONTH(AB83),3)-3),'Cash Flows'!$C$4:$BW$4,0)))/$E$12)),IF(AF83>0,AF83,"")) ->  | AJ83: =IF($E$5="Uniform Inputs",IF($Z83>$E$13,"",IF($E$23="Pro-Rata",MIN(AL83*AE83,(($I$5+'Cash Flows'!$BX$6+INDEX('Cash Flows'!$C$17:$BW$17,1,MATCH(EOMONTH(AK83,MOD(-MONTH(AK83),3)-3),'Cash Flows'!$C$4:$BW$4,0)))-$AA$5)/$E$13),MIN($E$24,(($I$5+'Cash Flows'!$BX$6+INDEX('Cash Flows'!$C$17:$BW$17,1,MATCH(EOMONTH(AK83,MOD(-MONTH(AK83),3)-3),'Cash Flows'!$C$4:$BW$4,0)))-$AA$5)/$E$13))),IF(AO83=0,"",AO83)) ->  | AS83: =IF($E$5="Uniform Inputs",IF($Z83>$E$14,"",IF($E$23="Pro-Rata",MIN(AU83*AN83,(($I$5+'Cash Flows'!$BX$6+INDEX('Cash Flows'!$C$17:$BW$17,1,MATCH(EOMONTH(AT83,MOD(-MONTH(AT83),3)-3),'Cash Flows'!$C$4:$BW$4,0)))-SUM($AJ$5,$AA$5))/$E$14),MIN($E$25,(($I$5+'Cash Flows'!$BX$6+INDEX('Cash Flows'!$C$17:$BW$17,1,MATCH(EOMONTH(AT83,MOD(-MONTH(AT83),3)-3),'Cash Flows'!$C$4:$BW$4,0)))-SUM($AJ$5,$AA$5))/$E$14))),IF(AX83=0,"",AX83)) ->  | BB83: =IF($E$5="Uniform Inputs",IF($Z83>$E$15,"",IF($E$23="Pro-Rata",MIN(BD83*AW83,(($I$5+'Cash Flows'!$BX$6+INDEX('Cash Flows'!$C$17:$BW$17,1,MATCH(EOMONTH(BC83,MOD(-MONTH(BC83),3)-3),'Cash Flows'!$C$4:$BW$4,0)))-SUM($AS$5,$AJ$5,$AA$5))/$E$15),MIN($E$26,(($I$5+'Cash Flows'!$BX$6+INDEX('Cash Flows'!$C$17:$BW$17,1,MATCH(EOMONTH(BC83,MOD(-MONTH(BC83),3)-3),'Cash Flows'!$C$4:$BW$4,0)))-SUM($AS$5,$AJ$5,$AA$5))/$E$15))),IF(BG83=0,"",BG83)) ->  | BK83: =IF($E$5="Uniform Inputs",IF($Z83>$E$16,"",IF($E$23="Pro-Rata",MIN(BM83*BF83,(($I$5+'Cash Flows'!$BX$6+INDEX('Cash Flows'!$C$17:$BW$17,1,MATCH(EOMONTH(BL83,MOD(-MONTH(BL83),3)-3),'Cash Flows'!$C$4:$BW$4,0)))-SUM($BB$5,$AS$5,$AJ$5,$AA$5))/$E$16),MIN($E$27,(($I$5+'Cash Flows'!$BX$6+INDEX('Cash Flows'!$C$17:$BW$17,1,MATCH(EOMONTH(BL83,MOD(-MONTH(BL83),3)-3),'Cash Flows'!$C$4:$BW$4,0)))-SUM($BB$5,$AS$5,$AJ$5,$AA$5))/$E$16))),IF(BP83=0,"",BP83)) -> 
Y84: 79 | AA84: =IF($E$5="Uniform Inputs",IF($Z84>$E$12,"",MIN($E$21,($I$5+'Cash Flows'!$BX$6+INDEX('Cash Flows'!$C$17:$BW$17,1,MATCH(EOMONTH(AB84,MOD(-MONTH(AB84),3)-3),'Cash Flows'!$C$4:$BW$4,0)))/$E$12)),IF(AF84>0,AF84,"")) ->  | AJ84: =IF($E$5="Uniform Inputs",IF($Z84>$E$13,"",IF($E$23="Pro-Rata",MIN(AL84*AE84,(($I$5+'Cash Flows'!$BX$6+INDEX('Cash Flows'!$C$17:$BW$17,1,MATCH(EOMONTH(AK84,MOD(-MONTH(AK84),3)-3),'Cash Flows'!$C$4:$BW$4,0)))-$AA$5)/$E$13),MIN($E$24,(($I$5+'Cash Flows'!$BX$6+INDEX('Cash Flows'!$C$17:$BW$17,1,MATCH(EOMONTH(AK84,MOD(-MONTH(AK84),3)-3),'Cash Flows'!$C$4:$BW$4,0)))-$AA$5)/$E$13))),IF(AO84=0,"",AO84)) ->  | AS84: =IF($E$5="Uniform Inputs",IF($Z84>$E$14,"",IF($E$23="Pro-Rata",MIN(AU84*AN84,(($I$5+'Cash Flows'!$BX$6+INDEX('Cash Flows'!$C$17:$BW$17,1,MATCH(EOMONTH(AT84,MOD(-MONTH(AT84),3)-3),'Cash Flows'!$C$4:$BW$4,0)))-SUM($AJ$5,$AA$5))/$E$14),MIN($E$25,(($I$5+'Cash Flows'!$BX$6+INDEX('Cash Flows'!$C$17:$BW$17,1,MATCH(EOMONTH(AT84,MOD(-MONTH(AT84),3)-3),'Cash Flows'!$C$4:$BW$4,0)))-SUM($AJ$5,$AA$5))/$E$14))),IF(AX84=0,"",AX84)) ->  | BB84: =IF($E$5="Uniform Inputs",IF($Z84>$E$15,"",IF($E$23="Pro-Rata",MIN(BD84*AW84,(($I$5+'Cash Flows'!$BX$6+INDEX('Cash Flows'!$C$17:$BW$17,1,MATCH(EOMONTH(BC84,MOD(-MONTH(BC84),3)-3),'Cash Flows'!$C$4:$BW$4,0)))-SUM($AS$5,$AJ$5,$AA$5))/$E$15),MIN($E$26,(($I$5+'Cash Flows'!$BX$6+INDEX('Cash Flows'!$C$17:$BW$17,1,MATCH(EOMONTH(BC84,MOD(-MONTH(BC84),3)-3),'Cash Flows'!$C$4:$BW$4,0)))-SUM($AS$5,$AJ$5,$AA$5))/$E$15))),IF(BG84=0,"",BG84)) ->  | BK84: =IF($E$5="Uniform Inputs",IF($Z84>$E$16,"",IF($E$23="Pro-Rata",MIN(BM84*BF84,(($I$5+'Cash Flows'!$BX$6+INDEX('Cash Flows'!$C$17:$BW$17,1,MATCH(EOMONTH(BL84,MOD(-MONTH(BL84),3)-3),'Cash Flows'!$C$4:$BW$4,0)))-SUM($BB$5,$AS$5,$AJ$5,$AA$5))/$E$16),MIN($E$27,(($I$5+'Cash Flows'!$BX$6+INDEX('Cash Flows'!$C$17:$BW$17,1,MATCH(EOMONTH(BL84,MOD(-MONTH(BL84),3)-3),'Cash Flows'!$C$4:$BW$4,0)))-SUM($BB$5,$AS$5,$AJ$5,$AA$5))/$E$16))),IF(BP84=0,"",BP84)) -> 
Y85: 80 | AA85: =IF($E$5="Uniform Inputs",IF($Z85>$E$12,"",MIN($E$21,($I$5+'Cash Flows'!$BX$6+INDEX('Cash Flows'!$C$17:$BW$17,1,MATCH(EOMONTH(AB85,MOD(-MONTH(AB85),3)-3),'Cash Flows'!$C$4:$BW$4,0)))/$E$12)),IF(AF85>0,AF85,"")) ->  | AJ85: =IF($E$5="Uniform Inputs",IF($Z85>$E$13,"",IF($E$23="Pro-Rata",MIN(AL85*AE85,(($I$5+'Cash Flows'!$BX$6+INDEX('Cash Flows'!$C$17:$BW$17,1,MATCH(EOMONTH(AK85,MOD(-MONTH(AK85),3)-3),'Cash Flows'!$C$4:$BW$4,0)))-$AA$5)/$E$13),MIN($E$24,(($I$5+'Cash Flows'!$BX$6+INDEX('Cash Flows'!$C$17:$BW$17,1,MATCH(EOMONTH(AK85,MOD(-MONTH(AK85),3)-3),'Cash Flows'!$C$4:$BW$4,0)))-$AA$5)/$E$13))),IF(AO85=0,"",AO85)) ->  | AS85: =IF($E$5="Uniform Inputs",IF($Z85>$E$14,"",IF($E$23="Pro-Rata",MIN(AU85*AN85,(($I$5+'Cash Flows'!$BX$6+INDEX('Cash Flows'!$C$17:$BW$17,1,MATCH(EOMONTH(AT85,MOD(-MONTH(AT85),3)-3),'Cash Flows'!$C$4:$BW$4,0)))-SUM($AJ$5,$AA$5))/$E$14),MIN($E$25,(($I$5+'Cash Flows'!$BX$6+INDEX('Cash Flows'!$C$17:$BW$17,1,MATCH(EOMONTH(AT85,MOD(-MONTH(AT85),3)-3),'Cash Flows'!$C$4:$BW$4,0)))-SUM($AJ$5,$AA$5))/$E$14))),IF(AX85=0,"",AX85)) ->  | BB85: =IF($E$5="Uniform Inputs",IF($Z85>$E$15,"",IF($E$23="Pro-Rata",MIN(BD85*AW85,(($I$5+'Cash Flows'!$BX$6+INDEX('Cash Flows'!$C$17:$BW$17,1,MATCH(EOMONTH(BC85,MOD(-MONTH(BC85),3)-3),'Cash Flows'!$C$4:$BW$4,0)))-SUM($AS$5,$AJ$5,$AA$5))/$E$15),MIN($E$26,(($I$5+'Cash Flows'!$BX$6+INDEX('Cash Flows'!$C$17:$BW$17,1,MATCH(EOMONTH(BC85,MOD(-MONTH(BC85),3)-3),'Cash Flows'!$C$4:$BW$4,0)))-SUM($AS$5,$AJ$5,$AA$5))/$E$15))),IF(BG85=0,"",BG85)) ->  | BK85: =IF($E$5="Uniform Inputs",IF($Z85>$E$16,"",IF($E$23="Pro-Rata",MIN(BM85*BF85,(($I$5+'Cash Flows'!$BX$6+INDEX('Cash Flows'!$C$17:$BW$17,1,MATCH(EOMONTH(BL85,MOD(-MONTH(BL85),3)-3),'Cash Flows'!$C$4:$BW$4,0)))-SUM($BB$5,$AS$5,$AJ$5,$AA$5))/$E$16),MIN($E$27,(($I$5+'Cash Flows'!$BX$6+INDEX('Cash Flows'!$C$17:$BW$17,1,MATCH(EOMONTH(BL85,MOD(-MONTH(BL85),3)-3),'Cash Flows'!$C$4:$BW$4,0)))-SUM($BB$5,$AS$5,$AJ$5,$AA$5))/$E$16))),IF(BP85=0,"",BP85)) -> 
Y86: 81 | AA86: =IF($E$5="Uniform Inputs",IF($Z86>$E$12,"",MIN($E$21,($I$5+'Cash Flows'!$BX$6+INDEX('Cash Flows'!$C$17:$BW$17,1,MATCH(EOMONTH(AB86,MOD(-MONTH(AB86),3)-3),'Cash Flows'!$C$4:$BW$4,0)))/$E$12)),IF(AF86>0,AF86,"")) ->  | AJ86: =IF($E$5="Uniform Inputs",IF($Z86>$E$13,"",IF($E$23="Pro-Rata",MIN(AL86*AE86,(($I$5+'Cash Flows'!$BX$6+INDEX('Cash Flows'!$C$17:$BW$17,1,MATCH(EOMONTH(AK86,MOD(-MONTH(AK86),3)-3),'Cash Flows'!$C$4:$BW$4,0)))-$AA$5)/$E$13),MIN($E$24,(($I$5+'Cash Flows'!$BX$6+INDEX('Cash Flows'!$C$17:$BW$17,1,MATCH(EOMONTH(AK86,MOD(-MONTH(AK86),3)-3),'Cash Flows'!$C$4:$BW$4,0)))-$AA$5)/$E$13))),IF(AO86=0,"",AO86)) ->  | AS86: =IF($E$5="Uniform Inputs",IF($Z86>$E$14,"",IF($E$23="Pro-Rata",MIN(AU86*AN86,(($I$5+'Cash Flows'!$BX$6+INDEX('Cash Flows'!$C$17:$BW$17,1,MATCH(EOMONTH(AT86,MOD(-MONTH(AT86),3)-3),'Cash Flows'!$C$4:$BW$4,0)))-SUM($AJ$5,$AA$5))/$E$14),MIN($E$25,(($I$5+'Cash Flows'!$BX$6+INDEX('Cash Flows'!$C$17:$BW$17,1,MATCH(EOMONTH(AT86,MOD(-MONTH(AT86),3)-3),'Cash Flows'!$C$4:$BW$4,0)))-SUM($AJ$5,$AA$5))/$E$14))),IF(AX86=0,"",AX86)) ->  | BB86: =IF($E$5="Uniform Inputs",IF($Z86>$E$15,"",IF($E$23="Pro-Rata",MIN(BD86*AW86,(($I$5+'Cash Flows'!$BX$6+INDEX('Cash Flows'!$C$17:$BW$17,1,MATCH(EOMONTH(BC86,MOD(-MONTH(BC86),3)-3),'Cash Flows'!$C$4:$BW$4,0)))-SUM($AS$5,$AJ$5,$AA$5))/$E$15),MIN($E$26,(($I$5+'Cash Flows'!$BX$6+INDEX('Cash Flows'!$C$17:$BW$17,1,MATCH(EOMONTH(BC86,MOD(-MONTH(BC86),3)-3),'Cash Flows'!$C$4:$BW$4,0)))-SUM($AS$5,$AJ$5,$AA$5))/$E$15))),IF(BG86=0,"",BG86)) ->  | BK86: =IF($E$5="Uniform Inputs",IF($Z86>$E$16,"",IF($E$23="Pro-Rata",MIN(BM86*BF86,(($I$5+'Cash Flows'!$BX$6+INDEX('Cash Flows'!$C$17:$BW$17,1,MATCH(EOMONTH(BL86,MOD(-MONTH(BL86),3)-3),'Cash Flows'!$C$4:$BW$4,0)))-SUM($BB$5,$AS$5,$AJ$5,$AA$5))/$E$16),MIN($E$27,(($I$5+'Cash Flows'!$BX$6+INDEX('Cash Flows'!$C$17:$BW$17,1,MATCH(EOMONTH(BL86,MOD(-MONTH(BL86),3)-3),'Cash Flows'!$C$4:$BW$4,0)))-SUM($BB$5,$AS$5,$AJ$5,$AA$5))/$E$16))),IF(BP86=0,"",BP86)) -> 
Y87: 82 | AA87: =IF($E$5="Uniform Inputs",IF($Z87>$E$12,"",MIN($E$21,($I$5+'Cash Flows'!$BX$6+INDEX('Cash Flows'!$C$17:$BW$17,1,MATCH(EOMONTH(AB87,MOD(-MONTH(AB87),3)-3),'Cash Flows'!$C$4:$BW$4,0)))/$E$12)),IF(AF87>0,AF87,"")) ->  | AJ87: =IF($E$5="Uniform Inputs",IF($Z87>$E$13,"",IF($E$23="Pro-Rata",MIN(AL87*AE87,(($I$5+'Cash Flows'!$BX$6+INDEX('Cash Flows'!$C$17:$BW$17,1,MATCH(EOMONTH(AK87,MOD(-MONTH(AK87),3)-3),'Cash Flows'!$C$4:$BW$4,0)))-$AA$5)/$E$13),MIN($E$24,(($I$5+'Cash Flows'!$BX$6+INDEX('Cash Flows'!$C$17:$BW$17,1,MATCH(EOMONTH(AK87,MOD(-MONTH(AK87),3)-3),'Cash Flows'!$C$4:$BW$4,0)))-$AA$5)/$E$13))),IF(AO87=0,"",AO87)) ->  | AS87: =IF($E$5="Uniform Inputs",IF($Z87>$E$14,"",IF($E$23="Pro-Rata",MIN(AU87*AN87,(($I$5+'Cash Flows'!$BX$6+INDEX('Cash Flows'!$C$17:$BW$17,1,MATCH(EOMONTH(AT87,MOD(-MONTH(AT87),3)-3),'Cash Flows'!$C$4:$BW$4,0)))-SUM($AJ$5,$AA$5))/$E$14),MIN($E$25,(($I$5+'Cash Flows'!$BX$6+INDEX('Cash Flows'!$C$17:$BW$17,1,MATCH(EOMONTH(AT87,MOD(-MONTH(AT87),3)-3),'Cash Flows'!$C$4:$BW$4,0)))-SUM($AJ$5,$AA$5))/$E$14))),IF(AX87=0,"",AX87)) ->  | BB87: =IF($E$5="Uniform Inputs",IF($Z87>$E$15,"",IF($E$23="Pro-Rata",MIN(BD87*AW87,(($I$5+'Cash Flows'!$BX$6+INDEX('Cash Flows'!$C$17:$BW$17,1,MATCH(EOMONTH(BC87,MOD(-MONTH(BC87),3)-3),'Cash Flows'!$C$4:$BW$4,0)))-SUM($AS$5,$AJ$5,$AA$5))/$E$15),MIN($E$26,(($I$5+'Cash Flows'!$BX$6+INDEX('Cash Flows'!$C$17:$BW$17,1,MATCH(EOMONTH(BC87,MOD(-MONTH(BC87),3)-3),'Cash Flows'!$C$4:$BW$4,0)))-SUM($AS$5,$AJ$5,$AA$5))/$E$15))),IF(BG87=0,"",BG87)) ->  | BK87: =IF($E$5="Uniform Inputs",IF($Z87>$E$16,"",IF($E$23="Pro-Rata",MIN(BM87*BF87,(($I$5+'Cash Flows'!$BX$6+INDEX('Cash Flows'!$C$17:$BW$17,1,MATCH(EOMONTH(BL87,MOD(-MONTH(BL87),3)-3),'Cash Flows'!$C$4:$BW$4,0)))-SUM($BB$5,$AS$5,$AJ$5,$AA$5))/$E$16),MIN($E$27,(($I$5+'Cash Flows'!$BX$6+INDEX('Cash Flows'!$C$17:$BW$17,1,MATCH(EOMONTH(BL87,MOD(-MONTH(BL87),3)-3),'Cash Flows'!$C$4:$BW$4,0)))-SUM($BB$5,$AS$5,$AJ$5,$AA$5))/$E$16))),IF(BP87=0,"",BP87)) -> 
Y88: 83 | AA88: =IF($E$5="Uniform Inputs",IF($Z88>$E$12,"",MIN($E$21,($I$5+'Cash Flows'!$BX$6+INDEX('Cash Flows'!$C$17:$BW$17,1,MATCH(EOMONTH(AB88,MOD(-MONTH(AB88),3)-3),'Cash Flows'!$C$4:$BW$4,0)))/$E$12)),IF(AF88>0,AF88,"")) ->  | AJ88: =IF($E$5="Uniform Inputs",IF($Z88>$E$13,"",IF($E$23="Pro-Rata",MIN(AL88*AE88,(($I$5+'Cash Flows'!$BX$6+INDEX('Cash Flows'!$C$17:$BW$17,1,MATCH(EOMONTH(AK88,MOD(-MONTH(AK88),3)-3),'Cash Flows'!$C$4:$BW$4,0)))-$AA$5)/$E$13),MIN($E$24,(($I$5+'Cash Flows'!$BX$6+INDEX('Cash Flows'!$C$17:$BW$17,1,MATCH(EOMONTH(AK88,MOD(-MONTH(AK88),3)-3),'Cash Flows'!$C$4:$BW$4,0)))-$AA$5)/$E$13))),IF(AO88=0,"",AO88)) ->  | AS88: =IF($E$5="Uniform Inputs",IF($Z88>$E$14,"",IF($E$23="Pro-Rata",MIN(AU88*AN88,(($I$5+'Cash Flows'!$BX$6+INDEX('Cash Flows'!$C$17:$BW$17,1,MATCH(EOMONTH(AT88,MOD(-MONTH(AT88),3)-3),'Cash Flows'!$C$4:$BW$4,0)))-SUM($AJ$5,$AA$5))/$E$14),MIN($E$25,(($I$5+'Cash Flows'!$BX$6+INDEX('Cash Flows'!$C$17:$BW$17,1,MATCH(EOMONTH(AT88,MOD(-MONTH(AT88),3)-3),'Cash Flows'!$C$4:$BW$4,0)))-SUM($AJ$5,$AA$5))/$E$14))),IF(AX88=0,"",AX88)) ->  | BB88: =IF($E$5="Uniform Inputs",IF($Z88>$E$15,"",IF($E$23="Pro-Rata",MIN(BD88*AW88,(($I$5+'Cash Flows'!$BX$6+INDEX('Cash Flows'!$C$17:$BW$17,1,MATCH(EOMONTH(BC88,MOD(-MONTH(BC88),3)-3),'Cash Flows'!$C$4:$BW$4,0)))-SUM($AS$5,$AJ$5,$AA$5))/$E$15),MIN($E$26,(($I$5+'Cash Flows'!$BX$6+INDEX('Cash Flows'!$C$17:$BW$17,1,MATCH(EOMONTH(BC88,MOD(-MONTH(BC88),3)-3),'Cash Flows'!$C$4:$BW$4,0)))-SUM($AS$5,$AJ$5,$AA$5))/$E$15))),IF(BG88=0,"",BG88)) ->  | BK88: =IF($E$5="Uniform Inputs",IF($Z88>$E$16,"",IF($E$23="Pro-Rata",MIN(BM88*BF88,(($I$5+'Cash Flows'!$BX$6+INDEX('Cash Flows'!$C$17:$BW$17,1,MATCH(EOMONTH(BL88,MOD(-MONTH(BL88),3)-3),'Cash Flows'!$C$4:$BW$4,0)))-SUM($BB$5,$AS$5,$AJ$5,$AA$5))/$E$16),MIN($E$27,(($I$5+'Cash Flows'!$BX$6+INDEX('Cash Flows'!$C$17:$BW$17,1,MATCH(EOMONTH(BL88,MOD(-MONTH(BL88),3)-3),'Cash Flows'!$C$4:$BW$4,0)))-SUM($BB$5,$AS$5,$AJ$5,$AA$5))/$E$16))),IF(BP88=0,"",BP88)) -> 
Y89: 84 | AA89: =IF($E$5="Uniform Inputs",IF($Z89>$E$12,"",MIN($E$21,($I$5+'Cash Flows'!$BX$6+INDEX('Cash Flows'!$C$17:$BW$17,1,MATCH(EOMONTH(AB89,MOD(-MONTH(AB89),3)-3),'Cash Flows'!$C$4:$BW$4,0)))/$E$12)),IF(AF89>0,AF89,"")) ->  | AJ89: =IF($E$5="Uniform Inputs",IF($Z89>$E$13,"",IF($E$23="Pro-Rata",MIN(AL89*AE89,(($I$5+'Cash Flows'!$BX$6+INDEX('Cash Flows'!$C$17:$BW$17,1,MATCH(EOMONTH(AK89,MOD(-MONTH(AK89),3)-3),'Cash Flows'!$C$4:$BW$4,0)))-$AA$5)/$E$13),MIN($E$24,(($I$5+'Cash Flows'!$BX$6+INDEX('Cash Flows'!$C$17:$BW$17,1,MATCH(EOMONTH(AK89,MOD(-MONTH(AK89),3)-3),'Cash Flows'!$C$4:$BW$4,0)))-$AA$5)/$E$13))),IF(AO89=0,"",AO89)) ->  | AS89: =IF($E$5="Uniform Inputs",IF($Z89>$E$14,"",IF($E$23="Pro-Rata",MIN(AU89*AN89,(($I$5+'Cash Flows'!$BX$6+INDEX('Cash Flows'!$C$17:$BW$17,1,MATCH(EOMONTH(AT89,MOD(-MONTH(AT89),3)-3),'Cash Flows'!$C$4:$BW$4,0)))-SUM($AJ$5,$AA$5))/$E$14),MIN($E$25,(($I$5+'Cash Flows'!$BX$6+INDEX('Cash Flows'!$C$17:$BW$17,1,MATCH(EOMONTH(AT89,MOD(-MONTH(AT89),3)-3),'Cash Flows'!$C$4:$BW$4,0)))-SUM($AJ$5,$AA$5))/$E$14))),IF(AX89=0,"",AX89)) ->  | BB89: =IF($E$5="Uniform Inputs",IF($Z89>$E$15,"",IF($E$23="Pro-Rata",MIN(BD89*AW89,(($I$5+'Cash Flows'!$BX$6+INDEX('Cash Flows'!$C$17:$BW$17,1,MATCH(EOMONTH(BC89,MOD(-MONTH(BC89),3)-3),'Cash Flows'!$C$4:$BW$4,0)))-SUM($AS$5,$AJ$5,$AA$5))/$E$15),MIN($E$26,(($I$5+'Cash Flows'!$BX$6+INDEX('Cash Flows'!$C$17:$BW$17,1,MATCH(EOMONTH(BC89,MOD(-MONTH(BC89),3)-3),'Cash Flows'!$C$4:$BW$4,0)))-SUM($AS$5,$AJ$5,$AA$5))/$E$15))),IF(BG89=0,"",BG89)) ->  | BK89: =IF($E$5="Uniform Inputs",IF($Z89>$E$16,"",IF($E$23="Pro-Rata",MIN(BM89*BF89,(($I$5+'Cash Flows'!$BX$6+INDEX('Cash Flows'!$C$17:$BW$17,1,MATCH(EOMONTH(BL89,MOD(-MONTH(BL89),3)-3),'Cash Flows'!$C$4:$BW$4,0)))-SUM($BB$5,$AS$5,$AJ$5,$AA$5))/$E$16),MIN($E$27,(($I$5+'Cash Flows'!$BX$6+INDEX('Cash Flows'!$C$17:$BW$17,1,MATCH(EOMONTH(BL89,MOD(-MONTH(BL89),3)-3),'Cash Flows'!$C$4:$BW$4,0)))-SUM($BB$5,$AS$5,$AJ$5,$AA$5))/$E$16))),IF(BP89=0,"",BP89)) -> 
Y90: 85 | AA90: =IF($E$5="Uniform Inputs",IF($Z90>$E$12,"",MIN($E$21,($I$5+'Cash Flows'!$BX$6+INDEX('Cash Flows'!$C$17:$BW$17,1,MATCH(EOMONTH(AB90,MOD(-MONTH(AB90),3)-3),'Cash Flows'!$C$4:$BW$4,0)))/$E$12)),IF(AF90>0,AF90,"")) ->  | AJ90: =IF($E$5="Uniform Inputs",IF($Z90>$E$13,"",IF($E$23="Pro-Rata",MIN(AL90*AE90,(($I$5+'Cash Flows'!$BX$6+INDEX('Cash Flows'!$C$17:$BW$17,1,MATCH(EOMONTH(AK90,MOD(-MONTH(AK90),3)-3),'Cash Flows'!$C$4:$BW$4,0)))-$AA$5)/$E$13),MIN($E$24,(($I$5+'Cash Flows'!$BX$6+INDEX('Cash Flows'!$C$17:$BW$17,1,MATCH(EOMONTH(AK90,MOD(-MONTH(AK90),3)-3),'Cash Flows'!$C$4:$BW$4,0)))-$AA$5)/$E$13))),IF(AO90=0,"",AO90)) ->  | AS90: =IF($E$5="Uniform Inputs",IF($Z90>$E$14,"",IF($E$23="Pro-Rata",MIN(AU90*AN90,(($I$5+'Cash Flows'!$BX$6+INDEX('Cash Flows'!$C$17:$BW$17,1,MATCH(EOMONTH(AT90,MOD(-MONTH(AT90),3)-3),'Cash Flows'!$C$4:$BW$4,0)))-SUM($AJ$5,$AA$5))/$E$14),MIN($E$25,(($I$5+'Cash Flows'!$BX$6+INDEX('Cash Flows'!$C$17:$BW$17,1,MATCH(EOMONTH(AT90,MOD(-MONTH(AT90),3)-3),'Cash Flows'!$C$4:$BW$4,0)))-SUM($AJ$5,$AA$5))/$E$14))),IF(AX90=0,"",AX90)) ->  | BB90: =IF($E$5="Uniform Inputs",IF($Z90>$E$15,"",IF($E$23="Pro-Rata",MIN(BD90*AW90,(($I$5+'Cash Flows'!$BX$6+INDEX('Cash Flows'!$C$17:$BW$17,1,MATCH(EOMONTH(BC90,MOD(-MONTH(BC90),3)-3),'Cash Flows'!$C$4:$BW$4,0)))-SUM($AS$5,$AJ$5,$AA$5))/$E$15),MIN($E$26,(($I$5+'Cash Flows'!$BX$6+INDEX('Cash Flows'!$C$17:$BW$17,1,MATCH(EOMONTH(BC90,MOD(-MONTH(BC90),3)-3),'Cash Flows'!$C$4:$BW$4,0)))-SUM($AS$5,$AJ$5,$AA$5))/$E$15))),IF(BG90=0,"",BG90)) ->  | BK90: =IF($E$5="Uniform Inputs",IF($Z90>$E$16,"",IF($E$23="Pro-Rata",MIN(BM90*BF90,(($I$5+'Cash Flows'!$BX$6+INDEX('Cash Flows'!$C$17:$BW$17,1,MATCH(EOMONTH(BL90,MOD(-MONTH(BL90),3)-3),'Cash Flows'!$C$4:$BW$4,0)))-SUM($BB$5,$AS$5,$AJ$5,$AA$5))/$E$16),MIN($E$27,(($I$5+'Cash Flows'!$BX$6+INDEX('Cash Flows'!$C$17:$BW$17,1,MATCH(EOMONTH(BL90,MOD(-MONTH(BL90),3)-3),'Cash Flows'!$C$4:$BW$4,0)))-SUM($BB$5,$AS$5,$AJ$5,$AA$5))/$E$16))),IF(BP90=0,"",BP90)) -> 
Y91: 86 | AA91: =IF($E$5="Uniform Inputs",IF($Z91>$E$12,"",MIN($E$21,($I$5+'Cash Flows'!$BX$6+INDEX('Cash Flows'!$C$17:$BW$17,1,MATCH(EOMONTH(AB91,MOD(-MONTH(AB91),3)-3),'Cash Flows'!$C$4:$BW$4,0)))/$E$12)),IF(AF91>0,AF91,"")) ->  | AJ91: =IF($E$5="Uniform Inputs",IF($Z91>$E$13,"",IF($E$23="Pro-Rata",MIN(AL91*AE91,(($I$5+'Cash Flows'!$BX$6+INDEX('Cash Flows'!$C$17:$BW$17,1,MATCH(EOMONTH(AK91,MOD(-MONTH(AK91),3)-3),'Cash Flows'!$C$4:$BW$4,0)))-$AA$5)/$E$13),MIN($E$24,(($I$5+'Cash Flows'!$BX$6+INDEX('Cash Flows'!$C$17:$BW$17,1,MATCH(EOMONTH(AK91,MOD(-MONTH(AK91),3)-3),'Cash Flows'!$C$4:$BW$4,0)))-$AA$5)/$E$13))),IF(AO91=0,"",AO91)) ->  | AS91: =IF($E$5="Uniform Inputs",IF($Z91>$E$14,"",IF($E$23="Pro-Rata",MIN(AU91*AN91,(($I$5+'Cash Flows'!$BX$6+INDEX('Cash Flows'!$C$17:$BW$17,1,MATCH(EOMONTH(AT91,MOD(-MONTH(AT91),3)-3),'Cash Flows'!$C$4:$BW$4,0)))-SUM($AJ$5,$AA$5))/$E$14),MIN($E$25,(($I$5+'Cash Flows'!$BX$6+INDEX('Cash Flows'!$C$17:$BW$17,1,MATCH(EOMONTH(AT91,MOD(-MONTH(AT91),3)-3),'Cash Flows'!$C$4:$BW$4,0)))-SUM($AJ$5,$AA$5))/$E$14))),IF(AX91=0,"",AX91)) ->  | BB91: =IF($E$5="Uniform Inputs",IF($Z91>$E$15,"",IF($E$23="Pro-Rata",MIN(BD91*AW91,(($I$5+'Cash Flows'!$BX$6+INDEX('Cash Flows'!$C$17:$BW$17,1,MATCH(EOMONTH(BC91,MOD(-MONTH(BC91),3)-3),'Cash Flows'!$C$4:$BW$4,0)))-SUM($AS$5,$AJ$5,$AA$5))/$E$15),MIN($E$26,(($I$5+'Cash Flows'!$BX$6+INDEX('Cash Flows'!$C$17:$BW$17,1,MATCH(EOMONTH(BC91,MOD(-MONTH(BC91),3)-3),'Cash Flows'!$C$4:$BW$4,0)))-SUM($AS$5,$AJ$5,$AA$5))/$E$15))),IF(BG91=0,"",BG91)) ->  | BK91: =IF($E$5="Uniform Inputs",IF($Z91>$E$16,"",IF($E$23="Pro-Rata",MIN(BM91*BF91,(($I$5+'Cash Flows'!$BX$6+INDEX('Cash Flows'!$C$17:$BW$17,1,MATCH(EOMONTH(BL91,MOD(-MONTH(BL91),3)-3),'Cash Flows'!$C$4:$BW$4,0)))-SUM($BB$5,$AS$5,$AJ$5,$AA$5))/$E$16),MIN($E$27,(($I$5+'Cash Flows'!$BX$6+INDEX('Cash Flows'!$C$17:$BW$17,1,MATCH(EOMONTH(BL91,MOD(-MONTH(BL91),3)-3),'Cash Flows'!$C$4:$BW$4,0)))-SUM($BB$5,$AS$5,$AJ$5,$AA$5))/$E$16))),IF(BP91=0,"",BP91)) -> 
Y92: 87 | AA92: =IF($E$5="Uniform Inputs",IF($Z92>$E$12,"",MIN($E$21,($I$5+'Cash Flows'!$BX$6+INDEX('Cash Flows'!$C$17:$BW$17,1,MATCH(EOMONTH(AB92,MOD(-MONTH(AB92),3)-3),'Cash Flows'!$C$4:$BW$4,0)))/$E$12)),IF(AF92>0,AF92,"")) ->  | AJ92: =IF($E$5="Uniform Inputs",IF($Z92>$E$13,"",IF($E$23="Pro-Rata",MIN(AL92*AE92,(($I$5+'Cash Flows'!$BX$6+INDEX('Cash Flows'!$C$17:$BW$17,1,MATCH(EOMONTH(AK92,MOD(-MONTH(AK92),3)-3),'Cash Flows'!$C$4:$BW$4,0)))-$AA$5)/$E$13),MIN($E$24,(($I$5+'Cash Flows'!$BX$6+INDEX('Cash Flows'!$C$17:$BW$17,1,MATCH(EOMONTH(AK92,MOD(-MONTH(AK92),3)-3),'Cash Flows'!$C$4:$BW$4,0)))-$AA$5)/$E$13))),IF(AO92=0,"",AO92)) ->  | AS92: =IF($E$5="Uniform Inputs",IF($Z92>$E$14,"",IF($E$23="Pro-Rata",MIN(AU92*AN92,(($I$5+'Cash Flows'!$BX$6+INDEX('Cash Flows'!$C$17:$BW$17,1,MATCH(EOMONTH(AT92,MOD(-MONTH(AT92),3)-3),'Cash Flows'!$C$4:$BW$4,0)))-SUM($AJ$5,$AA$5))/$E$14),MIN($E$25,(($I$5+'Cash Flows'!$BX$6+INDEX('Cash Flows'!$C$17:$BW$17,1,MATCH(EOMONTH(AT92,MOD(-MONTH(AT92),3)-3),'Cash Flows'!$C$4:$BW$4,0)))-SUM($AJ$5,$AA$5))/$E$14))),IF(AX92=0,"",AX92)) ->  | BB92: =IF($E$5="Uniform Inputs",IF($Z92>$E$15,"",IF($E$23="Pro-Rata",MIN(BD92*AW92,(($I$5+'Cash Flows'!$BX$6+INDEX('Cash Flows'!$C$17:$BW$17,1,MATCH(EOMONTH(BC92,MOD(-MONTH(BC92),3)-3),'Cash Flows'!$C$4:$BW$4,0)))-SUM($AS$5,$AJ$5,$AA$5))/$E$15),MIN($E$26,(($I$5+'Cash Flows'!$BX$6+INDEX('Cash Flows'!$C$17:$BW$17,1,MATCH(EOMONTH(BC92,MOD(-MONTH(BC92),3)-3),'Cash Flows'!$C$4:$BW$4,0)))-SUM($AS$5,$AJ$5,$AA$5))/$E$15))),IF(BG92=0,"",BG92)) ->  | BK92: =IF($E$5="Uniform Inputs",IF($Z92>$E$16,"",IF($E$23="Pro-Rata",MIN(BM92*BF92,(($I$5+'Cash Flows'!$BX$6+INDEX('Cash Flows'!$C$17:$BW$17,1,MATCH(EOMONTH(BL92,MOD(-MONTH(BL92),3)-3),'Cash Flows'!$C$4:$BW$4,0)))-SUM($BB$5,$AS$5,$AJ$5,$AA$5))/$E$16),MIN($E$27,(($I$5+'Cash Flows'!$BX$6+INDEX('Cash Flows'!$C$17:$BW$17,1,MATCH(EOMONTH(BL92,MOD(-MONTH(BL92),3)-3),'Cash Flows'!$C$4:$BW$4,0)))-SUM($BB$5,$AS$5,$AJ$5,$AA$5))/$E$16))),IF(BP92=0,"",BP92)) -> 
Y93: 88 | AA93: =IF($E$5="Uniform Inputs",IF($Z93>$E$12,"",MIN($E$21,($I$5+'Cash Flows'!$BX$6+INDEX('Cash Flows'!$C$17:$BW$17,1,MATCH(EOMONTH(AB93,MOD(-MONTH(AB93),3)-3),'Cash Flows'!$C$4:$BW$4,0)))/$E$12)),IF(AF93>0,AF93,"")) ->  | AJ93: =IF($E$5="Uniform Inputs",IF($Z93>$E$13,"",IF($E$23="Pro-Rata",MIN(AL93*AE93,(($I$5+'Cash Flows'!$BX$6+INDEX('Cash Flows'!$C$17:$BW$17,1,MATCH(EOMONTH(AK93,MOD(-MONTH(AK93),3)-3),'Cash Flows'!$C$4:$BW$4,0)))-$AA$5)/$E$13),MIN($E$24,(($I$5+'Cash Flows'!$BX$6+INDEX('Cash Flows'!$C$17:$BW$17,1,MATCH(EOMONTH(AK93,MOD(-MONTH(AK93),3)-3),'Cash Flows'!$C$4:$BW$4,0)))-$AA$5)/$E$13))),IF(AO93=0,"",AO93)) ->  | AS93: =IF($E$5="Uniform Inputs",IF($Z93>$E$14,"",IF($E$23="Pro-Rata",MIN(AU93*AN93,(($I$5+'Cash Flows'!$BX$6+INDEX('Cash Flows'!$C$17:$BW$17,1,MATCH(EOMONTH(AT93,MOD(-MONTH(AT93),3)-3),'Cash Flows'!$C$4:$BW$4,0)))-SUM($AJ$5,$AA$5))/$E$14),MIN($E$25,(($I$5+'Cash Flows'!$BX$6+INDEX('Cash Flows'!$C$17:$BW$17,1,MATCH(EOMONTH(AT93,MOD(-MONTH(AT93),3)-3),'Cash Flows'!$C$4:$BW$4,0)))-SUM($AJ$5,$AA$5))/$E$14))),IF(AX93=0,"",AX93)) ->  | BB93: =IF($E$5="Uniform Inputs",IF($Z93>$E$15,"",IF($E$23="Pro-Rata",MIN(BD93*AW93,(($I$5+'Cash Flows'!$BX$6+INDEX('Cash Flows'!$C$17:$BW$17,1,MATCH(EOMONTH(BC93,MOD(-MONTH(BC93),3)-3),'Cash Flows'!$C$4:$BW$4,0)))-SUM($AS$5,$AJ$5,$AA$5))/$E$15),MIN($E$26,(($I$5+'Cash Flows'!$BX$6+INDEX('Cash Flows'!$C$17:$BW$17,1,MATCH(EOMONTH(BC93,MOD(-MONTH(BC93),3)-3),'Cash Flows'!$C$4:$BW$4,0)))-SUM($AS$5,$AJ$5,$AA$5))/$E$15))),IF(BG93=0,"",BG93)) ->  | BK93: =IF($E$5="Uniform Inputs",IF($Z93>$E$16,"",IF($E$23="Pro-Rata",MIN(BM93*BF93,(($I$5+'Cash Flows'!$BX$6+INDEX('Cash Flows'!$C$17:$BW$17,1,MATCH(EOMONTH(BL93,MOD(-MONTH(BL93),3)-3),'Cash Flows'!$C$4:$BW$4,0)))-SUM($BB$5,$AS$5,$AJ$5,$AA$5))/$E$16),MIN($E$27,(($I$5+'Cash Flows'!$BX$6+INDEX('Cash Flows'!$C$17:$BW$17,1,MATCH(EOMONTH(BL93,MOD(-MONTH(BL93),3)-3),'Cash Flows'!$C$4:$BW$4,0)))-SUM($BB$5,$AS$5,$AJ$5,$AA$5))/$E$16))),IF(BP93=0,"",BP93)) -> 
Y94: 89 | AA94: =IF($E$5="Uniform Inputs",IF($Z94>$E$12,"",MIN($E$21,($I$5+'Cash Flows'!$BX$6+INDEX('Cash Flows'!$C$17:$BW$17,1,MATCH(EOMONTH(AB94,MOD(-MONTH(AB94),3)-3),'Cash Flows'!$C$4:$BW$4,0)))/$E$12)),IF(AF94>0,AF94,"")) ->  | AJ94: =IF($E$5="Uniform Inputs",IF($Z94>$E$13,"",IF($E$23="Pro-Rata",MIN(AL94*AE94,(($I$5+'Cash Flows'!$BX$6+INDEX('Cash Flows'!$C$17:$BW$17,1,MATCH(EOMONTH(AK94,MOD(-MONTH(AK94),3)-3),'Cash Flows'!$C$4:$BW$4,0)))-$AA$5)/$E$13),MIN($E$24,(($I$5+'Cash Flows'!$BX$6+INDEX('Cash Flows'!$C$17:$BW$17,1,MATCH(EOMONTH(AK94,MOD(-MONTH(AK94),3)-3),'Cash Flows'!$C$4:$BW$4,0)))-$AA$5)/$E$13))),IF(AO94=0,"",AO94)) ->  | AS94: =IF($E$5="Uniform Inputs",IF($Z94>$E$14,"",IF($E$23="Pro-Rata",MIN(AU94*AN94,(($I$5+'Cash Flows'!$BX$6+INDEX('Cash Flows'!$C$17:$BW$17,1,MATCH(EOMONTH(AT94,MOD(-MONTH(AT94),3)-3),'Cash Flows'!$C$4:$BW$4,0)))-SUM($AJ$5,$AA$5))/$E$14),MIN($E$25,(($I$5+'Cash Flows'!$BX$6+INDEX('Cash Flows'!$C$17:$BW$17,1,MATCH(EOMONTH(AT94,MOD(-MONTH(AT94),3)-3),'Cash Flows'!$C$4:$BW$4,0)))-SUM($AJ$5,$AA$5))/$E$14))),IF(AX94=0,"",AX94)) ->  | BB94: =IF($E$5="Uniform Inputs",IF($Z94>$E$15,"",IF($E$23="Pro-Rata",MIN(BD94*AW94,(($I$5+'Cash Flows'!$BX$6+INDEX('Cash Flows'!$C$17:$BW$17,1,MATCH(EOMONTH(BC94,MOD(-MONTH(BC94),3)-3),'Cash Flows'!$C$4:$BW$4,0)))-SUM($AS$5,$AJ$5,$AA$5))/$E$15),MIN($E$26,(($I$5+'Cash Flows'!$BX$6+INDEX('Cash Flows'!$C$17:$BW$17,1,MATCH(EOMONTH(BC94,MOD(-MONTH(BC94),3)-3),'Cash Flows'!$C$4:$BW$4,0)))-SUM($AS$5,$AJ$5,$AA$5))/$E$15))),IF(BG94=0,"",BG94)) ->  | BK94: =IF($E$5="Uniform Inputs",IF($Z94>$E$16,"",IF($E$23="Pro-Rata",MIN(BM94*BF94,(($I$5+'Cash Flows'!$BX$6+INDEX('Cash Flows'!$C$17:$BW$17,1,MATCH(EOMONTH(BL94,MOD(-MONTH(BL94),3)-3),'Cash Flows'!$C$4:$BW$4,0)))-SUM($BB$5,$AS$5,$AJ$5,$AA$5))/$E$16),MIN($E$27,(($I$5+'Cash Flows'!$BX$6+INDEX('Cash Flows'!$C$17:$BW$17,1,MATCH(EOMONTH(BL94,MOD(-MONTH(BL94),3)-3),'Cash Flows'!$C$4:$BW$4,0)))-SUM($BB$5,$AS$5,$AJ$5,$AA$5))/$E$16))),IF(BP94=0,"",BP94)) -> 
Y95: 90 | AA95: =IF($E$5="Uniform Inputs",IF($Z95>$E$12,"",MIN($E$21,($I$5+'Cash Flows'!$BX$6+INDEX('Cash Flows'!$C$17:$BW$17,1,MATCH(EOMONTH(AB95,MOD(-MONTH(AB95),3)-3),'Cash Flows'!$C$4:$BW$4,0)))/$E$12)),IF(AF95>0,AF95,"")) ->  | AJ95: =IF($E$5="Uniform Inputs",IF($Z95>$E$13,"",IF($E$23="Pro-Rata",MIN(AL95*AE95,(($I$5+'Cash Flows'!$BX$6+INDEX('Cash Flows'!$C$17:$BW$17,1,MATCH(EOMONTH(AK95,MOD(-MONTH(AK95),3)-3),'Cash Flows'!$C$4:$BW$4,0)))-$AA$5)/$E$13),MIN($E$24,(($I$5+'Cash Flows'!$BX$6+INDEX('Cash Flows'!$C$17:$BW$17,1,MATCH(EOMONTH(AK95,MOD(-MONTH(AK95),3)-3),'Cash Flows'!$C$4:$BW$4,0)))-$AA$5)/$E$13))),IF(AO95=0,"",AO95)) ->  | AS95: =IF($E$5="Uniform Inputs",IF($Z95>$E$14,"",IF($E$23="Pro-Rata",MIN(AU95*AN95,(($I$5+'Cash Flows'!$BX$6+INDEX('Cash Flows'!$C$17:$BW$17,1,MATCH(EOMONTH(AT95,MOD(-MONTH(AT95),3)-3),'Cash Flows'!$C$4:$BW$4,0)))-SUM($AJ$5,$AA$5))/$E$14),MIN($E$25,(($I$5+'Cash Flows'!$BX$6+INDEX('Cash Flows'!$C$17:$BW$17,1,MATCH(EOMONTH(AT95,MOD(-MONTH(AT95),3)-3),'Cash Flows'!$C$4:$BW$4,0)))-SUM($AJ$5,$AA$5))/$E$14))),IF(AX95=0,"",AX95)) ->  | BB95: =IF($E$5="Uniform Inputs",IF($Z95>$E$15,"",IF($E$23="Pro-Rata",MIN(BD95*AW95,(($I$5+'Cash Flows'!$BX$6+INDEX('Cash Flows'!$C$17:$BW$17,1,MATCH(EOMONTH(BC95,MOD(-MONTH(BC95),3)-3),'Cash Flows'!$C$4:$BW$4,0)))-SUM($AS$5,$AJ$5,$AA$5))/$E$15),MIN($E$26,(($I$5+'Cash Flows'!$BX$6+INDEX('Cash Flows'!$C$17:$BW$17,1,MATCH(EOMONTH(BC95,MOD(-MONTH(BC95),3)-3),'Cash Flows'!$C$4:$BW$4,0)))-SUM($AS$5,$AJ$5,$AA$5))/$E$15))),IF(BG95=0,"",BG95)) ->  | BK95: =IF($E$5="Uniform Inputs",IF($Z95>$E$16,"",IF($E$23="Pro-Rata",MIN(BM95*BF95,(($I$5+'Cash Flows'!$BX$6+INDEX('Cash Flows'!$C$17:$BW$17,1,MATCH(EOMONTH(BL95,MOD(-MONTH(BL95),3)-3),'Cash Flows'!$C$4:$BW$4,0)))-SUM($BB$5,$AS$5,$AJ$5,$AA$5))/$E$16),MIN($E$27,(($I$5+'Cash Flows'!$BX$6+INDEX('Cash Flows'!$C$17:$BW$17,1,MATCH(EOMONTH(BL95,MOD(-MONTH(BL95),3)-3),'Cash Flows'!$C$4:$BW$4,0)))-SUM($BB$5,$AS$5,$AJ$5,$AA$5))/$E$16))),IF(BP95=0,"",BP95)) -> 
Y96: 91 | AA96: =IF($E$5="Uniform Inputs",IF($Z96>$E$12,"",MIN($E$21,($I$5+'Cash Flows'!$BX$6+INDEX('Cash Flows'!$C$17:$BW$17,1,MATCH(EOMONTH(AB96,MOD(-MONTH(AB96),3)-3),'Cash Flows'!$C$4:$BW$4,0)))/$E$12)),IF(AF96>0,AF96,"")) ->  | AJ96: =IF($E$5="Uniform Inputs",IF($Z96>$E$13,"",IF($E$23="Pro-Rata",MIN(AL96*AE96,(($I$5+'Cash Flows'!$BX$6+INDEX('Cash Flows'!$C$17:$BW$17,1,MATCH(EOMONTH(AK96,MOD(-MONTH(AK96),3)-3),'Cash Flows'!$C$4:$BW$4,0)))-$AA$5)/$E$13),MIN($E$24,(($I$5+'Cash Flows'!$BX$6+INDEX('Cash Flows'!$C$17:$BW$17,1,MATCH(EOMONTH(AK96,MOD(-MONTH(AK96),3)-3),'Cash Flows'!$C$4:$BW$4,0)))-$AA$5)/$E$13))),IF(AO96=0,"",AO96)) ->  | AS96: =IF($E$5="Uniform Inputs",IF($Z96>$E$14,"",IF($E$23="Pro-Rata",MIN(AU96*AN96,(($I$5+'Cash Flows'!$BX$6+INDEX('Cash Flows'!$C$17:$BW$17,1,MATCH(EOMONTH(AT96,MOD(-MONTH(AT96),3)-3),'Cash Flows'!$C$4:$BW$4,0)))-SUM($AJ$5,$AA$5))/$E$14),MIN($E$25,(($I$5+'Cash Flows'!$BX$6+INDEX('Cash Flows'!$C$17:$BW$17,1,MATCH(EOMONTH(AT96,MOD(-MONTH(AT96),3)-3),'Cash Flows'!$C$4:$BW$4,0)))-SUM($AJ$5,$AA$5))/$E$14))),IF(AX96=0,"",AX96)) ->  | BB96: =IF($E$5="Uniform Inputs",IF($Z96>$E$15,"",IF($E$23="Pro-Rata",MIN(BD96*AW96,(($I$5+'Cash Flows'!$BX$6+INDEX('Cash Flows'!$C$17:$BW$17,1,MATCH(EOMONTH(BC96,MOD(-MONTH(BC96),3)-3),'Cash Flows'!$C$4:$BW$4,0)))-SUM($AS$5,$AJ$5,$AA$5))/$E$15),MIN($E$26,(($I$5+'Cash Flows'!$BX$6+INDEX('Cash Flows'!$C$17:$BW$17,1,MATCH(EOMONTH(BC96,MOD(-MONTH(BC96),3)-3),'Cash Flows'!$C$4:$BW$4,0)))-SUM($AS$5,$AJ$5,$AA$5))/$E$15))),IF(BG96=0,"",BG96)) ->  | BK96: =IF($E$5="Uniform Inputs",IF($Z96>$E$16,"",IF($E$23="Pro-Rata",MIN(BM96*BF96,(($I$5+'Cash Flows'!$BX$6+INDEX('Cash Flows'!$C$17:$BW$17,1,MATCH(EOMONTH(BL96,MOD(-MONTH(BL96),3)-3),'Cash Flows'!$C$4:$BW$4,0)))-SUM($BB$5,$AS$5,$AJ$5,$AA$5))/$E$16),MIN($E$27,(($I$5+'Cash Flows'!$BX$6+INDEX('Cash Flows'!$C$17:$BW$17,1,MATCH(EOMONTH(BL96,MOD(-MONTH(BL96),3)-3),'Cash Flows'!$C$4:$BW$4,0)))-SUM($BB$5,$AS$5,$AJ$5,$AA$5))/$E$16))),IF(BP96=0,"",BP96)) -> 
Y97: 92 | AA97: =IF($E$5="Uniform Inputs",IF($Z97>$E$12,"",MIN($E$21,($I$5+'Cash Flows'!$BX$6+INDEX('Cash Flows'!$C$17:$BW$17,1,MATCH(EOMONTH(AB97,MOD(-MONTH(AB97),3)-3),'Cash Flows'!$C$4:$BW$4,0)))/$E$12)),IF(AF97>0,AF97,"")) ->  | AJ97: =IF($E$5="Uniform Inputs",IF($Z97>$E$13,"",IF($E$23="Pro-Rata",MIN(AL97*AE97,(($I$5+'Cash Flows'!$BX$6+INDEX('Cash Flows'!$C$17:$BW$17,1,MATCH(EOMONTH(AK97,MOD(-MONTH(AK97),3)-3),'Cash Flows'!$C$4:$BW$4,0)))-$AA$5)/$E$13),MIN($E$24,(($I$5+'Cash Flows'!$BX$6+INDEX('Cash Flows'!$C$17:$BW$17,1,MATCH(EOMONTH(AK97,MOD(-MONTH(AK97),3)-3),'Cash Flows'!$C$4:$BW$4,0)))-$AA$5)/$E$13))),IF(AO97=0,"",AO97)) ->  | AS97: =IF($E$5="Uniform Inputs",IF($Z97>$E$14,"",IF($E$23="Pro-Rata",MIN(AU97*AN97,(($I$5+'Cash Flows'!$BX$6+INDEX('Cash Flows'!$C$17:$BW$17,1,MATCH(EOMONTH(AT97,MOD(-MONTH(AT97),3)-3),'Cash Flows'!$C$4:$BW$4,0)))-SUM($AJ$5,$AA$5))/$E$14),MIN($E$25,(($I$5+'Cash Flows'!$BX$6+INDEX('Cash Flows'!$C$17:$BW$17,1,MATCH(EOMONTH(AT97,MOD(-MONTH(AT97),3)-3),'Cash Flows'!$C$4:$BW$4,0)))-SUM($AJ$5,$AA$5))/$E$14))),IF(AX97=0,"",AX97)) ->  | BB97: =IF($E$5="Uniform Inputs",IF($Z97>$E$15,"",IF($E$23="Pro-Rata",MIN(BD97*AW97,(($I$5+'Cash Flows'!$BX$6+INDEX('Cash Flows'!$C$17:$BW$17,1,MATCH(EOMONTH(BC97,MOD(-MONTH(BC97),3)-3),'Cash Flows'!$C$4:$BW$4,0)))-SUM($AS$5,$AJ$5,$AA$5))/$E$15),MIN($E$26,(($I$5+'Cash Flows'!$BX$6+INDEX('Cash Flows'!$C$17:$BW$17,1,MATCH(EOMONTH(BC97,MOD(-MONTH(BC97),3)-3),'Cash Flows'!$C$4:$BW$4,0)))-SUM($AS$5,$AJ$5,$AA$5))/$E$15))),IF(BG97=0,"",BG97)) ->  | BK97: =IF($E$5="Uniform Inputs",IF($Z97>$E$16,"",IF($E$23="Pro-Rata",MIN(BM97*BF97,(($I$5+'Cash Flows'!$BX$6+INDEX('Cash Flows'!$C$17:$BW$17,1,MATCH(EOMONTH(BL97,MOD(-MONTH(BL97),3)-3),'Cash Flows'!$C$4:$BW$4,0)))-SUM($BB$5,$AS$5,$AJ$5,$AA$5))/$E$16),MIN($E$27,(($I$5+'Cash Flows'!$BX$6+INDEX('Cash Flows'!$C$17:$BW$17,1,MATCH(EOMONTH(BL97,MOD(-MONTH(BL97),3)-3),'Cash Flows'!$C$4:$BW$4,0)))-SUM($BB$5,$AS$5,$AJ$5,$AA$5))/$E$16))),IF(BP97=0,"",BP97)) -> 
Y98: 93 | AA98: =IF($E$5="Uniform Inputs",IF($Z98>$E$12,"",MIN($E$21,($I$5+'Cash Flows'!$BX$6+INDEX('Cash Flows'!$C$17:$BW$17,1,MATCH(EOMONTH(AB98,MOD(-MONTH(AB98),3)-3),'Cash Flows'!$C$4:$BW$4,0)))/$E$12)),IF(AF98>0,AF98,"")) ->  | AJ98: =IF($E$5="Uniform Inputs",IF($Z98>$E$13,"",IF($E$23="Pro-Rata",MIN(AL98*AE98,(($I$5+'Cash Flows'!$BX$6+INDEX('Cash Flows'!$C$17:$BW$17,1,MATCH(EOMONTH(AK98,MOD(-MONTH(AK98),3)-3),'Cash Flows'!$C$4:$BW$4,0)))-$AA$5)/$E$13),MIN($E$24,(($I$5+'Cash Flows'!$BX$6+INDEX('Cash Flows'!$C$17:$BW$17,1,MATCH(EOMONTH(AK98,MOD(-MONTH(AK98),3)-3),'Cash Flows'!$C$4:$BW$4,0)))-$AA$5)/$E$13))),IF(AO98=0,"",AO98)) ->  | AS98: =IF($E$5="Uniform Inputs",IF($Z98>$E$14,"",IF($E$23="Pro-Rata",MIN(AU98*AN98,(($I$5+'Cash Flows'!$BX$6+INDEX('Cash Flows'!$C$17:$BW$17,1,MATCH(EOMONTH(AT98,MOD(-MONTH(AT98),3)-3),'Cash Flows'!$C$4:$BW$4,0)))-SUM($AJ$5,$AA$5))/$E$14),MIN($E$25,(($I$5+'Cash Flows'!$BX$6+INDEX('Cash Flows'!$C$17:$BW$17,1,MATCH(EOMONTH(AT98,MOD(-MONTH(AT98),3)-3),'Cash Flows'!$C$4:$BW$4,0)))-SUM($AJ$5,$AA$5))/$E$14))),IF(AX98=0,"",AX98)) ->  | BB98: =IF($E$5="Uniform Inputs",IF($Z98>$E$15,"",IF($E$23="Pro-Rata",MIN(BD98*AW98,(($I$5+'Cash Flows'!$BX$6+INDEX('Cash Flows'!$C$17:$BW$17,1,MATCH(EOMONTH(BC98,MOD(-MONTH(BC98),3)-3),'Cash Flows'!$C$4:$BW$4,0)))-SUM($AS$5,$AJ$5,$AA$5))/$E$15),MIN($E$26,(($I$5+'Cash Flows'!$BX$6+INDEX('Cash Flows'!$C$17:$BW$17,1,MATCH(EOMONTH(BC98,MOD(-MONTH(BC98),3)-3),'Cash Flows'!$C$4:$BW$4,0)))-SUM($AS$5,$AJ$5,$AA$5))/$E$15))),IF(BG98=0,"",BG98)) ->  | BK98: =IF($E$5="Uniform Inputs",IF($Z98>$E$16,"",IF($E$23="Pro-Rata",MIN(BM98*BF98,(($I$5+'Cash Flows'!$BX$6+INDEX('Cash Flows'!$C$17:$BW$17,1,MATCH(EOMONTH(BL98,MOD(-MONTH(BL98),3)-3),'Cash Flows'!$C$4:$BW$4,0)))-SUM($BB$5,$AS$5,$AJ$5,$AA$5))/$E$16),MIN($E$27,(($I$5+'Cash Flows'!$BX$6+INDEX('Cash Flows'!$C$17:$BW$17,1,MATCH(EOMONTH(BL98,MOD(-MONTH(BL98),3)-3),'Cash Flows'!$C$4:$BW$4,0)))-SUM($BB$5,$AS$5,$AJ$5,$AA$5))/$E$16))),IF(BP98=0,"",BP98)) -> 
Y99: 94 | AA99: =IF($E$5="Uniform Inputs",IF($Z99>$E$12,"",MIN($E$21,($I$5+'Cash Flows'!$BX$6+INDEX('Cash Flows'!$C$17:$BW$17,1,MATCH(EOMONTH(AB99,MOD(-MONTH(AB99),3)-3),'Cash Flows'!$C$4:$BW$4,0)))/$E$12)),IF(AF99>0,AF99,"")) ->  | AJ99: =IF($E$5="Uniform Inputs",IF($Z99>$E$13,"",IF($E$23="Pro-Rata",MIN(AL99*AE99,(($I$5+'Cash Flows'!$BX$6+INDEX('Cash Flows'!$C$17:$BW$17,1,MATCH(EOMONTH(AK99,MOD(-MONTH(AK99),3)-3),'Cash Flows'!$C$4:$BW$4,0)))-$AA$5)/$E$13),MIN($E$24,(($I$5+'Cash Flows'!$BX$6+INDEX('Cash Flows'!$C$17:$BW$17,1,MATCH(EOMONTH(AK99,MOD(-MONTH(AK99),3)-3),'Cash Flows'!$C$4:$BW$4,0)))-$AA$5)/$E$13))),IF(AO99=0,"",AO99)) ->  | AS99: =IF($E$5="Uniform Inputs",IF($Z99>$E$14,"",IF($E$23="Pro-Rata",MIN(AU99*AN99,(($I$5+'Cash Flows'!$BX$6+INDEX('Cash Flows'!$C$17:$BW$17,1,MATCH(EOMONTH(AT99,MOD(-MONTH(AT99),3)-3),'Cash Flows'!$C$4:$BW$4,0)))-SUM($AJ$5,$AA$5))/$E$14),MIN($E$25,(($I$5+'Cash Flows'!$BX$6+INDEX('Cash Flows'!$C$17:$BW$17,1,MATCH(EOMONTH(AT99,MOD(-MONTH(AT99),3)-3),'Cash Flows'!$C$4:$BW$4,0)))-SUM($AJ$5,$AA$5))/$E$14))),IF(AX99=0,"",AX99)) ->  | BB99: =IF($E$5="Uniform Inputs",IF($Z99>$E$15,"",IF($E$23="Pro-Rata",MIN(BD99*AW99,(($I$5+'Cash Flows'!$BX$6+INDEX('Cash Flows'!$C$17:$BW$17,1,MATCH(EOMONTH(BC99,MOD(-MONTH(BC99),3)-3),'Cash Flows'!$C$4:$BW$4,0)))-SUM($AS$5,$AJ$5,$AA$5))/$E$15),MIN($E$26,(($I$5+'Cash Flows'!$BX$6+INDEX('Cash Flows'!$C$17:$BW$17,1,MATCH(EOMONTH(BC99,MOD(-MONTH(BC99),3)-3),'Cash Flows'!$C$4:$BW$4,0)))-SUM($AS$5,$AJ$5,$AA$5))/$E$15))),IF(BG99=0,"",BG99)) ->  | BK99: =IF($E$5="Uniform Inputs",IF($Z99>$E$16,"",IF($E$23="Pro-Rata",MIN(BM99*BF99,(($I$5+'Cash Flows'!$BX$6+INDEX('Cash Flows'!$C$17:$BW$17,1,MATCH(EOMONTH(BL99,MOD(-MONTH(BL99),3)-3),'Cash Flows'!$C$4:$BW$4,0)))-SUM($BB$5,$AS$5,$AJ$5,$AA$5))/$E$16),MIN($E$27,(($I$5+'Cash Flows'!$BX$6+INDEX('Cash Flows'!$C$17:$BW$17,1,MATCH(EOMONTH(BL99,MOD(-MONTH(BL99),3)-3),'Cash Flows'!$C$4:$BW$4,0)))-SUM($BB$5,$AS$5,$AJ$5,$AA$5))/$E$16))),IF(BP99=0,"",BP99)) -> 
Y100: 95 | AA100: =IF($E$5="Uniform Inputs",IF($Z100>$E$12,"",MIN($E$21,($I$5+'Cash Flows'!$BX$6+INDEX('Cash Flows'!$C$17:$BW$17,1,MATCH(EOMONTH(AB100,MOD(-MONTH(AB100),3)-3),'Cash Flows'!$C$4:$BW$4,0)))/$E$12)),IF(AF100>0,AF100,"")) ->  | AJ100: =IF($E$5="Uniform Inputs",IF($Z100>$E$13,"",IF($E$23="Pro-Rata",MIN(AL100*AE100,(($I$5+'Cash Flows'!$BX$6+INDEX('Cash Flows'!$C$17:$BW$17,1,MATCH(EOMONTH(AK100,MOD(-MONTH(AK100),3)-3),'Cash Flows'!$C$4:$BW$4,0)))-$AA$5)/$E$13),MIN($E$24,(($I$5+'Cash Flows'!$BX$6+INDEX('Cash Flows'!$C$17:$BW$17,1,MATCH(EOMONTH(AK100,MOD(-MONTH(AK100),3)-3),'Cash Flows'!$C$4:$BW$4,0)))-$AA$5)/$E$13))),IF(AO100=0,"",AO100)) ->  | AS100: =IF($E$5="Uniform Inputs",IF($Z100>$E$14,"",IF($E$23="Pro-Rata",MIN(AU100*AN100,(($I$5+'Cash Flows'!$BX$6+INDEX('Cash Flows'!$C$17:$BW$17,1,MATCH(EOMONTH(AT100,MOD(-MONTH(AT100),3)-3),'Cash Flows'!$C$4:$BW$4,0)))-SUM($AJ$5,$AA$5))/$E$14),MIN($E$25,(($I$5+'Cash Flows'!$BX$6+INDEX('Cash Flows'!$C$17:$BW$17,1,MATCH(EOMONTH(AT100,MOD(-MONTH(AT100),3)-3),'Cash Flows'!$C$4:$BW$4,0)))-SUM($AJ$5,$AA$5))/$E$14))),IF(AX100=0,"",AX100)) ->  | BB100: =IF($E$5="Uniform Inputs",IF($Z100>$E$15,"",IF($E$23="Pro-Rata",MIN(BD100*AW100,(($I$5+'Cash Flows'!$BX$6+INDEX('Cash Flows'!$C$17:$BW$17,1,MATCH(EOMONTH(BC100,MOD(-MONTH(BC100),3)-3),'Cash Flows'!$C$4:$BW$4,0)))-SUM($AS$5,$AJ$5,$AA$5))/$E$15),MIN($E$26,(($I$5+'Cash Flows'!$BX$6+INDEX('Cash Flows'!$C$17:$BW$17,1,MATCH(EOMONTH(BC100,MOD(-MONTH(BC100),3)-3),'Cash Flows'!$C$4:$BW$4,0)))-SUM($AS$5,$AJ$5,$AA$5))/$E$15))),IF(BG100=0,"",BG100)) ->  | BK100: =IF($E$5="Uniform Inputs",IF($Z100>$E$16,"",IF($E$23="Pro-Rata",MIN(BM100*BF100,(($I$5+'Cash Flows'!$BX$6+INDEX('Cash Flows'!$C$17:$BW$17,1,MATCH(EOMONTH(BL100,MOD(-MONTH(BL100),3)-3),'Cash Flows'!$C$4:$BW$4,0)))-SUM($BB$5,$AS$5,$AJ$5,$AA$5))/$E$16),MIN($E$27,(($I$5+'Cash Flows'!$BX$6+INDEX('Cash Flows'!$C$17:$BW$17,1,MATCH(EOMONTH(BL100,MOD(-MONTH(BL100),3)-3),'Cash Flows'!$C$4:$BW$4,0)))-SUM($BB$5,$AS$5,$AJ$5,$AA$5))/$E$16))),IF(BP100=0,"",BP100)) -> 
Y101: 96 | AA101: =IF($E$5="Uniform Inputs",IF($Z101>$E$12,"",MIN($E$21,($I$5+'Cash Flows'!$BX$6+INDEX('Cash Flows'!$C$17:$BW$17,1,MATCH(EOMONTH(AB101,MOD(-MONTH(AB101),3)-3),'Cash Flows'!$C$4:$BW$4,0)))/$E$12)),IF(AF101>0,AF101,"")) ->  | AJ101: =IF($E$5="Uniform Inputs",IF($Z101>$E$13,"",IF($E$23="Pro-Rata",MIN(AL101*AE101,(($I$5+'Cash Flows'!$BX$6+INDEX('Cash Flows'!$C$17:$BW$17,1,MATCH(EOMONTH(AK101,MOD(-MONTH(AK101),3)-3),'Cash Flows'!$C$4:$BW$4,0)))-$AA$5)/$E$13),MIN($E$24,(($I$5+'Cash Flows'!$BX$6+INDEX('Cash Flows'!$C$17:$BW$17,1,MATCH(EOMONTH(AK101,MOD(-MONTH(AK101),3)-3),'Cash Flows'!$C$4:$BW$4,0)))-$AA$5)/$E$13))),IF(AO101=0,"",AO101)) ->  | AS101: =IF($E$5="Uniform Inputs",IF($Z101>$E$14,"",IF($E$23="Pro-Rata",MIN(AU101*AN101,(($I$5+'Cash Flows'!$BX$6+INDEX('Cash Flows'!$C$17:$BW$17,1,MATCH(EOMONTH(AT101,MOD(-MONTH(AT101),3)-3),'Cash Flows'!$C$4:$BW$4,0)))-SUM($AJ$5,$AA$5))/$E$14),MIN($E$25,(($I$5+'Cash Flows'!$BX$6+INDEX('Cash Flows'!$C$17:$BW$17,1,MATCH(EOMONTH(AT101,MOD(-MONTH(AT101),3)-3),'Cash Flows'!$C$4:$BW$4,0)))-SUM($AJ$5,$AA$5))/$E$14))),IF(AX101=0,"",AX101)) ->  | BB101: =IF($E$5="Uniform Inputs",IF($Z101>$E$15,"",IF($E$23="Pro-Rata",MIN(BD101*AW101,(($I$5+'Cash Flows'!$BX$6+INDEX('Cash Flows'!$C$17:$BW$17,1,MATCH(EOMONTH(BC101,MOD(-MONTH(BC101),3)-3),'Cash Flows'!$C$4:$BW$4,0)))-SUM($AS$5,$AJ$5,$AA$5))/$E$15),MIN($E$26,(($I$5+'Cash Flows'!$BX$6+INDEX('Cash Flows'!$C$17:$BW$17,1,MATCH(EOMONTH(BC101,MOD(-MONTH(BC101),3)-3),'Cash Flows'!$C$4:$BW$4,0)))-SUM($AS$5,$AJ$5,$AA$5))/$E$15))),IF(BG101=0,"",BG101)) ->  | BK101: =IF($E$5="Uniform Inputs",IF($Z101>$E$16,"",IF($E$23="Pro-Rata",MIN(BM101*BF101,(($I$5+'Cash Flows'!$BX$6+INDEX('Cash Flows'!$C$17:$BW$17,1,MATCH(EOMONTH(BL101,MOD(-MONTH(BL101),3)-3),'Cash Flows'!$C$4:$BW$4,0)))-SUM($BB$5,$AS$5,$AJ$5,$AA$5))/$E$16),MIN($E$27,(($I$5+'Cash Flows'!$BX$6+INDEX('Cash Flows'!$C$17:$BW$17,1,MATCH(EOMONTH(BL101,MOD(-MONTH(BL101),3)-3),'Cash Flows'!$C$4:$BW$4,0)))-SUM($BB$5,$AS$5,$AJ$5,$AA$5))/$E$16))),IF(BP101=0,"",BP101)) -> 
Q102: =IF($E$5="Uniform Inputs",AE102,IF(P102=$AA$3,AE102,IF(P102=$AJ$3,AN102,IF(P102=$AS$3,AW102,IF(P102=$BB$3,BF102,IF(P102=$BK$3,BO102,"")))))) ->  | Y102: 97 | AA102: =IF($E$5="Uniform Inputs",IF($Z102>$E$12,"",MIN($E$21,($I$5+'Cash Flows'!$BX$6+INDEX('Cash Flows'!$C$17:$BW$17,1,MATCH(EOMONTH(AB102,MOD(-MONTH(AB102),3)-3),'Cash Flows'!$C$4:$BW$4,0)))/$E$12)),IF(AF102>0,AF102,"")) ->  | AJ102: =IF($E$5="Uniform Inputs",IF($Z102>$E$13,"",IF($E$23="Pro-Rata",MIN(AL102*AE102,(($I$5+'Cash Flows'!$BX$6+INDEX('Cash Flows'!$C$17:$BW$17,1,MATCH(EOMONTH(AK102,MOD(-MONTH(AK102),3)-3),'Cash Flows'!$C$4:$BW$4,0)))-$AA$5)/$E$13),MIN($E$24,(($I$5+'Cash Flows'!$BX$6+INDEX('Cash Flows'!$C$17:$BW$17,1,MATCH(EOMONTH(AK102,MOD(-MONTH(AK102),3)-3),'Cash Flows'!$C$4:$BW$4,0)))-$AA$5)/$E$13))),IF(AO102=0,"",AO102)) ->  | AN102: =IFERROR(IF($E$5="Uniform Inputs",(AE102*(AM102-AL102)+IF(AJ102="",0,AJ102))/AM102,IF(AE102="",AJ102/AM102,(AE102*(AM102-AL102)+IF(AJ102="",0,AJ102))/AM102)),"") ->  | AS102: =IF($E$5="Uniform Inputs",IF($Z102>$E$14,"",IF($E$23="Pro-Rata",MIN(AU102*AN102,(($I$5+'Cash Flows'!$BX$6+INDEX('Cash Flows'!$C$17:$BW$17,1,MATCH(EOMONTH(AT102,MOD(-MONTH(AT102),3)-3),'Cash Flows'!$C$4:$BW$4,0)))-SUM($AJ$5,$AA$5))/$E$14),MIN($E$25,(($I$5+'Cash Flows'!$BX$6+INDEX('Cash Flows'!$C$17:$BW$17,1,MATCH(EOMONTH(AT102,MOD(-MONTH(AT102),3)-3),'Cash Flows'!$C$4:$BW$4,0)))-SUM($AJ$5,$AA$5))/$E$14))),IF(AX102=0,"",AX102)) ->  | AW102: =IFERROR(IF($E$5="Uniform Inputs",(AN102*(AV102-AU102)+IF(AS102="",0,AS102))/AV102,IF(AN102="",AS102/AV102,(AN102*(AV102-AU102)+IF(AS102="",0,AS102))/AV102)),"") ->  | BB102: =IF($E$5="Uniform Inputs",IF($Z102>$E$15,"",IF($E$23="Pro-Rata",MIN(BD102*AW102,(($I$5+'Cash Flows'!$BX$6+INDEX('Cash Flows'!$C$17:$BW$17,1,MATCH(EOMONTH(BC102,MOD(-MONTH(BC102),3)-3),'Cash Flows'!$C$4:$BW$4,0)))-SUM($AS$5,$AJ$5,$AA$5))/$E$15),MIN($E$26,(($I$5+'Cash Flows'!$BX$6+INDEX('Cash Flows'!$C$17:$BW$17,1,MATCH(EOMONTH(BC102,MOD(-MONTH(BC102),3)-3),'Cash Flows'!$C$4:$BW$4,0)))-SUM($AS$5,$AJ$5,$AA$5))/$E$15))),IF(BG102=0,"",BG102)) ->  | BF102: =IFERROR(IF($E$5="Uniform Inputs",(AW102*(BE102-BD102)+IF(BB102="",0,BB102))/BE102,IF(AW102="",BB102/BE102,(AW102*(BE102-BD102)+IF(BB102="",0,BB102))/BE102)),"") ->  | BK102: =IF($E$5="Uniform Inputs",IF($Z102>$E$16,"",IF($E$23="Pro-Rata",MIN(BM102*BF102,(($I$5+'Cash Flows'!$BX$6+INDEX('Cash Flows'!$C$17:$BW$17,1,MATCH(EOMONTH(BL102,MOD(-MONTH(BL102),3)-3),'Cash Flows'!$C$4:$BW$4,0)))-SUM($BB$5,$AS$5,$AJ$5,$AA$5))/$E$16),MIN($E$27,(($I$5+'Cash Flows'!$BX$6+INDEX('Cash Flows'!$C$17:$BW$17,1,MATCH(EOMONTH(BL102,MOD(-MONTH(BL102),3)-3),'Cash Flows'!$C$4:$BW$4,0)))-SUM($BB$5,$AS$5,$AJ$5,$AA$5))/$E$16))),IF(BP102=0,"",BP102)) ->  | BO102: =IFERROR(IF($E$5="Uniform Inputs",(BF102*(BN102-BM102)+IF(BK102="",0,BK102))/BN102,IF(BF102="",BK102/BN102,(BF102*(BN102-BM102)+IF(BK102="",0,BK102))/BN102)),"") ->  | BX102: =IFERROR(IF($E$5="Uniform Inputs",(BO102*(BW102-BV102)+IF(BT102="",0,BT102))/BW102,IF(BO102="",BT102/BW102,(BO102*(BW102-BV102)+IF(BT102="",0,BT102))/BW102)),"") ->  | CG102: =IFERROR(IF($E$5="Uniform Inputs",(BX102*(CF102-CE102)+IF(CC102="",0,CC102))/CF102,IF(BX102="",CC102/CF102,(BX102*(CF102-CE102)+IF(CC102="",0,CC102))/CF102)),"") ->  | CP102: =IFERROR(IF($E$5="Uniform Inputs",(CG102*(CO102-CN102)+IF(CL102="",0,CL102))/CO102,IF(CG102="",CL102/CO102,(CG102*(CO102-CN102)+IF(CL102="",0,CL102))/CO102)),"") ->  | CY102: =IFERROR(IF($E$5="Uniform Inputs",(CP102*(CX102-CW102)+IF(CU102="",0,CU102))/CX102,IF(CP102="",CU102/CX102,(CP102*(CX102-CW102)+IF(CU102="",0,CU102))/CX102)),"") -> 
Y103: 98 | AA103: =IF($E$5="Uniform Inputs",IF($Z103>$E$12,"",MIN($E$21,($I$5+'Cash Flows'!$BX$6+INDEX('Cash Flows'!$C$17:$BW$17,1,MATCH(EOMONTH(AB103,MOD(-MONTH(AB103),3)-3),'Cash Flows'!$C$4:$BW$4,0)))/$E$12)),IF(AF103>0,AF103,"")) ->  | AJ103: =IF($E$5="Uniform Inputs",IF($Z103>$E$13,"",IF($E$23="Pro-Rata",MIN(AL103*AE103,(($I$5+'Cash Flows'!$BX$6+INDEX('Cash Flows'!$C$17:$BW$17,1,MATCH(EOMONTH(AK103,MOD(-MONTH(AK103),3)-3),'Cash Flows'!$C$4:$BW$4,0)))-$AA$5)/$E$13),MIN($E$24,(($I$5+'Cash Flows'!$BX$6+INDEX('Cash Flows'!$C$17:$BW$17,1,MATCH(EOMONTH(AK103,MOD(-MONTH(AK103),3)-3),'Cash Flows'!$C$4:$BW$4,0)))-$AA$5)/$E$13))),IF(AO103=0,"",AO103)) ->  | AS103: =IF($E$5="Uniform Inputs",IF($Z103>$E$14,"",IF($E$23="Pro-Rata",MIN(AU103*AN103,(($I$5+'Cash Flows'!$BX$6+INDEX('Cash Flows'!$C$17:$BW$17,1,MATCH(EOMONTH(AT103,MOD(-MONTH(AT103),3)-3),'Cash Flows'!$C$4:$BW$4,0)))-SUM($AJ$5,$AA$5))/$E$14),MIN($E$25,(($I$5+'Cash Flows'!$BX$6+INDEX('Cash Flows'!$C$17:$BW$17,1,MATCH(EOMONTH(AT103,MOD(-MONTH(AT103),3)-3),'Cash Flows'!$C$4:$BW$4,0)))-SUM($AJ$5,$AA$5))/$E$14))),IF(AX103=0,"",AX103)) ->  | BB103: =IF($E$5="Uniform Inputs",IF($Z103>$E$15,"",IF($E$23="Pro-Rata",MIN(BD103*AW103,(($I$5+'Cash Flows'!$BX$6+INDEX('Cash Flows'!$C$17:$BW$17,1,MATCH(EOMONTH(BC103,MOD(-MONTH(BC103),3)-3),'Cash Flows'!$C$4:$BW$4,0)))-SUM($AS$5,$AJ$5,$AA$5))/$E$15),MIN($E$26,(($I$5+'Cash Flows'!$BX$6+INDEX('Cash Flows'!$C$17:$BW$17,1,MATCH(EOMONTH(BC103,MOD(-MONTH(BC103),3)-3),'Cash Flows'!$C$4:$BW$4,0)))-SUM($AS$5,$AJ$5,$AA$5))/$E$15))),IF(BG103=0,"",BG103)) ->  | BK103: =IF($E$5="Uniform Inputs",IF($Z103>$E$16,"",IF($E$23="Pro-Rata",MIN(BM103*BF103,(($I$5+'Cash Flows'!$BX$6+INDEX('Cash Flows'!$C$17:$BW$17,1,MATCH(EOMONTH(BL103,MOD(-MONTH(BL103),3)-3),'Cash Flows'!$C$4:$BW$4,0)))-SUM($BB$5,$AS$5,$AJ$5,$AA$5))/$E$16),MIN($E$27,(($I$5+'Cash Flows'!$BX$6+INDEX('Cash Flows'!$C$17:$BW$17,1,MATCH(EOMONTH(BL103,MOD(-MONTH(BL103),3)-3),'Cash Flows'!$C$4:$BW$4,0)))-SUM($BB$5,$AS$5,$AJ$5,$AA$5))/$E$16))),IF(BP103=0,"",BP103)) -> 
Y104: 99 | AA104: =IF($E$5="Uniform Inputs",IF($Z104>$E$12,"",MIN($E$21,($I$5+'Cash Flows'!$BX$6+INDEX('Cash Flows'!$C$17:$BW$17,1,MATCH(EOMONTH(AB104,MOD(-MONTH(AB104),3)-3),'Cash Flows'!$C$4:$BW$4,0)))/$E$12)),IF(AF104>0,AF104,"")) ->  | AJ104: =IF($E$5="Uniform Inputs",IF($Z104>$E$13,"",IF($E$23="Pro-Rata",MIN(AL104*AE104,(($I$5+'Cash Flows'!$BX$6+INDEX('Cash Flows'!$C$17:$BW$17,1,MATCH(EOMONTH(AK104,MOD(-MONTH(AK104),3)-3),'Cash Flows'!$C$4:$BW$4,0)))-$AA$5)/$E$13),MIN($E$24,(($I$5+'Cash Flows'!$BX$6+INDEX('Cash Flows'!$C$17:$BW$17,1,MATCH(EOMONTH(AK104,MOD(-MONTH(AK104),3)-3),'Cash Flows'!$C$4:$BW$4,0)))-$AA$5)/$E$13))),IF(AO104=0,"",AO104)) ->  | AS104: =IF($E$5="Uniform Inputs",IF($Z104>$E$14,"",IF($E$23="Pro-Rata",MIN(AU104*AN104,(($I$5+'Cash Flows'!$BX$6+INDEX('Cash Flows'!$C$17:$BW$17,1,MATCH(EOMONTH(AT104,MOD(-MONTH(AT104),3)-3),'Cash Flows'!$C$4:$BW$4,0)))-SUM($AJ$5,$AA$5))/$E$14),MIN($E$25,(($I$5+'Cash Flows'!$BX$6+INDEX('Cash Flows'!$C$17:$BW$17,1,MATCH(EOMONTH(AT104,MOD(-MONTH(AT104),3)-3),'Cash Flows'!$C$4:$BW$4,0)))-SUM($AJ$5,$AA$5))/$E$14))),IF(AX104=0,"",AX104)) ->  | BB104: =IF($E$5="Uniform Inputs",IF($Z104>$E$15,"",IF($E$23="Pro-Rata",MIN(BD104*AW104,(($I$5+'Cash Flows'!$BX$6+INDEX('Cash Flows'!$C$17:$BW$17,1,MATCH(EOMONTH(BC104,MOD(-MONTH(BC104),3)-3),'Cash Flows'!$C$4:$BW$4,0)))-SUM($AS$5,$AJ$5,$AA$5))/$E$15),MIN($E$26,(($I$5+'Cash Flows'!$BX$6+INDEX('Cash Flows'!$C$17:$BW$17,1,MATCH(EOMONTH(BC104,MOD(-MONTH(BC104),3)-3),'Cash Flows'!$C$4:$BW$4,0)))-SUM($AS$5,$AJ$5,$AA$5))/$E$15))),IF(BG104=0,"",BG104)) ->  | BK104: =IF($E$5="Uniform Inputs",IF($Z104>$E$16,"",IF($E$23="Pro-Rata",MIN(BM104*BF104,(($I$5+'Cash Flows'!$BX$6+INDEX('Cash Flows'!$C$17:$BW$17,1,MATCH(EOMONTH(BL104,MOD(-MONTH(BL104),3)-3),'Cash Flows'!$C$4:$BW$4,0)))-SUM($BB$5,$AS$5,$AJ$5,$AA$5))/$E$16),MIN($E$27,(($I$5+'Cash Flows'!$BX$6+INDEX('Cash Flows'!$C$17:$BW$17,1,MATCH(EOMONTH(BL104,MOD(-MONTH(BL104),3)-3),'Cash Flows'!$C$4:$BW$4,0)))-SUM($BB$5,$AS$5,$AJ$5,$AA$5))/$E$16))),IF(BP104=0,"",BP104)) -> 
Y105: 100 | AA105: =IF($E$5="Uniform Inputs",IF($Z105>$E$12,"",MIN($E$21,($I$5+'Cash Flows'!$BX$6+INDEX('Cash Flows'!$C$17:$BW$17,1,MATCH(EOMONTH(AB105,MOD(-MONTH(AB105),3)-3),'Cash Flows'!$C$4:$BW$4,0)))/$E$12)),IF(AF105>0,AF105,"")) ->  | AJ105: =IF($E$5="Uniform Inputs",IF($Z105>$E$13,"",IF($E$23="Pro-Rata",MIN(AL105*AE105,(($I$5+'Cash Flows'!$BX$6+INDEX('Cash Flows'!$C$17:$BW$17,1,MATCH(EOMONTH(AK105,MOD(-MONTH(AK105),3)-3),'Cash Flows'!$C$4:$BW$4,0)))-$AA$5)/$E$13),MIN($E$24,(($I$5+'Cash Flows'!$BX$6+INDEX('Cash Flows'!$C$17:$BW$17,1,MATCH(EOMONTH(AK105,MOD(-MONTH(AK105),3)-3),'Cash Flows'!$C$4:$BW$4,0)))-$AA$5)/$E$13))),IF(AO105=0,"",AO105)) ->  | AS105: =IF($E$5="Uniform Inputs",IF($Z105>$E$14,"",IF($E$23="Pro-Rata",MIN(AU105*AN105,(($I$5+'Cash Flows'!$BX$6+INDEX('Cash Flows'!$C$17:$BW$17,1,MATCH(EOMONTH(AT105,MOD(-MONTH(AT105),3)-3),'Cash Flows'!$C$4:$BW$4,0)))-SUM($AJ$5,$AA$5))/$E$14),MIN($E$25,(($I$5+'Cash Flows'!$BX$6+INDEX('Cash Flows'!$C$17:$BW$17,1,MATCH(EOMONTH(AT105,MOD(-MONTH(AT105),3)-3),'Cash Flows'!$C$4:$BW$4,0)))-SUM($AJ$5,$AA$5))/$E$14))),IF(AX105=0,"",AX105)) ->  | BB105: =IF($E$5="Uniform Inputs",IF($Z105>$E$15,"",IF($E$23="Pro-Rata",MIN(BD105*AW105,(($I$5+'Cash Flows'!$BX$6+INDEX('Cash Flows'!$C$17:$BW$17,1,MATCH(EOMONTH(BC105,MOD(-MONTH(BC105),3)-3),'Cash Flows'!$C$4:$BW$4,0)))-SUM($AS$5,$AJ$5,$AA$5))/$E$15),MIN($E$26,(($I$5+'Cash Flows'!$BX$6+INDEX('Cash Flows'!$C$17:$BW$17,1,MATCH(EOMONTH(BC105,MOD(-MONTH(BC105),3)-3),'Cash Flows'!$C$4:$BW$4,0)))-SUM($AS$5,$AJ$5,$AA$5))/$E$15))),IF(BG105=0,"",BG105)) ->  | BK105: =IF($E$5="Uniform Inputs",IF($Z105>$E$16,"",IF($E$23="Pro-Rata",MIN(BM105*BF105,(($I$5+'Cash Flows'!$BX$6+INDEX('Cash Flows'!$C$17:$BW$17,1,MATCH(EOMONTH(BL105,MOD(-MONTH(BL105),3)-3),'Cash Flows'!$C$4:$BW$4,0)))-SUM($BB$5,$AS$5,$AJ$5,$AA$5))/$E$16),MIN($E$27,(($I$5+'Cash Flows'!$BX$6+INDEX('Cash Flows'!$C$17:$BW$17,1,MATCH(EOMONTH(BL105,MOD(-MONTH(BL105),3)-3),'Cash Flows'!$C$4:$BW$4,0)))-SUM($BB$5,$AS$5,$AJ$5,$AA$5))/$E$16))),IF(BP105=0,"",BP105)) -> 

Sheet Cash Flows
D2: =$D$3 -> 1 | E2: 1 | F2: 1 | G2: 1 | H2: =$H$3 -> 2 | I2: 2 | J2: 2 | K2: 2 | L2: =$L$3 -> 3 | M2: 3 | N2: 3 | O2: 3 | P2: =$P$3 -> 4 | Q2: 4 | R2: 4 | S2: 4 | T2: =$T$3 -> 5 | U2: 5 | V2: 5 | W2: 5 | X2: =$X$3 -> 6 | Y2: 6 | Z2: 6 | AA2: 6 | AB2: =$AB$3 -> 7 | AC2: 7 | AD2: 7 | AE2: 7 | AF2: =$AF$3 -> 8 | AG2: 8 | AH2: 8 | AI2: 8 | AJ2: =$AJ$3 -> 9 | AK2: 9 | AL2: 9 | AM2: 9 | AN2: =$AN$3 -> 10 | AO2: 10 | AP2: 10 | AQ2: 10 | AR2: =$AR$3 -> 11 | AS2: 11 | AT2: 11 | AU2: 11 | AV2: =$AV$3 -> 12 | AW2: 12 | AX2: 12 | AY2: 12 | AZ2: =$AZ$3 -> 13 | BA2: 13 | BB2: 13 | BC2: 13 | BD2: =$BD$3 -> 14 | BE2: 14 | BF2: 14 | BG2: 14 | BH2: =$BH$3 -> 15 | BI2: 15 | BJ2: 15 | BK2: 15 | BL2: =$BL$3 -> 16 | BM2: 16 | BN2: 16 | BO2: 16 | BP2: =$BP$3 -> 17 | BQ2: 17 | BR2: 17 | BS2: 17 | BT2: =$BT$3 -> 18 | BU2: 18 | BV2: 18 | BW2: 18
C3: Year 0 | D3: 1 | H3: 2 | L3: 3 | P3: 4 | T3: 5 | X3: 6 | AB3: 7 | AF3: 8 | AJ3: 9 | AN3: 10 | AR3: 11 | AV3: 12 | AZ3: 13 | BD3: 14 | BH3: 15 | BL3: 16 | BP3: 17 | BT3: 18 | BX3: Total
C4: =Model!E9 -> 2021-12-31 | D4: =EOMONTH(C4+90,0) -> 2022-03-31 | E4: =EOMONTH(D4+90,0) -> 2022-06-30 | F4: 2022-09-30 | G4: 2022-12-31 | H4: 2023-03-31 | I4: 2023-06-30 | J4: 2023-09-30 | K4: 2023-12-31 | L4: 2024-03-31 | M4: 2024-06-30 | N4: 2024-09-30 | O4: 2024-12-31 | P4: 2025-03-31 | Q4: 2025-06-30 | R4: 2025-09-30 | S4: 2025-12-31 | T4: 2026-03-31 | U4: 2026-06-30 | V4: 2026-09-30 | W4: 2026-12-31 | X4: 2027-03-31 | Y4: 2027-06-30 | Z4: 2027-09-30 | AA4: 2027-12-31 | AB4: 2028-03-31 | AC4: 2028-06-30 | AD4: 2028-09-30 | AE4: 2028-12-31 | AF4: 2029-03-31 | AG4: 2029-06-30 | AH4: 2029-09-30 | AI4: 2029-12-31 | AJ4: 2030-03-31 | AK4: 2030-06-30 | AL4: 2030-09-30 | AM4: 2030-12-31 | AN4: 2031-03-31 | AO4: 2031-06-30 | AP4: 2031-09-30 | AQ4: 2031-12-31 | AR4: 2032-03-31 | AS4: 2032-06-30 | AT4: 2032-09-30 | AU4: 2032-12-31 | AV4: 2033-03-31 | AW4: 2033-06-30 | AX4: 2033-09-30 | AY4: 2033-12-31 | AZ4: 2034-03-31 | BA4: 2034-06-30 | BB4: 2034-09-30 | BC4: 2034-12-31 | BD4: 2035-03-31 | BE4: 2035-06-30 | BF4: 2035-09-30 | BG4: 2035-12-31 | BH4: 2036-03-31 | BI4: 2036-06-30 | BJ4: 2036-09-30 | BK4: 2036-12-31 | BL4: =EOMONTH(BK4+90,0) -> 2037-03-31 | BM4: =EOMONTH(BL4+90,0) -> 2037-06-30 | BN4: =EOMONTH(BM4+90,0) -> 2037-09-30 | BO4: =EOMONTH(BN4+90,0) -> 2037-12-31 | BP4: =EOMONTH(BO4+90,0) -> 2038-03-31 | BQ4: =EOMONTH(BP4+90,0) -> 2038-06-30 | BR4: =EOMONTH(BQ4+90,0) -> 2038-09-30 | BS4: =EOMONTH(BR4+90,0) -> 2038-12-31 | BT4: =EOMONTH(BS4+90,0) -> 2039-03-31 | BU4: =EOMONTH(BT4+90,0) -> 2039-06-30 | BV4: =EOMONTH(BU4+90,0) -> 2039-09-30 | BW4: =EOMONTH(BV4+90,0) -> 2039-12-31 | BX4: ITD
B5: Management Fee (%) | C5: 0 | D5: =IF(Model!$E$38<D2,0,IF(Model!$E$39<D2,MAX(Model!$E$37,'Cash Flows'!B5-Model!$E$36),Model!$E$35)) -> 0.02 | E5: =IF(Model!$E$38<E2,0,IF(Model!$E$39<E2,MAX(Model!$E$37,'Cash Flows'!D5-Model!$E$36),Model!$E$35)) -> 0.02 | F5: =IF(Model!$E$38<F2,0,IF(Model!$E$39<F2,MAX(Model!$E$37,'Cash Flows'!E5-Model!$E$36),Model!$E$35)) -> 0.02 | G5: =IF(Model!$E$38<G2,0,IF(Model!$E$39<G2,MAX(Model!$E$37,'Cash Flows'!F5-Model!$E$36),Model!$E$35)) -> 0.02 | H5: =IF(Model!$E$38<H2,0,IF(Model!$E$39<H2,MAX(Model!$E$37,'Cash Flows'!G5-Model!$E$36),Model!$E$35)) -> 0.02 | I5: =IF(Model!$E$38<I2,0,IF(Model!$E$39<I2,MAX(Model!$E$37,'Cash Flows'!H5-Model!$E$36),Model!$E$35)) -> 0.02 | J5: =IF(Model!$E$38<J2,0,IF(Model!$E$39<J2,MAX(Model!$E$37,'Cash Flows'!I5-Model!$E$36),Model!$E$35)) -> 0.02 | K5: =IF(Model!$E$38<K2,0,IF(Model!$E$39<K2,MAX(Model!$E$37,'Cash Flows'!J5-Model!$E$36),Model!$E$35)) -> 0.02 | L5: =IF(Model!$E$38<L2,0,IF(Model!$E$39<L2,MAX(Model!$E$37,'Cash Flows'!K5-Model!$E$36),Model!$E$35)) -> 0.02 | M5: =IF(Model!$E$38<M2,0,IF(Model!$E$39<M2,MAX(Model!$E$37,'Cash Flows'!L5-Model!$E$36),Model!$E$35)) -> 0.02 | N5: =IF(Model!$E$38<N2,0,IF(Model!$E$39<N2,MAX(Model!$E$37,'Cash Flows'!M5-Model!$E$36),Model!$E$35)) -> 0.02 | O5: =IF(Model!$E$38<O2,0,IF(Model!$E$39<O2,MAX(Model!$E$37,'Cash Flows'!N5-Model!$E$36),Model!$E$35)) -> 0.02 | P5: =IF(Model!$E$38<P2,0,IF(Model!$E$39<P2,MAX(Model!$E$37,'Cash Flows'!O5-Model!$E$36),Model!$E$35)) -> 0.02 | Q5: =IF(Model!$E$38<Q2,0,IF(Model!$E$39<Q2,MAX(Model!$E$37,'Cash Flows'!P5-Model!$E$36),Model!$E$35)) -> 0.02 | R5: =IF(Model!$E$38<R2,0,IF(Model!$E$39<R2,MAX(Model!$E$37,'Cash Flows'!Q5-Model!$E$36),Model!$E$35)) -> 0.02 | S5: =IF(Model!$E$38<S2,0,IF(Model!$E$39<S2,MAX(Model!$E$37,'Cash Flows'!R5-Model!$E$36),Model!$E$35)) -> 0.02 | T5: =IF(Model!$E$38<T2,0,IF(Model!$E$39<T2,MAX(Model!$E$37,'Cash Flows'!S5-Model!$E$36),Model!$E$35)) -> 0.02 | U5: =IF(Model!$E$38<U2,0,IF(Model!$E$39<U2,MAX(Model!$E$37,'Cash Flows'!T5-Model!$E$36),Model!$E$35)) -> 0.02 | V5: =IF(Model!$E$38<V2,0,IF(Model!$E$39<V2,MAX(Model!$E$37,'Cash Flows'!U5-Model!$E$36),Model!$E$35)) -> 0.02 | W5: =IF(Model!$E$38<W2,0,IF(Model!$E$39<W2,MAX(Model!$E$37,'Cash Flows'!V5-Model!$E$36),Model!$E$35)) -> 0.02 | X5: =IF(Model!$E$38<X2,0,IF(Model!$E$39<X2,MAX(Model!$E$37,'Cash Flows'!W5-Model!$E$36),Model!$E$35)) -> 0.01875 | Y5: =IF(Model!$E$38<Y2,0,IF(Model!$E$39<Y2,MAX(Model!$E$37,'Cash Flows'!X5-Model!$E$36),Model!$E$35)) -> 0.0175 | Z5: =IF(Model!$E$38<Z2,0,IF(Model!$E$39<Z2,MAX(Model!$E$37,'Cash Flows'!Y5-Model!$E$36),Model!$E$35)) -> 0.01625 | AA5: =IF(Model!$E$38<AA2,0,IF(Model!$E$39<AA2,MAX(Model!$E$37,'Cash Flows'!Z5-Model!$E$36),Model!$E$35)) -> 0.015 | AB5: =IF(Model!$E$38<AB2,0,IF(Model!$E$39<AB2,MAX(Model!$E$37,'Cash Flows'!AA5-Model!$E$36),Model!$E$35)) -> 0.01375 | AC5: =IF(Model!$E$38<AC2,0,IF(Model!$E$39<AC2,MAX(Model!$E$37,'Cash Flows'!AB5-Model!$E$36),Model!$E$35)) -> 0.0125 | AD5: =IF(Model!$E$38<AD2,0,IF(Model!$E$39<AD2,MAX(Model!$E$37,'Cash Flows'!AC5-Model!$E$36),Model!$E$35)) -> 0.01125 | AE5: =IF(Model!$E$38<AE2,0,IF(Model!$E$39<AE2,MAX(Model!$E$37,'Cash Flows'!AD5-Model!$E$36),Model!$E$35)) -> 0.01 | AF5: =IF(Model!$E$38<AF2,0,IF(Model!$E$39<AF2,MAX(Model!$E$37,'Cash Flows'!AE5-Model!$E$36),Model!$E$35)) -> 0.01 | AG5: =IF(Model!$E$38<AG2,0,IF(Model!$E$39<AG2,MAX(Model!$E$37,'Cash Flows'!AF5-Model!$E$36),Model!$E$35)) -> 0.01 | AH5: =IF(Model!$E$38<AH2,0,IF(Model!$E$39<AH2,MAX(Model!$E$37,'Cash Flows'!AG5-Model!$E$36),Model!$E$35)) -> 0.01 | AI5: =IF(Model!$E$38<AI2,0,IF(Model!$E$39<AI2,MAX(Model!$E$37,'Cash Flows'!AH5-Model!$E$36),Model!$E$35)) -> 0.01 | AJ5: =IF(Model!$E$38<AJ2,0,IF(Model!$E$39<AJ2,MAX(Model!$E$37,'Cash Flows'!AI5-Model!$E$36),Model!$E$35)) -> 0.01 | AK5: =IF(Model!$E$38<AK2,0,IF(Model!$E$39<AK2,MAX(Model!$E$37,'Cash Flows'!AJ5-Model!$E$36),Model!$E$35)) -> 0.01 | AL5: =IF(Model!$E$38<AL2,0,IF(Model!$E$39<AL2,MAX(Model!$E$37,'Cash Flows'!AK5-Model!$E$36),Model!$E$35)) -> 0.01 | AM5: =IF(Model!$E$38<AM2,0,IF(Model!$E$39<AM2,MAX(Model!$E$37,'Cash Flows'!AL5-Model!$E$36),Model!$E$35)) -> 0.01 | AN5: =IF(Model!$E$38<AN2,0,IF(Model!$E$39<AN2,MAX(Model!$E$37,'Cash Flows'!AM5-Model!$E$36),Model!$E$35)) -> 0.01 | AO5: =IF(Model!$E$38<AO2,0,IF(Model!$E$39<AO2,MAX(Model!$E$37,'Cash Flows'!AN5-Model!$E$36),Model!$E$35)) -> 0.01 | AP5: =IF(Model!$E$38<AP2,0,IF(Model!$E$39<AP2,MAX(Model!$E$37,'Cash Flows'!AO5-Model!$E$36),Model!$E$35)) -> 0.01 | AQ5: =IF(Model!$E$38<AQ2,0,IF(Model!$E$39<AQ2,MAX(Model!$E$37,'Cash Flows'!AP5-Model!$E$36),Model!$E$35)) -> 0.01 | AR5: =IF(Model!$E$38<AR2,0,IF(Model!$E$39<AR2,MAX(Model!$E$37,'Cash Flows'!AQ5-Model!$E$36),Model!$E$35)) -> 0 | AS5: =IF(Model!$E$38<AS2,0,IF(Model!$E$39<AS2,MAX(Model!$E$37,'Cash Flows'!AR5-Model!$E$36),Model!$E$35)) -> 0 | AT5: =IF(Model!$E$38<AT2,0,IF(Model!$E$39<AT2,MAX(Model!$E$37,'Cash Flows'!AS5-Model!$E$36),Model!$E$35)) -> 0 | AU5: =IF(Model!$E$38<AU2,0,IF(Model!$E$39<AU2,MAX(Model!$E$37,'Cash Flows'!AT5-Model!$E$36),Model!$E$35)) -> 0 | AV5: =IF(Model!$E$38<AV2,0,IF(Model!$E$39<AV2,MAX(Model!$E$37,'Cash Flows'!AU5-Model!$E$36),Model!$E$35)) -> 0 | AW5: =IF(Model!$E$38<AW2,0,IF(Model!$E$39<AW2,MAX(Model!$E$37,'Cash Flows'!AV5-Model!$E$36),Model!$E$35)) -> 0 | AX5: =IF(Model!$E$38<AX2,0,IF(Model!$E$39<AX2,MAX(Model!$E$37,'Cash Flows'!AW5-Model!$E$36),Model!$E$35)) -> 0 | AY5: =IF(Model!$E$38<AY2,0,IF(Model!$E$39<AY2,MAX(Model!$E$37,'Cash Flows'!AX5-Model!$E$36),Model!$E$35)) -> 0 | AZ5: =IF(Model!$E$38<AZ2,0,IF(Model!$E$39<AZ2,MAX(Model!$E$37,'Cash Flows'!AY5-Model!$E$36),Model!$E$35)) -> 0 | BA5: =IF(Model!$E$38<BA2,0,IF(Model!$E$39<BA2,MAX(Model!$E$37,'Cash Flows'!AZ5-Model!$E$36),Model!$E$35)) -> 0 | BB5: =IF(Model!$E$38<BB2,0,IF(Model!$E$39<BB2,MAX(Model!$E$37,'Cash Flows'!BA5-Model!$E$36),Model!$E$35)) -> 0 | BC5: =IF(Model!$E$38<BC2,0,IF(Model!$E$39<BC2,MAX(Model!$E$37,'Cash Flows'!BB5-Model!$E$36),Model!$E$35)) -> 0 | BD5: =IF(Model!$E$38<BD2,0,IF(Model!$E$39<BD2,MAX(Model!$E$37,'Cash Flows'!BC5-Model!$E$36),Model!$E$35)) -> 0 | BE5: =IF(Model!$E$38<BE2,0,IF(Model!$E$39<BE2,MAX(Model!$E$37,'Cash Flows'!BD5-Model!$E$36),Model!$E$35)) -> 0 | BF5: =IF(Model!$E$38<BF2,0,IF(Model!$E$39<BF2,MAX(Model!$E$37,'Cash Flows'!BE5-Model!$E$36),Model!$E$35)) -> 0 | BG5: =IF(Model!$E$38<BG2,0,IF(Model!$E$39<BG2,MAX(Model!$E$37,'Cash Flows'!BF5-Model!$E$36),Model!$E$35)) -> 0 | BH5: =IF(Model!$E$38<BH2,0,IF(Model!$E$39<BH2,MAX(Model!$E$37,'Cash Flows'!BG5-Model!$E$36),Model!$E$35)) -> 0 | BI5: =IF(Model!$E$38<BI2,0,IF(Model!$E$39<BI2,MAX(Model!$E$37,'Cash Flows'!BH5-Model!$E$36),Model!$E$35)) -> 0 | BJ5: =IF(Model!$E$38<BJ2,0,IF(Model!$E$39<BJ2,MAX(Model!$E$37,'Cash Flows'!BI5-Model!$E$36),Model!$E$35)) -> 0 | BK5: =IF(Model!$E$38<BK2,0,IF(Model!$E$39<BK2,MAX(Model!$E$37,'Cash Flows'!BJ5-Model!$E$36),Model!$E$35)) -> 0 | BL5: =IF(Model!$E$38<BL2,0,IF(Model!$E$39<BL2,MAX(Model!$E$37,'Cash Flows'!BK5-Model!$E$36),Model!$E$35)) -> 0 | BM5: =IF(Model!$E$38<BM2,0,IF(Model!$E$39<BM2,MAX(Model!$E$37,'Cash Flows'!BL5-Model!$E$36),Model!$E$35)) -> 0 | BN5: =IF(Model!$E$38<BN2,0,IF(Model!$E$39<BN2,MAX(Model!$E$37,'Cash Flows'!BM5-Model!$E$36),Model!$E$35)) -> 0 | BO5: =IF(Model!$E$38<BO2,0,IF(Model!$E$39<BO2,MAX(Model!$E$37,'Cash Flows'!BN5-Model!$E$36),Model!$E$35)) -> 0 | BP5: =IF(Model!$E$38<BP2,0,IF(Model!$E$39<BP2,MAX(Model!$E$37,'Cash Flows'!BO5-Model!$E$36),Model!$E$35)) -> 0 | BQ5: =IF(Model!$E$38<BQ2,0,IF(Model!$E$39<BQ2,MAX(Model!$E$37,'Cash Flows'!BP5-Model!$E$36),Model!$E$35)) -> 0 | BR5: =IF(Model!$E$38<BR2,0,IF(Model!$E$39<BR2,MAX(Model!$E$37,'Cash Flows'!BQ5-Model!$E$36),Model!$E$35)) -> 0 | BS5: =IF(Model!$E$38<BS2,0,IF(Model!$E$39<BS2,MAX(Model!$E$37,'Cash Flows'!BR5-Model!$E$36),Model!$E$35)) -> 0 | BT5: =IF(Model!$E$38<BT2,0,IF(Model!$E$39<BT2,MAX(Model!$E$37,'Cash Flows'!BS5-Model!$E$36),Model!$E$35)) -> 0 | BU5: =IF(Model!$E$38<BU2,0,IF(Model!$E$39<BU2,MAX(Model!$E$37,'Cash Flows'!BT5-Model!$E$36),Model!$E$35)) -> 0 | BV5: =IF(Model!$E$38<BV2,0,IF(Model!$E$39<BV2,MAX(Model!$E$37,'Cash Flows'!BU5-Model!$E$36),Model!$E$35)) -> 0 | BW5: =IF(Model!$E$38<BW2,0,IF(Model!$E$39<BW2,MAX(Model!$E$37,'Cash Flows'!BV5-Model!$E$36),Model!$E$35)) -> 0
B6: Management Fee ($) | C6: =-(C5/4)*Model!$E$10 -> 0 | D6: =-(D5/4)*Model!$E$10 -> -500000 | E6: =-(E5/4)*Model!$E$10 -> -500000 | F6: =-(F5/4)*Model!$E$10 -> -500000 | G6: =-(G5/4)*Model!$E$10 -> -500000 | H6: =-(H5/4)*Model!$E$10 -> -500000 | I6: =-(I5/4)*Model!$E$10 -> -500000 | J6: =-(J5/4)*Model!$E$10 -> -500000 | K6: =-(K5/4)*Model!$E$10 -> -500000 | L6: =-(L5/4)*Model!$E$10 -> -500000 | M6: =-(M5/4)*Model!$E$10 -> -500000 | N6: =-(N5/4)*Model!$E$10 -> -500000 | O6: =-(O5/4)*Model!$E$10 -> -500000 | P6: =-(P5/4)*Model!$E$10 -> -500000 | Q6: =-(Q5/4)*Model!$E$10 -> -500000 | R6: =-(R5/4)*Model!$E$10 -> -500000 | S6: =-(S5/4)*Model!$E$10 -> -500000 | T6: =-(T5/4)*Model!$E$10 -> -500000 | U6: =-(U5/4)*Model!$E$10 -> -500000 | V6: =-(V5/4)*Model!$E$10 -> -500000 | W6: =-(W5/4)*Model!$E$10 -> -500000 | X6: =-(X5/4)*Model!$E$10 -> -468750 | Y6: =-(Y5/4)*Model!$E$10 -> -437500 | Z6: =-(Z5/4)*Model!$E$10 -> -406250 | AA6: =-(AA5/4)*Model!$E$10 -> -375000 | AB6: =-(AB5/4)*Model!$E$10 -> -343750 | AC6: =-(AC5/4)*Model!$E$10 -> -312500 | AD6: =-(AD5/4)*Model!$E$10 -> -281250 | AE6: =-(AE5/4)*Model!$E$10 -> -250000 | AF6: =-(AF5/4)*Model!$E$10 -> -250000 | AG6: =-(AG5/4)*Model!$E$10 -> -250000 | AH6: =-(AH5/4)*Model!$E$10 -> -250000 | AI6: =-(AI5/4)*Model!$E$10 -> -250000 | AJ6: =-(AJ5/4)*Model!$E$10 -> -250000 | AK6: =-(AK5/4)*Model!$E$10 -> -250000 | AL6: =-(AL5/4)*Model!$E$10 -> -250000 | AM6: =-(AM5/4)*Model!$E$10 -> -250000 | AN6: =-(AN5/4)*Model!$E$10 -> -250000 | AO6: =-(AO5/4)*Model!$E$10 -> -250000 | AP6: =-(AP5/4)*Model!$E$10 -> -250000 | AQ6: =-(AQ5/4)*Model!$E$10 -> -250000 | AR6: =-(AR5/4)*Model!$E$10 -> 0 | AS6: =-(AS5/4)*Model!$E$10 -> 0 | AT6: =-(AT5/4)*Model!$E$10 -> 0 | AU6: =-(AU5/4)*Model!$E$10 -> 0 | AV6: =-(AV5/4)*Model!$E$10 -> 0 | AW6: =-(AW5/4)*Model!$E$10 -> 0 | AX6: =-(AX5/4)*Model!$E$10 -> 0 | AY6: =-(AY5/4)*Model!$E$10 -> 0 | AZ6: =-(AZ5/4)*Model!$E$10 -> 0 | BA6: =-(BA5/4)*Model!$E$10 -> 0 | BB6: =-(BB5/4)*Model!$E$10 -> 0 | BC6: =-(BC5/4)*Model!$E$10 -> 0 | BD6: =-(BD5/4)*Model!$E$10 -> 0 | BE6: =-(BE5/4)*Model!$E$10 -> 0 | BF6: =-(BF5/4)*Model!$E$10 -> 0 | BG6: =-(BG5/4)*Model!$E$10 -> 0 | BH6: =-(BH5/4)*Model!$E$10 -> 0 | BI6: =-(BI5/4)*Model!$E$10 -> 0 | BJ6: =-(BJ5/4)*Model!$E$10 -> 0 | BK6: =-(BK5/4)*Model!$E$10 -> 0 | BL6: =-(BL5/4)*Model!$E$10 -> 0 | BM6: =-(BM5/4)*Model!$E$10 -> 0 | BN6: =-(BN5/4)*Model!$E$10 -> 0 | BO6: =-(BO5/4)*Model!$E$10 -> 0 | BP6: =-(BP5/4)*Model!$E$10 -> 0 | BQ6: =-(BQ5/4)*Model!$E$10 -> 0 | BR6: =-(BR5/4)*Model!$E$10 -> 0 | BS6: =-(BS5/4)*Model!$E$10 -> 0 | BT6: =-(BT5/4)*Model!$E$10 -> 0 | BU6: =-(BU5/4)*Model!$E$10 -> 0 | BV6: =-(BV5/4)*Model!$E$10 -> 0 | BW6: =-(BW5/4)*Model!$E$10 -> 0 | BX6: =SUM(C6:BW6) -> -15875000
B8: Net Contributions ($) | C8: =C9+C6 -> 0 | D8: -6500000 | E8: -6500000 | F8: -6500000 | G8: -6500000 | H8: -6500000 | I8: -6500000 | J8: -13045454.55 | K8: -13045454.55 | L8: -9045454.545 | M8: -7045454.545 | N8: -500000 | O8: -500000 | P8: -5265909.091 | Q8: -3677272.727 | R8: -500000 | S8: -500000 | T8: -500000 | U8: -500000 | V8: -500000 | W8: -500000 | X8: -468750 | Y8: -437500 | Z8: -406250 | AA8: -375000 | AB8: -343750 | AC8: -312500 | AD8: -281250 | AE8: -250000 | AF8: -250000 | AG8: -250000 | AH8: -250000 | AI8: =AI9+AI6 -> -250000 | AJ8: -250000 | AK8: -250000 | AL8: -250000 | AM8: -250000 | AN8: -250000 | AO8: -250000 | AP8: -250000 | AQ8: -250000 | AR8: 0 | AS8: 0 | AT8: 0 | AU8: 0 | AV8: 0 | AW8: 0 | AX8: 0 | AY8: 0 | AZ8: 0 | BA8: 0 | BB8: 0 | BC8: 0 | BD8: 0 | BE8: 0 | BF8: 0 | BG8: 0 | BH8: 0 | BI8: 0 | BJ8: 0 | BK8: 0 | BL8: =BL9+BL6 -> 0 | BM8: 0 | BN8: 0 | BO8: 0 | BP8: 0 | BQ8: 0 | BR8: 0 | BS8: 0 | BT8: 0 | BU8: 0 | BV8: 0 | BW8: 0 | BX8: =SUM(C8:BW8) -> -100000000
